Workbook

Sheet AML economic model

Sheet Model structure

Sheet Analysis
Q4: 1 | R4: 1
B5: Step 1: Choose male or female | H5: Step 2: Average age of patients | Q5: 1 | R5: 0
I7: 44 | J7: mean age of young adults who achieved remission quickly
I8: 41 | J8: mean age of young adults who achieved remission slowly
I9: 50 | J9: age of young adults who didn't repsponse to induction
I10: 50 | J10: age of young adults who were unfit
I11: 68 | J11: mean age of elderly who achieved remission quickly
I12: 70 | J12: mean age of elderly who achieved remission slowly
I13: 78 | J13: age of elderly who didn't repsponse to induction
I14: 80 | J14: age of elderly who were unfit
I15: (enter value between 18 and 100 years)
B18: Step 3: discount rate | G18: 0
G19: 0.035
C20: 0 | D20: (select discount rate from 0% to 6%) | G20: 0.04
G21: 0.06
B23: Results (deterministic) | H23: Results (probabilistic)
D25: Cost | E25: survival (month) | J25: Cost | K25: survival (month)
B27: 5 years (total) | D27: =Overall!HM508 -> 40724.9493 | E27: =Overall!HL508 -> 16.47017797 | H27: 5 years (total) | J27: =Overall!HM5 -> 40763.10733 | K27: =Overall!HL5 -> 16.50221113
B28: Induction (induction to remission) | D28: =Overall!HQ508 -> 15568.57332 | E28: =Overall!HP508 -> 2.833893654 | H28: Induction (induction to remission) | J28: =Overall!HQ5 -> 15551.58769 | K28: =Overall!HP5 -> 2.83596972
B29: Consolidation till death | D29: =Overall!HT508 -> 25156.37598 | E29: =Overall!HS508 -> 13.63628432 | H29: Consolidation till death | J29: =Overall!HT5 -> 25211.51964 | K29: =Overall!HS5 -> 13.66624141
B30: Consolidation (remission to relapse) | H30: Consolidation (remission to relapse)
B31: Refractory (relapse to remission) | H31: Refractory (relapse to remission)
B32: 2nd consolidation (remission to relapse) | H32: 2nd consolidation (remission to relapse)
B34: By age groups | H34: By age groups
B35: Young patients (18-59) | D35: =Overall!HW508 -> 86157.02717 | E35: =Overall!HV508 -> 35.77953915 | H35: Young patients (18-59) | J35: =Overall!HW5 -> 86279.46407 | K35: =Overall!HV5 -> 35.86592625
B36: Elderly patients (>60) | D36: =Overall!HZ508 -> 22443.51557 | E36: =Overall!HY508 -> 8.700275664 | H36: Elderly patients (>60) | J36: =Overall!HZ5 -> 22382.48469 | K36: =Overall!HY5 -> 8.684369382
B38: By treatment pathways | H38: By treatment pathways
B39: Model A (quick response to CT) | D39: =Overall!IU508 -> 82250.38537 | E39: =Overall!IO508 -> 36.29159138 | H39: Model A (quick response to CT) | J39: =Overall!IU5 -> 82299.80185 | K39: =Overall!IO5 -> 36.32048828
B40: Model B (slow response to CT) | D40: =Overall!IV508 -> 76397.04978 | E40: =Overall!IP508 -> 29.991106 | H40: Model B (slow response to CT) | J40: =Overall!IV5 -> 76481.77424 | K40: =Overall!IP5 -> 30.00562215
B41: Model C (no response to CT) | D41: =Overall!IW508 -> 28800.64095 | E41: =Overall!IQ508 -> 6.3326683 | H41: Model C (no response to CT) | J41: =Overall!IW5 -> 28800.64095 | K41: =Overall!IQ5 -> 6.3326683
B42: Model D (palliative care) | D42: =Overall!IX508 -> 8183.45133 | E42: =Overall!IR508 -> 3.79617634 | H42: Model D (palliative care) | J42: =Overall!IX5 -> 8183.45133 | K42: =Overall!IR5 -> 3.79617634

Sheet parameters for decision tree (hidden)
D6: Probabilistic Sensitivity Analysis
A7: Name | B7: 'live' value | C7: probabilistic | D7: deterministic | E7: standard error | F7: randon draw | G7: distribution | H7: alpha | I7: beta | J7: Description
A10: cDR | B10: 0.035 | J10: Annual discount rate - costs
A11: oDR | B11: 0.035 | J11: Annual discount rate - outcomes
A13: Transition probability
A14: pY | B14: =IF(Probabilistic=1,C14,D14) -> 0.2869318182 | C14: =BETAINV(RAND(),H14,I14) -> 0.3024901521 | D14: =H14/(H14+I14) -> 0.2869318182 | G14: Beta | H14: 101 | I14: =SUM(H14:H15)-H14 -> 251 | J14: Probability of being young adult | P14: Entering the Markov Models | V14: Entering the Markov Models
A15: pE | B15: 0.7130681818 | C15: =1-C14 -> 0.6975098479 | D15: =H15/(H15+I15) -> 0.7130681818 | G15: Beta | H15: 251 | I15: =SUM(H14:H15)-H15 -> 101 | J15: Probability of being elderly | Q15: For Young Adult | W15: For Young Adult | Y15: Deterministic | Z15: probabilistic
A16: pYF | B16: 0.9306930693 | C16: =BETAINV(RAND(),H16,I16) -> 0.9561546511 | D16: =H16/(H16+I16) -> 0.9306930693 | G16: Beta | H16: 94 | I16: =SUM(H16:H17)-H16 -> 7 | J16: Probability of being young and fit | R16: Model A | S16: =B14*B16*B31*B52+B14*B16*B32*B56+B14*B16*B33*B60 -> 0.1875 | X16: Model A | Y16: =D14*D16*D31*D52+D14*D16*D32*D56+D14*D16*D33*D60 -> 0.1875 | Z16: =C14*C16*C31*C52+C14*C16*C32*C56+C14*C16*C33*C60 -> 0.2012293947
A17: pYU | B17: 0.06930693069 | C17: =1-C16 -> 0.04384534892 | D17: 0.06930693069 | G17: Beta | H17: 7 | I17: =SUM(H16:H17)-H17 -> 94 | J17: Probability of being young and unfit | R17: Model B | S17: =B14*B16*B31*B53+B14*B16*B32*B57+B14*B16*B33*B61 -> 0.03977272727 | X17: Model B | Y17: =D14*D16*D31*D53+D14*D16*D32*D57+D14*D16*D33*D61 -> 0.03977272727 | Z17: =C14*C16*C31*C53+C14*C16*C32*C57+C14*C16*C33*C61 -> 0.04904415475
A18: pEF | B18: 0.5059760956 | C18: =BETAINV(RAND(),H18,I18) -> 0.5033896077 | D18: 0.5059760956 | G18: Beta | H18: 127 | I18: =SUM(H18:H19)-H18 -> 124 | J18: Probability of being elderly and fit | R18: Model C | S18: =B14*B16*B31*B54+B14*B16*B32*B58+B14*B16*B33*B62 -> 0.01420454545 | X18: Model C | Y18: =D14*D16*D31*D54+D14*D16*D32*D58+D14*D16*D33*D62 -> 0.01420454545 | Z18: =C14*C16*C31*C54+C14*C16*C32*C58+C14*C16*C33*C62 -> 0.02150333563
A19: pEU | B19: 0.4940239044 | C19: =1-C18 -> 0.4966103923 | D19: =H19/(H19+I19) -> 0.4940239044 | G19: Beta | H19: 124 | I19: =SUM(H18:H19)-H19 -> 127 | J19: Probability of being elderly and unfit | R19: Model D | S19: =B14*B17 -> 0.01988636364 | X19: Model D | Y19: =D14*D17 -> 0.01988636364 | Z19: =C14*C17 -> 0.01326278626
R20: Death | S20: =B14*B16*B31*B51+B14*B16*B32*B55+B14*B16*B33*B59 -> 0.02556818182 | X20: Death | Y20: =D14*D16*D31*D51+D14*D16*D32*D55+D14*D16*D33*D59 -> 0.02556818182 | Z20: =C14*C16*C31*C51+C14*C16*C32*C55+C14*C16*C33*C59 -> 0.01745048074
A21: pYFT | B21: =IF(Probabilistic=1,C21,D21) -> 0.5 | C21: =BETAINV(RAND(),H21,I21) -> 0.4160903694 | D21: =H21/(H21+I21) -> 0.5 | G21: Beta | H21: 47 | I21: 47 | J21: Probability of being young and in trial | W21: For Elderly
A22: pYFN | B22: 0.5 | C22: =1-C21 -> 0.5839096306 | D22: 0.5 | G22: Beta | H22: 47 | I22: 47 | J22: Probability of being young, fit but not in trial | X22: Model A | Y22: =D15*D18*D47*D64+D15*D18*D48*D68+D15*D18*D49*D72+D15*D18*D50*D76 -> 0.1148989899 | Z22: =C15*C18*C47*C64+C15*C18*C48*C68+C15*C18*C49*C72+C15*C18*C50*C76 -> 0.1249889074
A23: pYFTA | B23: 0.3617021277 | C23: =F23/SUM(F23:F25) -> 0.3000635598 | D23: 0.3617021277 | F23: =IF(H23<300,GAMMAINV(RAND(),H23,1),NORMINV(RAND(),H23,SQRT(H23))) -> 12.34100417 | G23: gamma | H23: 17 | I23: =47-H23 -> 30 | J23: Probability of being young, fit and in trial (ADE) | X23: Model B | Y23: =D15*D18*D47*D65+D15*D18*D48*D69+D15*D18*D49*D73+D15*D18*D50*D77 -> 0.07070707071 | Z23: =C15*C18*C47*C65+C15*C18*C48*C69+C15*C18*C49*C73+C15*C18*C50*C77 -> 0.05954499064
A24: pYFTD | B24: 0.08510638298 | C24: =F24/SUM(F23:F25) -> 0.1013579214 | D24: 0.08510638298 | F24: =IF(H24<300,GAMMAINV(RAND(),H24,1),NORMINV(RAND(),H24,SQRT(H24))) -> 4.168645242 | G24: gamma | H24: 4 | I24: =47-H24 -> 43 | J24: Probability of being young, fit and in trial (DA) | X24: Model C | Y24: =D15*D18*D47*D66+D15*D18*D48*D70+D15*D18*D49*D74+D15*D18*D50*D78 -> 0.09027777778 | Z24: =C15*C18*C47*C66+C15*C18*C48*C70+C15*C18*C49*C74+C15*C18*C50*C78 -> 0.08179202606
A25: pYFTF | B25: 0.5531914894 | C25: =F25/SUM(F23:F25) -> 0.5985785189 | D25: 0.5531914894 | F25: 24.61831755 | G25: gamma | H25: =47-H23-H24 -> 26 | I25: =47-H25 -> 21 | J25: Probability of being young, fit and in trial (FLAG) | X25: Model D | Y25: =D15*D19 -> 0.3522727273 | Z25: =C15*C19 -> 0.3463906392
A26: pYFNA | B26: 0.07407407407 | C26: =F26/SUM(F26:F28) -> 0.08618079292 | D26: =H26/(H26+I26) -> 0.07407407407 | F26: 3.953519055 | G26: gamma | H26: 4 | I26: =SUM(H26:H29)-H26 -> 50 | J26: Probability of being young, fit but not in trial (ADE) | X26: Death | Y26: =D15*D18*D47*D63+D15*D18*D48*D67+D15*D18*D49*D71+D15*D18*D50*D75 -> 0.08491161616 | Z26: =C15*C18*C47*C63+C15*C18*C48*C67+C15*C18*C49*C71+C15*C18*C50*C75 -> 0.08479328458
A27: pYFND | B27: 0.7407407407 | C27: =F27/SUM(F26:F28) -> 0.8770845894 | D27: 0.7407407407 | F27: 40.23600294 | G27: gamma | H27: 40 | I27: =SUM(H26:H29)-H27 -> 14 | J27: Probability of being young, fit but not in trial (DA) | W27: Check | Y27: =SUM(Y16:Y26) -> 1 | Z27: =SUM(Z16:Z26) -> 1
A28: pYFNF | B28: 0.05555555556 | C28: =F28/SUM(F26:F28) -> 0.03673461767 | D28: 0.05555555556 | F28: 1.685190006 | G28: gamma | H28: =47-H26-H27 -> 3 | I28: =SUM(H26:H29)-H28 -> 51 | J28: Probability of being young, fit but not in trial (FLAG)
A29: pYU | B29: 0.1296296296 | C29: =F29/SUM(F26:F29) -> 0.1544342521 | D29: 0.1296296296 | F29: 8.378564122 | G29: gamma | H29: 7 | I29: =SUM(H26:H29)-H29 -> 47 | J29: Probability of being young, and unfit
A31: pYFA | B31: =IF(Probabilistic=1,C31,D31) -> 0.2234042553 | C31: =F31/SUM(F31:F33) -> 0.1644234635 | D31: =H31/(H31+I31) -> 0.2234042553 | F31: =IF(H31<300,GAMMAINV(RAND(),H31,1),NORMINV(RAND(),H31,SQRT(H31))) -> 15.13629831 | G31: gamma | H31: 21 | I31: =SUM(H31:H33)-H31 -> 73 | J31: Probability of receiving ADE for young and fit | Q31: For Elderly
A32: pYFD | B32: =IF(Probabilistic=1,C32,D32) -> 0.4680851064 | C32: =F32/SUM(F31:F33) -> 0.4932858613 | D32: 0.4680851064 | F32: =IF(H32<300,GAMMAINV(RAND(),H32,1),NORMINV(RAND(),H32,SQRT(H32))) -> 45.41031913 | G32: gamma | H32: 44 | I32: =SUM(H31:H33)-H32 -> 50 | J32: Probability of receiving DA for young and fit | R32: Model A | S32: =B15*B18*B47*B64+B15*B18*B48*B68+B15*B18*B49*B72+B15*B18*B50*B76 -> 0.1148989899
A33: pYFF | B33: =IF(Probabilistic=1,C33,D33) -> 0.3085106383 | C33: =F33/SUM(F31:F33) -> 0.3422906752 | D33: 0.3085106383 | F33: =IF(H33<300,GAMMAINV(RAND(),H33,1),NORMINV(RAND(),H33,SQRT(H33))) -> 31.51018511 | G33: gamma | H33: 29 | I33: =SUM(H31:H33)-H33 -> 65 | J33: Probability of receiving FLAG for young and fit | R33: Model B | S33: =B15*B18*B47*B65+B15*B18*B48*B69+B15*B18*B49*B73+B15*B18*B50*B77 -> 0.07070707071
A35: pEFT | B35: =IF(Probabilistic=1,C35,D35) -> 0.3700787402 | C35: =BETAINV(RAND(),H35,I35) -> 0.3595750364 | D35: =H35/(H35+I35) -> 0.3700787402 | G35: Beta | H35: 47 | I35: =127-H35 -> 80 | J35: Probability of being elderly, fit, and in trial
A36: pEFN | B36: 0.6299212598 | C36: =1-C35 -> 0.6404249636 | D36: =H36/(H36+I36) -> 0.6299212598 | G36: Beta | H36: 80 | I36: =127-H36 -> 47 | J36: Probability of being elderly, fit, but not in trial
A37: pEFTD | B37: 0.4042553191 | C37: =F37/SUM(F37:F40) -> 0.4185911421 | D37: =H37/(H37+I37) -> 0.4042553191 | F37: =IF(H37<300,GAMMAINV(RAND(),H37,1),NORMINV(RAND(),H37,SQRT(H37))) -> 14.88651886 | G37: gamma | H37: 19 | I37: =47-H37 -> 28 | J37: Probability of being elderly, fit, and in trial (DA)
A38: pEFTF | B38: 0.1914893617 | C38: =F38/SUM(F37:F40) -> 0.1176192354 | D38: 0.1914893617 | F38: =IF(H38<300,GAMMAINV(RAND(),H38,1),NORMINV(RAND(),H38,SQRT(H38))) -> 4.182938407 | G38: gamma | H38: 9 | I38: =47-H38 -> 38 | J38: Probability of being elderly, fit, and in trial (FLAG)
A39: pEFTC | B39: 0.170212766 | C39: =F39/SUM(F37:F40) -> 0.2362758062 | D39: 0.170212766 | F39: 8.402767978 | G39: gamma | H39: 8 | I39: =47-H39 -> 39 | J39: Probability of being elderly, fit, and in trial (DCLO)
A40: pEFTA | B40: 0.2340425532 | C40: =F40/SUM(F37:F40) -> 0.2275138163 | D40: 0.2340425532 | F40: 8.09116194 | G40: gamma | H40: =47-H37-H38-H39 -> 11 | I40: =47-H40 -> 36 | J40: Probability of being elderly, fit, and in trial (AraC)
A41: pEFND | B41: 0.1930693069 | C41: =F41/SUM(F41:F45) -> 0.1676797033 | D41: 0.1930693069 | F41: 35.42129955 | G41: gamma | H41: 39 | I41: =SUM(H41:H45)-H41 -> 163 | J41: Probability of being elderly, fit, but not in trial (DA)
A42: pEFNF | B42: 0.009900990099 | C42: =F42/SUM(F41:F45) -> 0.006638773222 | D42: 0.009900990099 | F42: 1.402399756 | G42: gamma | H42: 2 | I42: =SUM(H41:H45)-H42 -> 200 | J42: Probability of being elderly, fit, but not in trial (FLAG)
A43: pEFNC | B43: 0.00495049505 | C43: =F43/SUM(F41:F45) -> 0.006422731777 | D43: 0.00495049505 | F43: 1.356762337 | G43: gamma | H43: 1 | I43: =SUM(H41:H45)-H43 -> 201 | J43: Probability of being elderly, fit, but not in trial (DCLO)
A44: pEFNA | B44: 0.1930693069 | C44: =F44/SUM(F41:F45) -> 0.2046158109 | D44: 0.1930693069 | F44: 43.22382368 | G44: gamma | H44: 39 | I44: =SUM(H41:H45)-H44 -> 163 | J44: Probability of being elderly, fit, but not in trial (AraC)
A45: pEU | B45: 0.599009901 | C45: =F45/SUM(F41:F45) -> 0.6146429808 | D45: =H45/(H45+I45) -> 0.599009901 | F45: 129.8395256 | G45: gamma | H45: 121 | I45: =SUM(H41:H45)-H45 -> 81 | J45: Probability of being elderly, and unfit
A47: pEFD | B47: =IF(Probabilistic=1,C47,D47) -> 0.4566929134 | C47: =F47/SUM(F47:F50) -> 0.4493525228 | D47: =H47/(H47+I47) -> 0.4566929134 | F47: =IF(H47<300,GAMMAINV(RAND(),H47,1),NORMINV(RAND(),H47,SQRT(H47))) -> 61.67203797 | G47: gamma | H47: 58 | I47: =SUM(H47:H50)-H47 -> 69 | J47: Probability of receiving DA for elderly and fit | R47: Model C | S47: =B15*B18*B47*B66+B15*B18*B48*B70+B15*B18*B49*B74+B15*B18*B50*B78 -> 0.09027777778
A48: pEFF | B48: =IF(Probabilistic=1,C48,D48) -> 0.08661417323 | C48: =F48/SUM(F47:F50) -> 0.1297834751 | D48: 0.08661417323 | F48: =IF(H48<300,GAMMAINV(RAND(),H48,1),NORMINV(RAND(),H48,SQRT(H48))) -> 17.81232106 | G48: gamma | H48: 11 | I48: =SUM(H47:H50)-H48 -> 116 | J48: Probability of receiving FLAG for elderly and fit | R48: Death | S48: =B15*B18*B47*B63+B15*B18*B48*B67+B15*B18*B49*B71+B15*B18*B50*B75 -> 0.08491161616
A49: pEFC | B49: 0.06299212598 | C49: =F49/SUM(F47:F50) -> 0.06025134416 | D49: 0.06299212598 | F49: 8.269283015 | G49: gamma | H49: 8 | I49: =SUM(H47:H50)-H49 -> 119 | J49: Probability of receiving DCLO for elderly and fit | Q49: Check | S49: =SUM(S16:S48) -> 0.6477272727
A50: pEFA | B50: 0.3937007874 | C50: =F50/SUM(F47:F50) -> 0.360612658 | D50: 0.3937007874 | F50: 49.49280667 | G50: gamma | H50: 50 | I50: =SUM(H47:H50)-H50 -> 77 | J50: Probability of receiving AraC(LD) for elderly and fit
A51: pYFA2D | B51: 0.04761904762 | C51: =F51/SUM(F51:F54) -> 0.01679577578 | D51: 0.04761904762 | F51: 0.4592360138 | G51: gamma | H51: 1 | I51: =SUM(H51:H54)-H51 -> 20 | J51: Probability from ADE to death for young and fit
A52: pYFA2qCR | B52: 0.8095238095 | C52: =F52/SUM(F51:F54) -> 0.7563492985 | D52: 0.8095238095 | F52: 20.68036877 | G52: gamma | H52: 17 | I52: =SUM(H51:H54)-H52 -> 4 | J52: Probability from ADE to quick remission for young and fit
A53: pYFA2sCR | B53: 0.09523809524 | C53: =F53/SUM(F51:F54) -> 0.1446642706 | D53: 0.09523809524 | F53: 3.955461412 | G53: gamma | H53: 2 | I53: =SUM(H51:H54)-H53 -> 19 | J53: Probability from ADE to slow remission for young and fit
A54: pYFA2nCR | B54: 0.04761904762 | C54: =F54/SUM(F51:F54) -> 0.08219065514 | D54: 0.04761904762 | F54: 2.247285826 | G54: gamma | H54: 1 | I54: =SUM(H51:H54)-H54 -> 20 | J54: Probability from ADE to no response for young and fit
A55: pYFD2D | B55: 0.1363636364 | C55: =F55/SUM(F55:F58) -> 0.1100358707 | D55: 0.1363636364 | F55: 3.58572821 | G55: gamma | H55: 6 | I55: =SUM(H55:H58)-H55 -> 38 | J55: Probability from DA to death for young and fit
A56: pYFD2qCR | B56: 0.6363636364 | C56: =F56/SUM(F55:F58) -> 0.6532878393 | D56: 0.6363636364 | F56: 21.28862724 | G56: gamma | H56: 28 | I56: =SUM(H55:H58)-H56 -> 16 | J56: Probability from DA to quick remission for young and fit
A57: pYFD2sCR | B57: 0.1590909091 | C57: =F57/SUM(F55:F58) -> 0.1440992941 | D57: 0.1590909091 | F57: 4.695749673 | G57: gamma | H57: 7 | I57: =SUM(H55:H58)-H57 -> 37 | J57: Probability from DA to slow remission for young and fit
A58: pYFD2nCR | B58: 0.06818181818 | C58: =F58/SUM(F55:F58) -> 0.09257699579 | D58: 0.06818181818 | F58: 3.016797551 | G58: gamma | H58: 3 | I58: =SUM(H55:H58)-H58 -> 41 | J58: Probability from DA to no response for young and fit
A59: pYFF2D | B59: 0.06896551724 | C59: =F59/SUM(F59:F62) -> 0.009623575129 | D59: 0.06896551724 | F59: 0.2142462124 | G59: gamma | H59: 2 | I59: =SUM(H59:H62)-H59 -> 27 | J59: Probability from FLAG to death for young and fit
A60: pYFF2qCR | B60: 0.724137931 | C60: =F60/SUM(F59:F62) -> 0.7278284443 | D60: 0.724137931 | F60: 16.20338444 | G60: gamma | H60: 21 | I60: =SUM(H59:H62)-H60 -> 8 | J60: Probability from FLAG to quick remission for young and fit
A61: pYFF2sCR | B61: 0.1724137931 | C61: =F61/SUM(F59:F62) -> 0.218239094 | D61: 0.1724137931 | F61: 4.858578922 | G61: gamma | H61: 5 | I61: =SUM(H59:H62)-H61 -> 24 | J61: Probability from FLAG to slow remission for young and fit
A62: pYFF2nCR | B62: 0.03448275862 | C62: =F62/SUM(F59:F62) -> 0.04430888657 | D62: 0.03448275862 | F62: 0.9864329001 | G62: gamma | H62: 1 | I62: =SUM(H59:H62)-H62 -> 28 | J62: Probability from FLAG to no response for young and fit
A63: pEFD2D | B63: 0.1551724138 | C63: =F63/SUM(F63:F66) -> 0.1316931406 | D63: 0.1551724138 | F63: 6.688548974 | G63: gamma | H63: 9 | I63: =SUM(H63:H66)-H63 -> 49 | J63: Probability from DA to death for elderly and fit
A64: pEFD2qCR | B64: 0.4310344828 | C64: =F64/SUM(F63:F66) -> 0.4970511878 | D64: 0.4310344828 | F64: 25.24468015 | G64: gamma | H64: 25 | I64: =SUM(H63:H66)-H64 -> 33 | J64: Probability from DA to quick remission for elderly and fit
A65: pEFD2sCR | B65: 0.2586206897 | C65: =F65/SUM(F63:F66) -> 0.2035613378 | D65: 0.2586206897 | F65: 10.33865523 | G65: gamma | H65: 15 | I65: =SUM(H63:H66)-H65 -> 43 | J65: Probability from DA to slow remission for elderly and fit
A66: pEFD2nCR | B66: 0.1551724138 | C66: =F66/SUM(F63:F66) -> 0.1676943339 | D66: 0.1551724138 | F66: 8.517009768 | G66: gamma | H66: 9 | I66: =SUM(H63:H66)-H66 -> 49 | J66: Probability from DA to no response for elderly and fit
A67: pEFF2D | B67: 0.1818181818 | C67: =F67/SUM(F67:F70) -> 0.3438807537 | D67: 0.1818181818 | F67: 5.26783592 | G67: gamma | H67: 2 | I67: =SUM(H67:H70)-H67 -> 9 | J67: Probability from FLAG to death for elderly and fit
A68: pEFF2qCR | B68: 0.6363636364 | C68: =F68/SUM(F67:F70) -> 0.6188535403 | D68: 0.6363636364 | F68: 9.480085389 | G68: gamma | H68: 7 | I68: =SUM(H67:H70)-H68 -> 4 | J68: Probability from FLAG to quick remission for elderly and fit
A69: pEFF2sCR | B69: 0.09090909091 | C69: =F69/SUM(F67:F70) -> 0.005556861105 | D69: 0.09090909091 | F69: 0.08512437006 | G69: gamma | H69: 1 | I69: =SUM(H67:H70)-H69 -> 10 | J69: Probability from FLAG to slow remission for elderly and fit
A70: pEFF2nCR | B70: 0.09090909091 | C70: =F70/SUM(F67:F70) -> 0.03170884498 | D70: 0.09090909091 | F70: 0.4857410331 | G70: gamma | H70: 1 | I70: =SUM(H67:H70)-H70 -> 10 | J70: Probability from FLAG to no response for elderly and fit
A71: pEFC2D | B71: 0.1111111111 | C71: =F71/SUM(F71:F74) -> 0.1858685409 | D71: 0.1111111111 | F71: 1.712208294 | G71: gamma | H71: 1 | I71: =SUM(H71:H74)-H71 -> 8 | J71: Probability from DClo to death for elderly and fit
A72: pEFC2qCR | B72: 0.5555555556 | C72: =F72/SUM(F71:F74) -> 0.4522933188 | D72: 0.5555555556 | F72: 4.166495138 | G72: gamma | H72: 5 | I72: =SUM(H71:H74)-H72 -> 4 | J72: Probability from DClo to quick remission for elderly and fit
A73: pEFC2sCR | B73: 0.1111111111 | C73: =F73/SUM(F71:F74) -> 0.1821601883 | D73: 0.1111111111 | F73: 1.678047203 | G73: gamma | H73: 1 | I73: =SUM(H71:H74)-H73 -> 8 | J73: Probability from DClo to slow remission for elderly and fit
A74: pEFC2nCR | B74: 0.2222222222 | C74: =F74/SUM(F71:F74) -> 0.179677952 | D74: 0.2222222222 | F74: 1.655181012 | G74: gamma | H74: 2 | I74: =SUM(H71:H74)-H74 -> 7 | J74: Probability from DClo to no response for elderly and fit
A75: pEFA2D | B75: 0.36 | C75: =F75/SUM(F75:F78) -> 0.3507607822 | D75: 0.36 | F75: 14.52269399 | G75: gamma | H75: 18 | I75: =SUM(H75:H78)-H75 -> 32 | J75: Probability from AraC(LD) to death for elderly and fit
A76: pEFA2qCR | B76: 0.08 | C76: =F76/SUM(F75:F78) -> 0.06947456396 | D76: 0.08 | F76: 2.876484155 | G76: gamma | H76: 4 | I76: =SUM(H75:H78)-H76 -> 46 | J76: Probability from AraC(LD) to quick remission for elderly and fit
A77: pEFA2sCR | B77: 0.16 | C77: =F77/SUM(F75:F78) -> 0.1841834029 | D77: 0.16 | F77: 7.625821736 | G77: gamma | H77: 8 | I77: =SUM(H75:H78)-H77 -> 42 | J77: Probability from AraC(LD) to slow remission for elderly and fit
A78: pEFA2nCR | B78: 0.4 | C78: =F78/SUM(F75:F78) -> 0.3955812509 | D78: 0.4 | F78: 16.37841442 | G78: gamma | H78: 20 | I78: =SUM(H75:H78)-H78 -> 30 | J78: Probability from AraC(LD) to no response for elderly and fit
A81: Cost
E82: standard error
A83: cD1E1 | B83: =IF(Probabilistic=1,C83,D83) -> 7843 | C83: =GAMMAINV(RAND(),H83,I83) -> 8849.44718 | D83: 7843 | E83: 1000 | G83: Gamma | H83: =D83^2/E83^2 -> 61.512649 | I83: =E83^2/D83 -> 127.5022313 | J83: costs associated with young, fit, and having ADE when died during the induction | O83: (n=1) | P83: Cost results before entering the markov models | V83: Cost results (induction phase)
A84: cD1E2 | B84: 46426 | C84: 40124.67912 | D84: 46426 | E84: 9000 | G84: Gamma | H84: 26.60954909 | I84: 1744.712015 | J84: costs associated with young, fit, and having ADE when didn't response to treatment | O84: (n=1) | Q84: For Young Adult | W84: For Young Adult | Y84: Deterministic | Z84: probabilistic | AA84: actual
A85: cD1E3 | B85: 16623 | C85: 16374.69843 | D85: 16623 | E85: 688 | G85: Gamma | H85: 583.7702157 | I85: 28.47524514 | J85: costs associated with young, fit, and having ADE when achieved remission quickly | O85: (n=17) | R85: Model A | S85: =B85*(B14*B16*B31*B52)+B89*(B14*B16*B32*B56)+B93*(B14*B16*B33*B60) -> 3018.196023 | X85: Model A | Y85: =D85*(D14*D16*D31*D52)+D89*(D14*D16*D32*D56)+D93*(D14*D16*D33*D60) -> 3018.196023 | Z85: =C85*(C14*C16*C31*C52)+C89*(C14*C16*C32*C56)+C93*(C14*C16*C33*C60) -> 3137.69397 | AA85: =14182*(66/352) -> 2659.125
A86: cD1E4 | B86: 32953 | C86: 24105.53428 | D86: 32953 | E86: 7441 | G86: Gamma | H86: 19.6122449 | I86: 1680.225806 | J86: costs associated with young, fit, and having ADE when achieved remission slowly | O86: (n=2) | R86: Model B | S86: =B86*(B14*B16*B31*B53)+B90*(B14*B16*B32*B57)+B94*(B14*B16*B33*B61) -> 1308.681818 | X86: Model B | Y86: =D86*(D14*D16*D31*D53)+D90*(D14*D16*D32*D57)+D94*(D14*D16*D33*D61) -> 1308.681818 | Z86: =C86*(C14*C16*C31*C53)+C90*(C14*C16*C32*C57)+C94*(C14*C16*C33*C61) -> 1699.687742 | AA86: =30647*(14/352) -> 1218.914773
A87: cD2E1 | B87: 10856 | C87: 6609.005001 | D87: 10856 | E87: 2901 | G87: Gamma | H87: 14.00374557 | I87: 775.221168 | J87: costs associated with young, fit, and having DA when died during the induction | O87: (n=6) | R87: Model C | S87: =B84*(B14*B16*B31*B54)+B88*(B14*B16*B32*B58)+B92*(B14*B16*B33*B62) -> 545.8181818 | X87: Model C | Y87: =D84*(D14*D16*D31*D54)+D88*(D14*D16*D32*D58)+D92*(D14*D16*D33*D62) -> 545.8181818 | Z87: =C84*(C14*C16*C31*C54)+C88*(C14*C16*C32*C58)+C92*(C14*C16*C33*C62) -> 871.5657927 | AA87: =32549*(5/352) -> 462.34375
A88: cD2E2 | B88: 44228 | C88: 50798.2053 | D88: 44228 | E88: 4965 | G88: Gamma | H88: 79.35167457 | I88: 557.3669395 | J88: costs associated with young, fit, and having DA when didn't response to treatment | O88: (n=3) | R88: Model D | S88: ='M for Model D'!AI68*B14*B17 -> 162.739089 | T88: =16661*D14*D17 -> 331.3267045 | X88: Model D | Y88: ='M for Model D'!AI70*D14*D17 -> 156.9829545 | Z88: ='M for Model D'!AI68*C14*C17 -> 108.5353659 | AA88: =7201*(7/352) -> 143.2017045
A89: cD2E3 | B89: 15297 | C89: 15045.97238 | D89: 15297 | E89: 578 | G89: Gamma | H89: =D89^2/E89^2 -> 700.4172873 | I89: =E89^2/D89 -> 21.83983788 | J89: costs associated with young, fit, and having DA when achieved remission quickly | O89: (n=28) | R89: Death | S89: =B83*(B14*B16*B31*B51)+B87*(B14*B16*B32*B55)+B91*(B14*B16*B33*B59) -> 309.1903409 | X89: Death | Y89: =D83*(D14*D16*D31*D51)+D87*(D14*D16*D32*D55)+D91*(D14*D16*D33*D59) -> 309.1903409 | Z89: =C83*(C14*C16*C31*C51)+C87*(C14*C16*C32*C55)+C91*(C14*C16*C33*C59) -> 127.1257852 | AA89: =10044*(9/352) -> 256.8068182
A90: cD2E4 | B90: 37415 | C90: 47318.83106 | D90: 37415 | E90: 8044 | G90: Gamma | H90: 21.63452554 | I90: 1729.411626 | J90: costs associated with young, fit, and having DA when achieved remission slowly | O90: (n=7) | Q90: For Elderly | W90: For Elderly
A91: cD3E1 | B91: 17928 | C91: 17111.37685 | D91: 17928 | E91: 2486 | G91: Gamma | H91: 52.00695641 | I91: 344.7231147 | J91: costs associated with young, fit, and having FLAG when died during the induction | O91: (n=2) | R91: Model A | S91: =B97*(B15*B18*B47*B64)+B101*(B15*B18*B48*B68)+B105*(B15*B18*B49*B72)+B109*(B15*B18*B50*B76) -> 2159.904672 | X91: Model A | Y91: =D97*(D15*D18*D47*D64)+D101*(D15*D18*D48*D68)+D105*(D15*D18*D49*D72)+D109*(D15*D18*D50*D76) -> 2159.904672 | Z91: =C97*(C15*C18*C47*C64)+C101*(C15*C18*C48*C68)+C105*(C15*C18*C49*C72)+C109*(C15*C18*C50*C76) -> 2277.051322 | AA91: =16852*(41/352) -> 1962.875
A92: cD3E2 | B92: 13018 | C92: 9981.346765 | D92: 13018 | E92: 2500 | G92: Gamma | H92: 27.11493184 | I92: 480.1044707 | J92: costs associated with young, fit, and having FLAG when didn't response to treatment | O92: (n=1) | R92: Model B | S92: =B98*(B15*B18*B47*B65)+B102*(B15*B18*B48*B69)+B106*(B15*B18*B49*B73)+B110*(B15*B18*B50*B77) -> 1689.787879 | X92: Model B | Y92: =D98*(D15*D18*D47*D65)+D102*(D15*D18*D48*D69)+D106*(D15*D18*D49*D73)+D110*(D15*D18*D50*D77) -> 1689.787879 | Z92: =C98*(C15*C18*C47*C65)+C102*(C15*C18*C48*C69)+C106*(C15*C18*C49*C73)+C110*(C15*C18*C50*C77) -> 1602.765374 | AA92: =22724*(25/352) -> 1613.920455
A93: cD3E3 | B93: 16738 | C93: 15909.3338 | D93: 16738 | E93: 749 | G93: Gamma | H93: 499.3941972 | I93: 33.51660891 | J93: costs associated with young, fit, and having FLAG when achieved remission quickly | O93: (n=21) | R93: Model C | S93: =B96*(B15*B18*B47*B66)+B100*(B15*B18*B48*B70)+B104*(B15*B18*B49*B74)+B108*(B15*B18*B50*B78) -> 2968.318497 | X93: Model C | Y93: =D96*(D15*D18*D47*D66)+D100*(D15*D18*D48*D70)+D104*(D15*D18*D49*D74)+D108*(D15*D18*D50*D78) -> 2968.318497 | Z93: =C96*(C15*C18*C47*C66)+C100*(C15*C18*C48*C70)+C104*(C15*C18*C49*C74)+C108*(C15*C18*C50*C78) -> 2283.42107 | AA93: =30119*(32/352) -> 2738.090909
A94: cD3E4 | B94: 26569 | C94: 25966.72984 | D94: 26569 | E94: 1715 | G94: Gamma | H94: =D94^2/E94^2 -> 240.0060386 | I94: =E94^2/D94 -> 110.7013813 | J94: costs associated with young, fit, and having FLAG when achieved remission slowly | O94: (n=5) | R94: Model D | S94: ='M for Model D'!AI68*(B15*B19) -> 2882.806719 | T94: =14323*(D15*D19) -> 5045.602273 | X94: Model D | Y94: ='M for Model D'!AI70*(D15*D19) -> 2780.840909 | Z94: ='M for Model D'!AI68*(C15*C19) -> 2834.670937 | AA94: =9602*(124/352) -> 3382.522727
A95: cD4E1 | B95: 11913 | C95: 13657.42614 | D95: 11913 | E95: 1060 | G95: Gamma | H95: 126.3079112 | I95: 94.31713254 | J95: costs associated with elderly, fit, and having DA when died during the induction | O95: (n=9) | R95: Death | S95: =B95*(B15*B18*B47*B63)+B99*(B15*B18*B48*B67)+B103*(B15*B18*B49*B71)+B107*(B15*B18*B50*B75) -> 1028.108902 | X95: Death | Y95: =D95*(D15*D18*D47*D63)+D99*(D15*D18*D48*D67)+D103*(D15*D18*D49*D71)+D107*(D15*D18*D50*D75) -> 1028.108902 | Z95: =C95*(C15*C18*C47*C63)+C99*(C15*C18*C48*C67)+C103*(C15*C18*C49*C71)+C107*(C15*C18*C50*C75) -> 1149.925707 | AA95: =8340*(29/352) -> 687.1022727
A96: cD4E2 | B96: 38369 | C96: 27752.52353 | D96: 38369 | E96: 4367 | G96: Gamma | H96: 77.19596083 | I96: 497.0337773 | J96: costs associated with elderly, fit, and having DA when didn't response to treatment | O96: (n=9) | Q96: total | S96: =S85+S86+S87+S88+S89+S91+S92+S93+S94+S95 -> 16073.55212 | W96: Total | Y96: =SUM(Y85:Y95) -> 15965.83018 | Z96: =SUM(Z85:Z95) -> 16092.44307 | AA96: =SUM(AA85+AA86+AA87+AA88+AA89+AA91+AA92+AA93+AA94+AA95) -> 15124.90341
A97: cD4E3 | B97: 16145 | C97: 16367.41588 | D97: 16145 | E97: 569 | G97: Gamma | H97: 805.1032243 | I97: 20.0533292 | J97: costs associated with elderly, fit, and having DA when achieved remission quickly | O97: (n=25) | Q97: Actual | S97: 18461 | W97: Actual | Y97: 15125 | Z97: 15125 | AA97: =AA96 -> 15124.90341
A98: cD4E4 | B98: 26686 | C98: 29432.59542 | D98: 26686 | E98: 3577 | G98: Gamma | H98: 55.65819052 | I98: 479.4622274 | J98: costs associated with elderly, fit, and having DA when achieved remission slowly | O98: (n=15)
A99: cD5E1 | B99: 27825 | C99: 25459.87608 | D99: 27825 | E99: 4284 | G99: Gamma | H99: 42.18629854 | I99: 659.5743396 | J99: costs associated with elderly, fit, and having FLAG when died during the induction | O99: (n=2)
A100: cD5E2 | B100: 35804 | C100: 37415.43322 | D100: 35804 | E100: 8500 | G100: Gamma | H100: 17.74292617 | I100: 2017.930957 | J100: costs associated with elderly, fit, and having FLAG when didn't response to treatment | O100: (n=1)
A101: cD5E3 | B101: 18707 | C101: 18725.64208 | D101: 18707 | E101: 601 | G101: Gamma | H101: 968.8562573 | I101: 19.30833378 | J101: costs associated with elderly, fit, and having FLAG when achieved remission quickly | O101: (n=7)
A102: cD5E4 | B102: 18766 | C102: 13082.95076 | D102: 18766 | E102: 2500 | G102: Gamma | H102: 56.34604096 | I102: 333.0491314 | J102: costs associated with elderly, fit, and having FLAG when achieved remission slowly | O102: (n=1)
A103: cD6E1 | B103: 27825 | C103: 28276.49404 | D103: =D99 -> 27825 | E103: =E99 -> 4284 | G103: Gamma | H103: =D103^2/E103^2 -> 42.18629854 | I103: =E103^2/D103 -> 659.5743396 | J103: costs associated with elderly, fit, and having DCLO when died during the induction | O103: (n=0)
A104: cD6E2 | B104: 77953 | C104: 74525.46896 | D104: 77953 | E104: 2256 | G104: Gamma | H104: =D104^2/E104^2 -> 1193.953675 | I104: =E104^2/D104 -> 65.28980283 | J104: costs associated with elderly, fit, and having DCLO when didn't response to treatment | O104: (n=2)
A105: cD6E3 | B105: 37711 | C105: 35899.3336 | D105: 37711 | E105: 3948 | G105: Gamma | H105: 91.23927169 | I105: 413.3198271 | J105: costs associated with elderly, fit, and having DCLO when achieved remission quickly | O105: (n=5)
A106: cD6E4 | B106: 56652 | C106: 66377.66442 | D106: 56652 | E106: 10000 | G106: Gamma | H106: 32.09449104 | I106: 1765.162748 | J106: costs associated with elderly, fit, and having DCLO when achieved remission slowly | O106: (n=1)
A107: cD7E1 | B107: 9683 | C107: 8015.649987 | D107: 9683 | E107: 1490 | G107: Gamma | H107: 42.23255214 | I107: 229.2781163 | J107: costs associated with elderly, fit, and having AraC(LD) when died during the induction | O107: (n=18)
A108: cD7E2 | B108: 26257 | C108: 24193.40825 | D108: 26257 | E108: 2963 | G108: Gamma | H108: 78.5284283 | I108: 334.3629889 | J108: costs associated with elderly, fit, and having AraC(LD) when didn't response to treatment | O108: (n=20)
A109: cD7E3 | B109: 14527 | C109: 13856.4632 | D109: 14527 | E109: 1880 | G109: Gamma | H109: =D109^2/E109^2 -> 59.70850187 | I109: =E109^2/D109 -> 243.2986852 | J109: costs associated with elderly, fit, and having AraC(LD) when achieved remission quickly | O109: (n=4)
A110: cD7E4 | B110: 15674 | C110: 17081.79262 | D110: 15674 | E110: 2153 | G110: Gamma | H110: 52.99948203 | I110: 295.7387393 | J110: costs associated with elderly, fit, and having AraC(LD) when achieved remission slowly | O110: (n=8)
A113: life months | E113: standard error
A114: sD1E1 | B114: =IF(Probabilistic=1,C114,D114) -> 0.33 | C114: =GAMMAINV(RAND(),H114,I114) -> 0.4797966016 | D114: 0.33 | E114: 0.1 | G114: Gamma | H114: =D114^2/E114^2 -> 10.89 | I114: =E114^2/D114 -> 0.0303030303 | J114: survival associated with young, fit, and having ADE when died during the induction | O114: (n=1) | P114: Life month results before entering the markov models | V114: Life month results (induction phase)
A115: sD1E2 | B115: 3.2 | C115: 3.213432224 | D115: 3.2 | E115: 0.1 | G115: Gamma | H115: 1024 | I115: 0.003125 | J115: survival associated with young, fit, and having ADE when didn't response to treatment | O115: (n=1) | Q115: For Young Adult | W115: For Young Adult | Y115: Deterministic | Z115: probabilistic | AA115: actual
A116: sD1E3 | B116: 1.2 | C116: 1.289165474 | D116: 1.2 | E116: 0.06 | G116: Gamma | H116: 400 | I116: =E116^2/D116 -> 0.003 | J116: survival associated with young, fit, and having ADE when achieved remission quickly | O116: (n=17) | R116: Model A | S116: =B116*(B14*B16*B31*B52)+B120*(B14*B16*B32*B56)+B124*(B14*B16*B33*B60) -> 0.2114772727 | X116: Model A | Y116: =D116*(D14*D16*D31*D52)+D120*(D14*D16*D32*D56)+D124*(D14*D16*D33*D60) -> 0.2114772727 | Z116: =C116*(C14*C16*C31*C52)+C120*(C14*C16*C32*C56)+C124*(C14*C16*C33*C60) -> 0.2258463605 | AA116: =1.16010101*(66/348) -> 0.2200191571
A117: sD1E4 | B117: 3.33 | C117: 2.504168719 | D117: 3.33 | E117: 0.37 | G117: Gamma | H117: 81 | I117: =E117^2/D117 -> 0.04111111111 | J117: survival associated with young, fit, and having ADE when achieved remission slowly | O117: (n=2) | R117: Model B | S117: =B117*(B14*B16*B31*B53)+B121*(B14*B16*B32*B57)+B125*(B14*B16*B33*B61) -> 0.1117802983 | X117: Model B | Y117: =D117*(D14*D16*D31*D53)+D121*(D14*D16*D32*D57)+D125*(D14*D16*D33*D61) -> 0.1117802983 | Z117: =C117*(C14*C16*C31*C53)+C121*(C14*C16*C32*C57)+C125*(C14*C16*C33*C61) -> 0.10782732 | AA117: =2.99285714*(14/348) -> 0.1204022987
A118: sD2E1 | B118: 0.63 | C118: 0.9070487516 | D118: 0.63 | E118: 0.27 | G118: Gamma | H118: 5.444444444 | I118: 0.1157142857 | J118: survival associated with young, fit, and having DA when died during the induction | O118: (n=6) | R118: Model C | S118: =B115*(B14*B16*B31*B54)+B119*(B14*B16*B32*B58)+B123*(B14*B16*B33*B62) -> 0.08601325568 | X118: Model C | Y118: =D115*(D14*D16*D31*D54)+D119*(D14*D16*D32*D58)+D123*(D14*D16*D33*D62) -> 0.08601325568 | Z118: =C115*(C14*C16*C31*C54)+C119*(C14*C16*C32*C58)+C123*(C14*C16*C33*C62) -> 0.1057039488 | AA118: =6.08666667*(5/348) -> 0.08745210733
A119: sD2E2 | B119: 8.07 | C119: 6.090045509 | D119: 8.07 | E119: 1.99 | G119: Gamma | H119: 16.44526653 | I119: 0.4907187113 | J119: survival associated with young, fit, and having DA when didn't response to treatment | O119: (n=3) | R119: Model D | S119: ='M for Model D'!AL68*B14*B17 -> 0.07549214313 | T119: =1.17*B14*B17 -> 0.02326704545 | X119: Model D | Y119: ='M for Model D'!AL70*D14*D17 -> 0.06940340909 | Z119: ='M for Model D'!AL68*C14*C17 -> 0.05034787541 | AA119: =1.2047619*(7/348) -> 0.02423371638
A120: sD2E3 | B120: 1.18 | C120: 1.185370696 | D120: 1.18 | E120: 0.03 | G120: Gamma | H120: =D120^2/E120^2 -> 1547.111111 | I120: =E120^2/D120 -> 0.0007627118644 | J120: survival associated with young, fit, and having DA when achieved remission quickly | O120: (n=28) | R120: Death | S120: =B114*(B14*B16*B31*B51)+B118*(B14*B16*B32*B55)+B122*(B14*B16*B33*B59) -> 0.01508522727 | X120: Death | Y120: =D114*(D14*D16*D31*D51)+D118*(D14*D16*D32*D55)+D122*(D14*D16*D33*D59) -> 0.01508522727 | Z120: =C114*(C14*C16*C31*C51)+C118*(C14*C16*C32*C55)+C122*(C14*C16*C33*C59) -> 0.01519465671 | AA120: =0.62592593*(9/348) -> 0.01618773957
A121: sD2E4 | B121: 3.26 | C121: 2.328447336 | D121: 3.26 | E121: 0.75 | G121: Gamma | H121: 18.89351111 | I121: 0.1725460123 | J121: survival associated with young, fit, and having DA when achieved remission slowly | O121: (n=7) | Q121: For Elderly | W121: For Elderly
A122: sD3E1 | B122: 0.6 | C122: 0.6000176972 | D122: 0.6 | E122: 1e-05 | G122: Gamma | H122: 3600000000 | I122: 1.666666667e-10 | J122: survival associated with young, fit, and having FLAG when died during the induction | O122: (n=2) | R122: Model A | S122: =B128*(B15*B18*B47*B64)+B132*(B15*B18*B48*B68)+B136*(B15*B18*B49*B72)+B140*(B15*B18*B50*B76) -> 0.1620370368 | X122: Model A | Y122: =D128*(D15*D18*D47*D64)+D132*(D15*D18*D48*D68)+D136*(D15*D18*D49*D72)+D140*(D15*D18*D50*D76) -> 0.1620370368 | Z122: =C128*(C15*C18*C47*C64)+C132*(C15*C18*C48*C68)+C136*(C15*C18*C49*C72)+C140*(C15*C18*C50*C76) -> 0.1672400975 | AA122: =1.23739837*(41/348) -> 0.1457854401
A123: sD3E2 | B123: 2.866666 | C123: 2.896504266 | D123: 2.866666 | E123: 0.1 | G123: Gamma | H123: 821.7773956 | I123: 0.003488372904 | J123: survival associated with young, fit, and having FLAG when didn't response to treatment | O123: (n=1) | R123: Model B | S123: =B129*(B15*B18*B47*B65)+B133*(B15*B18*B48*B69)+B137*(B15*B18*B49*B73)+B141*(B15*B18*B50*B77) -> 0.1937079125 | X123: Model B | Y123: =D129*(D15*D18*D47*D65)+D133*(D15*D18*D48*D69)+D137*(D15*D18*D49*D73)+D141*(D15*D18*D50*D77) -> 0.1937079125 | Z123: =C129*(C15*C18*C47*C65)+C133*(C15*C18*C48*C69)+C137*(C15*C18*C49*C73)+C141*(C15*C18*C50*C77) -> 0.15647226 | AA123: =3.44266667*(25/348) -> 0.2473180079
A124: sD3E3 | B124: 1 | C124: 0.9575105603 | D124: 1 | E124: 0.04596328 | G124: Gamma | H124: =D124^2/E124^2 -> 473.3451963 | I124: =E124^2/D124 -> 0.002112623108 | J124: survival associated with young, fit, and having FLAG when achieved remission quickly | O124: (n=21) | R124: Model C | S124: =B127*(B15*B18*B47*B66)+B131*(B15*B18*B48*B70)+B135*(B15*B18*B49*B74)+B139*(B15*B18*B50*B78) -> 0.6000315658 | X124: Model C | Y124: =D127*(D15*D18*D47*D66)+D131*(D15*D18*D48*D70)+D135*(D15*D18*D49*D74)+D139*(D15*D18*D50*D78) -> 0.6000315658 | Z124: =C127*(C15*C18*C47*C66)+C131*(C15*C18*C48*C70)+C135*(C15*C18*C49*C74)+C139*(C15*C18*C50*C78) -> 0.6476635074 | AA124: =6.70520833*(32/348) -> 0.6165708809
A125: sD3E4 | B125: 1.973333 | C125: 1.977691231 | D125: 1.973333 | E125: 0.13055437 | G125: Gamma | H125: 228.4640811 | I125: 0.008637388381 | J125: survival associated with young, fit, and having FLAG when achieved remission slowly | O125: (n=5) | R125: Model D | S125: ='M for Model D'!AL68*(B15*B19) -> 1.337289393 | T125: =3.544*(B15*B19) -> 1.248454545 | X125: Model D | Y125: ='M for Model D'!AL70*(D15*D19) -> 1.229431818 | Z125: ='M for Model D'!AL68*(C15*C19) -> 1.314959949 | AA125: =3.5261111*(120/348) -> 1.215900379
A126: sD4E1 | B126: 0.57407407 | C126: 0.6235165011 | D126: 0.57407407 | E126: 0.11886523 | G126: Gamma | H126: 23.3252438 | I126: 0.02461170717 | J126: survival associated with elderly, fit, and having DA when died during the induction | O126: (n=9) | R126: Death | S126: =B126*(B15*B18*B47*B63)+B130*(B15*B18*B48*B67)+B134*(B15*B18*B49*B71)+B138*(B15*B18*B50*B75) -> 0.06537247466 | X126: Death | Y126: =D126*(D15*D18*D47*D63)+D130*(D15*D18*D48*D67)+D134*(D15*D18*D49*D71)+D138*(D15*D18*D50*D75) -> 0.06537247466 | Z126: =C126*(C15*C18*C47*C63)+C130*(C15*C18*C48*C67)+C134*(C15*C18*C49*C71)+C138*(C15*C18*C50*C75) -> 0.06741477556 | AA126: =0.78390805*(29/348) -> 0.06532567083
A127: sD4E2 | B127: 5.75555556 | C127: 5.841628308 | D127: 5.75555556 | E127: 0.92879186 | G127: Gamma | H127: 38.40057259 | I127: 0.1498820245 | J127: survival associated with elderly, fit, and having DA when didn't response to treatment | O127: (n=9) | Q127: total | S127: =S116+S117+S118+S119+S120+S122+S123+S124+S125+S126 -> 2.858286579 | W127: Total | Y127: =SUM(Y116:Y126) -> 2.744340271 | Z127: =SUM(Z116:Z126) -> 2.858670751 | AA127: =SUM(AA116+AA117+AA118+AA119+AA120+AA122+AA123+AA124+AA125+AA126) -> 2.759195398
A128: sD4E3 | B128: 1.19866667 | C128: 1.243572347 | D128: 1.19866667 | E128: 0.04990658 | G128: Gamma | H128: =D128^2/E128^2 -> 576.8743646 | I128: =E128^2/D128 -> 0.002077864338 | J128: survival associated with elderly, fit, and having DA when achieved remission quickly | O128: (n=25) | Q128: Actual | S128: 2.75 | W128: Actual | Y128: 2.76 | Z128: 2.76 | AA128: =AA127 -> 2.759195398
A129: sD4E4 | B129: 3.217777778 | C129: 3.330649477 | D129: 3.217777778 | E129: 0.50486382 | G129: Gamma | H129: 40.62221479 | I129: 0.07921226832 | J129: survival associated with elderly, fit, and having DA when achieved remission slowly | O129: (n=15)
A130: sD5E1 | B130: 1.4 | C130: 1.297560281 | D130: 1.4 | E130: 0.2 | G130: Gamma | H130: 49 | I130: 0.02857142857 | J130: survival associated with elderly, fit, and having FLAG when died during the induction | O130: (n=2)
A131: sD5E2 | B131: 4.46666667 | C131: 4.620059729 | D131: 4.46666667 | E131: 0.1 | G131: Gamma | H131: 1995.111114 | I131: 0.002238805968 | J131: survival associated with elderly, fit, and having FLAG when didn't response to treatment | O131: (n=1)
A132: sD5E3 | B132: 1.25238095 | C132: 1.22177558 | D132: 1.25238095 | E132: 0.10931657 | G132: Gamma | H132: =D132^2/E132^2 -> 131.2504838 | I132: =E132^2/D132 -> 0.009541914923 | J132: survival associated with elderly, fit, and having FLAG when achieved remission quickly | O132: (n=7)
A133: sD5E4 | B133: 5.26666667 | C133: 5.296540781 | D133: 5.26666667 | E133: 0.1 | G133: Gamma | H133: 2773.777781 | I133: 0.001898734176 | J133: survival associated with elderly, fit, and having FLAG when achieved remission slowly | O133: (n=1)
A134: sD6E1 | B134: 1.4 | C134: 1.259642258 | D134: =D130 -> 1.4 | E134: =E130 -> 0.2 | G134: Gamma | H134: =D134^2/E134^2 -> 49 | I134: =E134^2/D134 -> 0.02857142857 | J134: survival associated with elderly, fit, and having DCLO when died during the induction | O134: (n=0)
A135: sD6E2 | B135: 10.3 | C135: 10.56451801 | D135: 10.3 | E135: 1.0666667 | G135: Gamma | H135: 93.24315823 | I135: 0.1104638688 | J135: survival associated with elderly, fit, and having DCLO when didn't response to treatment | O135: (n=2)
A136: sD6E3 | B136: 1.07333333 | C136: 0.9774941615 | D136: 1.07333333 | E136: 0.12710451 | G136: Gamma | H136: 71.30948661 | I136: 0.01505176073 | J136: survival associated with elderly, fit, and having DCLO when achieved remission quickly | O136: (n=5)
A137: sD6E4 | B137: 4.6333333 | C137: 4.41455122 | D137: 4.6333333 | E137: 0.1 | G137: Gamma | H137: 2146.777747 | I137: 0.002158273397 | J137: survival associated with elderly, fit, and having DCLO when achieved remission slowly | O137: (n=1)
A138: sD7E1 | B138: 0.766666667 | C138: 0.6568596933 | D138: 0.766666667 | E138: 0.15265741 | G138: Gamma | H138: =D138^2/E138^2 -> 25.22187583 | I138: =E138^2/D138 -> 0.03039689324 | J138: survival associated with elderly, fit, and having AraC(LD) when died during the induction | O138: (n=18)
A139: sD7E2 | B139: 6.831666667 | C139: 8.909796496 | D139: 6.831666667 | E139: 1.70798687 | G139: Gamma | H139: 15.99868473 | I139: 0.4270142691 | J139: survival associated with elderly, fit, and having AraC(LD) when didn't response to treatment | O139: (n=20)
A140: sD7E3 | B140: 3.3833333 | C140: 2.94511217 | D140: 3.3833333 | E140: 0.47521925 | G140: Gamma | H140: 50.68757537 | I140: 0.06674876979 | J140: survival associated with elderly, fit, and having AraC(LD) when achieved remission quickly | O140: (n=4)
A141: sD7E4 | B141: 1.31666667 | C141: 1.33561652 | D141: 1.31666667 | E141: 0.1771691 | G141: Gamma | H141: 55.23008683 | I141: 0.02383966323 | J141: survival associated with elderly, fit, and having AraC(LD) when achieved remission slowly | O141: (n=8)
A143: Models
A144: pModelA_Y | B144: =IF(Probabilistic=1,C144,D144) -> 0.6168224299 | C144: =BETAINV(RAND(),H144,I144) -> 0.7164745643 | D144: =H144/(H144+I144) -> 0.6168224299 | G144: Beta | H144: 66 | I144: 41 | J144: Probability of being young adult in Model A
A145: pModelA_Y_ADE | B145: 0.2575757576 | C145: =F145/SUM(F145:F147) -> 0.2687216412 | D145: =H145/(H145+I145) -> 0.2575757576 | F145: =IF(H145<300,GAMMAINV(RAND(),H145,1),NORMINV(RAND(),H145,SQRT(H145))) -> 17.35719567 | G145: gamma | H145: 17 | I145: =SUM(H145:H147)-H145 -> 49 | J145: Probability of being young adult in Model A for ADE
A146: pModelA_Y_DA | B146: 0.4242424242 | C146: =F146/SUM(F145:F147) -> 0.39761428 | D146: 0.4242424242 | F146: =IF(H146<300,GAMMAINV(RAND(),H146,1),NORMINV(RAND(),H146,SQRT(H146))) -> 25.68259419 | G146: gamma | H146: 28 | I146: =SUM(H145:H147)-H146 -> 38 | J146: Probability of being young adult in Model A for DA
A147: pModelA_Y_FLAG | B147: 0.3181818182 | C147: =F147/SUM(F145:F147) -> 0.3336640789 | D147: 0.3181818182 | F147: =IF(H147<300,GAMMAINV(RAND(),H147,1),NORMINV(RAND(),H147,SQRT(H147))) -> 21.55194007 | G147: gamma | H147: 21 | I147: =SUM(H145:H147)-H147 -> 45 | J147: Probability of being young adult in Model A for FLAG
A148: pModelA_E | B148: 0.3831775701 | C148: =1-C144 -> 0.2835254357 | D148: =H148/(H148+I148) -> 0.3831775701 | G148: Beta | H148: 41 | I148: 66 | J148: Probability of being elderly in Model A
A149: pModelA_E_DA | B149: 0.6097560976 | C149: =F149/SUM(F149:F152) -> 0.5671291304 | D149: =H149/(H149+I149) -> 0.6097560976 | F149: =IF(H149<300,GAMMAINV(RAND(),H149,1),NORMINV(RAND(),H149,SQRT(H149))) -> 23.35102106 | G149: gamma | H149: 25 | I149: =SUM(H149:H152)-H149 -> 16 | J149: Probability of being elderly in Model A for DA
A150: pModelA_E_FLAG | B150: =IF(Probabilistic=1,C150,D150) -> 0.1707317073 | C150: =F150/SUM(F149:F152) -> 0.1302761984 | D150: =H150/(H150+I150) -> 0.1707317073 | F150: =IF(H150<300,GAMMAINV(RAND(),H150,1),NORMINV(RAND(),H150,SQRT(H150))) -> 5.364002818 | G150: gamma | H150: 7 | I150: =SUM(H149:H152)-H150 -> 34 | J150: Probability of being elderly in Model A for FLAG
A151: pModelA_E_DCLO | B151: 0.1219512195 | C151: =F151/SUM(F149:F152) -> 0.05530818338 | D151: 0.1219512195 | F151: 2.277263653 | G151: gamma | H151: 5 | I151: =SUM(H149:H152)-H151 -> 36 | J151: Probability of being elderly in Model A for DCLO
A152: pModelA_E_AraCLD | B152: 0.09756097561 | C152: =F152/SUM(F149:F152) -> 0.2472864878 | D152: 0.09756097561 | F152: 10.18179402 | G152: gamma | H152: 4 | I152: =SUM(H149:H152)-H152 -> 37 | J152: Probability of being elderly in Model A for AraC
A153: pModelB_Y | B153: =IF(Probabilistic=1,C153,D153) -> 0.358974359 | C153: =BETAINV(RAND(),H153,I153) -> 0.3871893333 | D153: =H153/(H153+I153) -> 0.358974359 | G153: Beta | H153: 14 | I153: 25 | J153: Probability of being young adult in Model B
A154: pModelB_Y_ADE | B154: 0.1428571429 | C154: =F154/SUM(F154:F156) -> 0.1955801554 | D154: =H154/(H154+I154) -> 0.1428571429 | F154: =IF(H154<300,GAMMAINV(RAND(),H154,1),NORMINV(RAND(),H154,SQRT(H154))) -> 2.532416549 | G154: gamma | H154: 2 | I154: =SUM(H154:H156)-H154 -> 12 | J154: Probability of being young adult in Model B for ADE
A155: pModelB_Y_DA | B155: 0.5 | C155: =F155/SUM(F154:F156) -> 0.3466952943 | D155: 0.5 | F155: =IF(H155<300,GAMMAINV(RAND(),H155,1),NORMINV(RAND(),H155,SQRT(H155))) -> 4.489089901 | G155: gamma | H155: 7 | I155: =SUM(H154:H156)-H155 -> 7 | J155: Probability of being young adult in Model B for DA
A156: pModelB_Y_FLAG | B156: 0.3571428571 | C156: =F156/SUM(F154:F156) -> 0.4577245503 | D156: 0.3571428571 | F156: =IF(H156<300,GAMMAINV(RAND(),H156,1),NORMINV(RAND(),H156,SQRT(H156))) -> 5.926722083 | G156: gamma | H156: 5 | I156: =SUM(H154:H156)-H156 -> 9 | J156: Probability of being young adult in Model B for FLAG
A157: pModelB_E | B157: 0.641025641 | C157: =1-C153 -> 0.6128106667 | D157: =H157/(H157+I157) -> 0.641025641 | G157: Beta | H157: 25 | I157: 14 | J157: Probability of being elderly in Model B
A158: pModelB_E_DA | B158: 0.6 | C158: =F158/SUM(F158:F161) -> 0.7470206712 | D158: =H158/(H158+I158) -> 0.6 | F158: =IF(H158<300,GAMMAINV(RAND(),H158,1),NORMINV(RAND(),H158,SQRT(H158))) -> 13.96625984 | G158: gamma | H158: 15 | I158: =SUM(H158:H161)-H158 -> 10 | J158: Probability of being elderly in Model B for DA
A159: pModelB_E_FLAG | B159: =IF(Probabilistic=1,C159,D159) -> 0.04 | C159: =F159/SUM(F158:F161) -> 0.01801303821 | D159: 0.04 | F159: =IF(H159<300,GAMMAINV(RAND(),H159,1),NORMINV(RAND(),H159,SQRT(H159))) -> 0.3367708309 | G159: gamma | H159: 1 | I159: =SUM(H158:H161)-H159 -> 24 | J159: Probability of being elderly in Model B for FLAG
A160: pModelB_E_DCL | B160: 0.04 | C160: =F160/SUM(F158:F161) -> 0.01518332402 | D160: 0.04 | F160: 0.2838666407 | G160: gamma | H160: 1 | I160: =SUM(H158:H161)-H160 -> 24 | J160: Probability of being elderly in Model B for DCLO
A161: pModelB_E_AraCLD | B161: 0.32 | C161: =F161/SUM(F158:F161) -> 0.2197829665 | D161: 0.32 | F161: 4.109050977 | G161: gamma | H161: 8 | I161: =SUM(H158:H161)-H161 -> 17 | J161: Probability of being elderly in Model B for AraC
A162: pModelC_Y | B162: =IF(Probabilistic=1,C162,D162) -> 0.1351351351 | C162: =BETAINV(RAND(),H162,I162) -> 0.04961221333 | D162: =H162/(H162+I162) -> 0.1351351351 | G162: Beta | H162: 5 | I162: 32 | J162: Probability of being young adult in Model C
A163: pModelC_E | B163: 0.8648648649 | C163: =1-C162 -> 0.9503877867 | D163: =H163/(H163+I163) -> 0.8648648649 | G163: Beta | H163: 32 | I163: =SUM(H162:H163)-H163 -> 5 | J163: Probability of being elderly in Model C
A164: pModelD_Y | B164: 0.0534351145 | C164: =BETAINV(RAND(),H164,I164) -> 0.05027574433 | D164: =H164/(H164+I164) -> 0.0534351145 | G164: Beta | H164: 7 | I164: 124 | J164: Probability of being young adult in Model D
A165: pModelD_E | B165: 0.9465648855 | C165: =1-C164 -> 0.9497242557 | D165: =H165/(H165+I165) -> 0.9465648855 | G165: Beta | H165: 124 | I165: =SUM(H164:H165)-H165 -> 7 | J165: Probability of being elderly in Model D
A166: pModelDeath_Y | B166: 0.2368421053 | C166: =BETAINV(RAND(),H166,I166) -> 0.1376168532 | D166: =H166/(H166+I166) -> 0.2368421053 | G166: Beta | H166: 9 | I166: 29 | J166: Probability of being young adult in Model Death
A167: pModelDeath_Y_ADE | B167: 0.1111111111 | C167: =F167/SUM(F167:F169) -> 0.2038716198 | D167: =H167/(H167+I167) -> 0.1111111111 | F167: =IF(H167<300,GAMMAINV(RAND(),H167,1),NORMINV(RAND(),H167,SQRT(H167))) -> 2.065833343 | G167: gamma | H167: 1 | I167: =SUM(H167:H169)-H167 -> 8 | J167: Probability of being young adult in Model Death for ADE
A168: pModelDeath_Y_DA | B168: 0.6666666667 | C168: =F168/SUM(F167:F169) -> 0.525366517 | D168: 0.6666666667 | F168: =IF(H168<300,GAMMAINV(RAND(),H168,1),NORMINV(RAND(),H168,SQRT(H168))) -> 5.323544635 | G168: gamma | H168: 6 | I168: =SUM(H167:H169)-H168 -> 3 | J168: Probability of being young adult in Model Death for DA
A169: pModelDeath_Y_FLAG | B169: 0.2222222222 | C169: =F169/SUM(F167:F169) -> 0.2707618632 | D169: 0.2222222222 | F169: =IF(H169<300,GAMMAINV(RAND(),H169,1),NORMINV(RAND(),H169,SQRT(H169))) -> 2.743632907 | G169: gamma | H169: 2 | I169: =SUM(H167:H169)-H169 -> 7 | J169: Probability of being young adult in Model Death for FLAG
A170: pModelDeath_E | B170: 0.7631578947 | C170: =1-C166 -> 0.8623831468 | D170: =H170/(H170+I170) -> 0.7631578947 | G170: Beta | H170: 29 | I170: 9 | J170: Probability of being elderly in Model Death
A171: pModelDeath_E_DA | B171: 0.3 | C171: =F171/SUM(F171:F174) -> 0.4379039356 | D171: =H171/(H171+I171) -> 0.3 | F171: =IF(H171<300,GAMMAINV(RAND(),H171,1),NORMINV(RAND(),H171,SQRT(H171))) -> 11.62994497 | G171: gamma | H171: 9 | I171: =SUM(H171:H174)-H171 -> 21 | J171: Probability of being elderly in Model Death for DA
A172: pModelDeath_E_FLAG | B172: =IF(Probabilistic=1,C172,D172) -> 0.06666666667 | C172: =F172/SUM(F171:F174) -> 0.05630570323 | D172: 0.06666666667 | F172: =IF(H172<300,GAMMAINV(RAND(),H172,1),NORMINV(RAND(),H172,SQRT(H172))) -> 1.495378727 | G172: gamma | H172: 2 | I172: =SUM(H171:H174)-H172 -> 28 | J172: Probability of being elderly in Model Death for FLAG
A173: pModelDeath_E_DCLO | B173: 0.03333333333 | C173: =F173/SUM(F171:F174) -> 0.00887482602 | D173: 0.03333333333 | F173: 0.235699499 | G173: gamma | H173: 1 | I173: =SUM(H171:H174)-H173 -> 29 | J173: Probability of being elderly in Model Death for DCLO
A174: pModelDeath_E_AraCLD | B174: =IF(Probabilistic=1,C174,D174) -> 0.6 | C174: =F174/SUM(F171:F174) -> 0.4969155352 | D174: 0.6 | F174: 13.19718746 | G174: gamma | H174: 18 | I174: =SUM(H171:H174)-H174 -> 12 | J174: Probability of being elderly in Model Death for AraC
A176: Trials
A177: pYF_trial_ADE_ModelA | B177: =IF(Probabilistic=1,C177,D177) -> 0.9411764706 | C177: =F177/SUM(F177:F178) -> 0.8980937559 | D177: =H177/SUM(I177:I178) -> 0.9411764706 | F177: 11.03021779 | G177: gamma | H177: 16 | I177: =17-H177 -> 1 | J177: Probability of being young in trial for ADE in model A
A178: pYF_trial_ADE_ModelB | B178: =IF(Probabilistic=1,C178,D178) -> 0.05882352941 | C178: =F178/SUM(F177:F178) -> 0.1019062441 | D178: =H178/SUM(H177:H178) -> 0.05882352941 | F178: =IF(H178<300,GAMMAINV(RAND(),H178,1),NORMINV(RAND(),H178,SQRT(H178))) -> 1.251593233 | G178: gamma | H178: 1 | I178: =17-H178 -> 16 | J178: Probability of being young in trial for ADE in model B
A179: pYF_trial_ADE_ModelC | B179: - | C179: - | D179: - | F179: - | G179: gamma | H179: 0 | I179: =17-H179 -> 17 | J179: Probability of being young in trial for ADE in model C
A180: pYF_trial_ADE_ModelD | B180: - | C180: - | D180: - | F180: - | G180: gamma | H180: 0 | I180: =17-H180 -> 17 | J180: Probability of being young in trial for ADE in model D
A181: pYF_trial_ADE_death | B181: - | C181: - | D181: - | F181: - | G181: gamma | H181: 0 | I181: =17-H181 -> 17 | J181: Probability of being young in trial for ADE in model death
A182: pYF_trial_DA_ModelA | B182: =IF(Probabilistic=1,C182,D182) -> 0.5 | C182: =F182/SUM(F182:F183) -> 0.4144701596 | D182: =H182/SUM(H182:H183) -> 0.5 | F182: =IF(H182<300,GAMMAINV(RAND(),H182,1),NORMINV(RAND(),H182,SQRT(H182))) -> 1.215286665 | G182: gamma | H182: 2 | I182: =4-H182 -> 2 | J182: Probability of being young in trial for DA in model A
A183: pYF_trial_DA_ModelB | B183: =IF(Probabilistic=1,C183,D183) -> 0.5 | C183: =F183/SUM(F182:F183) -> 0.5855298404 | D183: =H183/SUM(H182:H183) -> 0.5 | F183: =IF(H183<300,GAMMAINV(RAND(),H183,1),NORMINV(RAND(),H183,SQRT(H183))) -> 1.716858476 | G183: gamma | H183: 2 | I183: =4-H183 -> 2 | J183: Probability of being young in trial for DA in model B
A184: pYF_trial_DA_ModelC | B184: - | C184: - | D184: - | F184: - | G184: gamma | H184: 0 | I184: =4-H184 -> 4 | J184: Probability of being young in trial for DA in model C
A185: pYF_trial_DA_ModelD | B185: - | C185: - | D185: - | F185: - | G185: gamma | H185: 0 | I185: =4-H185 -> 4 | J185: Probability of being young in trial for DA in model D
A186: pYF_trial_DA_death | B186: - | C186: - | D186: - | F186: - | G186: gamma | H186: 0 | I186: 4 | J186: Probability of being young in trial for DA in model death
A187: pYF_trial_FLAG_ModelA | B187: =IF(Probabilistic=1,C187,D187) -> 0.7692307692 | C187: =F187/SUM(F187:F191) -> 0.7195750176 | D187: =H187/SUM(H187:H191) -> 0.7692307692 | F187: =IF(H187<300,GAMMAINV(RAND(),H187,1),NORMINV(RAND(),H187,SQRT(H187))) -> 13.06927484 | G187: gamma | H187: 20 | I187: =26-H187 -> 6 | J187: Probability of being young in trial for FLAG in model A
A188: pYF_trial_FLAG_ModelB | B188: =IF(Probabilistic=1,C188,D188) -> 0.1538461538 | C188: =F188/SUM(F187:F191) -> 0.1833522769 | D188: =H188/SUM(H187:H191) -> 0.1538461538 | F188: =IF(H188<300,GAMMAINV(RAND(),H188,1),NORMINV(RAND(),H188,SQRT(H188))) -> 3.330134094 | G188: gamma | H188: 4 | I188: =26-H188 -> 22 | J188: Probability of being young in trial for FLAG in model B
A189: pYF_trial_FLAG_ModelC | B189: =IF(Probabilistic=1,C189,D189) -> - | C189: - | D189: - | F189: 0 | G189: gamma | H189: 0 | I189: 26 | J189: Probability of being young in trial for FLAG in model C
A190: pYF_trial_FLAG_ModelD | B190: =IF(Probabilistic=1,C190,D190) -> - | C190: - | D190: - | F190: 0 | G190: gamma | H190: 0 | I190: 26 | J190: Probability of being young in trial for FLAG in model D
A191: pYF_trial_FLAG_death | B191: =IF(Probabilistic=1,C191,D191) -> 0.07692307692 | C191: =F191/SUM(F187:F191) -> 0.09707270551 | D191: =H191/SUM(H187:H191) -> 0.07692307692 | F191: 1.763082148 | G191: gamma | H191: 2 | I191: 24 | J191: Probability of being young in trial for FLAG in model death
A193: pYF_notrial_ADE_ModelA | B193: =IF(Probabilistic=1,C193,D193) -> 0.25 | C193: =F193/SUM(F193:F197) -> 0.6776947675 | D193: =H193/SUM(H193:H197) -> 0.25 | F193: 2.550896341 | G193: gamma | H193: 1 | I193: =SUM(H193:H197)-H193 -> 3 | J193: Probability of being young and not in trial for ADE in model A
A194: pYF_notrial_ADE_ModelB | B194: 0.25 | C194: =F194/SUM(F193:F197) -> 0.07386915744 | D194: =H194/SUM(H193:H197) -> 0.25 | F194: 0.2780493114 | G194: gamma | H194: 1 | I194: =SUM(H193:H197)-H194 -> 3 | J194: Probability of being young and not in trial for ADE in model B
A195: pYF_notrial_ADE_ModelC | B195: 0.25 | C195: =F195/SUM(F193:F197) -> 0.1034460441 | D195: =H195/SUM(H193:H197) -> 0.25 | F195: 0.3893790362 | G195: gamma | H195: 1 | I195: =SUM(H193:H197-H195) -> 0 | J195: Probability of being young and not in trial for ADE in model C
A196: pYF_notrial_ADE_ModelD | B196: - | C196: - | D196: - | F196: 0 | G196: gamma | H196: 0 | I196: =SUM(H193:H197)-H196 -> 4 | J196: Probability of being young and not in trial for ADE in model D
A197: pYF_notrial_ADE_death | B197: 0.03333333333 | C197: =F197/SUM(F193:F197) -> 0.1449900309 | D197: =H197/SUM(H193:H198) -> 0.03333333333 | F197: 0.545753866 | G197: gamma | H197: 1 | I197: =SUM(H193:H197)-H197 -> 3 | J197: Probability of being young and not in trial for ADE in model death
A198: pYF_notrial_DA_ModelA | B198: 0.65 | C198: =F198/SUM(F198:F202) -> 0.6049320596 | D198: =H198/(H198+I198) -> 0.65 | F198: 20.86797689 | G198: gamma | H198: 26 | I198: =SUM(H198:H202)-H198 -> 14 | J198: Probability of being young and not in trial for DA in model A
A199: pYF_notrial_DA_ModelB | B199: 0.125 | C199: =F199/SUM(F198:F202) -> 0.1654014121 | D199: =H199/(H199+I199) -> 0.125 | F199: 5.705752886 | G199: gamma | H199: 5 | I199: =SUM(H198:H202)-H199 -> 35 | J199: Probability of being young and not in trial for DA in model B
A200: pYF_notrial_DA_ModelC | B200: 0.075 | C200: =F200/SUM(F198:F202) -> 0.05210289572 | D200: 0.075 | F200: 1.797362211 | G200: gamma | H200: 3 | I200: =SUM(H198:H202)-H200 -> 37 | J200: Probability of being young and not in trial for DA in model C
A201: pYF_notrial_DA_ModelD | B201: - | C201: - | D201: - | F201: 0 | G201: gamma | H201: 0 | I201: =SUM(H198:H202)-H201 -> 40 | J201: Probability of being young and not in trial for DA in model D
A202: pYF_notrial_DA_death | B202: 0.15 | C202: =F202/SUM(F198:F202) -> 0.1775636326 | D202: 0.15 | F202: 6.125305683 | G202: gamma | H202: 6 | I202: =SUM(H198:H202)-H202 -> 34 | J202: Probability of being young and not in trial for DA in model death
A203: pYF_trial_FLAG_ModelA | B203: 0.25 | C203: =F203/SUM(F203:F207) -> 0.05094743699 | D203: =H203/(H203+I203) -> 0.25 | F203: 0.2469163995 | G203: gamma | H203: 1 | I203: =SUM(H203:H207)-H203 -> 3 | J203: Probability of being young and not in trial for FLAG in model A
A204: pYF_trial_FLAG_ModelB | B204: 0.25 | C204: =F204/SUM(F203:F207) -> 0.7658333677 | D204: =H204/(H204+I204) -> 0.25 | F204: =IF(H204<300,GAMMAINV(RAND(),H204,1),NORMINV(RAND(),H204,SQRT(H204))) -> 3.711606098 | G204: gamma | H204: 1 | I204: =SUM(H203:H207)-H204 -> 3 | J204: Probability of being young and not in trial for FLAG in model B
A205: pYF_trial_FLAG_ModelC | B205: =IF(Probabilistic=1,C205,D205) -> 0.25 | C205: =F205/SUM(F203:F207) -> 0.1832191953 | D205: 0.25 | F205: 0.8879705577 | G205: gamma | H205: 1 | I205: =SUM(H203:H207)-H205 -> 3 | J205: Probability of being young and not in trial for FLAG in model C
A206: pYF_trial_FLAG_ModelD | B206: - | C206: - | D206: - | F206: 0 | G206: gamma | H206: 0 | I206: =SUM(H203:H207)-H206 -> 4 | J206: Probability of being young and not in trial for FLAG in model D
A207: pYF_trial_FLAG_death | B207: - | C207: - | D207: - | F207: 0 | G207: gamma | H207: 1 | I207: =SUM(H203:H207)-H207 -> 3 | J207: Probability of being young and not in trial for FLAG in model death
A209: pEF_trial_DA_ModelA | B209: =IF(Probabilistic=1,C209,D209) -> 0.5263157895 | C209: =F209/SUM(F209:F213) -> 0.4050609942 | D209: =H209/(H209+I209) -> 0.5263157895 | F209: =IF(H209<300,GAMMAINV(RAND(),H209,1),NORMINV(RAND(),H209,SQRT(H209))) -> 8.400537646 | G209: gamma | H209: 10 | I209: =SUM(H209:H213)-H209 -> 9 | J209: Probability of being elderly in trial for DA in model A
A210: pEF_trial_DA_ModelB | B210: 0.2105263158 | C210: =F210/SUM(F209:F213) -> 0.3333473456 | D210: =H210/(H210+I210) -> 0.2105263158 | F210: =IF(H210<300,GAMMAINV(RAND(),H210,1),NORMINV(RAND(),H210,SQRT(H210))) -> 6.913272239 | G210: gamma | H210: 4 | I210: =SUM(H209:H213)-H210 -> 15 | J210: Probability of being elderly in trial for DA in model B
A211: pEF_trial_DA_ModelC | B211: 0.2105263158 | C211: =F211/SUM(F209:F213) -> 0.1087769799 | D211: 0.2105263158 | F211: 2.255919795 | G211: gamma | H211: 4 | I211: =SUM(H209:H213)-H211 -> 15 | J211: Probability of being elderly in trial for DA in model C
A212: pEF_trial_DA_ModelD | B212: - | C212: - | D212: - | F212: 0 | G212: gamma | H212: 0 | I212: =SUM(H209:H213)-H212 -> 19 | J212: Probability of being elderly in trial for DA in model D
A213: pEF_trial_DA_death | B213: 0.05263157895 | C213: =F213/SUM(F209:F213) -> 0.1528146802 | D213: 0.05263157895 | F213: =IF(H213<300,GAMMAINV(RAND(),H213,1),NORMINV(RAND(),H213,SQRT(H213))) -> 3.169215235 | G213: gamma | H213: 1 | I213: =SUM(H209:H213)-H213 -> 18 | J213: Probability of being elderly in trial for DA in model death
A214: pEF_trial_FLAG_ModelA | B214: 0.6666666667 | C214: =F214/SUM(F214:F218) -> 0.7467388173 | D214: =H214/(H214+I214) -> 0.6666666667 | F214: =IF(H214<300,GAMMAINV(RAND(),H214,1),NORMINV(RAND(),H214,SQRT(H214))) -> 6.654516944 | G214: gamma | H214: 6 | I214: =SUM(H214:H218)-H214 -> 3 | J214: Probability of being elderly in trial for FLAG in model A
A215: pEF_trial_FLAG_ModelB | B215: 0.1111111111 | C215: =F215/SUM(F214:F218) -> 0.05497753396 | D215: =H215/(H215+I215) -> 0.1111111111 | F215: 0.4899289053 | G215: gamma | H215: 1 | I215: =SUM(H214:H218)-H215 -> 8 | J215: Probability of being elderly in trial for FLAG in model B
A216: pEF_trial_FLAG_ModelC | B216: 0.1111111111 | C216: =F216/SUM(F214:F218) -> 0.006901140653 | D216: 0.1111111111 | F216: 0.06149908957 | G216: gamma | H216: 1 | I216: =SUM(H214:H218)-H216 -> 8 | J216: Probability of being elderly in trial for FLAG in model C
A217: pEF_trial_FLAG_ModelD | B217: - | C217: - | D217: - | F217: 0 | G217: gamma | H217: 0 | I217: =SUM(H214:H218)-H217 -> 9 | J217: Probability of being elderly in trial for FLAG in model D
A218: pEF_trial_FLAG_death | B218: 0.1111111111 | C218: =F218/SUM(F214:F218) -> 0.1913825081 | D218: 0.1111111111 | F218: 1.705493425 | G218: gamma | H218: 1 | I218: =SUM(H214:H218)-H218 -> 8 | J218: Probability of being elderly in trial for FLAG in model death
A219: pEF_trial_DCLO_ModelA | B219: 0.5555555556 | C219: =F219/SUM(F219:F221) -> 0.4780767598 | D219: =H219/(H219+I219) -> 0.5555555556 | F219: 5.340876751 | G219: gamma | H219: 5 | I219: =SUM(H219:H223)-H219 -> 4 | J219: Probability of being elderly in trial for DCLO in model A
... 48 more rows

Sheet lifetable pDead (hidden)
A1: Age | B1: Motarlity rate | E1: population | H1: 3
B2: Male | C2: Female | D2: whole | E2: Male | F2: Female
A3: 18 | B3: 0.000585 | C3: 0.000269 | D3: =B3*($E$3/($E$3+$F$3))+C3*($F$3/($E$3+$F$3)) -> 0.0004313788719 | E3: 2048.8 | F3: 1938.3
A4: 19 | B4: 0.000619 | C4: 0.000258 | D4: =B4*($E$3/($E$3+$F$3))+C4*($F$3/($E$3+$F$3)) -> 0.0004435024454
A5: 20 | B5: 0.000697 | C5: 0.000243 | D5: =B5*($E$5/($E$5+$F$5))+C5*($F$5/($E$5+$F$5)) -> 0.0004754641296 | E5: 2167.6 | F5: 2065.7
A6: 21 | B6: 0.000653 | C6: 0.000263 | D6: =B6*($E$5/($E$5+$F$5))+C6*($F$5/($E$5+$F$5)) -> 0.0004626938559
A7: 22 | B7: 0.000688 | C7: 0.000261 | D7: =B7*($E$5/($E$5+$F$5))+C7*($F$5/($E$5+$F$5)) -> 0.0004796391704
A8: 23 | B8: 0.000715 | C8: 0.000247 | D8: =B8*($E$5/($E$5+$F$5))+C8*($F$5/($E$5+$F$5)) -> 0.000486632627
A9: 24 | B9: 0.000727 | C9: 0.000294 | D9: =B9*($E$5/($E$5+$F$5))+C9*($F$5/($E$5+$F$5)) -> 0.0005157113836
A10: 25 | B10: 0.000746 | C10: 0.000284 | D10: =B10*($E$10/($E$10+$F$10))+C10*($F$10/($E$10+$F$10)) -> 0.0005182956317 | E10: 2068.8 | F10: 2010.6
A11: 26 | B11: 0.000783 | C11: 0.000336 | D11: =B11*($E$10/($E$10+$F$10))+C11*($F$10/($E$10+$F$10)) -> 0.0005626886307
A12: 27 | B12: 0.00081 | C12: 0.000309 | D12: =B12*($E$10/($E$10+$F$10))+C12*($F$10/($E$10+$F$10)) -> 0.0005630738344
A13: 28 | B13: 0.00082 | C13: 0.000365 | D13: =B13*($E$10/($E$10+$F$10))+C13*($F$10/($E$10+$F$10)) -> 0.0005957456979
A14: 29 | B14: 0.000877 | C14: 0.000381 | D14: =B14*($E$10/($E$10+$F$10))+C14*($F$10/($E$10+$F$10)) -> 0.0006325381674
A15: 30 | B15: 0.000937 | C15: 0.000413 | D15: =B15*($E$15/($E$15+$F$15))+C15*($F$15/($E$15+$F$15)) -> 0.0006754585804 | E15: 1917.3 | F15: 1910.6
A16: 31 | B16: 0.001015 | C16: 0.000408 | D16: =B16*($E$15/($E$15+$F$15))+C16*($F$15/($E$15+$F$15)) -> 0.0007120312182
A17: 32 | B17: 0.001063 | C17: 0.000483 | D17: =B17*($E$15/($E$15+$F$15))+C17*($F$15/($E$15+$F$15)) -> 0.000773507589
A18: 33 | B18: 0.001132 | C18: 0.00054 | D18: =B18*($E$15/($E$15+$F$15))+C18*($F$15/($E$15+$F$15)) -> 0.0008365180909
A19: 34 | B19: 0.001179 | C19: 0.000573 | D19: =B19*($E$15/($E$15+$F$15))+C19*($F$15/($E$15+$F$15)) -> 0.000876530343
A20: 35 | B20: 0.001292 | C20: 0.000595 | D20: =B20*($E$20/($E$20+$F$20))+C20*($F$20/($E$20+$F$20)) -> 0.0009401802049 | E20: 2199.1 | F20: 2241.4
A21: 36 | B21: 0.001278 | C21: 0.000638 | D21: =B21*($E$20/($E$20+$F$20))+C21*($F$20/($E$20+$F$20)) -> 0.0009549516946
A22: 37 | B22: 0.001334 | C22: 0.000726 | D22: =B22*($E$20/($E$20+$F$20))+C22*($F$20/($E$20+$F$20)) -> 0.00102710411
A23: 38 | B23: 0.001457 | C23: 0.000792 | D23: =B23*($E$20/($E$20+$F$20))+C23*($F$20/($E$20+$F$20)) -> 0.00112133262
A24: 39 | B24: 0.001504 | C24: 0.000896 | D24: =B24*($E$20/($E$20+$F$20))+C24*($F$20/($E$20+$F$20)) -> 0.00119710411
A25: 40 | B25: 0.001593 | C25: 0.00098 | D25: =B25*($E$25/($E$25+$F$25))+C25*($F$25/($E$25+$F$25)) -> 0.001283830933 | E25: 2333.6 | F25: 2374.6
A26: 41 | B26: 0.00174 | C26: 0.001047 | D26: =B26*($E$25/($E$25+$F$25))+C26*($F$25/($E$25+$F$25)) -> 0.001390482605
A27: 42 | B27: 0.001885 | C27: 0.001153 | D27: =B27*($E$25/($E$25+$F$25))+C27*($F$25/($E$25+$F$25)) -> 0.001515812795
A28: 43 | B28: 0.002007 | C28: 0.001273 | D28: =B28*($E$25/($E$25+$F$25))+C28*($F$25/($E$25+$F$25)) -> 0.001636804086
A29: 44 | B29: 0.002155 | C29: 0.00134 | D29: =B29*($E$25/($E$25+$F$25))+C29*($F$25/($E$25+$F$25)) -> 0.001743951404
A30: 45 | B30: 0.002391 | C30: 0.00153 | D30: =B30*($E$30/($E$30+$F$30))+C30*($F$30/($E$30+$F$30)) -> 0.001953812391 | E30: 2142 | F30: 2209.6
A31: 46 | B31: 0.00255 | C31: 0.001636 | D31: =B31*($E$30/($E$30+$F$30))+C31*($F$30/($E$30+$F$30)) -> 0.002085900726
A32: 47 | B32: 0.002849 | C32: 0.001813 | D32: =B32*($E$30/($E$30+$F$30))+C32*($F$30/($E$30+$F$30)) -> 0.002322953121
A33: 48 | B33: 0.003027 | C33: 0.002071 | D33: =B33*($E$30/($E$30+$F$30))+C33*($F$30/($E$30+$F$30)) -> 0.002541574501
A34: 49 | B34: 0.00333 | C34: 0.002145 | D34: =B34*($E$30/($E$30+$F$30))+C34*($F$30/($E$30+$F$30)) -> 0.002728295799
A35: 50 | B35: 0.003707 | C35: 0.002557 | D35: =B35*($E$35/($E$35+$F$35))+C35*($F$35/($E$35+$F$35)) -> 0.003125466423 | E35: 1883.7 | F35: 1927
A36: 51 | B36: 0.004101 | C36: 0.002683 | D36: =B36*($E$35/($E$35+$F$35))+C36*($F$35/($E$35+$F$35)) -> 0.003383943816
A37: 52 | B37: 0.004367 | C37: 0.002853 | D37: =B37*($E$35/($E$35+$F$35))+C37*($F$35/($E$35+$F$35)) -> 0.003601398404
A38: 53 | B38: 0.004955 | C38: 0.003138 | D38: =B38*($E$35/($E$35+$F$35))+C38*($F$35/($E$35+$F$35)) -> 0.004036176949
A39: 54 | B39: 0.005395 | C39: 0.003535 | D39: =B39*($E$35/($E$35+$F$35))+C39*($F$35/($E$35+$F$35)) -> 0.00445443265
A40: 55 | B40: 0.005958 | C40: 0.003762 | D40: =B40*($E$40/($E$40+$F$40))+C40*($F$40/($E$40+$F$40)) -> 0.004842324922 | E40: 1787.8 | F40: 1846.3
A41: 56 | B41: 0.006478 | C41: 0.004134 | D41: =B41*($E$40/($E$40+$F$40))+C41*($F$40/($E$40+$F$40)) -> 0.005287133706
A42: 57 | B42: 0.006886 | C42: 0.004378 | D42: =B42*($E$40/($E$40+$F$40))+C42*($F$40/($E$40+$F$40)) -> 0.005611813709
A43: 58 | B43: 0.007502 | C43: 0.004702 | D43: =B43*($E$40/($E$40+$F$40))+C43*($F$40/($E$40+$F$40)) -> 0.006079463471
A44: 59 | B44: 0.008043 | C44: 0.005292 | D44: =B44*($E$40/($E$40+$F$40))+C44*($F$40/($E$40+$F$40)) -> 0.00664535786
A45: 60 | B45: 0.008847 | C45: 0.005701 | D45: =B45*($E$45/($E$45+$F$45))+C45*($F$45/($E$45+$F$45)) -> 0.007239052124 | E45: 1780.2 | F45: 1861.1
A46: 61 | B46: 0.00999 | C46: 0.006453 | D46: =B46*($E$45/($E$45+$F$45))+C46*($F$45/($E$45+$F$45)) -> 0.008182208634
A47: 62 | B47: 0.011187 | C47: 0.006897 | D47: =B47*($E$45/($E$45+$F$45))+C47*($F$45/($E$45+$F$45)) -> 0.008994343806
A48: 63 | B48: 0.01235 | C48: 0.00779 | D48: =B48*($E$45/($E$45+$F$45))+C48*($F$45/($E$45+$F$45)) -> 0.01001934446
A49: 64 | B49: 0.013508 | C49: 0.008542 | D49: =B49*($E$45/($E$45+$F$45))+C49*($F$45/($E$45+$F$45)) -> 0.01096983434
A50: 65 | B50: 0.014957 | C50: 0.009174 | D50: =B50*($E$50/($E$50+$F$50))+C50*($F$50/($E$50+$F$50)) -> 0.01195247378 | E50: 1325 | F50: 1432.8
A51: 66 | B51: 0.016276 | C51: 0.010044 | D51: =B51*($E$50/($E$50+$F$50))+C51*($F$50/($E$50+$F$50)) -> 0.01303819827
A52: 67 | B52: 0.017634 | C52: 0.01126 | D52: =B52*($E$50/($E$50+$F$50))+C52*($F$50/($E$50+$F$50)) -> 0.01432242295
A53: 68 | B53: 0.019776 | C53: 0.012348 | D53: =B53*($E$50/($E$50+$F$50))+C53*($F$50/($E$50+$F$50)) -> 0.01591682297
A54: 69 | B54: 0.021374 | C54: 0.013562 | D54: =B54*($E$50/($E$50+$F$50))+C54*($F$50/($E$50+$F$50)) -> 0.01731531786
A55: 70 | B55: 0.023317 | C55: 0.015064 | D55: =B55*($E$55/($E$55+$F$55))+C55*($F$55/($E$55+$F$55)) -> 0.01892906786 | E55: 1123.6 | F55: 1275.6
A56: 71 | B56: 0.025772 | C56: 0.016555 | D56: =B56*($E$55/($E$55+$F$55))+C56*($F$55/($E$55+$F$55)) -> 0.02087153101
A57: 72 | B57: 0.02873 | C57: 0.0184 | D57: =B57*($E$55/($E$55+$F$55))+C57*($F$55/($E$55+$F$55)) -> 0.02323777426
A58: 73 | B58: 0.031661 | C58: 0.02082 | D58: =B58*($E$55/($E$55+$F$55))+C58*($F$55/($E$55+$F$55)) -> 0.0258970872
A59: 74 | B59: 0.03489 | C59: 0.023439 | D59: =B59*($E$55/($E$55+$F$55))+C59*($F$55/($E$55+$F$55)) -> 0.02880176409
A60: 75 | B60: 0.039193 | C60: 0.025838 | D60: =B60*($E$60/($E$60+$F$60))+C60*($F$60/($E$60+$F$60)) -> 0.03170981514 | E60: 873.1 | F60: 1112.7
A61: 76 | B61: 0.043667 | C61: 0.029156 | D61: =B61*($E$60/($E$60+$F$60))+C61*($F$60/($E$60+$F$60)) -> 0.03553607559
A62: 77 | B62: 0.048453 | C62: 0.032622 | D62: =B62*($E$60/($E$60+$F$60))+C62*($F$60/($E$60+$F$60)) -> 0.03958244219
A63: 78 | B63: 0.053675 | C63: 0.036841 | D63: =B63*($E$60/($E$60+$F$60))+C63*($F$60/($E$60+$F$60)) -> 0.04424243287
A64: 79 | B64: 0.060404 | C64: 0.04186 | D64: =B64*($E$60/($E$60+$F$60))+C64*($F$60/($E$60+$F$60)) -> 0.05001327143
A65: 80 | B65: 0.06656 | C65: 0.047035 | D65: =B65*($E$65/($E$65+$F$65))+C65*($F$65/($E$65+$F$65)) -> 0.05481091746 | E65: 579.5 | F65: 875.6
A66: 81 | B66: 0.074215 | C66: 0.052621 | D66: =B66*($E$65/($E$65+$F$65))+C66*($F$65/($E$65+$F$65)) -> 0.06122090585
A67: 82 | B67: 0.082841 | C67: 0.058503 | D67: =B67*($E$65/($E$65+$F$65))+C67*($F$65/($E$65+$F$65)) -> 0.06819571596
A68: 83 | B68: 0.091242 | C68: 0.066202 | D68: =B68*($E$65/($E$65+$F$65))+C68*($F$65/($E$65+$F$65)) -> 0.07617429056
A69: 84 | B69: 0.10127 | C69: 0.074477 | D69: =B69*($E$65/($E$65+$F$65))+C69*($F$65/($E$65+$F$65)) -> 0.08514743055
A70: 85 | B70: 0.110987 | C70: 0.08316 | D70: =B70*($E$70/($E$70+$F$70))+C70*($F$70/($E$70+$F$70)) -> 0.09265694891 | E70: 313.3 | F70: 604.7
A71: 86 | B71: 0.12279 | C71: 0.092244 | D71: =B71*($E$70/($E$70+$F$70))+C71*($F$70/($E$70+$F$70)) -> 0.1026689039
A72: 87 | B72: 0.126951 | C72: 0.100887 | D72: =B72*($E$70/($E$70+$F$70))+C72*($F$70/($E$70+$F$70)) -> 0.1097822627
A73: 88 | B73: 0.138625 | C73: 0.113616 | D73: =B73*($E$70/($E$70+$F$70))+C73*($F$70/($E$70+$F$70)) -> 0.1221512066
A74: 89 | B74: 0.150591 | C74: 0.124243 | D74: =B74*($E$70/($E$70+$F$70))+C74*($F$70/($E$70+$F$70)) -> 0.1332351878
A75: 90 | B75: 0.169654 | C75: 0.140015 | D75: =B75*($E$75/($E$75+$F$75))+C75*($F$75/($E$75+$F$75)) -> 0.1477175904 | E75: 108.5 | F75: 309
A76: 91 | B76: 0.189666 | C76: 0.160403 | D76: 0.1680078754
A77: 92 | B77: 0.206975 | C77: 0.178565 | D77: 0.1859481976
A78: 93 | B78: 0.223919 | C78: 0.197249 | D78: 0.204180006
A79: 94 | B79: 0.236708 | C79: 0.215411 | D79: 0.2209456695
A80: 95 | B80: 0.263885 | C80: 0.234507 | D80: 0.2421417617
A81: 96 | B81: 0.281959 | C81: 0.255117 | D81: 0.2620927054
A82: 97 | B82: 0.309791 | C82: 0.270731 | D82: 0.2808819222
A83: 98 | B83: 0.322786 | C83: 0.299775 | D83: 0.3057551042
A84: 99 | B84: 0.3347 | C84: 0.313782 | D84: 0.3192181749
A85: 100 | B85: 0.370939 | C85: 0.340796 | D85: 0.3486295701
A88: http://www.ons.gov.uk/ons/guide-method/method-quality/specific/population-and-migration/demography/guide-to-calculating-interim-life-tables/index.html
A89: http://www.ons.gov.uk/ons/taxonomy/index.html?nscl=Population+Estimates+by+Age+and+Sex

Sheet Parameters for Model A v2 (hidden)
A4: Proabability
A5: Name | B5: 'live' value | C5: Probabilistic | D5: Deterministic | E5: Standard error | F5: Distribution | G5: alpha | H5: beta | I5: Description
A7: cDR | B7: =discount -> 0 | I7: annual discount rate-cost
A8: oDR | B8: =discount -> 0 | I8: annual discount rate-outcome
A10: pdeathRL1 | B10: =IF(Probabilistic=1,C10,D10) -> 0.2903225806 | C10: =BETAINV(RAND(),G10,H10) -> 0.1818043987 | D10: =G10/(G10+H10) -> 0.2903225806 | E10: =SQRT(G10*H10/((G10+H10)^2*(G10+H10+1))) -> 0.08024092235 | F10: Beta | G10: 9 | H10: =31-G10 -> 22 | I10: Transition probability from 1st relapse to death (assumed to be constant)
A11: pdeathRL2 | B11: 0.4285714286 | C11: =C13-C14 -> 0.7520320229 | D11: =D13-D14 -> 0.4285714286 | E11: 0.1749635531 | F11: Beta | G11: 3 | H11: =7-G11 -> 4 | I11: Transition probability from 2nd relapse to death (assumed to be constant) | O11: negative value comes out sometimes
A12: tpRL1 | B12: 0.7096774194 | C12: =BETAINV(RAND(),G12,H12) -> 0.8546645919 | D12: =G12/(G12+H12) -> 0.7096774194 | E12: 0.08024092235 | F12: Beta | G12: 22 | H12: =31-G12 -> 9 | I12: Transition probability of moving out from 1st relapse (assumed to be constant)
A13: tpRL2 | B13: 0.5714285714 | C13: 0.8368845947 | D13: =G13/(G13+H13) -> 0.5714285714 | E13: 0.1749635531 | F13: Beta | G13: 4 | H13: =7-G13 -> 3 | I13: Transition probability of moving out from 2nd relapse (assumed to be constant)
A14: tpRL2_stay | B14: 0.1428571429 | C14: 0.08485257178 | D14: =G14/(G14+H14) -> 0.1428571429 | E14: 0.1237179148 | F14: Beta | G14: 1 | H14: 6
A15: pdeathCR3 | B15: 0.2 | C15: 0.4587068245 | D15: =G15/(G15+H15) -> 0.2 | E15: 0.1632993162 | F15: Beta | G15: 1 | H15: 4 | I15: Transition probability from 3rd remission to death (assumed to be constant)
A17: cCR1mon1 | B17: =IF(Probabilistic=1,C17,D17) -> 10019 | C17: =GAMMAINV(RAND(),G17,H17) -> 9848.549772 | D17: 10019 | E17: 423 | F17: gamma | G17: =D17^2/E17^2 -> 561.0066619 | H17: =E17^2/D17 -> 17.85896796 | I17: cost of 1st remission at month 1 | L17: (n=49)
A18: cCR1mon2 | B18: =IF(Probabilistic=1,C18,D18) -> 9211 | C18: =GAMMAINV(RAND(),G18,H18) -> 9124.843853 | D18: 9211 | E18: 475 | F18: gamma | G18: =D18^2/E18^2 -> 376.0333341 | H18: =E18^2/D18 -> 24.49516882 | I18: cost of 1st remission at month 2 | L18: (n=48)
A19: cCR1mon3 | B19: 7778 | C19: =GAMMAINV(RAND(),G19,H19) -> 8949.916047 | D19: 7778 | E19: 498 | F19: gamma | G19: =D19^2/E19^2 -> 243.9367268 | H19: =E19^2/D19 -> 31.88531756 | I19: cost of 1st remission at month 3 | L19: (n=45)
A20: cCR1mon4 | B20: 6161 | C20: 6158.634754 | D20: 6161 | E20: 666 | F20: gamma | G20: 85.57638945 | H20: 71.99415679 | I20: cost of 1st remission at month 4 | L20: (n=42)
A21: cCR1mon5 | B21: 3124 | C21: 2165.065425 | D21: 3124 | E21: 648 | F21: gamma | G21: 23.24192196 | H21: 134.4122919 | I21: cost of 1st remission at month 5 | L21: (n=42)
A22: cCR1mon6 | B22: 1063 | C22: 1042.163268 | D22: 1063 | E22: 360 | F22: gamma | G22: 8.718896605 | H22: 121.9190969 | I22: cost of 1st remission at month 6 | L22: (n=40)
A23: cCR1mon7 | B23: 707 | C23: 883.2485118 | D23: 707 | E23: 317 | F23: gamma | G23: 4.974166327 | H23: 142.1343706 | I23: cost of 1st remission at month 7 | L23: (n=39)
A24: cCR1mon8 | B24: 192 | C24: 242.3467401 | D24: 192 | E24: 52 | F24: gamma | G24: 13.63313609 | H24: 14.08333333 | I24: cost of 1st remission at month 8 | L24: (n=37)
A25: cCR1mon9 | B25: 205 | C25: 72.89403727 | D25: 205 | E25: 96 | F25: gamma | G25: 4.56000434 | H25: 44.95609756 | I25: cost of 1st remission at month 9 | L25: (n=36)
A26: cCR1mon10 | B26: 166 | C26: 211.0655587 | D26: 166 | E26: 59 | F26: gamma | G26: 7.916116059 | H26: 20.96987952 | I26: cost of 1st remission at month 10 | L26: (n=34)
A27: cCR1mon11 | B27: 374 | C27: 526.5466193 | D27: 374 | E27: 183 | F27: gamma | G27: 4.176774463 | H27: 89.54278075 | I27: cost of 1st remission at month 11 | L27: (n=34)
A28: cCR1mon12 | B28: 486 | C28: 363.1628359 | D28: 486 | E28: 313 | F28: gamma | G28: 2.410925905 | H28: 201.5823045 | I28: cost of 1st remission at month 12 | L28: (n=33)
A29: cCR1mon13 | B29: 227 | C29: 283.8077879 | D29: 227 | E29: 93 | F29: gamma | G29: 5.957798589 | H29: 38.10132159 | I29: cost of 1st remission at month 13 | L29: (n=32)
A30: cCR1mon14 | B30: 127 | C30: 199.6035835 | D30: 127 | E30: 42 | F30: gamma | G30: 9.143424036 | H30: 13.88976378 | I30: cost of 1st remission at month 14 | L30: (n=14)
A31: cCR1mon15 | B31: 146 | C31: 141.0436186 | D31: 146 | E31: 81 | F31: gamma | G31: 3.248894986 | H31: 44.93835616 | I31: cost of 1st remission at month 15 | L31: (n=30)
A32: cCR1mon16 | B32: 78 | C32: 26.44723448 | D32: 78 | E32: 27 | F32: gamma | G32: 8.345679012 | H32: 9.346153846 | I32: cost of 1st remission at month 16 | L32: (n=29)
A33: cCR1mon17 | B33: 75 | C33: 55.23343889 | D33: 75 | E33: 26 | F33: gamma | G33: 8.321005917 | H33: 9.013333333 | I33: cost of 1st remission at month 17 | L33: (n=29)
A34: cCR1mon18_36 | B34: 59 | C34: 85.53723766 | D34: 59 | E34: 15 | F34: gamma | G34: 15.47111111 | H34: 3.813559322 | I34: cost of 1st remission at month 18 to month 36 | L34: (n=29)
A35: cCR1mon37_60 | B35: =IF(Probabilistic=1,C35,D35) -> 21 | C35: 211 | D35: 21 | E35: 9 | F35: gamma | G35: 5.444444444 | H35: 3.857142857 | I35: cost of 1st remission at month 37 to month 60 | L35: (n=24)
A37: cRL1mon1 | B37: =IF(Probabilistic=1,C37,D37) -> 7380 | C37: =GAMMAINV(RAND(),G37,H37) -> 7770.291042 | D37: 7380 | E37: 1191 | F37: gamma | G37: =D37^2/E37^2 -> 38.39628448 | H37: =E37^2/D37 -> 192.2060976 | I37: cost of 1st relapse at month1 | L37: (n=20)
A38: cRL1mon2_60 | B38: =IF(Probabilistic=1,C38,D38) -> 1589 | C38: =GAMMAINV(RAND(),G38,H38) -> 1657.345131 | D38: 1589 | E38: 398 | F38: gamma | G38: =D38^2/E38^2 -> 15.93975531 | H38: =E38^2/D38 -> 99.687854 | I38: cost of 1st relapse per month after month1 | L38: (n=18)
A40: cCR2mon1 | B40: =IF(Probabilistic=1,C40,D40) -> 6269 | C40: =GAMMAINV(RAND(),G40,H40) -> 4913.249325 | D40: 6269 | E40: 1176 | F40: gamma | G40: =D40^2/E40^2 -> 28.41724007 | H40: =E40^2/D40 -> 220.6055192 | I40: cost of 2nd remission at month 1 | L40: (n=12)
A41: cCR2mon2 | B41: 4818 | C41: =GAMMAINV(RAND(),G41,H41) -> 4401.677769 | D41: 4818 | E41: 1409 | F41: gamma | G41: =D41^2/E41^2 -> 11.69261379 | H41: =E41^2/D41 -> 412.0550021 | I41: cost of 2nd remission at month 2 | L41: (n=10)
A42: cCR2mon3 | B42: 1792 | C42: 2431.075657 | D42: 1792 | E42: 1146 | F42: gamma | G42: 2.445157144 | H42: 732.8772321 | I42: cost of 2nd remission at month 3 | L42: (n=6)
A43: cCR2mon4 | B43: 3341 | C43: 1060.259971 | D43: 3341 | E43: 2405 | F43: gamma | G43: 1.929846603 | H43: 1731.225681 | I43: cost of 2nd remission at month 4 | L43: (n=6)
A44: cCR2mon5 | B44: 822 | C44: 444.6463708 | D44: 822 | E44: 780 | F44: gamma | G44: 1.110591716 | H44: 740.1459854 | I44: cost of 2nd remission at month 5 | L44: (n=5)
A45: cCR2mon6 | B45: 68 | C45: 51.42321025 | D45: 68 | E45: 40 | F45: gamma | G45: 2.89 | H45: 23.52941176 | I45: cost of 2nd remission at month 6 | L45: (n=4)
A46: cCR2mon7 | B46: 68 | C46: 22.40329682 | D46: 68 | E46: 40 | F46: gamma | G46: 2.89 | H46: 23.52941176 | I46: cost of 2nd remission at month 7 | L46: (n=4)
A47: cCR2mon8 | B47: 68 | C47: 56.7883299 | D47: 68 | E47: 40 | F47: gamma | G47: 2.89 | H47: 23.52941176 | I47: cost of 2nd remission at month 8 | L47: (n=4)
A48: cCR2mon9 | B48: 68 | C48: 57.34726704 | D48: 68 | E48: 40 | F48: gamma | G48: 2.89 | H48: 23.52941176 | I48: cost of 2nd remission at month 9 | L48: (n=4)
A49: cCR2mon10 | B49: 68 | C49: 38.37453178 | D49: 68 | E49: 40 | F49: gamma | G49: 2.89 | H49: 23.52941176 | I49: cost of 2nd remission at month 10 | L49: (n=3)
A50: cCR2mon11 | B50: 68 | C50: 38.47343278 | D50: 68 | E50: 40 | F50: gamma | G50: 2.89 | H50: 23.52941176 | I50: cost of 2nd remission at month 11 | L50: (n=3)
A51: cCR2mon12 | B51: 68 | C51: 45.22977778 | D51: 68 | E51: 40 | F51: gamma | G51: 2.89 | H51: 23.52941176 | I51: cost of 2nd remission at month 12 | L51: (n=3)
A52: cCR2mon13 | B52: 68 | C52: 33.66395989 | D52: 68 | E52: 40 | F52: gamma | G52: 2.89 | H52: 23.52941176 | I52: cost of 2nd remission at month 13 | L52: (n=3)
A53: cCR2mon14 | B53: 68 | C53: 30.79266406 | D53: 68 | E53: 40 | F53: gamma | G53: 2.89 | H53: 23.52941176 | I53: cost of 2nd remission at month 14 | L53: (n=3)
A54: cCR2mon15 | B54: 68 | C54: 136.941981 | D54: 68 | E54: 40 | F54: gamma | G54: 2.89 | H54: 23.52941176 | I54: cost of 2nd remission at month 15 | L54: (n=3)
A55: cCR2mon16 | B55: 68 | C55: 62.26852399 | D55: 68 | E55: 40 | F55: gamma | G55: 2.89 | H55: 23.52941176 | I55: cost of 2nd remission at month 16 | L55: (n=3)
A56: cCR2mon17 | B56: 68 | C56: 64.2304767 | D56: 68 | E56: 40 | F56: gamma | G56: 2.89 | H56: 23.52941176 | I56: cost of 2nd remission at month 17 | L56: (n=3)
A57: cCR2mon18_36 | B57: 68 | C57: 130.7350766 | D57: 68 | E57: 40 | F57: gamma | G57: 2.89 | H57: 23.52941176 | I57: cost of 2nd remission at month 18 to month 36 | L57: (n=3)
A58: cCR2mon37_60 | B58: 68 | C58: 32.17592261 | D58: 68 | E58: 40 | F58: gamma | G58: =D58^2/E58^2 -> 2.89 | H58: 23.52941176 | I58: cost of 2nd remission at month 37 to month 60 | L58: (n=3)
A60: cRL2mon1 | B60: =IF(Probabilistic=1,C60,D60) -> 11698 | C60: =GAMMAINV(RAND(),G60,H60) -> 10619.44772 | D60: 11698 | E60: 1743 | F60: gamma | G60: =D60^2/E60^2 -> 45.04311945 | H60: =E60^2/D60 -> 259.706702 | I60: cost of 2nd relapse at month1 | L60: (n=3)
A61: cRL2mon2_60 | B61: =IF(Probabilistic=1,C61,D61) -> 5850 | C61: =GAMMAINV(RAND(),G61,H61) -> 8921.150483 | D61: 5850 | E61: 2935 | F61: gamma | G61: =D61^2/E61^2 -> 3.972789195 | H61: =E61^2/D61 -> 1472.517094 | I61: cost of 2nd relapse per month after month1 | L61: (n=3)
A63: cCR3mon1 | B63: =IF(Probabilistic=1,C63,D63) -> 6269 | C63: =GAMMAINV(RAND(),G63,H63) -> 4611.380544 | D63: 6269 | E63: 1176 | F63: gamma | G63: =D63^2/E63^2 -> 28.41724007 | H63: =E63^2/D63 -> 220.6055192 | I63: cost of 3rd remission at month1 | L63: (all patients had SCT)
A64: cCR3mon2_60 | B64: =IF(Probabilistic=1,C64,D64) -> 142 | C64: =GAMMAINV(RAND(),G64,H64) -> 137.3832842 | D64: 142 | E64: 60 | F64: gamma | G64: =D64^2/E64^2 -> 5.601111111 | H64: =E64^2/D64 -> 25.35211268 | I64: cost of 3rd remission per month after month1 | L64: (all patients had SCT)
A66: pSCTCR1 | B66: =IF(Probabilistic=1,1-EXP((1/60)*LN(1-C66)),1-EXP((1/60)*LN(1-D66))) -> 0.001587241994 | C66: =BETAINV(RAND(),G66,H66) -> 0.100791771 | D66: =G66/(G66+H66) -> 0.09090909091 | E66: =SQRT(G66*H66/((G66+H66)^2*(G66+H66+1))) -> 0.03512124588 | F66: Beta | G66: 6 | H66: =66-G66 -> 60 | I66: probability of SCT at 1st remission
A67: pSCTCR2 | B67: =IF(Probabilistic=1,1-EXP((1/60)*LN(1-C67)),1-EXP((1/60)*LN(1-D67))) -> 0.005293501963 | C67: 0.4882463764 | D67: =G67/(G67+H67) -> 0.2727272727 | E67: 0.09286434881 | F67: Beta | G67: 6 | H67: =22-G67 -> 16 | I67: probability of SCT at 2nd remission
A68: pSCTCR3 | B68: =IF(Probabilistic=1,1-EXP((1/60)*LN(1-C68)),1-EXP((1/60)*LN(1-D68))) -> 0.02646739795 | C68: =BETAINV(RAND(),G68,H68) -> 0.9984514608 | D68: =G68/(G68+H68) -> 0.8 | E68: =SQRT(G68*H68/((G68+H68)^2*(G68+H68+1))) -> 0.1632993162 | F68: Beta | G68: 4 | H68: =5-G68 -> 1 | I68: probability of SCT at 3rd remission
A70: Actual cost for 2nd remission
A71: cCR2mon1 | B71: =IF(Probabilistic=1,C71,D71) -> 6269 | C71: =GAMMAINV(RAND(),G71,H71) -> 5808.060801 | D71: 6269 | E71: 1176 | F71: gamma | G71: =D71^2/E71^2 -> 28.41724007 | H71: =E71^2/D71 -> 220.6055192 | I71: cost of 2nd remission at month 1 | L71: (n=12)
A72: cCR2mon2 | B72: 4818 | C72: =GAMMAINV(RAND(),G72,H72) -> 2999.416236 | D72: 4818 | E72: 1409 | F72: gamma | G72: =D72^2/E72^2 -> 11.69261379 | H72: =E72^2/D72 -> 412.0550021 | I72: cost of 2nd remission at month 2 | L72: (n=10)
A73: cCR2mon3 | B73: 1792 | C73: 1153.383485 | D73: 1792 | E73: 1146 | F73: gamma | G73: 2.445157144 | H73: 732.8772321 | I73: cost of 2nd remission at month 3 | L73: (n=6)
A74: cCR2mon4 | B74: 3341 | C74: 926.2163654 | D74: 3341 | E74: 2405 | F74: gamma | G74: 1.929846603 | H74: 1731.225681 | I74: cost of 2nd remission at month 4 | L74: (n=6)
A75: cCR2mon5 | B75: 822 | C75: 151.9765261 | D75: 822 | E75: 780 | F75: gamma | G75: 1.110591716 | H75: 740.1459854 | I75: cost of 2nd remission at month 5 | L75: (n=5)
A76: cCR2mon6 | B76: 42 | C76: 64.96040111 | D76: 42 | E76: 24 | F76: gamma | G76: 3.0625 | H76: 13.71428571 | I76: cost of 2nd remission at month 6 | L76: (n=4)
A77: cCR2mon7 | B77: 42 | C77: 76.36312578 | D77: 42 | E77: 24 | F77: gamma | G77: 3.0625 | H77: 13.71428571 | I77: cost of 2nd remission at month 7 | L77: (n=4)
A78: cCR2mon8 | B78: 431 | C78: 142.7591905 | D78: 431 | E78: 403 | F78: gamma | G78: 1.143785135 | H78: 376.8190255 | I78: cost of 2nd remission at month 8 | L78: (n=4)
A79: cCR2mon9 | B79: 680 | C79: 688.1988415 | D79: 680 | E79: 652 | F79: gamma | G79: 1.087733825 | H79: 625.1529412 | I79: cost of 2nd remission at month 9 | L79: (n=4)
A80: cCR2mon10 | B80: 28 | C80: 23.03385379 | D80: 28 | E80: 28 | F80: gamma | G80: 1 | H80: 28 | I80: cost of 2nd remission at month 10 | L80: (n=3)
A81: cCR2mon11 | B81: 28 | C81: 30.14605741 | D81: 28 | E81: 28 | F81: gamma | G81: 1 | H81: 28 | I81: cost of 2nd remission at month 11 | L81: (n=3)
A82: cCR2mon12 | B82: 28 | C82: 38.23291365 | D82: 28 | E82: 28 | F82: gamma | G82: 1 | H82: 28 | I82: cost of 2nd remission at month 12 | L82: (n=3)
A83: cCR2mon13 | B83: 56 | C83: 31.55847038 | D83: 56 | E83: 56 | F83: gamma | G83: 1 | H83: 56 | I83: cost of 2nd remission at month 13 | L83: (n=3)
A84: cCR2mon14 | B84: 28 | C84: 32.00638931 | D84: 28 | E84: 28 | F84: gamma | G84: 1 | H84: 28 | I84: cost of 2nd remission at month 14 | L84: (n=3)
A85: cCR2mon15 | B85: 28 | C85: 9.232046238 | D85: 28 | E85: 28 | F85: gamma | G85: 1 | H85: 28 | I85: cost of 2nd remission at month 15 | L85: (n=3)
A86: cCR2mon16 | B86: 28 | C86: 41.09096562 | D86: 28 | E86: 28 | F86: gamma | G86: 1 | H86: 28 | I86: cost of 2nd remission at month 16 | L86: (n=3)
A87: cCR2mon17 | B87: 28 | C87: 69.9371441 | D87: 28 | E87: 28 | F87: gamma | G87: 1 | H87: 28 | I87: cost of 2nd remission at month 17 | L87: (n=3)
A88: cCR2mon18_36 | B88: 51 | C88: 8.338864003 | D88: 51 | E88: 51 | F88: gamma | G88: 1 | H88: 51 | I88: cost of 2nd remission at month 18 to month 36 | L88: (n=3)
A89: cCR2mon37_60 | B89: 87 | C89: 190.638648 | D89: 87 | E89: 87 | F89: gamma | G89: =D89^2/E89^2 -> 1 | H89: 87 | I89: cost of 2nd remission at month 37 to month 60 | L89: (n=3)

Sheet Survival for Model A (hidden)
A1: Modelling the hazard functions
K2: =(IF(gender=1,1,IF(gender=2,0,0.5))) -> 0.5
A3: 1st remission (tunnel) | B3: (DFS) | N3: (TTR)
B4: explanatory variables | C4: coefficient | D4: se | E4: hazard ratio | J4: cycle | K4: Deterministic transition probabilities | L4: Probabilistic transition probabilities | N4: explanatory variables | O4: coefficient | P4: se | Q4: hazard ratio | U4: cycle | V4: Deterministic transition probabilities | W4: Probabilistic transition probabilities
B5: age | C5: -0.0310396 | D5: 0.091053 | E5: 0.9694371 | J5: 0 | K5: =1-EXP(EXP($C$8+$C$5*Age_1+$C$6*Age_1*Age_1+$C$7*(IF(gender=1,1,IF(gender=2,0,0.5))))*(J5*30)^EXP($C$9)-EXP($C$8+$C$5*Age_1+$C$6*Age_1*Age_1+$C$7*(IF(gender=1,1,IF(gender=2,0,0.5))))*((J5+1)*30)^EXP($C$9)) -> 0.04618188133 | L5: =IF((1-EXP(EXP($G$40+$G$37*Age_1+$G$38*Age_1*Age_1+$G$39*(IF(gender=1,1,IF(gender=2,0,0.5))))*(J5*30)^EXP($G$41)-EXP($G$40+$G$37*Age_1+$G$38*Age_1*Age_1+$G$39*(IF(gender=1,1,IF(gender=2,0,0.5))))*((J5+1)*30)^EXP($G$41)))>K5*2,K5*2,1-EXP(EXP($G$40+$G$37*Age_1+$G$38*Age_1*Age_1+$G$39*(IF(gender=1,1,IF(gender=2,0,0.5))))*(J5*30)^EXP($G$41)-EXP($G$40+$G$37*Age_1+$G$38*Age_1*Age_1+$G$39*(IF(gender=1,1,IF(gender=2,0,0.5))))*((J5+1)*30)^EXP($G$41))) -> 0.000185106902 | N5: age | O5: -0.1187299 | P5: 0.1024833 | Q5: 0.8880476 | U5: 0 | V5: =1-EXP(EXP($O$8+$O$5*Age_1+$O$6*Age_1*Age_1+$O$7*(IF(gender=1,1,IF(gender=2,0,0.5))))*(U5*30)^EXP($O$9)-EXP($O$8+$O$5*Age_1+$O$6*Age_1*Age_1+$O$7*(IF(gender=1,1,IF(gender=2,0,0.5))))*((U5+1)*30)^EXP($O$9)) -> 0.01684270719 | W5: =IF((1-EXP(EXP($S$40+$S$37*Age_1+$S$38*Age_1*Age_1+$S$39*(IF(gender=1,1,IF(gender=2,0,0.5))))*(U5*30)^EXP($S$41)-EXP($S$40+$S$37*Age_1+$S$38*Age_1*Age_1+$S$39*(IF(gender=1,1,IF(gender=2,0,0.5))))*((U5+1)*30)^EXP($S$41)))>L5,L5,1-EXP(EXP($S$40+$S$37*Age_1+$S$38*Age_1*Age_1+$S$39*(IF(gender=1,1,IF(gender=2,0,0.5))))*(U5*30)^EXP($S$41)-EXP($S$40+$S$37*Age_1+$S$38*Age_1*Age_1+$S$39*(IF(gender=1,1,IF(gender=2,0,0.5))))*((U5+1)*30)^EXP($S$41))) -> 0.000185106902
B6: age^2 | C6: 0.0005408 | D6: 0.0011382 | E6: 1.000541 | J6: 1 | K6: 0.03325694766 | L6: 0.0001135757629 | N6: age^2 | O6: 0.0015896 | P6: 0.0013033 | Q6: 1.001591 | U6: 1 | V6: 0.01511886865 | W6: 0.0001135757629
B7: male | C7: 0.009509 | D7: 0.3117789 | E7: 1.009554 | J7: 2 | K7: 0.02965348751 | L7: 9.64633985e-05 | N7: male | O7: 0.0436736 | P7: 0.3688207 | Q7: 1.044641 | U7: 2 | V7: 0.01452978615 | W7: 9.64633985e-05
B8: cons | C8: -5.385412 | D8: 1.826385 | E8: 0.004583 | J8: 3 | K8: 0.02752882268 | L8: 8.679836906e-05 | N8: cons | O8: -5.091952 | P8: 2.063228 | Q8: 0.006146 | U8: 3 | V8: 0.01415990009 | W8: 8.679836906e-05
B9: lngamma | C9: -0.2504017 | D9: 0.1319676 | E9: -0.2504017 | J9: 4 | K9: 0.02604833715 | L9: 8.025357029e-05 | N9: lngamma | O9: -0.0794562 | P9: 0.1517402 | Q9: -0.0794562 | U9: 4 | V9: 0.01389102102 | W9: 8.025357029e-05
J10: 5 | K10: 0.0249254971 | L10: 7.539605791e-05 | U10: 5 | V10: 0.01368041664 | W10: 7.539605791e-05
B11: Covariance matrix | J11: 6 | K11: 0.024028444 | L11: 7.158244837e-05 | N11: Covariance matrix | U11: 6 | V11: 0.01350770899 | W11: 7.158244837e-05
C12: age | D12: age^2 | E12: male | F12: cons | G12: lngamma | J12: 7 | K12: 0.02328598789 | L12: 6.847193232e-05 | O12: age | P12: age^2 | Q12: male | R12: cons | S12: lngamma | U12: 7 | V12: 0.0133615869 | W12: 6.847193232e-05
B13: age | C13: 0.00829065 | J13: 8 | K13: 0.02265552055 | L13: 6.586369268e-05 | N13: age | O13: 0.01050283 | U13: 8 | V13: 0.01323512407 | W13: 6.586369268e-05
B14: age^2 | C14: -0.00010264 | D14: 1.296e-06 | J14: 9 | K14: 0.02210961767 | L14: 6.363018127e-05 | N14: age^2 | O14: -0.00013237 | P14: 1.699e-06 | U14: 9 | V14: 0.01312377466 | W14: 6.363018127e-05
B15: male | C15: 0.00110416 | D15: -4.265e-06 | E15: 0.09720611 | J15: 10 | K15: 0.02162964363 | L15: 6.168572274e-05 | N15: male | O15: 0.00222234 | P15: -1.415e-05 | Q15: 0.13602871 | U15: 10 | V15: 0.01302439657 | W15: 6.168572274e-05
B16: cons | C16: -0.1476191 | D16: 0.00176501 | E16: -0.08411888 | F16: 3.3356821 | J16: 11 | K16: 0.02120238983 | L16: 5.997021154e-05 | N16: cons | O16: -0.17854721 | P16: 0.00217219 | Q16: -0.12861371 | R16: 4.2569081 | U16: 11 | V16: 0.01293472873 | W16: 5.997021154e-05
B17: lngamma | C17: -0.00047339 | D17: 6.668e-06 | E17: -0.00026344 | F17: -0.08734237 | G17: 0.01741545 | J17: 12 | K17: 0.02081817293 | L17: 5.843998815e-05 | N17: lngamma | O17: -0.00069538 | P17: 9.94e-06 | Q17: -0.00075427 | R17: -0.13940179 | S17: 0.0230251 | U17: 12 | V17: 0.01285309076 | W17: 5.843998815e-05
J18: 13 | K18: 0.02046969499 | L18: 5.70624225e-05 | U18: 13 | V18: 0.01277820041 | W18: 5.70624225e-05
B19: Correlation matrix | J19: 14 | K19: 0.02015132744 | L19: 5.581254078e-05 | N19: Correlation matrix | U19: 14 | V19: 0.01270905738 | W19: 5.581254078e-05
C20: age | D20: age^2 | E20: male | F20: cons | G20: lngamma | J20: 15 | K20: 0.01985864344 | L20: 5.467083967e-05 | O20: age | P20: age^2 | Q20: male | R20: cons | S20: lngamma | U20: 15 | V20: 0.01264486662 | W20: 5.467083967e-05
B21: age | C21: =C13/(SQRT(C$13)*SQRT(C13)) -> 1 | J21: 16 | K21: 0.01958810228 | L21: 5.36218221e-05 | N21: age | O21: =O13/(SQRT(O$13)*SQRT(O13)) -> 1 | U21: 16 | V21: 0.01258498597 | W21: 5.36218221e-05
B22: age^2 | C22: =C14/(SQRT(C$13)*SQRT(D14)) -> -0.9901930003 | D22: =D14/(SQRT(D$14)*SQRT(D14)) -> 1 | J22: 17 | K22: 0.01933683041 | L22: 5.265298776e-05 | N22: age^2 | O22: =O14/(SQRT(O$13)*SQRT(P14)) -> -0.9909225497 | P22: =P14/(SQRT(P$14)*SQRT(P14)) -> 1 | U22: 17 | V22: 0.01252888945 | W22: 5.265298776e-05
B23: male | C23: =C15/(SQRT(C$13)*SQRT(E15)) -> 0.0388947458 | D23: =D15/(SQRT(D$14)*SQRT(E15)) -> -0.01201627207 | E23: =E15/(SQRT(E$15)*SQRT(E15)) -> 1 | J23: 18 | K23: 0.01910246564 | L23: 5.17541199e-05 | N23: male | O23: =O15/(SQRT(O$13)*SQRT(Q15)) -> 0.05879522348 | P23: =P15/(SQRT(P$14)*SQRT(Q15)) -> -0.029433673 | Q23: =Q15/(SQRT(Q$15)*SQRT(Q15)) -> 1 | U23: 18 | V23: 0.01247614098 | W23: 5.17541199e-05
B24: cons | C24: =C16/(SQRT(C$13)*SQRT(F16)) -> -0.8876789786 | D24: =D16/(SQRT(D$14)*SQRT(F16)) -> 0.8488918075 | E24: =E16/(SQRT(E$15)*SQRT(F16)) -> -0.1477251272 | F24: =F16/(SQRT(F$16)*SQRT(F16)) -> 1 | N24: cons | O24: =O16/(SQRT(O$13)*SQRT(R16)) -> -0.844408824 | P24: =P16/(SQRT(P$14)*SQRT(R16)) -> 0.8077072541 | Q24: =Q16/(SQRT(Q$15)*SQRT(R16)) -> -0.1690148402 | R24: =R16/(SQRT(R$16)*SQRT(R16)) -> 1
B25: lngamma | C25: =C17/(SQRT(C$13)*SQRT(G17)) -> -0.03939648167 | D25: =D17/(SQRT(D$14)*SQRT(G17)) -> 0.04438392853 | E25: =E17/(SQRT(E$15)*SQRT(G17)) -> -0.006402765341 | F25: =F17/(SQRT(F$16)*SQRT(G17)) -> -0.3623808961 | G25: =G17/(SQRT(G$17)*SQRT(G17)) -> 1 | N25: lngamma | O25: =O17/(SQRT(O$13)*SQRT(S17)) -> -0.04471654752 | P25: =P17/(SQRT(P$14)*SQRT(S17)) -> 0.05025611727 | Q25: =Q17/(SQRT(Q$15)*SQRT(S17)) -> -0.01347754474 | R25: =R17/(SQRT(R$16)*SQRT(S17)) -> -0.4452669396 | S25: =S17/(SQRT(S$17)*SQRT(S17)) -> 1
B27: Cholesky decomposition | N27: Cholesky decomposition
C28: age | D28: age^2 | E28: male | F28: cons | G28: lngamma | O28: age | P28: age^2 | Q28: male | R28: cons | S28: lngamma
B29: age | C29: =SQRT(C13) -> 0.09105300654 | N29: age | O29: =SQRT(O13) -> 0.1024833157
B30: age^2 | C30: =C14/a_1 -> -0.0009366550441 | D30: =SQRT(D14-b_1^2) -> 0.0006470528018 | N30: age^2 | O30: =O14/a_2 -> -0.001291624876 | P30: =SQRT(P14-b_2^2) -> 0.0001752289317
B31: male | C31: =C15/a_1 -> 0.01007615972 | D31: =(D15-b_1*d_1)/c_1 -> 0.007994534311 | E31: =SQRT(E15-d_1^2-e_1^2) -> 0.3115135124 | N31: male | O31: =O15/a_2 -> 0.02168489558 | P31: =(P15-b_2*d_2)/c_2 -> 0.07908939716 | Q31: =SQRT(Q15-d_2^2-e_2^2) -> 0.3595877397
B32: cons | C32: =C16/a_1 -> -1.347117835 | D32: =(D16-b_1*g_1)/c_1 -> 0.777719041 | E32: =(E16-d_1*g_1-e_1*h_1)/f_1 -> -0.2464182259 | F32: =SQRT(F16-g_1^2-h_1^2-i_1^2) -> 0.9248712283 | N32: cons | O32: =O16/a_2 -> -1.742207585 | P32: =(P16-b_2*g_2)/c_2 -> -0.4456379223 | Q32: =(Q16-d_2*g_2-e_2*h_2)/f_2 -> -0.1545906038 | R32: =SQRT(R16-g_2^2-h_2^2-i_2^2) -> 0.9995646139
B33: lngamma | C33: =C17/a_1 -> -0.004319983742 | D33: =(D17-k_1*b_1)/c_1 -> 0.004051702473 | E33: =(E17-d_1*k_1-e_1*l_1)/f_1 -> -0.00080992515 | F33: =(F17-g_1*k_1-h_1*l_1-i_1*m_1)/j_1 -> -0.1043524338 | G33: =SQRT(G17-k_1^2-l_1^2-m_1^2-n_1^2) -> 0.08056230525 | N33: lngamma | O33: =O17/a_2 -> -0.006785299589 | P33: =(P17-k_2*b_2)/c_2 -> 0.006710868149 | Q33: =(Q17-d_2*k_2-e_2*l_2)/f_2 -> -0.003164429366 | R33: =(R17-g_2*k_2-h_2*l_2-i_2*m_2)/j_2 -> -0.1487865437 | S33: =SQRT(S17-k_2^2-l_2^2-m_2^2-n_2^2) -> 0.02804594007
B35: Random variables | N35: Random variables
C36: z | E36: Tz | G36: mu + Tz | O36: z | Q36: Tz | S36: mu + Tz
B37: age | C37: =NORMINV(RAND(),0,1) -> -1.72001341 | E37: =a_1*C37 -> -0.1884815307 | G37: =C5+E37 -> -0.2195211307 | N37: age | O37: =C37 -> -1.72001341 | Q37: =a_2*O37 -> -0.1762726773 | S37: =O5+Q37 -> -0.2950025773
B38: age^2 | C38: =NORMINV(RAND(),0,1) -> -1.516841444 | E38: =b_1*C37+c_1*C38 -> 0.00062958273 | G38: =C6+E38 -> 0.00117038273 | N38: age^2 | O38: =C38 -> -1.516841444 | Q38: =b_2*O37+c_2*O38 -> 0.001955817602 | S38: =O6+Q38 -> 0.003545417602
B39: male | C39: =NORMINV(RAND(),0,1) -> 1.464755619 | E39: =d_1*C37+e_1*C38+f_1*C39 -> 0.426833597 | G39: =C7+E39 -> 0.436342597 | N39: male | O39: =C39 -> 1.464755619 | Q39: =d_2*O37+e_2*O38+f_2*O39 -> 0.3694437757 | S39: =O7+Q39 -> 0.4131173757
B40: cons | C40: =NORMINV(RAND(),0,1) -> 0.9101343421 | E40: =g_1*C37+h_1*C38+i_1*C39+j_1*C40 -> 1.618198854 | G40: =C8+E40 -> -3.767213146 | N40: cons | O40: =C40 -> 0.9101343421 | Q40: =g_2*O37+h_2*O38+i_2*O39+j_2*O40 -> 4.355883106 | S40: =O8+Q40 -> -0.7360688938
B41: lngamma | C41: =NORMINV(RAND(),0,1) -> -0.315839269 | E41: =k_1*C37+l_1*C38+m_1*C39+n_1*C40+o_1*C41 -> -0.120321176 | G41: =C9+E41 -> -0.370722876 | N41: lngamma | O41: =C41 -> -0.315839269 | Q41: =k_2*O37+l_2*O38+m_2*O39+n_2*O40+o_2*O41 -> -0.1474173846 | S41: =O9+Q41 -> -0.2268735846
A44: 1st relapse | B44: (DFS) | N44: (Dead)
B45: explanatory variables | C45: coefficient | D45: se | E45: hazard ratio | J45: cycle | K45: Deterministic transition probabilities | L45: Probabilistic transition probabilities | N45: explanatory variables | O45: coefficient | P45: se | Q45: hazard ratio | U45: cycle | V45: Deterministic transition probabilities | W45: Probabilistic transition probabilities
B46: age | C46: -0.143604 | D46: 0.1095814 | E46: 0.8662307 | J46: 0 | K46: =1-EXP(EXP($C$49+$C$46*Age_1+$C$47*Age_1*Age_1+$C$48*(IF(gender=1,1,IF(gender=2,0,0.5))))*(J46*30)^EXP($C$50)-EXP($C$49+$C$46*Age_1+$C$47*Age_1*Age_1+$C$48*(IF(gender=1,1,IF(gender=2,0,0.5))))*((J46+1)*30)^EXP($C$50)) -> 0.1709337128 | L46: =1-EXP(EXP($G$81+$G$78*Age_1+$G$79*Age_1*Age_1+$G$80*(IF(gender=1,1,IF(gender=2,0,0.5))))*(J46*30)^EXP($G$82)-EXP($G$81+$G$78*Age_1+$G$79*Age_1*Age_1+$G$80*(IF(gender=1,1,IF(gender=2,0,0.5))))*((J46+1)*30)^EXP($G$82)) -> 0.2127651174 | N46: age | O46: 0.1023277 | P46: 0.3219274 | Q46: 1.107746 | U46: 0 | V46: =1-EXP(EXP($O$49+$O$46*Age_1+$O$47*Age_1*Age_1+$O$48*(IF(gender=1,1,IF(gender=2,0,0.5))))*(U46*30)^EXP($O$50)-EXP($O$49+$O$46*Age_1+$O$47*Age_1*Age_1+$O$48*(IF(gender=1,1,IF(gender=2,0,0.5))))*((U46+1)*30)^EXP($O$50)) -> 0.05445560093 | W46: =1-EXP(EXP($S$81+$S$78*Age_1+$S$79*Age_1*Age_1+$S$80*(IF(gender=1,1,IF(gender=2,0,0.5))))*(U46*30)^EXP($S$82)-EXP($S$81+$S$78*Age_1+$S$79*Age_1*Age_1+$S$80*(IF(gender=1,1,IF(gender=2,0,0.5))))*((U46+1)*30)^EXP($S$82)) -> 0.09722999342
B47: age^2 | C47: 0.0015155 | D47: 0.0014191 | E47: 1.001517 | J47: 1 | K47: 0.2093123223 | L47: 0.2201954667 | N47: age^2 | O47: -0.0007599 | P47: 0.0036316 | Q47: 0.9992404 | U47: 1 | V47: 0.07021941231 | W47: 0.08909012856
B48: male | C48: -0.1397192 | D48: 0.3631917 | E48: 0.8696024 | J48: 2 | K48: 0.2265070933 | L48: 0.2230830153 | N48: male | O48: -0.2912066 | P48: 0.671715 | Q48: 0.7473613 | U48: 2 | V48: 0.07768890039 | W48: 0.08625056493
B49: cons | C49: -2.205134 | D49: 1.75402 | E49: 0.1102358 | J49: 3 | K49: 0.2383337864 | L49: 0.2249761719 | N49: cons | O49: -9.855675 | P49: 6.704501 | Q49: 5.24e-05 | U49: 3 | V49: 0.08295675516 | W49: 0.08445458527
B50: lngamma | C50: 0.1584966 | D50: 0.1327339 | E50: 0.1584966 | J50: 4 | K50: 0.2474665974 | L50: 0.2263929157 | N50: lngamma | O50: 0.1838116 | P50: 0.2457866 | Q50: 0.1838116 | U50: 4 | V50: 0.08709691152 | W50: 0.08314265203
J51: 5 | K51: 0.2549530324 | L51: 0.2275273964 | U51: 5 | V51: 0.09053766883 | W51: 0.0821112413
B52: Covariance matrix | J52: 6 | K52: 0.2613206062 | L52: 0.2284745206 | N52: Covariance matrix | U52: 6 | V52: 0.09349755441 | W52: 0.08126289092
C53: age | D53: age^2 | E53: male | F53: cons | G53: lngamma | J53: 7 | K53: 0.2668746893 | L53: 0.2292879903 | O53: age | P53: age^2 | Q53: male | R53: cons | S53: lngamma | U53: 7 | V53: 0.09610440213 | W53: 0.08054332626
B54: age | C54: 0.01200809 | J54: 8 | K54: 0.2718088121 | L54: 0.2300012144 | N54: age | O54: 0.10363723 | U54: 8 | V54: 0.09843994339 | W54: 0.07991922331
B55: age^2 | C55: -0.00015422 | D55: 2.014e-06 | J55: 9 | K55: 0.2762537475 | L55: 0.2306364169 | N55: age^2 | O55: -0.00115607 | P55: 1.319e-05 | U55: 9 | V55: 0.1005598283 | W55: 0.07936866103
B56: male | C56: -0.00550455 | D56: 7.312e-05 | E56: 0.13190823 | J56: 10 | K56: 0.280302205 | L56: 0.2312091412 | N56: male | O56: -0.00188622 | P56: 2.781e-05 | Q56: 0.45120109 | U56: 10 | V56: 0.1025037755 | W56: 0.07887645722
B57: cons | C57: -0.17238806 | D57: 0.00218083 | E57: 0.00954372 | F57: 3.0765879 | J57: 11 | K57: 0.2840224097 | L57: 0.23173069 | N57: cons | O57: -2.0434949 | P57: 0.02195384 | Q57: -0.13693419 | R57: 44.950336 | U57: 11 | V57: 0.1043011914 | W57: 0.0784316674
B58: lngamma | C58: -0.0045972 | D58: 5.258e-05 | E58: 0.00240822 | F58: -0.01349303 | G58: 0.0176183 | J58: 12 | K58: 0.2874660939 | L58: 0.2322095424 | N58: lngamma | O58: -0.02928029 | P58: 0.00033926 | Q58: -0.00639338 | R58: 0.21685036 | S58: 0.06041107 | U58: 12 | V58: 0.1059744964 | W58: 0.07802614488
J59: 13 | K59: 0.2906734588 | L59: 0.2326522242 | U59: 13 | V59: 0.1075412011 | W59: 0.07765366414
B60: Correlation matrix | J60: 14 | K60: 0.2936763913 | L60: 0.2330638664 | N60: Correlation matrix | U60: 14 | V60: 0.1090152595 | W60: 0.07730936223
C61: age | D61: age^2 | E61: male | F61: cons | G61: lngamma | J61: 15 | K61: 0.2965006277 | L61: 0.2334485768 | O61: age | P61: age^2 | Q61: male | R61: cons | S61: lngamma | U61: 15 | V61: 0.1104079826 | W61: 0.07698936923
B62: age | C62: =C54/(SQRT(C$54)*SQRT(C54)) -> 1 | J62: 16 | K62: 0.2991672525 | L62: 0.2338096956 | N62: age | O62: =O54/(SQRT(O$54)*SQRT(O54)) -> 1 | U62: 16 | V62: 0.1117286749 | W62: 0.07669055584
B63: age^2 | C63: =C55/(SQRT(C$54)*SQRT(D55)) -> -0.9916855807 | D63: =D55/(SQRT(D$55)*SQRT(D55)) -> 1 | J63: 17 | K63: 0.3016937654 | L63: 0.234149976 | N63: age^2 | O63: =O55/(SQRT(O$54)*SQRT(P55)) -> -0.9887894756 | P63: =P55/(SQRT(P$55)*SQRT(P55)) -> 1 | U63: 17 | V63: 0.1129850878 | W63: 0.07641035631
B64: male | C64: =C56/(SQRT(C$54)*SQRT(E56)) -> -0.1383085115 | D64: =D56/(SQRT(D$55)*SQRT(E56)) -> 0.1418634454 | E64: =E56/(SQRT(E$56)*SQRT(E56)) -> 1 | J64: 18 | K64: 0.3040948563 | L64: 0.2344717141 | N64: male | O64: =O56/(SQRT(O$54)*SQRT(Q56)) -> -0.008722668688 | P64: =P56/(SQRT(P$55)*SQRT(Q56)) -> 0.01139970259 | Q64: =Q56/(SQRT(Q$56)*SQRT(Q56)) -> 1 | U64: 18 | V64: 0.1141837519 | W64: 0.0761466412
B65: cons | C65: =C57/(SQRT(C$54)*SQRT(F57)) -> -0.8968825025 | D65: =D57/(SQRT(D$55)*SQRT(F57)) -> 0.8761075357 | E65: =E57/(SQRT(E$56)*SQRT(F57)) -> 0.01498121646 | F65: =F57/(SQRT(F$57)*SQRT(F57)) -> 1 | N65: cons | O65: =O57/(SQRT(O$54)*SQRT(R57)) -> -0.9467802472 | P65: =P57/(SQRT(P$55)*SQRT(R57)) -> 0.9016160326 | Q65: =Q57/(SQRT(Q$56)*SQRT(R57)) -> -0.03040607455 | R65: =R57/(SQRT(R$57)*SQRT(R57)) -> 1
B66: lngamma | C66: =C58/(SQRT(C$54)*SQRT(G58)) -> -0.3160635622 | D66: =D58/(SQRT(D$55)*SQRT(G58)) -> 0.2791314993 | E66: =E58/(SQRT(E$56)*SQRT(G58)) -> 0.04995491358 | F66: =F58/(SQRT(F$57)*SQRT(G58)) -> -0.05795525509 | G66: =G58/(SQRT(G$58)*SQRT(G58)) -> 1 | N66: lngamma | O66: =O58/(SQRT(O$54)*SQRT(S58)) -> -0.37004898 | P66: =P58/(SQRT(P$55)*SQRT(S58)) -> 0.3800598529 | Q66: =Q58/(SQRT(Q$56)*SQRT(S58)) -> -0.03872462172 | R66: =R58/(SQRT(R$57)*SQRT(S58)) -> 0.1315937952 | S66: =S58/(SQRT(S$58)*SQRT(S58)) -> 1
B68: Cholesky decomposition | N68: Cholesky decomposition
C69: age | D69: age^2 | E69: male | F69: cons | G69: lngamma | O69: age | P69: age^2 | Q69: male | R69: cons | S69: lngamma
B70: age | C70: =SQRT(C54) -> 0.1095814309 | N70: age | O70: 0.32192736
B71: age^2 | C71: =C55/a_3 -> -0.001407355231 | D71: =SQRT(D55-b_3^2) -> 0.0001826232571 | N71: age^2 | O71: -0.00359109 | P71: 0.00054069
B72: male | C72: =C56/a_3 -> -0.05023250704 | D72: =(D56-b_3*d_3)/c_3 -> 0.01327880407 | E72: =SQRT(E56-d_3^2-e_3^2) -> 0.3594559759 | N72: male | O72: -0.00585916 | P72: 0.01251937 | Q72: 0.6715728
B73: cons | C73: =C57/a_3 -> -1.573150292 | D73: =(D57-b_3*g_3)/c_3 -> -0.1815283145 | E73: =(E57-d_3*g_3-e_3*h_3)/f_3 -> -0.1865849748 | F73: =SQRT(F57-g_3^2-h_3^2-i_3^2) -> 0.7307664319 | N73: cons | O73: -6.3476892 | P73: -1.5559024 | Q73: -0.23027648 | R73: 1.4776053
B74: lngamma | C74: =C58/a_3 -> -0.0419523633 | D74: =(D58-k_3*b_3)/c_3 -> -0.03538365287 | E74: =(E58-d_3*k_3-e_3*l_3)/f_3 -> 0.002144073992 | F74: =(F58-g_3*k_3-h_3*l_3-i_3*m_3)/j_3 -> -0.1170189019 | G74: =SQRT(G58-k_3^2-l_3^2-m_3^2-n_3^2) -> 0.03013761535 | N74: lngamma | O74: -0.09095308 | P74: 0.02337034 | Q74: -0.0107492 | R74: -0.22103661 | S74: 0.05118308
B76: Random variables | N76: Random variables
C77: z | E77: Tz | G77: mu + Tz | O77: z | Q77: Tz | S77: mu + Tz
B78: age | C78: =NORMINV(RAND(),0,1) -> 0.1987727346 | E78: =a_3*C78 -> 0.02178180069 | G78: =C46+E78 -> -0.1218221993 | N78: age | O78: =C78 -> 0.1987727346 | Q78: =O70*O78 -> 0.0639903817 | S78: =O46+Q78 -> 0.1663180817
B79: age^2 | C79: =NORMINV(RAND(),0,1) -> -0.08426886602 | E79: =b_3*C78+c_3*C79 -> -0.0002951333026 | G79: =C47+E79 -> 0.001220366697 | N79: age^2 | O79: =C79 -> -0.08426886602 | Q79: =O71*O78+P71*O79 -> -0.0007593741128 | S79: =O47+Q79 -> -0.001519274113
B80: male | C80: =NORMINV(RAND(),0,1) -> -0.1190628266 | E80: =d_3*C78+e_3*C79+f_3*C80 -> -0.05390168708 | G80: =C48+E80 -> -0.1936208871 | N80: male | O80: =C80 -> -0.1190628266 | Q80: =O72*O78+P72*O79+Q72*O80 -> -0.08217899021 | S80: =O48+Q80 -> -0.3733855902
B81: cons | C81: =NORMINV(RAND(),0,1) -> 0.8851506383 | E81: =g_3*C78+h_3*C79+i_3*C80+j_3*C81 -> 0.3716515078 | G81: =C49+E81 -> -1.833482492 | N81: cons | O81: =C81 -> 0.8851506383 | Q81: =O73*O78+P73*O79+Q73*O80+R73*O81 -> 0.204687233 | S81: =O49+Q81 -> -9.650987767
B82: lngamma | C82: =NORMINV(RAND(),0,1) -> -0.7095000365 | E82: =k_3*C78+l_3*C79+m_3*C80+n_3*C81+o_3*C82 -> -0.1305745201 | G82: =C50+E82 -> 0.02792207988 | N82: lngamma | O82: =C82 -> -0.7095000365 | Q82: =O74*O78+P74*O79+Q74*O80+R74*O81+S74*O82 -> -0.2507336479 | S82: =O50+Q82 -> -0.06692204791
A85: 2nd remission (tunnel) | B85: (DFS) | N85: (TTR)
B86: explanatory variables | C86: coefficient | D86: se | E86: hazard ratio | J86: cycle | K86: Deterministic transition probabilities | L86: Probabilistic transition probabilities | N86: explanatory variables | O86: coefficient | P86: se | Q86: hazard ratio | U86: cycle | V86: Deterministic transition probabilities | W86: Probabilistic transition probabilities
B87: age | C87: 0.2232985 | D87: 0.162415 | E87: 1.250194 | J87: 0 | K87: =1-EXP(EXP($C$90+$C$87*Age_1+$C$88*Age_1*Age_1+$C$89*(IF(gender=1,1,IF(gender=2,0,0.5))))*(J87*30)^EXP($C$91)-EXP($C$90+$C$87*Age_1+$C$88*Age_1*Age_1+$C$89*(IF(gender=1,1,IF(gender=2,0,0.5))))*((J87+1)*30)^EXP($C$91)) -> 0.2227187151 | L87: =IF(1-EXP(EXP($G$122+$G$119*Age_1+$G$120*Age_1*Age_1+$G$121*(IF(gender=1,1,IF(gender=2,0,0.5))))*(J87*30)^EXP($G$123)-EXP($G$122+$G$119*Age_1+$G$120*Age_1*Age_1+$G$121*(IF(gender=1,1,IF(gender=2,0,0.5))))*((J87+1)*30)^EXP($G$123))>K87*2,K87*2,1-EXP(EXP($G$122+$G$119*Age_1+$G$120*Age_1*Age_1+$G$121*(IF(gender=1,1,IF(gender=2,0,0.5))))*(J87*30)^EXP($G$123)-EXP($G$122+$G$119*Age_1+$G$120*Age_1*Age_1+$G$121*(IF(gender=1,1,IF(gender=2,0,0.5))))*((J87+1)*30)^EXP($G$123))) -> 0.2552319784 | N87: age | O87: 0.8280127 | P87: 0.3504675 | Q87: 2.288766 | U87: 0 | V87: =1-EXP(EXP($O$90+$O$87*Age_1+$O$88*Age_1*Age_1+$O$89*(IF(gender=1,1,IF(gender=2,0,0.5))))*(U87*30)^EXP($O$91)-EXP($O$90+$O$87*Age_1+$O$88*Age_1*Age_1+$O$89*(IF(gender=1,1,IF(gender=2,0,0.5))))*((U87+1)*30)^EXP($O$91)) -> 0.123902067 | W87: =IF(1-EXP(EXP($S$122+$S$119*Age_1+$S$120*Age_1*Age_1+$S$121*(IF(gender=1,1,IF(gender=2,0,0.5))))*(U87*30)^EXP($S$123)-EXP($S$122+$S$119*Age_1+$S$120*Age_1*Age_1+$S$121*(IF(gender=1,1,IF(gender=2,0,0.5))))*((U87+1)*30)^EXP($S$123))>L87,L87,1-EXP(EXP($S$122+$S$119*Age_1+$S$120*Age_1*Age_1+$S$121*(IF(gender=1,1,IF(gender=2,0,0.5))))*(U87*30)^EXP($S$123)-EXP($S$122+$S$119*Age_1+$S$120*Age_1*Age_1+$S$121*(IF(gender=1,1,IF(gender=2,0,0.5))))*((U87+1)*30)^EXP($S$123))) -> 0.157457878
B88: age^2 | C88: -0.003393 | D88: 0.0021876 | E88: 0.9966128 | J88: 1 | K88: 0.1205164026 | L88: 0.1412660958 | N88: age^2 | O88: -0.0121476 | P88: 0.0050193 | Q88: 0.9879259 | U88: 1 | V88: 0.08565150044 | W88: 0.1165030881
B89: male | C89: -0.4501558 | D89: 0.620583 | E89: 0.6375288 | J89: 2 | K89: 0.09844720751 | L89: 0.1160461276 | N89: male | O89: -0.2162794 | P89: 0.9344074 | Q89: 0.8055102 | U89: 2 | V89: 0.07533866064 | W89: 0.1047177889
B90: cons | C90: -6.430922 | D90: 2.953152 | E90: 0.001611 | J90: 3 | K90: 0.08628768642 | L90: 0.1020623559 | N90: cons | O90: -17.36623 | P90: 6.289816 | Q90: 2.87e-08 | U90: 3 | V90: 0.06931190489 | W90: 0.09769579947
B91: lngamma | C91: -0.5204356 | D91: 0.2112624 | E91: -0.5204356 | J91: 4 | K91: 0.07820127173 | L91: 0.09272568742 | N91: lngamma | O91: -0.2932594 | P91: 0.313117 | Q91: -0.2932594 | U91: 4 | V91: 0.06513862212 | W91: 0.09272568742
J92: 5 | K92: 0.07228609436 | L92: 0.08587617022 | U92: 5 | V92: 0.0619890536 | W92: 0.08587617022
B93: Covariance matrix | J93: 6 | K93: 0.06769848832 | L93: 0.08055188618 | N93: Covariance matrix | U93: 6 | V93: 0.05948309812 | W93: 0.08055188618
C94: age | D94: age^2 | E94: male | F94: cons | G94: lngamma | J94: 7 | K94: 0.06399602996 | L94: 0.07624691762 | O94: age | P94: age^2 | Q94: male | R94: cons | S94: lngamma | U94: 7 | V94: 0.05741629166 | W94: 0.07624691762
B95: age | C95: 0.02637864 | J95: 8 | K95: 0.06092029785 | L95: 0.07266506397 | N95: age | O95: 0.12282748 | U95: 8 | V95: 0.05566663931 | W95: 0.07266506397
B96: age^2 | C96: -0.00035209 | D96: 4.786e-06 | J96: 9 | K96: 0.05830842857 | L96: 0.06961928964 | N96: age^2 | O96: -0.00174779 | P96: 2.519e-05 | U96: 9 | V96: 0.0541558331 | W96: 0.06961928964
B97: male | C97: -0.00075767 | D97: 0.00011068 | E97: 0.38512323 | J97: 10 | K97: 0.05605179119 | L97: 0.06698463396 | N97: male | O97: -0.05866817 | P97: 0.00104919 | Q97: 0.87311721 | U97: 10 | V97: 0.05283078919 | W97: 0.06698463396
B98: cons | C98: -0.45212647 | D98: 0.00588059 | E98: -0.30401852 | F98: 8.7211063 | J98: 11 | K98: 0.05407466343 | L98: 0.06467386614 | N98: cons | O98: -2.1361034 | P98: 0.02995798 | Q98: 0.28984013 | R98: 39.561791 | U98: 11 | V98: 0.05165396477 | W98: 0.06467386614
B99: lngamma | C99: 0.00805836 | D99: -0.0001181 | E99: -0.0140008 | F99: -0.26972936 | G99: 0.04463179 | J99: 12 | K99: 0.05232236662 | L99: 0.0626239169 | N99: lngamma | O99: 0.04995044 | P99: -0.00073506 | Q99: -0.05445729 | R99: -1.1521046 | S99: 0.09804223 | U99: 12 | V99: 0.05059789193 | W99: 0.0626239169
J100: 13 | K100: 0.05075425919 | L100: 0.06078785458 | U100: 13 | V100: 0.04964190737 | W100: 0.06078785458
B101: Correlation matrix | J101: 14 | K101: 0.04933939474 | L101: 0.05912990633 | N101: Correlation matrix | U101: 14 | V101: 0.04877010168 | W101: 0.05912990633
C102: age | D102: age^2 | E102: male | F102: cons | G102: lngamma | J102: 15 | K102: 0.04805372181 | L102: 0.05762224335 | O102: age | P102: age^2 | Q102: male | R102: cons | S102: lngamma | U102: 15 | V102: 0.04796998218 | W102: 0.05762224335
B103: age | C103: =C95/(SQRT(C95)*SQRT(C95)) -> 1 | J103: 16 | K103: 0.04687821588 | L103: 0.05624283433 | N103: age | O103: =O95/(SQRT(O95)*SQRT(O95)) -> 1 | U103: 16 | V103: 0.04723157188 | W103: 0.05624283433
B104: age^2 | C104: =C96/(SQRT(C95)*SQRT(D96)) -> -0.9909258158 | D104: =D96/(SQRT(D96)*SQRT(D96)) -> 1 | J104: 17 | K104: 0.04579759709 | L104: 0.05497397027 | N104: age^2 | O104: =O96/(SQRT(O95)*SQRT(P96)) -> -0.9936361779 | P104: =P96/(SQRT(P96)*SQRT(P96)) -> 1 | U104: 17 | V104: 0.04654678512 | W104: 0.05497397027
B105: male | C105: =C97/(SQRT(C95)*SQRT(E97)) -> -0.007517164144 | D105: =D97/(SQRT(D96)*SQRT(E97)) -> 0.08152352421 | E105: =E97/(SQRT(E97)*SQRT(E97)) -> 1 | J105: 18 | K105: 0.04479942762 | L105: 0.05380122534 | N105: male | O105: =O97/(SQRT(O95)*SQRT(Q97)) -> -0.1791506947 | P105: =P97/(SQRT(P96)*SQRT(Q97)) -> 0.2237194714 | Q105: =Q97/(SQRT(Q97)*SQRT(Q97)) -> 1 | U105: 18 | V105: 0.04590898407 | W105: 0.05380122534
B106: cons | C106: =C98/(SQRT(C95)*SQRT(F98)) -> -0.9426445117 | D106: =D98/(SQRT(D96)*SQRT(F98)) -> 0.9102250091 | E106: =E98/(SQRT(E97)*SQRT(F98)) -> -0.1658877791 | F106: =F98/(SQRT(F98)*SQRT(F98)) -> 1 | N106: cons | O106: =O98/(SQRT(O95)*SQRT(R98)) -> -0.969028451 | P106: =P98/(SQRT(P96)*SQRT(R98)) -> 0.9489874533 | Q106: =Q98/(SQRT(Q97)*SQRT(R98)) -> 0.04931559409 | R106: =R98/(SQRT(R98)*SQRT(R98)) -> 1
B107: lngamma | C107: =C99/(SQRT(C95)*SQRT(G99)) -> 0.2348541897 | D107: =D99/(SQRT(D96)*SQRT(G99)) -> -0.2555297076 | E107: =E99/(SQRT(E97)*SQRT(G99)) -> -0.1067900627 | F107: =F99/(SQRT(F98)*SQRT(G99)) -> -0.4323348843 | G107: =G99/(SQRT(G99)*SQRT(G99)) -> 1 | N107: lngamma | O107: =O99/(SQRT(O95)*SQRT(S99)) -> 0.4551818713 | P107: =P99/(SQRT(P96)*SQRT(S99)) -> -0.4677374203 | Q107: =Q99/(SQRT(Q97)*SQRT(S99)) -> -0.1861286214 | R107: =R99/(SQRT(R98)*SQRT(S99)) -> -0.5849885262 | S107: =S99/(SQRT(S99)*SQRT(S99)) -> 1
B109: Cholesky decomposition | N109: Cholesky decomposition
C110: age | D110: age^2 | E110: male | F110: cons | G110: lngamma | O110: age | P110: age^2 | Q110: male | R110: cons | S110: lngamma
B111: age | C111: =SQRT(C95) -> 0.1624150239 | N111: age | O111: =SQRT(O95) -> 0.3504675163
B112: age^2 | C112: =C96/a_4 -> -0.002167841321 | D112: =SQRT(D96-b_4^2) -> 0.0002940476288 | N112: age^2 | O112: =O96/a_5 -> -0.004987024242 | P112: =SQRT(P96-b_5^2) -> 0.0005653222164
B113: male | C113: =C97/a_4 -> -0.004665024095 | D113: =(D97-b_4*d_4)/c_4 -> 0.3420091106 | E113: =SQRT(E97-d_4^2-e_4^2) -> 0.5178139007 | N113: male | O113: =O97/a_5 -> -0.1673997368 | P113: =(P97-b_5*d_5)/c_5 -> 0.379188095 | Q113: =SQRT(Q97-d_5^2-e_5^2) -> 0.8374430886
B114: cons | C114: =C98/a_4 -> -2.783772456 | D114: =(D98-b_4*g_4)/c_4 -> -0.5243604833 | E114: =(E98-d_4*g_4-e_4*h_4)/f_4 -> -0.2658654448 | F114: =SQRT(F98-g_4^2-h_4^2-i_4^2) -> 0.7912514547 | N114: cons | O114: =O98/a_5 -> -6.095011094 | P114: =(P98-b_5*g_5)/c_5 -> -0.774758302 | Q114: =(Q98-d_5*g_5-e_5*h_5)/f_5 -> -0.5214491639 | R114: =SQRT(R98-g_5^2-h_5^2-i_5^2) -> 1.241157166
B115: lngamma | C115: =C99/a_4 -> 0.04961585329 | D115: =(D99-k_4*b_4)/c_4 -> -0.03584692423 | E115: =(E99-d_4*k_4-e_4*l_4)/f_4 -> -0.00291488153 | F115: =(F99-g_4*k_4-h_4*l_4-i_4*m_4)/j_4 -> -0.1910666832 | G115: =SQRT(G99-k_4^2-l_4^2-m_4^2-n_4^2) -> 0.06610658936 | N115: lngamma | O115: =O99/a_5 -> 0.1425251633 | P115: =(P99-k_5*b_5)/c_5 -> -0.04295524701 | Q115: =(Q99-d_5*k_5-e_5*l_5)/f_5 -> -0.01708832168 | R115: =(R99-g_5*k_5-h_5*l_5-i_5*m_5)/j_5 -> -0.2623380686 | S115: =SQRT(S99-k_5^2-l_5^2-m_5^2-n_5^2) -> 0.08228232846
B117: Random variables | N117: Random variables
C118: z | E118: Tz | G118: mu + Tz | O118: z | Q118: Tz | S118: mu + Tz
B119: age | C119: =NORMINV(RAND(),0,1) -> 0.389320951 | E119: =a_4*C119 -> 0.06323157157 | G119: =C87+E119 -> 0.2865300716 | N119: age | O119: =C119 -> 0.389320951 | Q119: =a_5*O119 -> 0.1364443467 | S119: =O87+Q119 -> 0.9644570467
B120: age^2 | C120: =NORMINV(RAND(),0,1) -> 1.094590768 | E120: =b_4*C119+c_4*C120 -> -0.0005221242248 | G120: =C88+E120 -> -0.003915124225 | N120: age^2 | O120: =C120 -> 1.094590768 | Q120: =b_5*O119+c_5*O120 -> -0.001322756542 | S120: =O88+Q120 -> -0.01347035654
B121: male | C121: =NORMINV(RAND(),0,1) -> 0.1088687225 | E121: =d_4*C119+e_4*C120+f_4*C121 -> 0.4289175612 | G121: =C89+E121 -> -0.02123823879 | N121: male | O121: =C121 -> 0.1088687225 | Q121: =d_5*O119+e_5*O120+f_5*O121 -> 0.4410549225 | S121: =O89+Q121 -> 0.2247755225
B122: cons | C122: =NORMINV(RAND(),0,1) -> -0.2092183207 | E122: =g_4*C119+h_4*C120+i_4*C121+j_4*C122 -> -1.852229816 | G122: =C90+E122 -> -8.283151816 | N122: cons | O122: =C122 -> -0.2092183207 | Q122: =g_5*O119+h_5*O120+i_5*O121+j_5*O122 -> -3.537401122 | S122: =O90+Q122 -> -20.90363112
B123: lngamma | C123: =NORMINV(RAND(),0,1) -> -0.126864072 | E123: =k_4*C119+l_4*C120+m_4*C121+n_4*C122+o_4*C123 -> 0.01134953895 | G123: =C91+E123 -> -0.5090860611 | N123: lngamma | O123: =C123 -> -0.126864072 | Q123: =k_5*O119+l_5*O120+m_5*O121+n_5*O122+o_5*O123 -> 0.05105649051 | S123: =O91+Q123 -> -0.2422029095

Sheet Matrix for Model A (hidden)
A2: Probability of death | G2: Transition probabilities | S2: Markov Trace | BS2: Cost | CD2: Life Month
C4: probability of death | G4: Transition probabilities | U4: 1st remission | AM4: Summary of 1st remission | AN4: 1st relapse | AO4: 2nd remission | BG4: summary | BH4: summary of 2nd remission | BI4: 2nd relapse | BJ4: 3rd remission | BK4: summary of 3rd remission | BL4: SCT (CR1) | BM4: SCT (CR2) | BN4: SCT(CR3) | BO4: death
A5: Cycle | B5: Age | C5: Age | D5: 1st Relapse | E5: 2nd relapse | G5: 1st remission (DFS) | H5: 1st remission (TTR) | I5: 1st relapse | J5: 2nd remission (DFS) | K5: 2nd remission (TTR) | L5: 2nd relapse | M5: 3rd remission | N5: SCT(CR1) | P5: SCT(CR2) | S5: Cycle | T5: Mon 0 | U5: Mon 1 | V5: Mon 2 | W5: Mon 3 | X5: Mon 4 | Y5: Mon 5 | Z5: Mon 6 | AA5: Mon 7 | AB5: Mon 8 | AC5: Mon 9 | AD5: Mon 10 | AE5: Mon 11 | AF5: Mon 12 | AG5: Mon 13 | AH5: Mon 14 | AI5: Mon 15 | AJ5: Mon 16 | AK5: Mon 17 | AL5: Mon 18+ | AO5: Mon 1 | AP5: Mon 2 | AQ5: Mon 3 | AR5: Mon 4 | AS5: Mon 5 | AT5: Mon 6 | AU5: Mon 7 | AV5: Mon 8 | AW5: Mon 9 | AX5: Mon 10 | AY5: Mon 11 | AZ5: Mon 12 | BA5: Mon 13 | BB5: Mon 14 | BC5: Mon 15 | BD5: Mon 16 | BE5: Mon 17 | BF5: Mon 18+ | BP5: check | BS5: cycle | BT5: 1st remission | BU5: 1st relapse | BV5: 2nd remission | BW5: 2nd relapse | BX5: 3rd remission | BY5: SCT(CR1) | BZ5: SCT(CR2) | CA5: SCT(CR3) | CB5: Cost | CD5: 1st remission | CE5: 1st relapse | CF5: 2nd remission | CG5: 2nd relapse | CH5: 3rd remission | CI5: SCT(CR1) | CJ5: SCT(CR2) | CK5: SCT(CR3) | CL5: Life Months
A6: 0 | B6: =Age_1+ROUNDDOWN(A6/13,0) -> 44 | C6: =1-EXP(-VLOOKUP(B6,'lifetable pDead'!$A$3:$D$85,gender+1,FALSE)) -> 0.001742431604 | D6: ='Parameters for Model A v2'!$B$10 -> 0.2903225806 | E6: ='Parameters for Model A v2'!$B$11 -> 0.4285714286 | G6: =IF(Probabilistic=1,'Survival for Model A'!L5,'Survival for Model A'!K5) -> 0.04618188133 | H6: =IF(Probabilistic=1,'Survival for Model A'!W5,'Survival for Model A'!V5) -> 0.01684270719 | I6: =IF('Parameters for Model A v2'!$B$12<D6,D6+0.09,'Parameters for Model A v2'!$B$12) -> 0.7096774194 | J6: =IF(Probabilistic=1,'Survival for Model A'!L87,'Survival for Model A'!K87) -> 0.2227187151 | K6: =IF(Probabilistic=1,'Survival for Model A'!W87,'Survival for Model A'!V87) -> 0.123902067 | L6: =IF('Parameters for Model A v2'!$B$13<E6,E6+0.02,'Parameters for Model A v2'!$B$13) -> 0.5714285714 | M6: ='Parameters for Model A v2'!$B$15 -> 0.2 | N6: 0 | O6: 1 | P6: 0 | S6: 0 | T6: 1 | U6: 0 | V6: 0 | W6: 0 | X6: 0 | Y6: 0 | Z6: 0 | AA6: 0 | AB6: 0 | AC6: 0 | AD6: 0 | AE6: 0 | AF6: 0 | AG6: 0 | AH6: 0 | AI6: 0 | AJ6: 0 | AK6: 0 | AL6: 0 | AM6: 1 | AN6: 0 | AO6: 0 | AP6: 0 | AQ6: 0 | AR6: 0 | AS6: 0 | AT6: 0 | AU6: 0 | AV6: 0 | AW6: 0 | AX6: 0 | AY6: 0 | AZ6: 0 | BA6: 0 | BB6: 0 | BC6: 0 | BD6: 0 | BE6: 0 | BF6: 0 | BG6: 0 | BH6: 0 | BI6: 0 | BJ6: 0 | BK6: =BJ6*0.3 -> 0 | BL6: 0 | BM6: =0 -> 0 | BN6: =BJ6*0.7 -> 0 | BO6: 0 | BP6: =AM6+AN6+BH6+BI6+BK6+BL6+BM6+BN6+BO6 -> 1 | BS6: 0 | BT6: - | BU6: - | BV6: - | BW6: - | BX6: - | BY6: - | BZ6: - | CA6: - | CD6: - | CE6: - | CF6: - | CG6: - | CH6: - | CI6: - | CJ6: - | CK6: - | CL6: -
A7: 1 | B7: 44 | C7: =1-EXP(-VLOOKUP(B7,'lifetable pDead'!$A$3:$D$85,gender+1,FALSE)) -> 0.001742431604 | D7: ='Parameters for Model A v2'!$B$10 -> 0.2903225806 | E7: ='Parameters for Model A v2'!$B$11 -> 0.4285714286 | G7: =IF(Probabilistic=1,'Survival for Model A'!L6,'Survival for Model A'!K6) -> 0.03325694766 | H7: =IF(Probabilistic=1,'Survival for Model A'!W6,'Survival for Model A'!V6) -> 0.01511886865 | I7: =I6 -> 0.7096774194 | J7: =IF(Probabilistic=1,'Survival for Model A'!L88,'Survival for Model A'!K88) -> 0.1205164026 | K7: =IF(Probabilistic=1,'Survival for Model A'!W88,'Survival for Model A'!V88) -> 0.08565150044 | L7: =L6 -> 0.5714285714 | M7: ='Parameters for Model A v2'!$B$15 -> 0.2 | N7: =IF('Parameters for Model A v2'!$B$66>0.0022,O6*0.0022,O6*'Parameters for Model A v2'!$B$66) -> 0.001587241994 | O7: =O6-N7 -> 0.998412758 | P7: 0 | S7: 1 | T7: 0 | U7: =T6*(1-G6) -> 0.9538181187 | V7: 0 | W7: 0 | X7: 0 | Y7: 0 | Z7: 0 | AA7: 0 | AB7: 0 | AC7: 0 | AD7: 0 | AE7: 0 | AF7: 0 | AG7: 0 | AH7: 0 | AI7: 0 | AJ7: 0 | AK7: 0 | AL7: 0 | AM7: =U7-N7 -> 0.9522308767 | AN7: =T6*H6 -> 0.01684270719 | AO7: 0 | AP7: 0 | AQ7: 0 | AR7: 0 | AS7: 0 | AT7: 0 | AU7: 0 | AV7: 0 | AW7: 0 | AX7: 0 | AY7: 0 | AZ7: 0 | BA7: 0 | BB7: 0 | BC7: 0 | BD7: 0 | BE7: 0 | BF7: 0 | BG7: 0 | BH7: 0 | BI7: 0 | BJ7: 0 | BK7: =BJ7*0.3 -> 0 | BL7: =N7 -> 0.001587241994 | BM7: 0 | BN7: =BJ7*0.7 -> 0 | BO7: =BO6+T6*(G6-H6) -> 0.02933917413 | BP7: =AM7+AN7+BH7+BI7+BK7+BL7+BM7+BN7+BO7 -> 1 | BS7: 1 | BT7: =AM6*'Parameters for Model A v2'!B17 -> 10019 | BU7: =T6*H6*'Parameters for Model A v2'!$B$37 -> 124.2991791 | BV7: 0 | BW7: 0 | BX7: 0 | BY7: ='SCT in Model A'!IJ7 -> 0 | BZ7: ='SCT in Model A'!IJ73 -> 0 | CA7: ='SCT in Model A'!IJ140 -> 0 | CB7: =SUM(BT7:CA7) -> 10143.29918 | CD7: =1*AM7 -> 0.9522308767 | CE7: =1*AN7 -> 0.01684270719 | CF7: =1*BH7 -> 0 | CG7: =1*BI7 -> 0 | CH7: =1*BK7 -> 0 | CI7: ='SCT in Model A'!NB7 -> 0 | CJ7: ='SCT in Model A'!NB73 -> 0 | CK7: ='SCT in Model A'!NB140 -> 0 | CL7: =SUM(CD7:CK7) -> 0.9690735839
A8: 2 | B8: 44 | C8: =1-EXP(-VLOOKUP(B8,'lifetable pDead'!$A$3:$D$85,gender+1,FALSE)) -> 0.001742431604 | D8: ='Parameters for Model A v2'!$B$10 -> 0.2903225806 | E8: ='Parameters for Model A v2'!$B$11 -> 0.4285714286 | G8: =IF(Probabilistic=1,'Survival for Model A'!L7,'Survival for Model A'!K7) -> 0.02965348751 | H8: =IF(Probabilistic=1,'Survival for Model A'!W7,'Survival for Model A'!V7) -> 0.01452978615 | I8: =I7 -> 0.7096774194 | J8: =IF(Probabilistic=1,'Survival for Model A'!L89,'Survival for Model A'!K89) -> 0.09844720751 | K8: =IF(Probabilistic=1,'Survival for Model A'!W89,'Survival for Model A'!V89) -> 0.07533866064 | L8: =L7 -> 0.5714285714 | M8: ='Parameters for Model A v2'!$B$15 -> 0.2 | N8: =IF('Parameters for Model A v2'!$B$66>0.0022,O7*0.0022,O7*'Parameters for Model A v2'!$B$66) -> 0.001584722656 | O8: =O7-N8 -> 0.9968280353 | P8: =IF(Q8*'Parameters for Model A v2'!$B$67>BG9,BG9*0.05,Q8*'Parameters for Model A v2'!$B$67) -> 0.005293501963 | Q8: 1 | S8: 2 | T8: 0 | U8: 0 | V8: =U7*(1-G7) -> 0.9220970394 | W8: 0 | X8: 0 | Y8: 0 | Z8: 0 | AA8: 0 | AB8: 0 | AC8: 0 | AD8: 0 | AE8: 0 | AF8: 0 | AG8: 0 | AH8: 0 | AI8: 0 | AJ8: 0 | AK8: 0 | AL8: 0 | AM8: =V8-N8 -> 0.9205123168 | AN8: =U7*H7+AN7*(1-I6) -> 0.01931046907 | AO8: =AN7*($I$6-$D$6) -> 0.007063070759 | AP8: 0 | AQ8: 0 | AR8: 0 | AS8: 0 | AT8: 0 | AU8: 0 | AV8: 0 | AW8: 0 | AX8: 0 | AY8: 0 | AZ8: 0 | BA8: 0 | BB8: 0 | BC8: 0 | BD8: 0 | BE8: 0 | BF8: 0 | BG8: 0 | BH8: =SUM(AO8:BF8) -> 0.007063070759 | BI8: 0 | BJ8: 0 | BK8: 0 | BL8: 0.001584722656 | BM8: 0 | BN8: 0 | BO8: =BO7+U7*(G7-H7)+AN7*D6 -> 0.05152942075 | BP8: 1 | BS8: 2 | BT8: =AM7*'Parameters for Model A v2'!B18 -> 8770.998605 | BU8: =U7*H7*'Parameters for Model A v2'!$B$37+AN7*(1-I6)*'Parameters for Model A v2'!$B$38 -> 114.1943244 | BV8: =AO8*'Parameters for Model A v2'!$B$40 -> 44.27839059 | BW8: 0 | BX8: 0 | BY8: ='SCT in Model A'!IJ8 -> 87.25545412 | BZ8: ='SCT in Model A'!IJ74 -> 0 | CA8: ='SCT in Model A'!IJ141 -> 0 | CB8: =SUM(BT8:CA8) -> 9016.726774 | CD8: =1*AM8 -> 0.9205123168 | CE8: =1*AN8 -> 0.01931046907 | CF8: =1*AO8+1*AP8+1*AQ8+1*AR8+1*AS8+1*AT8+1*AU8+1*AV8+1*AW8+1*AX8+1*AY8+1*AZ8+1*BA8+1*BB8+1*BC8+1*BD8+1*BE8+1*BF8 -> 0.007063070759 | CG8: =1*BI8 -> 0 | CH8: =1*BK8 -> 0 | CI8: ='SCT in Model A'!NB8 -> 0.001587241994 | CJ8: ='SCT in Model A'!NB74 -> 0 | CK8: ='SCT in Model A'!NB141 -> 0 | CL8: =SUM(CD8:CK8) -> 0.9484730986
A9: 3 | B9: 44 | C9: =1-EXP(-VLOOKUP(B9,'lifetable pDead'!$A$3:$D$85,gender+1,FALSE)) -> 0.001742431604 | D9: ='Parameters for Model A v2'!$B$10 -> 0.2903225806 | E9: ='Parameters for Model A v2'!$B$11 -> 0.4285714286 | G9: =IF(Probabilistic=1,'Survival for Model A'!L8,'Survival for Model A'!K8) -> 0.02752882268 | H9: =IF(Probabilistic=1,'Survival for Model A'!W8,'Survival for Model A'!V8) -> 0.01415990009 | I9: 0.7096774194 | J9: =IF(Probabilistic=1,'Survival for Model A'!L90,'Survival for Model A'!K90) -> 0.08628768642 | K9: =IF(Probabilistic=1,'Survival for Model A'!W90,'Survival for Model A'!V90) -> 0.06931190489 | L9: 0.5714285714 | M9: ='Parameters for Model A v2'!$B$15 -> 0.2 | N9: =IF('Parameters for Model A v2'!$B$66>0.0022,O8*0.0022,O8*'Parameters for Model A v2'!$B$66) -> 0.001582207318 | O9: =O8-N9 -> 0.995245828 | P9: =IF(Q9*'Parameters for Model A v2'!$B$67>BG10,BG10*0.05,Q9*'Parameters for Model A v2'!$B$67) -> 0.0052654808 | Q9: =Q8-P8 -> 0.994706498 | S9: 3 | T9: 0 | U9: 0 | V9: 0 | W9: =V8*(1-G8) -> 0.8947536464 | X9: 0 | Y9: 0 | Z9: 0 | AA9: 0 | AB9: 0 | AC9: 0 | AD9: 0 | AE9: 0 | AF9: 0 | AG9: 0 | AH9: 0 | AI9: 0 | AJ9: 0 | AK9: 0 | AL9: 0 | AM9: =W9-N9 -> 0.8931714391 | AN9: =V8*H8+AN8*(1-I7) -> 0.019004138 | AO9: 0.008097938642 | AP9: =AO8*(1-$J$7) -> 0.00621185488 | AQ9: 0 | AR9: 0 | AS9: 0 | AT9: 0 | AU9: 0 | AV9: 0 | AW9: 0 | AX9: 0 | AY9: 0 | AZ9: 0 | BA9: 0 | BB9: 0 | BC9: 0 | BD9: 0 | BE9: 0 | BF9: 0 | BG9: =SUM(AO9:BF9) -> 0.01430979352 | BH9: =BG9-BM9 -> 0.01430979352 | BI9: =AO8*$K$7+AP8*$K$8+AQ8*$K$9+AR8*$K$10+AS8*$K$11+AT8*$K$12+AU8*$K$13+AV8*$K$14+AW8*$K$15+AX8*$K$16+AY8*$K$17+AZ8*$K$18+BA8*$K$19+BB8*$K$20+BC8*$K$21+BD8*$K$22+BE8*$K$23+BF8*$K$24 -> 0.0006049626082 | BJ9: 0 | BK9: 0 | BL9: 0.001582207318 | BM9: =P7 -> 0 | BN9: 0 | BO9: =BO8+V8*(G8-H8)+AN8*D7+AO8*($J$7-$K$7) -> 0.07132745948 | BP9: 1 | BS9: 3 | BT9: =AM8*'Parameters for Model A v2'!B19 -> 7159.7448 | BU9: =V8*H8*'Parameters for Model A v2'!$B$37+AN8*(1-I7)*'Parameters for Model A v2'!$B$38 -> 107.7846566 | BV9: =AO9*'Parameters for Model A v2'!$B$40+AP9*'Parameters for Model A v2'!$B$41+AQ9*'Parameters for Model A v2'!$B$42+AR9*'Parameters for Model A v2'!$B$43+AS9*'Parameters for Model A v2'!$B$44+AT9*'Parameters for Model A v2'!$B$45+AU9*'Parameters for Model A v2'!$B$46+AV9*'Parameters for Model A v2'!$B$47+AW9*'Parameters for Model A v2'!$B$48+AX9*'Parameters for Model A v2'!$B$49+AY9*'Parameters for Model A v2'!$B$50+AZ9*'Parameters for Model A v2'!$B$51+BA9*'Parameters for Model A v2'!$B$52+BB9*'Parameters for Model A v2'!$B$53+BC9*'Parameters for Model A v2'!$B$54+BD9*'Parameters for Model A v2'!$B$55+BE9*'Parameters for Model A v2'!$B$56+BF9*'Parameters for Model A v2'!$B$57 -> 80.69469416 | BW9: =BI9*'Parameters for Model A v2'!$B$60 -> 7.076852591 | BX9: 0 | BY9: ='SCT in Model A'!IJ9 -> 93.08568764 | BZ9: ='SCT in Model A'!IJ75 -> 0 | CA9: ='SCT in Model A'!IJ142 -> 0 | CB9: 7448.386691 | CD9: 0.8931714391 | CE9: 0.019004138 | CF9: 0.01430979352 | CG9: 0.0006049626082 | CH9: 0 | CI9: ='SCT in Model A'!NB9 -> 0.00309387845 | CJ9: ='SCT in Model A'!NB75 -> 0 | CK9: ='SCT in Model A'!NB142 -> 0 | CL9: 0.9301842116
A10: 4 | B10: 44 | C10: =1-EXP(-VLOOKUP(B10,'lifetable pDead'!$A$3:$D$85,gender+1,FALSE)) -> 0.001742431604 | D10: ='Parameters for Model A v2'!$B$10 -> 0.2903225806 | E10: ='Parameters for Model A v2'!$B$11 -> 0.4285714286 | G10: =IF(Probabilistic=1,'Survival for Model A'!L9,'Survival for Model A'!K9) -> 0.02604833715 | H10: =IF(Probabilistic=1,'Survival for Model A'!W9,'Survival for Model A'!V9) -> 0.01389102102 | I10: 0.7096774194 | J10: =IF(Probabilistic=1,'Survival for Model A'!L91,'Survival for Model A'!K91) -> 0.07820127173 | K10: =IF(Probabilistic=1,'Survival for Model A'!W91,'Survival for Model A'!V91) -> 0.06513862212 | L10: 0.5714285714 | M10: ='Parameters for Model A v2'!$B$15 -> 0.2 | N10: =IF('Parameters for Model A v2'!$B$66>0.0022,O9*0.0022,O9*'Parameters for Model A v2'!$B$66) -> 0.001579695972 | O10: 0.9936661321 | P10: =IF(Q10*'Parameters for Model A v2'!$B$67>BG11,BG11*0.05,Q10*'Parameters for Model A v2'!$B$67) -> 0.005237607967 | Q10: =Q9-P9 -> 0.9894410172 | S10: 4 | T10: 0 | U10: 0 | V10: 0 | W10: 0 | X10: =W9*(1-G9) -> 0.8701221319 | Y10: 0 | Z10: 0 | AA10: 0 | AB10: 0 | AC10: 0 | AD10: 0 | AE10: 0 | AF10: 0 | AG10: 0 | AH10: 0 | AI10: 0 | AJ10: 0 | AK10: 0 | AL10: 0 | AM10: =X10-N10 -> 0.8685424359 | AN10: =W9*H9+AN9*(1-I8) -> 0.01818695262 | AO10: 0.007969477228 | AP10: =AO9*(1-$J$7) -> 0.007122004208 | AQ10: =AP9*(1-$J$8) -> 0.005600315113 | AR10: 0 | AS10: 0 | AT10: 0 | AU10: 0 | AV10: 0 | AW10: 0 | AX10: 0 | AY10: 0 | AZ10: 0 | BA10: 0 | BB10: 0 | BC10: 0 | BD10: 0 | BE10: 0 | BF10: 0 | BG10: =SUM(AO10:BF10) -> 0.02069179655 | BH10: =BG10-BM10 -> 0.01539829459 | BI10: =AO9*$K$7+AP9*$K$8+AQ9*$K$9+AR9*$K$10+AS9*$K$11+AT9*$K$12+AU9*$K$13+AV9*$K$14+AW9*$K$15+AX9*$K$16+AY9*$K$17+AZ9*$K$18+BA9*$K$19+BB9*$K$20+BC9*$K$21+BD9*$K$22+BE9*$K$23+BF9*$K$24+BI9*(1-L6) -> 0.001420863111 | BJ10: =BI9*(L6-E6) -> 8.642322975e-05 | BK10: 2.592696892e-05 | BL10: 0.001579695972 | BM10: =P8 -> 0.005293501963 | BN10: 6.049626082e-05 | BO10: =BO9+W9*(G9-H9)+AN9*D8+AO9*($J$7-$K$7)+AP9*($J$8-$K$8)+BI9*E6 -> 0.08949183258 | BP10: 1 | BS10: 4 | BT10: =AM9*'Parameters for Model A v2'!B20 -> 5502.829236 | BU10: =W9*H9*'Parameters for Model A v2'!$B$37+AN9*(1-I8)*'Parameters for Model A v2'!$B$38 -> 102.2688501 | BV10: =AO10*'Parameters for Model A v2'!$B$40+AP10*'Parameters for Model A v2'!$B$41+AQ10*'Parameters for Model A v2'!$B$42+AR10*'Parameters for Model A v2'!$B$43+AS10*'Parameters for Model A v2'!$B$44+AT10*'Parameters for Model A v2'!$B$45+AU10*'Parameters for Model A v2'!$B$46+AV10*'Parameters for Model A v2'!$B$47+AW10*'Parameters for Model A v2'!$B$48+AX10*'Parameters for Model A v2'!$B$49+AY10*'Parameters for Model A v2'!$B$50+AZ10*'Parameters for Model A v2'!$B$51+BA10*'Parameters for Model A v2'!$B$52+BB10*'Parameters for Model A v2'!$B$53+BC10*'Parameters for Model A v2'!$B$54+BD10*'Parameters for Model A v2'!$B$55+BE10*'Parameters for Model A v2'!$B$56+BF10*'Parameters for Model A v2'!$B$57 -> 94.3102337 | BW10: ='Parameters for Model A v2'!$B$60*(BI10-BI9*(1-L6))+BI9*(1-L6)*'Parameters for Model A v2'!$B$61 -> 15.10504753 | BX10: =BI9*(L6-E6)*'Parameters for Model A v2'!$B$63 -> 0.5417872273 | BY10: ='SCT in Model A'!IJ10 -> 97.35240209 | BZ10: ='SCT in Model A'!IJ76 -> 0 | CA10: ='SCT in Model A'!IJ143 -> 0 | CB10: 5812.407557 | CD10: 0.8685424359 | CE10: 0.01818695262 | CF10: 0.02069179655 | CG10: 0.001420863111 | CH10: 2.592696892e-05 | CI10: ='SCT in Model A'!NB10 -> 0.004542424266 | CJ10: ='SCT in Model A'!NB76 -> 0 | CK10: ='SCT in Model A'!NB143 -> 0 | CL10: 0.9134103995
A11: 5 | B11: 44 | C11: =1-EXP(-VLOOKUP(B11,'lifetable pDead'!$A$3:$D$85,gender+1,FALSE)) -> 0.001742431604 | D11: ='Parameters for Model A v2'!$B$10 -> 0.2903225806 | E11: ='Parameters for Model A v2'!$B$11 -> 0.4285714286 | G11: =IF(Probabilistic=1,'Survival for Model A'!L10,'Survival for Model A'!K10) -> 0.0249254971 | H11: =IF(Probabilistic=1,'Survival for Model A'!W10,'Survival for Model A'!V10) -> 0.01368041664 | I11: 0.7096774194 | J11: =IF(Probabilistic=1,'Survival for Model A'!L92,'Survival for Model A'!K92) -> 0.07228609436 | K11: =IF(Probabilistic=1,'Survival for Model A'!W92,'Survival for Model A'!V92) -> 0.0619890536 | L11: 0.5714285714 | M11: ='Parameters for Model A v2'!$B$15 -> 0.2 | N11: =IF('Parameters for Model A v2'!$B$66>0.0022,O10*0.0022,O10*'Parameters for Model A v2'!$B$66) -> 0.001577188612 | O11: 0.9920889434 | P11: =IF(Q11*'Parameters for Model A v2'!$B$67>BG12,BG12*0.05,Q11*'Parameters for Model A v2'!$B$67) -> 0.005209882679 | Q11: 0.9842034093 | S11: 5 | T11: 0 | U11: 0 | V11: 0 | W11: 0 | X11: 0 | Y11: =X10*(1-G10) -> 0.8474568973 | Z11: 0 | AA11: 0 | AB11: 0 | AC11: 0 | AD11: 0 | AE11: 0 | AF11: 0 | AG11: 0 | AH11: 0 | AI11: 0 | AJ11: 0 | AK11: 0 | AL11: 0 | AM11: =Y11-N11 -> 0.8458797086 | AN11: =X10*H10+AN10*(1-I9) -> 0.01736696784 | AO11: 0.007626786583 | AP11: 0.007009024501 | AQ11: =AP10*(1-$J$8) -> 0.006420862782 | AR11: =AQ10*(1-$J$9) -> 0.005117076879 | AS11: 0 | AT11: 0 | AU11: 0 | AV11: 0 | AW11: 0 | AX11: 0 | AY11: 0 | AZ11: 0 | BA11: 0 | BB11: 0 | BC11: 0 | BD11: 0 | BE11: 0 | BF11: 0 | BG11: 0.02617375075 | BH11: 0.02090826995 | BI11: 0.002216269782 | BJ11: =BJ10*(1-M6)+BI10*(L7-E7) -> 0.0002721190282 | BK11: 8.163570847e-05 | BL11: 0.001577188612 | BM11: 0.0052654808 | BN11: 0.0001904833198 | BO11: =BO10+X10*(G10-H10)+AN10*D9+AO10*($J$7-$K$7)+AP10*($J$8-$K$8)+AQ10*($J$9-$K$9)+BI10*E7+BJ10*M6 -> 0.1065139953 | BP11: 1 | BS11: 5 | BT11: =AM10*'Parameters for Model A v2'!B21 -> 2713.32657 | BU11: =X10*H10*'Parameters for Model A v2'!$B$37+AN10*(1-I9)*'Parameters for Model A v2'!$B$38 -> 97.59126189 | BV11: =AO11*'Parameters for Model A v2'!$B$40+AP11*'Parameters for Model A v2'!$B$41+AQ11*'Parameters for Model A v2'!$B$42+AR11*'Parameters for Model A v2'!$B$43+AS11*'Parameters for Model A v2'!$B$44+AT11*'Parameters for Model A v2'!$B$45+AU11*'Parameters for Model A v2'!$B$46+AV11*'Parameters for Model A v2'!$B$47+AW11*'Parameters for Model A v2'!$B$48+AX11*'Parameters for Model A v2'!$B$49+AY11*'Parameters for Model A v2'!$B$50+AZ11*'Parameters for Model A v2'!$B$51+BA11*'Parameters for Model A v2'!$B$52+BB11*'Parameters for Model A v2'!$B$53+BC11*'Parameters for Model A v2'!$B$54+BD11*'Parameters for Model A v2'!$B$55+BE11*'Parameters for Model A v2'!$B$56+BF11*'Parameters for Model A v2'!$B$57 -> 110.1841451 | BW11: ='Parameters for Model A v2'!$B$60*(BI11-BI10*(1-L7))+BI10*(1-L7)*'Parameters for Model A v2'!$B$61 -> 22.36483499 | BX11: =BJ10*(1-M6)*'Parameters for Model A v2'!$B$63+BI10*(L7-E7)*'Parameters for Model A v2'!$B$64 -> 0.4622530049 | BY11: ='SCT in Model A'!IJ11 -> 99.50910166 | BZ11: ='SCT in Model A'!IJ77 -> 290.9996834 | CA11: ='SCT in Model A'!IJ144 -> 3.325660946 | CB11: 3337.763511 | CD11: 0.8458797086 | CE11: 0.01736696784 | CF11: 0.02617375075 | CG11: 0.002216269782 | CH11: 8.163570847e-05 | CI11: ='SCT in Model A'!NB11 -> 0.005929268547 | CJ11: ='SCT in Model A'!NB77 -> 0.005293501963 | CK11: ='SCT in Model A'!NB144 -> 6.049626082e-05 | CL11: 0.9030015995
A12: 6 | B12: 44 | C12: =1-EXP(-VLOOKUP(B12,'lifetable pDead'!$A$3:$D$85,gender+1,FALSE)) -> 0.001742431604 | D12: ='Parameters for Model A v2'!$B$10 -> 0.2903225806 | E12: ='Parameters for Model A v2'!$B$11 -> 0.4285714286 | G12: =IF(Probabilistic=1,'Survival for Model A'!L11,'Survival for Model A'!K11) -> 0.024028444 | H12: =IF(Probabilistic=1,'Survival for Model A'!W11,'Survival for Model A'!V11) -> 0.01350770899 | I12: 0.7096774194 | J12: =IF(Probabilistic=1,'Survival for Model A'!L93,'Survival for Model A'!K93) -> 0.06769848832 | K12: =IF(Probabilistic=1,'Survival for Model A'!W93,'Survival for Model A'!V93) -> 0.05948309812 | L12: 0.5714285714 | M12: ='Parameters for Model A v2'!$B$15 -> 0.2 | N12: =IF('Parameters for Model A v2'!$B$66>0.0022,O11*0.0022,O11*'Parameters for Model A v2'!$B$66) -> 0.001574685232 | O12: 0.9905142582 | P12: =IF(Q12*'Parameters for Model A v2'!$B$67>BG13,BG13*0.05,Q12*'Parameters for Model A v2'!$B$67) -> 0.005182304155 | Q12: 0.9789935266 | S12: 6 | T12: 0 | U12: 0 | V12: 0 | W12: 0 | X12: 0 | Y12: 0 | Z12: =Y11*(1-G11) -> 0.8263336128 | AA12: 0 | AB12: 0 | AC12: 0 | AD12: 0 | AE12: 0 | AF12: 0 | AG12: 0 | AH12: 0 | AI12: 0 | AJ12: 0 | AK12: 0 | AL12: 0 | AM12: =Z12-N12 -> 0.8247589276 | AN12: =Y11*H11+AN11*(1-I10) -> 0.01663558636 | AO12: 0.007282921997 | AP12: 0.006707633701 | AQ12: 0.006319005612 | AR12: =AQ11*(1-$J$9) -> 0.005866821387 | AS12: =AR11*(1-$J$10) -> 0.004716914959 | AT12: 0 | AU12: 0 | AV12: 0 | AW12: 0 | AX12: 0 | AY12: 0 | AZ12: 0 | BA12: 0 | BB12: 0 | BC12: 0 | BD12: 0 | BE12: 0 | BF12: 0 | BG12: 0.03089329766 | BH12: 0.02565568969 | BI12: 0.002909487707 | BJ12: 0.0005343051915 | BK12: 0.0001602915574 | BL12: 0.001574685232 | BM12: 0.005237607967 | BN12: 0.000374013634 | BO12: =BO11+Y11*(G11-H11)+AN11*D10+AO11*($J$7-$K$7)+AP11*($J$8-$K$8)+AQ11*($J$9-$K$9)+AR11*($J$10-$K$10)+BI11*E8+BJ11*M7 -> 0.1226937103 | BP12: 1 | BS12: 6 | BT12: =AM11*'Parameters for Model A v2'!B22 -> 899.1701303 | BU12: =Y11*H11*'Parameters for Model A v2'!$B$37+AN11*(1-I10)*'Parameters for Model A v2'!$B$38 -> 93.57227262 | BV12: =AO12*'Parameters for Model A v2'!$B$40+AP12*'Parameters for Model A v2'!$B$41+AQ12*'Parameters for Model A v2'!$B$42+AR12*'Parameters for Model A v2'!$B$43+AS12*'Parameters for Model A v2'!$B$44+AT12*'Parameters for Model A v2'!$B$45+AU12*'Parameters for Model A v2'!$B$46+AV12*'Parameters for Model A v2'!$B$47+AW12*'Parameters for Model A v2'!$B$48+AX12*'Parameters for Model A v2'!$B$49+AY12*'Parameters for Model A v2'!$B$50+AZ12*'Parameters for Model A v2'!$B$51+BA12*'Parameters for Model A v2'!$B$52+BB12*'Parameters for Model A v2'!$B$53+BC12*'Parameters for Model A v2'!$B$54+BD12*'Parameters for Model A v2'!$B$55+BE12*'Parameters for Model A v2'!$B$56+BF12*'Parameters for Model A v2'!$B$57 -> 112.7760296 | BW12: ='Parameters for Model A v2'!$B$60*(BI12-BI11*(1-L8))+BI11*(1-L8)*'Parameters for Model A v2'!$B$61 -> 28.4805819 | BX12: =BJ11*(1-M7)*'Parameters for Model A v2'!$B$63+BI11*(L8-E8)*'Parameters for Model A v2'!$B$64 -> 1.409689966 | BY12: ='SCT in Model A'!IJ12 -> 101.3920918 | BZ12: ='SCT in Model A'!IJ78 -> 309.3651751 | CA12: ='SCT in Model A'!IJ145 -> 10.69893213 | CB12: 1556.864903 | CD12: 0.8247589276 | CE12: 0.01663558636 | CF12: 0.03089329766 | CG12: 0.002909487707 | CH12: 0.0001602915574 | CI12: ='SCT in Model A'!NB12 -> 0.007254407374 | CJ12: ='SCT in Model A'!NB78 -> 0.01029856283 | CK12: ='SCT in Model A'!NB145 -> 0.0002480033973 | CL12: 0.8931585645
A13: 7 | B13: 44 | C13: =1-EXP(-VLOOKUP(B13,'lifetable pDead'!$A$3:$D$85,gender+1,FALSE)) -> 0.001742431604 | D13: ='Parameters for Model A v2'!$B$10 -> 0.2903225806 | E13: ='Parameters for Model A v2'!$B$11 -> 0.4285714286 | G13: =IF(Probabilistic=1,'Survival for Model A'!L12,'Survival for Model A'!K12) -> 0.02328598789 | H13: =IF(Probabilistic=1,'Survival for Model A'!W12,'Survival for Model A'!V12) -> 0.0133615869 | I13: 0.7096774194 | J13: =IF(Probabilistic=1,'Survival for Model A'!L94,'Survival for Model A'!K94) -> 0.06399602996 | K13: =IF(Probabilistic=1,'Survival for Model A'!W94,'Survival for Model A'!V94) -> 0.05741629166 | L13: 0.5714285714 | M13: ='Parameters for Model A v2'!$B$15 -> 0.2 | N13: =IF('Parameters for Model A v2'!$B$66>0.0022,O12*0.0022,O12*'Parameters for Model A v2'!$B$66) -> 0.001572185826 | O13: 0.9889420724 | P13: =IF(Q13*'Parameters for Model A v2'!$B$67>BG14,BG14*0.05,Q13*'Parameters for Model A v2'!$B$67) -> 0.005154871618 | Q13: 0.9738112224 | S13: 7 | T13: 0 | U13: 0 | V13: 0 | W13: 0 | X13: 0 | Y13: 0 | Z13: 0 | AA13: =Z12*(1-G12) -> 0.8064781019 | AB13: 0 | AC13: 0 | AD13: 0 | AE13: 0 | AF13: 0 | AG13: 0 | AH13: 0 | AI13: 0 | AJ13: 0 | AK13: 0 | AL13: 0 | AM13: =AA13-N13 -> 0.8049059161 | AN13: =Z12*H12+AN12*(1-I11) -> 0.01599156033 | AO13: 0.006976213636 | AP13: 0.006405210437 | AQ13: 0.006047285894 | AR13: 0.005773753237 | AS13: =AR12*(1-$J$10) -> 0.005408028494 | AT13: =AS12*(1-$J$11) -> 0.0043759476 | AU13: 0 | AV13: 0 | AW13: 0 | AX13: 0 | AY13: 0 | AZ13: 0 | BA13: 0 | BB13: 0 | BC13: 0 | BD13: 0 | BE13: 0 | BF13: 0 | BG13: 0.0349864393 | BH13: 0.02977655662 | BI13: 0.00348859671 | BJ13: 0.0008430852542 | BK13: 0.0002529255762 | BL13: 0.001572185826 | BM13: 0.005209882679 | BN13: 0.0005901596779 | BO13: =BO12+Z12*(G12-H12)+AN12*D11+AO12*($J$7-$K$7)+AP12*($J$8-$K$8)+AQ12*($J$9-$K$9)+AR12*($J$10-$K$10)+AS12*($J$11-$K$11)+BI12*E9+BJ12*M8 -> 0.1382122165 | BP13: 1 | BS13: 7 | BT13: =AM12*'Parameters for Model A v2'!B23 -> 583.1045618 | BU13: =Z12*H12*'Parameters for Model A v2'!$B$37+AN12*(1-I11)*'Parameters for Model A v2'!$B$38 -> 90.04900154 | BV13: =AO13*'Parameters for Model A v2'!$B$40+AP13*'Parameters for Model A v2'!$B$41+AQ13*'Parameters for Model A v2'!$B$42+AR13*'Parameters for Model A v2'!$B$43+AS13*'Parameters for Model A v2'!$B$44+AT13*'Parameters for Model A v2'!$B$45+AU13*'Parameters for Model A v2'!$B$46+AV13*'Parameters for Model A v2'!$B$47+AW13*'Parameters for Model A v2'!$B$48+AX13*'Parameters for Model A v2'!$B$49+AY13*'Parameters for Model A v2'!$B$50+AZ13*'Parameters for Model A v2'!$B$51+BA13*'Parameters for Model A v2'!$B$52+BB13*'Parameters for Model A v2'!$B$53+BC13*'Parameters for Model A v2'!$B$54+BD13*'Parameters for Model A v2'!$B$55+BE13*'Parameters for Model A v2'!$B$56+BF13*'Parameters for Model A v2'!$B$57 -> 109.4639969 | BW13: ='Parameters for Model A v2'!$B$60*(BI13-BI12*(1-L9))+BI12*(1-L9)*'Parameters for Model A v2'!$B$61 -> 33.51759684 | BX13: =BJ12*(1-M8)*'Parameters for Model A v2'!$B$63+BI12*(L9-E9)*'Parameters for Model A v2'!$B$64 -> 2.738668433 | BY13: ='SCT in Model A'!IJ13 -> 104.4495388 | BZ13: ='SCT in Model A'!IJ79 -> 322.4499261 | CA13: ='SCT in Model A'!IJ146 -> 21.4452059 | CB13: 1267.218496 | CD13: 0.8049059161 | CE13: 0.01599156033 | CF13: 0.0349864393 | CG13: 0.00348859671 | CH13: 0.0002529255762 | CI13: ='SCT in Model A'!NB13 -> 0.008519926757 | CJ13: ='SCT in Model A'!NB79 -> 0.01509137067 | CK13: ='SCT in Model A'!NB146 -> 0.0006105230596 | CL13: 0.8838472585
A14: 8 | B14: 44 | C14: =1-EXP(-VLOOKUP(B14,'lifetable pDead'!$A$3:$D$85,gender+1,FALSE)) -> 0.001742431604 | D14: ='Parameters for Model A v2'!$B$10 -> 0.2903225806 | E14: ='Parameters for Model A v2'!$B$11 -> 0.4285714286 | G14: =IF(Probabilistic=1,'Survival for Model A'!L13,'Survival for Model A'!K13) -> 0.02265552055 | H14: =IF(Probabilistic=1,'Survival for Model A'!W13,'Survival for Model A'!V13) -> 0.01323512407 | I14: 0.7096774194 | J14: =IF(Probabilistic=1,'Survival for Model A'!L95,'Survival for Model A'!K95) -> 0.06092029785 | K14: =IF(Probabilistic=1,'Survival for Model A'!W95,'Survival for Model A'!V95) -> 0.05566663931 | L14: 0.5714285714 | M14: ='Parameters for Model A v2'!$B$15 -> 0.2 | N14: =IF('Parameters for Model A v2'!$B$66>0.0022,O13*0.0022,O13*'Parameters for Model A v2'!$B$66) -> 0.001569690387 | O14: 0.987372382 | P14: =IF(Q14*'Parameters for Model A v2'!$B$67>BG15,BG15*0.05,Q14*'Parameters for Model A v2'!$B$67) -> 0.005127584295 | Q14: 0.9686563508 | S14: 8 | T14: 0 | U14: 0 | V14: 0 | W14: 0 | X14: 0 | Y14: 0 | Z14: 0 | AA14: 0 | AB14: =AA13*(1-G13) -> 0.7876984626 | AC14: 0 | AD14: 0 | AE14: 0 | AF14: 0 | AG14: 0 | AH14: 0 | AI14: 0 | AJ14: 0 | AK14: 0 | AL14: 0 | AM14: =AB14-N14 -> 0.7861287722 | AN14: =AA13*H13+AN13*(1-I12) -> 0.01541853831 | AO14: 0.006706138205 | AP14: 0.006135465464 | AQ14: 0.005774635356 | AR14: 0.005525479585 | AS14: 0.005322238391 | AT14: =AS13*(1-$J$11) -> 0.005017103236 | AU14: =AT13*(1-$J$12) -> 0.004079702562 | AV14: 0 | AW14: 0 | AX14: 0 | AY14: 0 | AZ14: 0 | BA14: 0 | BB14: 0 | BC14: 0 | BD14: 0 | BE14: 0 | BF14: 0 | BG14: 0.0385607628 | BH14: 0.03337845864 | BI14: 0.00396597274 | BJ14: 0.001172839162 | BK14: 0.0003518517486 | BL14: 0.001569690387 | BM14: 0.005182304155 | BN14: 0.0008209874134 | BO14: =BO13+AA13*(G13-H13)+AN13*D12+AO13*($J$7-$K$7)+AP13*($J$8-$K$8)+AQ13*($J$9-$K$9)+AR13*($J$10-$K$10)+AS13*($J$11-$K$11)+AT13*($J$12-$K$12)+BI13*E10+BJ13*M9 -> 0.1531834244 | BP14: 1 | BS14: 8 | BT14: =AM13*'Parameters for Model A v2'!B24 -> 154.5419359 | BU14: =AA13*H13*'Parameters for Model A v2'!$B$37+AN13*(1-I12)*'Parameters for Model A v2'!$B$38 -> 86.90287295 | BV14: =AO14*'Parameters for Model A v2'!$B$40+AP14*'Parameters for Model A v2'!$B$41+AQ14*'Parameters for Model A v2'!$B$42+AR14*'Parameters for Model A v2'!$B$43+AS14*'Parameters for Model A v2'!$B$44+AT14*'Parameters for Model A v2'!$B$45+AU14*'Parameters for Model A v2'!$B$46+AV14*'Parameters for Model A v2'!$B$47+AW14*'Parameters for Model A v2'!$B$48+AX14*'Parameters for Model A v2'!$B$49+AY14*'Parameters for Model A v2'!$B$50+AZ14*'Parameters for Model A v2'!$B$51+BA14*'Parameters for Model A v2'!$B$52+BB14*'Parameters for Model A v2'!$B$53+BC14*'Parameters for Model A v2'!$B$54+BD14*'Parameters for Model A v2'!$B$55+BE14*'Parameters for Model A v2'!$B$56+BF14*'Parameters for Model A v2'!$B$57 -> 105.4036896 | BW14: ='Parameters for Model A v2'!$B$60*(BI14-BI13*(1-L10))+BI13*(1-L10)*'Parameters for Model A v2'!$B$61 -> 37.65052902 | BX14: =BJ13*(1-M9)*'Parameters for Model A v2'!$B$63+BI13*(L10-E10)*'Parameters for Model A v2'!$B$64 -> 4.299009843 | BY14: ='SCT in Model A'!IJ14 -> 105.6729622 | BZ14: ='SCT in Model A'!IJ80 -> 328.4510328 | CA14: ='SCT in Model A'!IJ147 -> 34.46716944 | CB14: 857.3892018 | CD14: 0.7861287722 | CE14: 0.01541853831 | CF14: 0.0385607628 | CG14: 0.00396597274 | CH14: 0.0003518517486 | CI14: ='SCT in Model A'!NB14 -> 0.009729073319 | CJ14: ='SCT in Model A'!NB80 -> 0.01966069909 | CK14: ='SCT in Model A'!NB147 -> 0.00117333423 | CL14: 0.8749890044
A15: 9 | B15: 44 | C15: =1-EXP(-VLOOKUP(B15,'lifetable pDead'!$A$3:$D$85,gender+1,FALSE)) -> 0.001742431604 | D15: ='Parameters for Model A v2'!$B$10 -> 0.2903225806 | E15: ='Parameters for Model A v2'!$B$11 -> 0.4285714286 | G15: =IF(Probabilistic=1,'Survival for Model A'!L14,'Survival for Model A'!K14) -> 0.02210961767 | H15: =IF(Probabilistic=1,'Survival for Model A'!W14,'Survival for Model A'!V14) -> 0.01312377466 | I15: 0.7096774194 | J15: =IF(Probabilistic=1,'Survival for Model A'!L96,'Survival for Model A'!K96) -> 0.05830842857 | K15: =IF(Probabilistic=1,'Survival for Model A'!W96,'Survival for Model A'!V96) -> 0.0541558331 | L15: 0.5714285714 | M15: ='Parameters for Model A v2'!$B$15 -> 0.2 | N15: =IF('Parameters for Model A v2'!$B$66>0.0022,O14*0.0022,O14*'Parameters for Model A v2'!$B$66) -> 0.001567198908 | O15: 0.9858051831 | P15: =IF(Q15*'Parameters for Model A v2'!$B$67>BG16,BG16*0.05,Q15*'Parameters for Model A v2'!$B$67) -> 0.005100441417 | Q15: 0.9635287665 | S15: 9 | T15: 0 | U15: 0 | V15: 0 | W15: 0 | X15: 0 | Y15: 0 | Z15: 0 | AA15: 0 | AB15: 0 | AC15: =AB14*(1-G14) -> 0.7698527439 | AD15: 0 | AE15: 0 | AF15: 0 | AG15: 0 | AH15: 0 | AI15: 0 | AJ15: 0 | AK15: 0 | AL15: 0 | AM15: =AC15-N15 -> 0.768285545 | AN15: =AB14*H14+AN14*(1-I13) -> 0.01490163671 | AO15: 0.006465838646 | AP15: 0.005897938553 | AQ15: 0.005531446023 | AR15: 0.005276355432 | AS15: 0.005093380054 | AT15: 0.004937514565 | AU15: =AT14*(1-$J$12) -> 0.004677452931 | AV15: =AU14*(1-$J$13) -> 0.003818617795 | AW15: 0 | AX15: 0 | AY15: 0 | AZ15: 0 | BA15: 0 | BB15: 0 | BC15: 0 | BD15: 0 | BE15: 0 | BF15: 0 | BG15: 0.041698544 | BH15: 0.03654367238 | BI15: 0.004359099013 | BJ15: 0.001504838864 | BK15: 0.0004514516592 | BL15: 0.001567198908 | BM15: 0.005154871618 | BN15: 0.001053387205 | BO15: =BO14+AB14*(G14-H14)+AN14*D13+AO14*($J$7-$K$7)+AP14*($J$8-$K$8)+AQ14*($J$9-$K$9)+AR14*($J$10-$K$10)+AS14*($J$11-$K$11)+AT14*($J$12-$K$12)+AU14*($J$13-$K$13)+BI14*E11+BJ14*M10 -> 0.1676831375 | BP15: 1 | BS15: 9 | BT15: =AM14*'Parameters for Model A v2'!B25 -> 161.1563983 | BU15: =AB14*H14*'Parameters for Model A v2'!$B$37+AN14*(1-I13)*'Parameters for Model A v2'!$B$38 -> 84.05153707 | BV15: =AO15*'Parameters for Model A v2'!$B$40+AP15*'Parameters for Model A v2'!$B$41+AQ15*'Parameters for Model A v2'!$B$42+AR15*'Parameters for Model A v2'!$B$43+AS15*'Parameters for Model A v2'!$B$44+AT15*'Parameters for Model A v2'!$B$45+AU15*'Parameters for Model A v2'!$B$46+AV15*'Parameters for Model A v2'!$B$47+AW15*'Parameters for Model A v2'!$B$48+AX15*'Parameters for Model A v2'!$B$49+AY15*'Parameters for Model A v2'!$B$50+AZ15*'Parameters for Model A v2'!$B$51+BA15*'Parameters for Model A v2'!$B$52+BB15*'Parameters for Model A v2'!$B$53+BC15*'Parameters for Model A v2'!$B$54+BD15*'Parameters for Model A v2'!$B$55+BE15*'Parameters for Model A v2'!$B$56+BF15*'Parameters for Model A v2'!$B$57 -> 101.5915074 | BW15: ='Parameters for Model A v2'!$B$60*(BI15-BI14*(1-L11))+BI14*(1-L11)*'Parameters for Model A v2'!$B$61 -> 41.05287943 | BX15: =BJ14*(1-M10)*'Parameters for Model A v2'!$B$63+BI14*(L11-E11)*'Parameters for Model A v2'!$B$64 -> 5.962475555 | BY15: ='SCT in Model A'!IJ15 -> 106.81988 | BZ15: ='SCT in Model A'!IJ81 -> 333.5189594 | CA15: ='SCT in Model A'!IJ148 -> 48.7467701 | CB15: 882.9004072 | CD15: 0.768285545 | CE15: 0.01490163671 | CF15: 0.041698544 | CG15: 0.004359099013 | CH15: 0.0004514516592 | CI15: ='SCT in Model A'!NB15 -> 0.01088560334 | CJ15: ='SCT in Model A'!NB81 -> 0.0240073914 | CK15: ='SCT in Model A'!NB148 -> 0.001942766467 | CL15: 0.8665320375
A16: 10 | B16: 44 | C16: =1-EXP(-VLOOKUP(B16,'lifetable pDead'!$A$3:$D$85,gender+1,FALSE)) -> 0.001742431604 | D16: ='Parameters for Model A v2'!$B$10 -> 0.2903225806 | E16: ='Parameters for Model A v2'!$B$11 -> 0.4285714286 | G16: =IF(Probabilistic=1,'Survival for Model A'!L15,'Survival for Model A'!K15) -> 0.02162964363 | H16: =IF(Probabilistic=1,'Survival for Model A'!W15,'Survival for Model A'!V15) -> 0.01302439657 | I16: 0.7096774194 | J16: =IF(Probabilistic=1,'Survival for Model A'!L97,'Survival for Model A'!K97) -> 0.05605179119 | K16: =IF(Probabilistic=1,'Survival for Model A'!W97,'Survival for Model A'!V97) -> 0.05283078919 | L16: 0.5714285714 | M16: ='Parameters for Model A v2'!$B$15 -> 0.2 | N16: =IF('Parameters for Model A v2'!$B$66>0.0022,O15*0.0022,O15*'Parameters for Model A v2'!$B$66) -> 0.001564711384 | O16: 0.9842404717 | P16: =IF(Q16*'Parameters for Model A v2'!$B$67>BG17,BG17*0.05,Q16*'Parameters for Model A v2'!$B$67) -> 0.005073442221 | Q16: 0.9584283251 | S16: 10 | T16: 0 | U16: 0 | V16: 0 | W16: 0 | X16: 0 | Y16: 0 | Z16: 0 | AA16: 0 | AB16: 0 | AC16: 0 | AD16: =AC15*(1-G15) -> 0.752831594 | AE16: 0 | AF16: 0 | AG16: 0 | AH16: 0 | AI16: 0 | AJ16: 0 | AK16: 0 | AL16: 0 | AM16: =AD16-N16 -> 0.7512668827 | AN16: =AC15*H15+AN15*(1-I14) -> 0.01442965556 | AO16: 0.00624907346 | AP16: 0.005686599032 | AQ16: 0.005317302972 | AR16: 0.005054150343 | AS16: 0.004863737727 | AT16: 0.004725199503 | AU16: 0.004603252293 | AV16: =AU15*(1-$J$13) -> 0.004378114513 | AW16: =AV15*(1-$J$14) -> 0.003585986461 | AX16: 0 | AY16: 0 | AZ16: 0 | BA16: 0 | BB16: 0 | BC16: 0 | BD16: 0 | BE16: 0 | BF16: 0 | BG16: 0.0444634163 | BH16: 0.03933583201 | BI16: 0.004683990541 | BJ16: 0.001826599522 | BK16: 0.0005479798565 | BL16: 0.001564711384 | BM16: 0.005127584295 | BN16: 0.001278619665 | BO16: =BO15+AC15*(G15-H15)+AN15*D14+AO15*($J$7-$K$7)+AP15*($J$8-$K$8)+AQ15*($J$9-$K$9)+AR15*($J$10-$K$10)+AS15*($J$11-$K$11)+AT15*($J$12-$K$12)+AU15*($J$13-$K$13)+AV15*($J$14-$K$14)+BI15*E12+BJ15*M11 -> 0.181764744 | BP16: 1 | BS16: 10 | BT16: =AM15*'Parameters for Model A v2'!B26 -> 127.5354005 | BU16: =AC15*H15*'Parameters for Model A v2'!$B$37+AN15*(1-I14)*'Parameters for Model A v2'!$B$38 -> 81.43736111 | BV16: =AO16*'Parameters for Model A v2'!$B$40+AP16*'Parameters for Model A v2'!$B$41+AQ16*'Parameters for Model A v2'!$B$42+AR16*'Parameters for Model A v2'!$B$43+AS16*'Parameters for Model A v2'!$B$44+AT16*'Parameters for Model A v2'!$B$45+AU16*'Parameters for Model A v2'!$B$46+AV16*'Parameters for Model A v2'!$B$47+AW16*'Parameters for Model A v2'!$B$48+AX16*'Parameters for Model A v2'!$B$49+AY16*'Parameters for Model A v2'!$B$50+AZ16*'Parameters for Model A v2'!$B$51+BA16*'Parameters for Model A v2'!$B$52+BB16*'Parameters for Model A v2'!$B$53+BC16*'Parameters for Model A v2'!$B$54+BD16*'Parameters for Model A v2'!$B$55+BE16*'Parameters for Model A v2'!$B$56+BF16*'Parameters for Model A v2'!$B$57 -> 98.16188488 | BW16: ='Parameters for Model A v2'!$B$60*(BI16-BI15*(1-L12))+BI15*(1-L12)*'Parameters for Model A v2'!$B$61 -> 43.86817376 | BX16: =BJ15*(1-M11)*'Parameters for Model A v2'!$B$63+BI15*(L12-E12)*'Parameters for Model A v2'!$B$64 -> 7.635495307 | BY16: ='SCT in Model A'!IJ16 -> 107.8954023 | BZ16: ='SCT in Model A'!IJ82 -> 342.4868775 | CA16: ='SCT in Model A'!IJ149 -> 63.54869754 | CB16: 872.5692928 | CD16: 0.7512668827 | CE16: 0.01442965556 | CF16: 0.0444634163 | CG16: 0.004683990541 | CH16: 0.0005479798565 | CI16: ='SCT in Model A'!NB16 -> 0.0119933728 | CJ16: ='SCT in Model A'!NB82 -> 0.02813925638 | CK16: ='SCT in Model A'!NB149 -> 0.002911723831 | CL16: 0.8584362779
A17: 11 | B17: 44 | C17: =1-EXP(-VLOOKUP(B17,'lifetable pDead'!$A$3:$D$85,gender+1,FALSE)) -> 0.001742431604 | D17: ='Parameters for Model A v2'!$B$10 -> 0.2903225806 | E17: ='Parameters for Model A v2'!$B$11 -> 0.4285714286 | G17: =IF(Probabilistic=1,'Survival for Model A'!L16,'Survival for Model A'!K16) -> 0.02120238983 | H17: =IF(Probabilistic=1,'Survival for Model A'!W16,'Survival for Model A'!V16) -> 0.01293472873 | I17: 0.7096774194 | J17: =IF(Probabilistic=1,'Survival for Model A'!L98,'Survival for Model A'!K98) -> 0.05407466343 | K17: =IF(Probabilistic=1,'Survival for Model A'!W98,'Survival for Model A'!V98) -> 0.05165396477 | L17: 0.5714285714 | M17: ='Parameters for Model A v2'!$B$15 -> 0.2 | N17: =IF('Parameters for Model A v2'!$B$66>0.0022,O16*0.0022,O16*'Parameters for Model A v2'!$B$66) -> 0.001562227809 | O17: 0.9826782439 | P17: =IF(Q17*'Parameters for Model A v2'!$B$67>BG18,BG18*0.05,Q17*'Parameters for Model A v2'!$B$67) -> 0.005046585944 | Q17: 0.9533548829 | S17: 11 | T17: 0 | U17: 0 | V17: 0 | W17: 0 | X17: 0 | Y17: 0 | Z17: 0 | AA17: 0 | AB17: 0 | AC17: 0 | AD17: 0 | AE17: =AD16*(1-G16) -> 0.7365481149 | AF17: 0 | AG17: 0 | AH17: 0 | AI17: 0 | AJ17: 0 | AK17: 0 | AL17: 0 | AM17: =AE17-N17 -> 0.7349858871 | AN17: =AD16*H16+AN16*(1-I15) -> 0.01399443207 | AO17: 0.006051145879 | AP17: 0.005495957607 | AQ17: 0.005126769237 | AR17: 0.004858485201 | AS17: 0.004658909358 | AT17: 0.004512157122 | AU17: 0.00440531064 | AV17: 0.004308662421 | AW17: =AV16*(1-$J$14) -> 0.004111398473 | AX17: =AW16*(1-$J$15) -> 0.003376893226 | AY17: 0 | AZ17: 0 | BA17: 0 | BB17: 0 | BC17: 0 | BD17: 0 | BE17: 0 | BF17: 0 | BG17: 0.04690568916 | BH17: 0.04180524775 | BI17: 0.004953647264 | BJ17: 0.002130421123 | BK17: 0.0006391263369 | BL17: 0.001562227809 | BM17: 0.005100441417 | BN17: 0.001491294786 | BO17: =BO16+AD16*(G16-H16)+AN16*D15+AO16*($J$7-$K$7)+AP16*($J$8-$K$8)+AQ16*($J$9-$K$9)+AR16*($J$10-$K$10)+AS16*($J$11-$K$11)+AT16*($J$12-$K$12)+AU16*($J$13-$K$13)+AV16*($J$14-$K$14)+AW16*($J$15-$K$15)+BI16*E13+BJ16*M12 -> 0.1954676954 | BP17: 1 | BS17: 11 | BT17: =AM16*'Parameters for Model A v2'!B27 -> 280.9738141 | BU17: =AD16*H16*'Parameters for Model A v2'!$B$37+AN16*(1-I15)*'Parameters for Model A v2'!$B$38 -> 79.01893389 | BV17: =AO17*'Parameters for Model A v2'!$B$40+AP17*'Parameters for Model A v2'!$B$41+AQ17*'Parameters for Model A v2'!$B$42+AR17*'Parameters for Model A v2'!$B$43+AS17*'Parameters for Model A v2'!$B$44+AT17*'Parameters for Model A v2'!$B$45+AU17*'Parameters for Model A v2'!$B$46+AV17*'Parameters for Model A v2'!$B$47+AW17*'Parameters for Model A v2'!$B$48+AX17*'Parameters for Model A v2'!$B$49+AY17*'Parameters for Model A v2'!$B$50+AZ17*'Parameters for Model A v2'!$B$51+BA17*'Parameters for Model A v2'!$B$52+BB17*'Parameters for Model A v2'!$B$53+BC17*'Parameters for Model A v2'!$B$54+BD17*'Parameters for Model A v2'!$B$55+BE17*'Parameters for Model A v2'!$B$56+BF17*'Parameters for Model A v2'!$B$57 -> 95.07173097 | BW17: ='Parameters for Model A v2'!$B$60*(BI17-BI16*(1-L13))+BI16*(1-L13)*'Parameters for Model A v2'!$B$61 -> 46.20834711 | BX17: =BJ16*(1-M12)*'Parameters for Model A v2'!$B$63+BI16*(L13-E13)*'Parameters for Model A v2'!$B$64 -> 9.255780014 | BY17: ='SCT in Model A'!IJ17 -> 108.9053643 | BZ17: ='SCT in Model A'!IJ83 -> 345.306982 | CA17: ='SCT in Model A'!IJ150 -> 78.31355224 | CB17: 1043.054505 | CD17: 0.7349858871 | CE17: 0.01399443207 | CF17: 0.04690568916 | CG17: 0.004953647264 | CH17: 0.0006391263369 | CI17: ='SCT in Model A'!NB17 -> 0.01305609982 | CJ17: ='SCT in Model A'!NB83 -> 0.03206794323 | CK17: ='SCT in Model A'!NB150 -> 0.004064628375 | CL17: 0.8506674534
A18: 12 | B18: 44 | C18: =1-EXP(-VLOOKUP(B18,'lifetable pDead'!$A$3:$D$85,gender+1,FALSE)) -> 0.001742431604 | D18: ='Parameters for Model A v2'!$B$10 -> 0.2903225806 | E18: ='Parameters for Model A v2'!$B$11 -> 0.4285714286 | G18: =IF(Probabilistic=1,'Survival for Model A'!L17,'Survival for Model A'!K17) -> 0.02081817293 | H18: =IF(Probabilistic=1,'Survival for Model A'!W17,'Survival for Model A'!V17) -> 0.01285309076 | I18: 0.7096774194 | J18: =IF(Probabilistic=1,'Survival for Model A'!L99,'Survival for Model A'!K99) -> 0.05232236662 | K18: =IF(Probabilistic=1,'Survival for Model A'!W99,'Survival for Model A'!V99) -> 0.05059789193 | L18: 0.5714285714 | M18: ='Parameters for Model A v2'!$B$15 -> 0.2 | N18: =IF('Parameters for Model A v2'!$B$66>0.0022,O17*0.0022,O17*'Parameters for Model A v2'!$B$66) -> 0.001559748175 | O18: 0.9811184957 | P18: =IF(Q18*'Parameters for Model A v2'!$B$67>BG19,BG19*0.05,Q18*'Parameters for Model A v2'!$B$67) -> 0.005019871832 | Q18: 0.9483082969 | S18: 12 | T18: 0 | U18: 0 | V18: 0 | W18: 0 | X18: 0 | Y18: 0 | Z18: 0 | AA18: 0 | AB18: 0 | AC18: 0 | AD18: 0 | AE18: 0 | AF18: =AE17*(1-G17) -> 0.7209315347 | AG18: 0 | AH18: 0 | AI18: 0 | AJ18: 0 | AK18: 0 | AL18: 0 | AM18: =AF18-N18 -> 0.7193717865 | AN18: =AE17*H17+AN17*(1-I16) -> 0.01358994969 | AO18: 0.005868632803 | AP18: 0.005321883546 | AQ18: 0.004954895928 | AR18: 0.004684392181 | AS18: 0.004478545479 | AT18: 0.004322134997 | AU18: 0.004206690906 | AV18: 0.004123388248 | AW18: 0.004046177423 | AX18: =AW17*(1-$J$15) -> 0.003871669289 | AY18: =AX17*(1-$J$16) -> 0.003187612312 | AZ18: 0 | BA18: 0 | BB18: 0 | BC18: 0 | BD18: 0 | BE18: 0 | BF18: 0 | BG18: 0.04906602311 | BH18: 0.04399258089 | BI18: 0.005178204635 | BJ18: 0.002412000793 | BK18: 0.000723600238 | BL18: 0.001559748175 | BM18: 0.005073442221 | BN18: 0.001688400555 | BO18: =BO17+AE17*(G17-H17)+AN17*D16+AO17*($J$7-$K$7)+AP17*($J$8-$K$8)+AQ17*($J$9-$K$9)+AR17*($J$10-$K$10)+AS17*($J$11-$K$11)+AT17*($J$12-$K$12)+AU17*($J$13-$K$13)+AV17*($J$14-$K$14)+AW17*($J$15-$K$15)+AX17*($J$16-$K$16)+BI17*E14+BJ17*M13 -> 0.2088222871 | BP18: 1 | BS18: 12 | BT18: =AM17*'Parameters for Model A v2'!B28 -> 357.2031411 | BU18: =AE17*H17*'Parameters for Model A v2'!$B$37+AN17*(1-I16)*'Parameters for Model A v2'!$B$38 -> 76.76557697 | BV18: =AO18*'Parameters for Model A v2'!$B$40+AP18*'Parameters for Model A v2'!$B$41+AQ18*'Parameters for Model A v2'!$B$42+AR18*'Parameters for Model A v2'!$B$43+AS18*'Parameters for Model A v2'!$B$44+AT18*'Parameters for Model A v2'!$B$45+AU18*'Parameters for Model A v2'!$B$46+AV18*'Parameters for Model A v2'!$B$47+AW18*'Parameters for Model A v2'!$B$48+AX18*'Parameters for Model A v2'!$B$49+AY18*'Parameters for Model A v2'!$B$50+AZ18*'Parameters for Model A v2'!$B$51+BA18*'Parameters for Model A v2'!$B$52+BB18*'Parameters for Model A v2'!$B$53+BC18*'Parameters for Model A v2'!$B$54+BD18*'Parameters for Model A v2'!$B$55+BE18*'Parameters for Model A v2'!$B$56+BF18*'Parameters for Model A v2'!$B$57 -> 92.2579079 | BW18: ='Parameters for Model A v2'!$B$60*(BI18-BI17*(1-L14))+BI17*(1-L14)*'Parameters for Model A v2'!$B$61 -> 48.15938244 | BX18: =BJ17*(1-M13)*'Parameters for Model A v2'!$B$63+BI17*(L14-E14)*'Parameters for Model A v2'!$B$64 -> 10.78497629 | BY18: ='SCT in Model A'!IJ18 -> 109.855644 | BZ18: ='SCT in Model A'!IJ84 -> 347.8634855 | CA18: ='SCT in Model A'!IJ151 -> 92.64832376 | CB18: 1135.538438 | CD18: 0.7193717865 | CE18: 0.01358994969 | CF18: 0.04906602311 | CG18: 0.005178204635 | CH18: 0.000723600238 | CI18: ='SCT in Model A'!NB18 -> 0.0140772413 | CJ18: ='SCT in Model A'!NB84 -> 0.03580675637 | CK18: ='SCT in Model A'!NB151 -> 0.005381195393 | CL18: 0.8431947573
A19: 13 | B19: 45 | C19: =1-EXP(-VLOOKUP(B19,'lifetable pDead'!$A$3:$D$85,gender+1,FALSE)) -> 0.001951904942 | D19: ='Parameters for Model A v2'!$B$10 -> 0.2903225806 | E19: ='Parameters for Model A v2'!$B$11 -> 0.4285714286 | G19: =IF(Probabilistic=1,'Survival for Model A'!L18,'Survival for Model A'!K18) -> 0.02046969499 | H19: =IF(Probabilistic=1,'Survival for Model A'!W18,'Survival for Model A'!V18) -> 0.01277820041 | I19: 0.7096774194 | J19: =IF(Probabilistic=1,'Survival for Model A'!L100,'Survival for Model A'!K100) -> 0.05075425919 | K19: =IF(Probabilistic=1,'Survival for Model A'!W100,'Survival for Model A'!V100) -> 0.04964190737 | L19: 0.5714285714 | M19: ='Parameters for Model A v2'!$B$15 -> 0.2 | N19: =IF('Parameters for Model A v2'!$B$66>0.0022,O18*0.0022,O18*'Parameters for Model A v2'!$B$66) -> 0.001557272477 | O19: 0.9795612232 | P19: =IF(Q19*'Parameters for Model A v2'!$B$67>BG20,BG20*0.05,Q19*'Parameters for Model A v2'!$B$67) -> 0.00499329913 | Q19: 0.9432884251 | S19: 13 | T19: 0 | U19: 0 | V19: 0 | W19: 0 | X19: 0 | Y19: 0 | Z19: 0 | AA19: 0 | AB19: 0 | AC19: 0 | AD19: 0 | AE19: 0 | AF19: 0 | AG19: =AF18*(1-G18) -> 0.7059230573 | AH19: 0 | AI19: 0 | AJ19: 0 | AK19: 0 | AL19: 0 | AM19: =AG19-N19 -> 0.7043657848 | AN19: =AF18*H18+AN18*(1-I17) -> 0.01321166771 | AO19: 0.005699011162 | AP19: 0.005161366289 | AQ19: 0.004797958972 | AR19: 0.004527349422 | AS19: 0.004318066755 | AT19: 0.004154808918 | AU19: 0.004029532991 | AV19: 0.003937479389 | AW19: 0.003872190208 | AX19: 0.003810251176 | AY19: =AX18*(1-$J$16) -> 0.00365465529 | AZ19: =AY18*(1-$J$17) -> 0.003015243249 | BA19: 0 | BB19: 0 | BC19: 0 | BD19: 0 | BE19: 0 | BF19: 0 | BG19: 0.05097791382 | BH19: 0.04593132788 | BI19: 0.00536550227 | BJ19: 0.002669344154 | BK19: 0.0008008032462 | BL19: 0.001557272477 | BM19: 0.005046585944 | BN19: 0.001868540908 | BO19: =BO18+AF18*(G18-H18)+AN18*D17+AO18*($J$7-$K$7)+AP18*($J$8-$K$8)+AQ18*($J$9-$K$9)+AR18*($J$10-$K$10)+AS18*($J$11-$K$11)+AT18*($J$12-$K$12)+AU18*($J$13-$K$13)+AV18*($J$14-$K$14)+AW18*($J$15-$K$15)+AX18*($J$16-$K$16)+AY18*($J$17-$K$17)+BI18*E15+BJ18*M14 -> 0.2218525147 | BP19: 1 | BS19: 13 | BT19: =AM18*'Parameters for Model A v2'!B29 -> 163.2973955 | BU19: =AF18*H18*'Parameters for Model A v2'!$B$37+AN18*(1-I17)*'Parameters for Model A v2'!$B$38 -> 74.65389521 | BV19: =AO19*'Parameters for Model A v2'!$B$40+AP19*'Parameters for Model A v2'!$B$41+AQ19*'Parameters for Model A v2'!$B$42+AR19*'Parameters for Model A v2'!$B$43+AS19*'Parameters for Model A v2'!$B$44+AT19*'Parameters for Model A v2'!$B$45+AU19*'Parameters for Model A v2'!$B$46+AV19*'Parameters for Model A v2'!$B$47+AW19*'Parameters for Model A v2'!$B$48+AX19*'Parameters for Model A v2'!$B$49+AY19*'Parameters for Model A v2'!$B$50+AZ19*'Parameters for Model A v2'!$B$51+BA19*'Parameters for Model A v2'!$B$52+BB19*'Parameters for Model A v2'!$B$53+BC19*'Parameters for Model A v2'!$B$54+BD19*'Parameters for Model A v2'!$B$55+BE19*'Parameters for Model A v2'!$B$56+BF19*'Parameters for Model A v2'!$B$57 -> 89.66807449 | BW19: ='Parameters for Model A v2'!$B$60*(BI19-BI18*(1-L15))+BI18*(1-L15)*'Parameters for Model A v2'!$B$61 -> 49.78758525 | BX19: =BJ18*(1-M14)*'Parameters for Model A v2'!$B$63+BI18*(L15-E15)*'Parameters for Model A v2'!$B$64 -> 12.20170996 | BY19: ='SCT in Model A'!IJ19 -> 110.7517967 | BZ19: ='SCT in Model A'!IJ85 -> 350.1744214 | CA19: ='SCT in Model A'!IJ152 -> 106.2992211 | CB19: =SUM(BT19:CA19)/((1+discount)^1) -> 956.8340997 | CD19: 0.7043657848 | CE19: 0.01321166771 | CF19: 0.05097791382 | CG19: 0.00536550227 | CH19: 0.0008008032462 | CI19: ='SCT in Model A'!NB19 -> 0.01505994119 | CJ19: ='SCT in Model A'!NB85 -> 0.03936928218 | CK19: ='SCT in Model A'!NB152 -> 0.006839091741 | CL19: =SUM(CD19:CK19)/((1+discount)^1) -> 0.835989987
A20: 14 | B20: 45 | C20: =1-EXP(-VLOOKUP(B20,'lifetable pDead'!$A$3:$D$85,gender+1,FALSE)) -> 0.001951904942 | D20: ='Parameters for Model A v2'!$B$10 -> 0.2903225806 | E20: ='Parameters for Model A v2'!$B$11 -> 0.4285714286 | G20: =IF(Probabilistic=1,'Survival for Model A'!L19,'Survival for Model A'!K19) -> 0.02015132744 | H20: =IF(Probabilistic=1,'Survival for Model A'!W19,'Survival for Model A'!V19) -> 0.01270905738 | I20: 0.7096774194 | J20: =IF(Probabilistic=1,'Survival for Model A'!L101,'Survival for Model A'!K101) -> 0.04933939474 | K20: =IF(Probabilistic=1,'Survival for Model A'!W101,'Survival for Model A'!V101) -> 0.04877010168 | L20: 0.5714285714 | M20: ='Parameters for Model A v2'!$B$15 -> 0.2 | N20: =IF('Parameters for Model A v2'!$B$66>0.0022,O19*0.0022,O19*'Parameters for Model A v2'!$B$66) -> 0.001554800709 | O20: 0.9780064225 | P20: =IF(Q20*'Parameters for Model A v2'!$B$67>BG21,BG21*0.05,Q20*'Parameters for Model A v2'!$B$67) -> 0.004966867092 | Q20: 0.938295126 | S20: 14 | T20: 0 | U20: 0 | V20: 0 | W20: 0 | X20: 0 | Y20: 0 | Z20: 0 | AA20: 0 | AB20: 0 | AC20: 0 | AD20: 0 | AE20: 0 | AF20: 0 | AG20: 0 | AH20: =AG19*(1-G19) -> 0.6914730276 | AI20: 0 | AJ20: 0 | AK20: 0 | AL20: 0 | AM20: =AH20-N20 -> 0.6899182269 | AN20: =AG19*H19+AN19*(1-I18) -> 0.01285607177 | AO20: 0.005540376783 | AP20: 0.005012186838 | AQ20: 0.004653244191 | AR20: 0.004383954193 | AS20: 0.00417330494 | AT20: 0.004005930574 | AU20: 0.003873534635 | AV20: 0.003771658877 | AW20: 0.003697606972 | AX20: 0.003646408882 | AY20: 0.003596679772 | AZ20: =AY19*(1-$J$17) -> 0.003457031036 | BA20: =AZ19*(1-$J$18) -> 0.002857478586 | BB20: 0 | BC20: 0 | BD20: 0 | BE20: 0 | BF20: 0 | BG20: 0.05266939628 | BH20: 0.04764952445 | BI20: 0.005521644748 | BJ20: 0.002901975647 | BK20: 0.0008705926942 | BL20: 0.001554800709 | BM20: 0.005019871832 | BN20: 0.002031382953 | BO20: =BO19+AG19*(G19-H19)+AN19*D18+AO19*($J$7-$K$7)+AP19*($J$8-$K$8)+AQ19*($J$9-$K$9)+AR19*($J$10-$K$10)+AS19*($J$11-$K$11)+AT19*($J$12-$K$12)+AU19*($J$13-$K$13)+AV19*($J$14-$K$14)+AW19*($J$15-$K$15)+AX19*($J$16-$K$16)+AY19*($J$17-$K$17)+AZ19*($J$18-$K$18)+BI19*E16+BJ19*M15 -> 0.2345778839 | BP20: 1 | BS20: 14 | BT20: =AM19*'Parameters for Model A v2'!B30 -> 89.45445467 | BU20: =AG19*H19*'Parameters for Model A v2'!$B$37+AN19*(1-I18)*'Parameters for Model A v2'!$B$38 -> 72.66558674 | BV20: =AO20*'Parameters for Model A v2'!$B$40+AP20*'Parameters for Model A v2'!$B$41+AQ20*'Parameters for Model A v2'!$B$42+AR20*'Parameters for Model A v2'!$B$43+AS20*'Parameters for Model A v2'!$B$44+AT20*'Parameters for Model A v2'!$B$45+AU20*'Parameters for Model A v2'!$B$46+AV20*'Parameters for Model A v2'!$B$47+AW20*'Parameters for Model A v2'!$B$48+AX20*'Parameters for Model A v2'!$B$49+AY20*'Parameters for Model A v2'!$B$50+AZ20*'Parameters for Model A v2'!$B$51+BA20*'Parameters for Model A v2'!$B$52+BB20*'Parameters for Model A v2'!$B$53+BC20*'Parameters for Model A v2'!$B$54+BD20*'Parameters for Model A v2'!$B$55+BE20*'Parameters for Model A v2'!$B$56+BF20*'Parameters for Model A v2'!$B$57 -> 87.26282985 | BW20: ='Parameters for Model A v2'!$B$60*(BI20-BI19*(1-L16))+BI19*(1-L16)*'Parameters for Model A v2'!$B$61 -> 51.14471857 | BX20: =BJ19*(1-M15)*'Parameters for Model A v2'!$B$63+BI19*(L16-E16)*'Parameters for Model A v2'!$B$64 -> 13.49613785 | BY20: ='SCT in Model A'!IJ20 -> 111.5988847 | BZ20: ='SCT in Model A'!IJ86 -> 352.2601722 | CA20: ='SCT in Model A'!IJ153 -> 119.1177861 | CB20: 897.0005706 | CD20: 0.6899182269 | CE20: 0.01285607177 | CF20: 0.05266939628 | CG20: 0.005521644748 | CH20: 0.0008705926942 | CI20: ='SCT in Model A'!NB20 -> 0.01600702144 | CJ20: ='SCT in Model A'!NB86 -> 0.04276859579 | CK20: ='SCT in Model A'!NB153 -> 0.008415704446 | CL20: 0.8290272541
A21: 15 | B21: 45 | C21: =1-EXP(-VLOOKUP(B21,'lifetable pDead'!$A$3:$D$85,gender+1,FALSE)) -> 0.001951904942 | D21: ='Parameters for Model A v2'!$B$10 -> 0.2903225806 | E21: ='Parameters for Model A v2'!$B$11 -> 0.4285714286 | G21: =IF(Probabilistic=1,'Survival for Model A'!L20,'Survival for Model A'!K20) -> 0.01985864344 | H21: =IF(Probabilistic=1,'Survival for Model A'!W20,'Survival for Model A'!V20) -> 0.01264486662 | I21: 0.7096774194 | J21: =IF(Probabilistic=1,'Survival for Model A'!L102,'Survival for Model A'!K102) -> 0.04805372181 | K21: =IF(Probabilistic=1,'Survival for Model A'!W102,'Survival for Model A'!V102) -> 0.04796998218 | L21: 0.5714285714 | M21: ='Parameters for Model A v2'!$B$15 -> 0.2 | N21: =IF('Parameters for Model A v2'!$B$66>0.0022,O20*0.0022,O20*'Parameters for Model A v2'!$B$66) -> 0.001552332864 | O21: 0.9764540897 | P21: =IF(Q21*'Parameters for Model A v2'!$B$67>BG22,BG22*0.05,Q21*'Parameters for Model A v2'!$B$67) -> 0.004940574971 | Q21: 0.9333282589 | S21: 15 | T21: 0 | U21: 0 | V21: 0 | W21: 0 | X21: 0 | Y21: 0 | Z21: 0 | AA21: 0 | AB21: 0 | AC21: 0 | AD21: 0 | AE21: 0 | AF21: 0 | AG21: 0 | AH21: 0 | AI21: =AH20*(1-G20) -> 0.6775389283 | AJ21: 0 | AK21: 0 | AL21: 0 | AM21: =AI21-N21 -> 0.6759865954 | AN21: =AH20*H20+AN20*(1-I19) -> 0.01252037832 | AO21: 0.005391255901 | AP21: 0.004872670504 | AQ21: 0.004518751041 | AR21: 0.004251726515 | AS21: 0.0040411234 | AT21: 0.003871633025 | AU21: 0.00373473513 | AV21: 0.003625643797 | AW21: 0.003541888295 | AX21: 0.00348200532 | AY21: 0.003442021133 | AZ21: 0.003402190524 | BA21: =AZ20*(1-$J$18) -> 0.00327615099 | BB21: =BA20*(1-$J$19) -> 0.002712449377 | BC21: 0 | BD21: 0 | BE21: 0 | BF21: 0 | BG21: 0.05416424495 | BH21: 0.04917094582 | BI21: 0.005651447699 | BJ21: 0.00311038691 | BK21: 0.0009331160731 | BL21: 0.001552332864 | BM21: 0.00499329913 | BN21: 0.002177270837 | BO21: =BO20+AH20*(G20-H20)+AN20*D19+AO20*($J$7-$K$7)+AP20*($J$8-$K$8)+AQ20*($J$9-$K$9)+AR20*($J$10-$K$10)+AS20*($J$11-$K$11)+AT20*($J$12-$K$12)+AU20*($J$13-$K$13)+AV20*($J$14-$K$14)+AW20*($J$15-$K$15)+AX20*($J$16-$K$16)+AY20*($J$17-$K$17)+AZ20*($J$18-$K$18)+BA20*($J$19-$K$19)+BI20*E17+BJ20*M16 -> 0.2470146139 | BP21: 1 | BS21: 15 | BT21: =AM20*'Parameters for Model A v2'!B31 -> 100.7280611 | BU21: =AH20*H20*'Parameters for Model A v2'!$B$37+AN20*(1-I19)*'Parameters for Model A v2'!$B$38 -> 70.78601765 | BV21: =AO21*'Parameters for Model A v2'!$B$40+AP21*'Parameters for Model A v2'!$B$41+AQ21*'Parameters for Model A v2'!$B$42+AR21*'Parameters for Model A v2'!$B$43+AS21*'Parameters for Model A v2'!$B$44+AT21*'Parameters for Model A v2'!$B$45+AU21*'Parameters for Model A v2'!$B$46+AV21*'Parameters for Model A v2'!$B$47+AW21*'Parameters for Model A v2'!$B$48+AX21*'Parameters for Model A v2'!$B$49+AY21*'Parameters for Model A v2'!$B$50+AZ21*'Parameters for Model A v2'!$B$51+BA21*'Parameters for Model A v2'!$B$52+BB21*'Parameters for Model A v2'!$B$53+BC21*'Parameters for Model A v2'!$B$54+BD21*'Parameters for Model A v2'!$B$55+BE21*'Parameters for Model A v2'!$B$56+BF21*'Parameters for Model A v2'!$B$57 -> 85.01276612 | BW21: ='Parameters for Model A v2'!$B$60*(BI21-BI20*(1-L17))+BI20*(1-L17)*'Parameters for Model A v2'!$B$61 -> 52.27181583 | BX21: =BJ20*(1-M16)*'Parameters for Model A v2'!$B$63+BI20*(L17-E17)*'Parameters for Model A v2'!$B$64 -> 14.66599877 | BY21: ='SCT in Model A'!IJ21 -> 112.4014214 | BZ21: ='SCT in Model A'!IJ87 -> 354.1411856 | CA21: ='SCT in Model A'!IJ154 -> 131.0303854 | CB21: 921.0376519 | CD21: 0.6759865954 | CE21: 0.01252037832 | CF21: 0.05416424495 | CG21: 0.005651447699 | CH21: 0.0009331160731 | CI21: ='SCT in Model A'!NB21 -> 0.01692099669 | CJ21: ='SCT in Model A'!NB87 -> 0.04601685159 | CK21: ='SCT in Model A'!NB154 -> 0.0100892546 | CL21: 0.8222828853
A22: 16 | B22: 45 | C22: =1-EXP(-VLOOKUP(B22,'lifetable pDead'!$A$3:$D$85,gender+1,FALSE)) -> 0.001951904942 | D22: ='Parameters for Model A v2'!$B$10 -> 0.2903225806 | E22: ='Parameters for Model A v2'!$B$11 -> 0.4285714286 | G22: =IF(Probabilistic=1,'Survival for Model A'!L21,'Survival for Model A'!K21) -> 0.01958810228 | H22: =IF(Probabilistic=1,'Survival for Model A'!W21,'Survival for Model A'!V21) -> 0.01258498597 | I22: 0.7096774194 | J22: =IF(Probabilistic=1,'Survival for Model A'!L103,'Survival for Model A'!K103) -> 0.04687821588 | K22: =IF(Probabilistic=1,'Survival for Model A'!W103,'Survival for Model A'!V103) -> 0.04723157188 | L22: 0.5714285714 | M22: ='Parameters for Model A v2'!$B$15 -> 0.2 | N22: =IF('Parameters for Model A v2'!$B$66>0.0022,O21*0.0022,O21*'Parameters for Model A v2'!$B$66) -> 0.001549868936 | O22: 0.9749042207 | P22: =IF(Q22*'Parameters for Model A v2'!$B$67>BG23,BG23*0.05,Q22*'Parameters for Model A v2'!$B$67) -> 0.004914422028 | Q22: 0.9283876839 | S22: 16 | T22: 0 | U22: 0 | V22: 0 | W22: 0 | X22: 0 | Y22: 0 | Z22: 0 | AA22: 0 | AB22: 0 | AC22: 0 | AD22: 0 | AE22: 0 | AF22: 0 | AG22: 0 | AH22: 0 | AI22: 0 | AJ22: =AI21*(1-G21) -> 0.6640839243 | AK22: 0 | AL22: 0 | AM22: =AJ22-N22 -> 0.6625340553 | AN22: =AI21*H21+AN21*(1-I20) -> 0.01220233792 | AO22: 0.00525048123 | AP22: 0.004741521134 | AQ22: 0.0043929697 | AR22: 0.004128838468 | AS22: 0.003919236095 | AT22: 0.003749006372 | AU22: 0.003609529322 | AV22: 0.003495726909 | AW22: 0.003404768497 | AX22: 0.003335366354 | AY22: 0.003286832685 | AZ22: 0.003255894998 | BA22: 0.003224179864 | BB22: =BA21*(1-$J$19) -> 0.003109872374 | BC22: =BB21*(1-$J$20) -> 0.002578618767 | BD22: 0 | BE22: 0 | BF22: 0 | BG22: 0.05548284277 | BH22: 0.05051597568 | BI22: 0.005758767202 | BJ22: 0.0032956592 | BK22: 0.0009886977599 | BL22: 0.001549868936 | BM22: 0.004966867092 | BN22: 0.00230696144 | BO22: =BO21+AI21*(G21-H21)+AN21*D20+AO21*($J$7-$K$7)+AP21*($J$8-$K$8)+AQ21*($J$9-$K$9)+AR21*($J$10-$K$10)+AS21*($J$11-$K$11)+AT21*($J$12-$K$12)+AU21*($J$13-$K$13)+AV21*($J$14-$K$14)+AW21*($J$15-$K$15)+AX21*($J$16-$K$16)+AY21*($J$17-$K$17)+AZ21*($J$18-$K$18)+BA21*($J$19-$K$19)+BB21*($J$20-$K$20)+BI21*E18+BJ21*M17 -> 0.2591764686 | BP22: 1 | BS22: 16 | BT22: =AM21*'Parameters for Model A v2'!B32 -> 52.72695444 | BU22: =AI21*H21*'Parameters for Model A v2'!$B$37+AN21*(1-I20)*'Parameters for Model A v2'!$B$38 -> 69.00326686 | BV22: =AO22*'Parameters for Model A v2'!$B$40+AP22*'Parameters for Model A v2'!$B$41+AQ22*'Parameters for Model A v2'!$B$42+AR22*'Parameters for Model A v2'!$B$43+AS22*'Parameters for Model A v2'!$B$44+AT22*'Parameters for Model A v2'!$B$45+AU22*'Parameters for Model A v2'!$B$46+AV22*'Parameters for Model A v2'!$B$47+AW22*'Parameters for Model A v2'!$B$48+AX22*'Parameters for Model A v2'!$B$49+AY22*'Parameters for Model A v2'!$B$50+AZ22*'Parameters for Model A v2'!$B$51+BA22*'Parameters for Model A v2'!$B$52+BB22*'Parameters for Model A v2'!$B$53+BC22*'Parameters for Model A v2'!$B$54+BD22*'Parameters for Model A v2'!$B$55+BE22*'Parameters for Model A v2'!$B$56+BF22*'Parameters for Model A v2'!$B$57 -> 82.89556489 | BW22: ='Parameters for Model A v2'!$B$60*(BI22-BI21*(1-L18))+BI21*(1-L18)*'Parameters for Model A v2'!$B$61 -> 53.20191609 | BX22: =BJ21*(1-M17)*'Parameters for Model A v2'!$B$63+BI21*(L18-E18)*'Parameters for Model A v2'!$B$64 -> 15.71385609 | BY22: ='SCT in Model A'!IJ22 -> 113.1633788 | BZ22: ='SCT in Model A'!IJ88 -> 355.8367569 | CA22: ='SCT in Model A'!IJ155 -> 142.0143207 | CB22: 884.5560148 | CD22: 0.6625340553 | CE22: 0.01220233792 | CF22: 0.05548284277 | CG22: 0.005758767202 | CH22: 0.0009886977599 | CI22: ='SCT in Model A'!NB22 -> 0.0178041006 | CJ22: ='SCT in Model A'!NB88 -> 0.04912511422 | CK22: ='SCT in Model A'!NB155 -> 0.01183945021 | CL22: 0.815735366
A23: 17 | B23: 45 | C23: =1-EXP(-VLOOKUP(B23,'lifetable pDead'!$A$3:$D$85,gender+1,FALSE)) -> 0.001951904942 | D23: ='Parameters for Model A v2'!$B$10 -> 0.2903225806 | E23: ='Parameters for Model A v2'!$B$11 -> 0.4285714286 | G23: =IF(Probabilistic=1,'Survival for Model A'!L22,'Survival for Model A'!K22) -> 0.01933683041 | H23: =IF(Probabilistic=1,'Survival for Model A'!W22,'Survival for Model A'!V22) -> 0.01252888945 | I23: 0.7096774194 | J23: =IF(Probabilistic=1,'Survival for Model A'!L104,'Survival for Model A'!K104) -> 0.04579759709 | K23: =IF(Probabilistic=1,'Survival for Model A'!W104,'Survival for Model A'!V104) -> 0.04654678512 | L23: 0.5714285714 | M23: ='Parameters for Model A v2'!$B$15 -> 0.2 | N23: =IF('Parameters for Model A v2'!$B$66>0.0022,O22*0.0022,O22*'Parameters for Model A v2'!$B$66) -> 0.001547408919 | O23: 0.9733568118 | P23: =IF(Q23*'Parameters for Model A v2'!$B$67>BG24,BG24*0.05,Q23*'Parameters for Model A v2'!$B$67) -> 0.004888407525 | Q23: 0.9234732619 | S23: 17 | T23: 0 | U23: 0 | V23: 0 | W23: 0 | X23: 0 | Y23: 0 | Z23: 0 | AA23: 0 | AB23: 0 | AC23: 0 | AD23: 0 | AE23: 0 | AF23: 0 | AG23: 0 | AH23: 0 | AI23: 0 | AJ23: 0 | AK23: =AJ22*(1-G22) -> 0.6510757804 | AL23: 0 | AM23: =AK23-N23 -> 0.6495283715 | AN23: =AJ22*H22+AN22*(1-I21) -> 0.01190010111 | AO23: 0.005117109452 | AP23: 0.00461771212 | AQ23: 0.004274731619 | AR23: 0.004013910508 | AS23: 0.003805958049 | AT23: 0.003635929825 | AU23: 0.003495204308 | AV23: 0.003378533775 | AW23: 0.003282766184 | AX23: 0.003206241796 | AY23: 0.003148413096 | AZ23: 0.003109098314 | BA23: 0.003085538866 | BB23: 0.003060539004 | BC23: =BB22*(1-$J$20) -> 0.002956433153 | BD23: =BC22*(1-$J$21) -> 0.002454706538 | BE23: 0 | BF23: 0 | BG23: 0.05664282661 | BH23: 0.05170225164 | BI23: 0.005846736888 | BJ23: 0.003459208389 | BK23: 0.001037762517 | BL23: 0.001547408919 | BM23: 0.004940574971 | BN23: 0.002421445872 | BO23: =BO22+AJ22*(G22-H22)+AN22*D21+AO22*($J$7-$K$7)+AP22*($J$8-$K$8)+AQ22*($J$9-$K$9)+AR22*($J$10-$K$10)+AS22*($J$11-$K$11)+AT22*($J$12-$K$12)+AU22*($J$13-$K$13)+AV22*($J$14-$K$14)+AW22*($J$15-$K$15)+AX22*($J$16-$K$16)+AY22*($J$17-$K$17)+AZ22*($J$18-$K$18)+BA22*($J$19-$K$19)+BB22*($J$20-$K$20)+BC22*($J$21-$K$21)+BI22*E19+BJ22*M18 -> 0.2710753466 | BP23: 1 | BS23: 17 | BT23: =AM22*'Parameters for Model A v2'!B33 -> 49.69005415 | BU23: =AJ22*H22*'Parameters for Model A v2'!$B$37+AN22*(1-I21)*'Parameters for Model A v2'!$B$38 -> 67.30746712 | BV23: =AO23*'Parameters for Model A v2'!$B$40+AP23*'Parameters for Model A v2'!$B$41+AQ23*'Parameters for Model A v2'!$B$42+AR23*'Parameters for Model A v2'!$B$43+AS23*'Parameters for Model A v2'!$B$44+AT23*'Parameters for Model A v2'!$B$45+AU23*'Parameters for Model A v2'!$B$46+AV23*'Parameters for Model A v2'!$B$47+AW23*'Parameters for Model A v2'!$B$48+AX23*'Parameters for Model A v2'!$B$49+AY23*'Parameters for Model A v2'!$B$50+AZ23*'Parameters for Model A v2'!$B$51+BA23*'Parameters for Model A v2'!$B$52+BB23*'Parameters for Model A v2'!$B$53+BC23*'Parameters for Model A v2'!$B$54+BD23*'Parameters for Model A v2'!$B$55+BE23*'Parameters for Model A v2'!$B$56+BF23*'Parameters for Model A v2'!$B$57 -> 80.89389926 | BW23: ='Parameters for Model A v2'!$B$60*(BI23-BI22*(1-L19))+BI22*(1-L19)*'Parameters for Model A v2'!$B$61 -> 53.96201215 | BX23: =BJ22*(1-M18)*'Parameters for Model A v2'!$B$63+BI22*(L19-E19)*'Parameters for Model A v2'!$B$64 -> 16.64521072 | BY23: ='SCT in Model A'!IJ23 -> 113.8882286 | BZ23: ='SCT in Model A'!IJ89 -> 357.3644644 | CA23: ='SCT in Model A'!IJ156 -> 152.0803518 | CB23: 891.8316883 | CD23: 0.6495283715 | CE23: 0.01190010111 | CF23: 0.05664282661 | CG23: 0.005846736888 | CH23: 0.001037762517 | CI23: ='SCT in Model A'!NB23 -> 0.01865831667 | CJ23: ='SCT in Model A'!NB89 -> 0.05210333259 | CK23: ='SCT in Model A'!NB156 -> 0.01364782442 | CL23: 0.8093652723
A24: 18 | B24: 45 | C24: =1-EXP(-VLOOKUP(B24,'lifetable pDead'!$A$3:$D$85,gender+1,FALSE)) -> 0.001951904942 | D24: ='Parameters for Model A v2'!$B$10 -> 0.2903225806 | E24: ='Parameters for Model A v2'!$B$11 -> 0.4285714286 | G24: =IF(Probabilistic=1,'Survival for Model A'!L23,'Survival for Model A'!K23) -> 0.01910246564 | H24: =IF(Probabilistic=1,'Survival for Model A'!W23,'Survival for Model A'!V23) -> 0.01247614098 | I24: 0.7096774194 | J24: =IF(Probabilistic=1,'Survival for Model A'!L105,'Survival for Model A'!K105) -> 0.04479942762 | K24: =IF(Probabilistic=1,'Survival for Model A'!W105,'Survival for Model A'!V105) -> 0.04590898407 | L24: 0.5714285714 | M24: ='Parameters for Model A v2'!$B$15 -> 0.2 | N24: =IF('Parameters for Model A v2'!$B$66>0.0022,O23*0.0022,O23*'Parameters for Model A v2'!$B$66) -> 0.001544952807 | O24: 0.971811859 | P24: =IF(Q24*'Parameters for Model A v2'!$B$67>BG25,BG25*0.05,Q24*'Parameters for Model A v2'!$B$67) -> 0.00486253073 | Q24: 0.9185848544 | S24: 18 | T24: 0 | U24: 0 | V24: 0 | W24: 0 | X24: 0 | Y24: 0 | Z24: 0 | AA24: 0 | AB24: 0 | AC24: 0 | AD24: 0 | AE24: 0 | AF24: 0 | AG24: 0 | AH24: 0 | AI24: 0 | AJ24: 0 | AK24: 0 | AL24: =AK23*(1-G23) -> 0.6384860385 | AM24: =AL24-N24 -> 0.6369410857 | AN24: =AK23*H23+AN23*(1-I22) -> 0.01161212454 | AO24: 0.00499036498 | AP24: 0.004500413829 | AQ24: 0.004163111257 | AR24: 0.003905874918 | AS24: 0.003700017602 | AT24: 0.003530840206 | AU24: 0.003389782872 | AV24: 0.003271525108 | AW24: 0.003172712491 | AX24: 0.003091353247 | AY24: 0.0030265262 | AZ24: 0.002978163718 | BA24: 0.002946422932 | BB24: 0.002928934627 | BC24: 0.002909533862 | BD24: =BC23*(1-$J$21) -> 0.002814365537 | BE24: =BD23*(1-$J$22) -> 0.002339634275 | BF24: 0 | BG24: 0.05765957766 | BH24: 0.05274515563 | BI24: 0.005917938108 | BJ24: 0.003602614838 | BK24: 0.001080784451 | BL24: 0.001544952807 | BM24: 0.004914422028 | BN24: 0.002521830386 | BO24: =BO23+AK23*(G23-H23)+AN23*D22+AO23*($J$7-$K$7)+AP23*($J$8-$K$8)+AQ23*($J$9-$K$9)+AR23*($J$10-$K$10)+AS23*($J$11-$K$11)+AT23*($J$12-$K$12)+AU23*($J$13-$K$13)+AV23*($J$14-$K$14)+AW23*($J$15-$K$15)+AX23*($J$16-$K$16)+AY23*($J$17-$K$17)+AZ23*($J$18-$K$18)+BA23*($J$19-$K$19)+BB23*($J$20-$K$20)+BC23*($J$21-$K$21)+BD23*($J$22-$K$22)+BI23*E20+BJ23*M19 -> 0.2827217064 | BP24: 1 | BS24: 18 | BT24: =AM23*'Parameters for Model A v2'!$B$34 -> 38.32217392 | BU24: =AK23*H23*'Parameters for Model A v2'!$B$37+AN23*(1-I22)*'Parameters for Model A v2'!$B$38 -> 65.69033816 | BV24: =AO24*'Parameters for Model A v2'!$B$40+AP24*'Parameters for Model A v2'!$B$41+AQ24*'Parameters for Model A v2'!$B$42+AR24*'Parameters for Model A v2'!$B$43+AS24*'Parameters for Model A v2'!$B$44+AT24*'Parameters for Model A v2'!$B$45+AU24*'Parameters for Model A v2'!$B$46+AV24*'Parameters for Model A v2'!$B$47+AW24*'Parameters for Model A v2'!$B$48+AX24*'Parameters for Model A v2'!$B$49+AY24*'Parameters for Model A v2'!$B$50+AZ24*'Parameters for Model A v2'!$B$51+BA24*'Parameters for Model A v2'!$B$52+BB24*'Parameters for Model A v2'!$B$53+BC24*'Parameters for Model A v2'!$B$54+BD24*'Parameters for Model A v2'!$B$55+BE24*'Parameters for Model A v2'!$B$56+BF24*'Parameters for Model A v2'!$B$57 -> 78.99401589 | BW24: ='Parameters for Model A v2'!$B$60*(BI24-BI23*(1-L20))+BI23*(1-L20)*'Parameters for Model A v2'!$B$61 -> 54.57444685 | BX24: =BJ23*(1-M19)*'Parameters for Model A v2'!$B$63+BI23*(L20-E20)*'Parameters for Model A v2'!$B$64 -> 17.46722714 | BY24: ='SCT in Model A'!IJ24 -> 114.5789964 | BZ24: ='SCT in Model A'!IJ90 -> 358.7399888 | CA24: ='SCT in Model A'!IJ157 -> 161.2603648 | CB24: 889.627552 | CD24: 0.6369410857 | CE24: 0.01161212454 | CF24: 0.05765957766 | CG24: 0.005917938108 | CH24: 0.001080784451 | CI24: ='SCT in Model A'!NB24 -> 0.01948540929 | CJ24: ='SCT in Model A'!NB90 -> 0.0549603929 | CK24: ='SCT in Model A'!NB157 -> 0.01549786501 | CL24: 0.8031551776
A25: 19 | B25: 45 | C25: =1-EXP(-VLOOKUP(B25,'lifetable pDead'!$A$3:$D$85,gender+1,FALSE)) -> 0.001951904942 | D25: ='Parameters for Model A v2'!$B$10 -> 0.2903225806 | E25: ='Parameters for Model A v2'!$B$11 -> 0.4285714286 | G25: =C25+H25 -> 0.01442804592 | H25: =H24 -> 0.01247614098 | I25: 0.7096774194 | J25: =J24 -> 0.04479942762 | K25: =K24 -> 0.04590898407 | L25: 0.5714285714 | M25: ='Parameters for Model A v2'!$B$15 -> 0.2 | N25: =IF('Parameters for Model A v2'!$B$66>0.0022,O24*0.0022,O24*'Parameters for Model A v2'!$B$66) -> 0.001542500593 | O25: 0.9702693584 | P25: =IF(Q25*'Parameters for Model A v2'!$B$67>BG26,BG26*0.05,Q25*'Parameters for Model A v2'!$B$67) -> 0.004836790914 | Q25: 0.9137223236 | S25: 19 | T25: 0 | U25: 0 | V25: 0 | W25: 0 | X25: 0 | Y25: 0 | Z25: 0 | AA25: 0 | AB25: 0 | AC25: 0 | AD25: 0 | AE25: 0 | AF25: 0 | AG25: 0 | AH25: 0 | AI25: 0 | AJ25: 0 | AK25: 0 | AL25: =AL24*(1-G24) -> 0.6262893809 | AM25: 0.6247468803 | AN25: =AL24*H24+AN24*(1-I23) -> 0.01133710379 | AO25: 0.004869600614 | AP25: 0.004388944144 | AQ25: 0.004057360655 | AR25: 0.003803886018 | AS25: 0.003600430532 | AT25: 0.00343255778 | AU25: 0.003291807662 | AV25: 0.003172850226 | AW25: 0.003072222824 | AX25: 0.002987716612 | AY25: 0.00291807736 | AZ25: 0.002862867815 | BA25: 0.002822339144 | BB25: 0.002796879419 | BC25: 0.002784422765 | BD25: 0.002769719931 | BE25: =BD24*(1-$J$22) -> 0.002682433102 | BF25: =BE24*(1-$J$23) -> 0.002232484647 | BG25: 0.05854660125 | BH25: 0.05365819372 | BI25: 0.00597452309 | BJ25: 0.0037275116 | BK25: 0.00111825348 | BL25: 0.001542500593 | BM25: 0.004888407525 | BN25: 0.00260925812 | BO25: =BO24+AL24*(G24-H24)+AN24*D23+AO24*($J$7-$K$7)+AP24*($J$8-$K$8)+AQ24*($J$9-$K$9)+AR24*($J$10-$K$10)+AS24*($J$11-$K$11)+AT24*($J$12-$K$12)+AU24*($J$13-$K$13)+AV24*($J$14-$K$14)+AW24*($J$15-$K$15)+AX24*($J$16-$K$16)+AY24*($J$17-$K$17)+AZ24*($J$18-$K$18)+BA24*($J$19-$K$19)+BB24*($J$20-$K$20)+BC24*($J$21-$K$21)+BD24*($J$22-$K$22)+BE24*($J$23-$K$23)+BI24*E21+BJ24*M20 -> 0.2941248794 | BP25: 1 | BS25: 19 | BT25: =AM24*'Parameters for Model A v2'!$B$34 -> 37.57952405 | BU25: =AL24*H24*'Parameters for Model A v2'!$B$37+AN24*(1-I23)*'Parameters for Model A v2'!$B$38 -> 64.14484797 | BV25: =AO25*'Parameters for Model A v2'!$B$40+AP25*'Parameters for Model A v2'!$B$41+AQ25*'Parameters for Model A v2'!$B$42+AR25*'Parameters for Model A v2'!$B$43+AS25*'Parameters for Model A v2'!$B$44+AT25*'Parameters for Model A v2'!$B$45+AU25*'Parameters for Model A v2'!$B$46+AV25*'Parameters for Model A v2'!$B$47+AW25*'Parameters for Model A v2'!$B$48+AX25*'Parameters for Model A v2'!$B$49+AY25*'Parameters for Model A v2'!$B$50+AZ25*'Parameters for Model A v2'!$B$51+BA25*'Parameters for Model A v2'!$B$52+BB25*'Parameters for Model A v2'!$B$53+BC25*'Parameters for Model A v2'!$B$54+BD25*'Parameters for Model A v2'!$B$55+BE25*'Parameters for Model A v2'!$B$56+BF25*'Parameters for Model A v2'!$B$57 -> 77.18478031 | BW25: ='Parameters for Model A v2'!$B$60*(BI25-BI24*(1-L21))+BI24*(1-L21)*'Parameters for Model A v2'!$B$61 -> 55.05792737 | BX25: =BJ24*(1-M20)*'Parameters for Model A v2'!$B$63+BI24*(L21-E21)*'Parameters for Model A v2'!$B$64 -> 18.18788354 | BY25: ='SCT in Model A'!IJ25 -> 115.2383193 | BZ25: ='SCT in Model A'!IJ91 -> 359.9771471 | CA25: ='SCT in Model A'!IJ158 -> 169.5988468 | CB25: 896.9692764 | CD25: 0.6247468803 | CE25: 0.01133710379 | CF25: 0.05854660125 | CG25: 0.00597452309 | CH25: 0.00111825348 | CI25: ='SCT in Model A'!NB25 -> 0.02028695289 | CJ25: ='SCT in Model A'!NB91 -> 0.05770421059 | CK25: ='SCT in Model A'!NB158 -> 0.01737501016 | CL25: 0.7970895355
A26: 20 | B26: 45 | C26: =1-EXP(-VLOOKUP(B26,'lifetable pDead'!$A$3:$D$85,gender+1,FALSE)) -> 0.001951904942 | D26: ='Parameters for Model A v2'!$B$10 -> 0.2903225806 | E26: ='Parameters for Model A v2'!$B$11 -> 0.4285714286 | G26: 0.01442804592 | H26: =H25 -> 0.01247614098 | I26: 0.7096774194 | J26: =J25 -> 0.04479942762 | K26: 0.04590898407 | L26: 0.5714285714 | M26: ='Parameters for Model A v2'!$B$15 -> 0.2 | N26: =IF('Parameters for Model A v2'!$B$66>0.0022,O25*0.0022,O25*'Parameters for Model A v2'!$B$66) -> 0.001540052271 | O26: 0.9687293062 | P26: =IF(Q26*'Parameters for Model A v2'!$B$67>BG27,BG27*0.05,Q26*'Parameters for Model A v2'!$B$67) -> 0.004811187352 | Q26: 0.9088855327 | S26: 20 | T26: 0 | U26: 0 | V26: 0 | W26: 0 | X26: 0 | Y26: 0 | Z26: 0 | AA26: 0 | AB26: 0 | AC26: 0 | AD26: 0 | AE26: 0 | AF26: 0 | AG26: 0 | AH26: 0 | AI26: 0 | AJ26: 0 | AK26: 0 | AL26: 0.6172532489 | AM26: 0.6157131967 | AN26: 0.01110509184 | AO26: 0.004754269333 | AP26: 0.004282733866 | AQ26: 0.003956864849 | AR26: 0.003707260391 | AS26: 0.003506417294 | AT26: 0.003340169471 | AU26: 0.003200178807 | AV26: 0.00308114504 | AW26: 0.002979559245 | AX26: 0.002893086339 | AY26: 0.002820249744 | AZ26: 0.002760283309 | BA26: 0.002713075795 | BB26: 0.002679093411 | BC26: 0.002658883081 | BD26: 0.002650620888 | BE26: 0.002639880402 | BF26: =BF25*(1-$J$24)+BE25*(1-$J$23) -> 0.004692054724 | BG26: 0.05931582599 | BH26: 0.05445329526 | BI26: 0.006018305331 | BJ26: 0.003835512579 | BK26: 0.001150653774 | BL26: 0.001540052271 | BM26: 0.00486253073 | BN26: 0.002684858805 | BO26: =BO25+AL25*(G25-H25)+AN25*D24+AO25*($J$7-$K$7)+AP25*($J$8-$K$8)+AQ25*($J$9-$K$9)+AR25*($J$10-$K$10)+AS25*($J$11-$K$11)+AT25*($J$12-$K$12)+AU25*($J$13-$K$13)+AV25*($J$14-$K$14)+AW25*($J$15-$K$15)+AX25*($J$16-$K$16)+AY25*($J$17-$K$17)+AZ25*($J$18-$K$18)+BA25*($J$19-$K$19)+BB25*($J$20-$K$20)+BC25*($J$21-$K$21)+BD25*($J$22-$K$22)+BE25*($J$23-$K$23)+BF25*($J$24-$K$24)+BI25*E22+BJ25*M21 -> 0.3024720153 | BP26: 1 | BS26: 20 | BT26: =AM25*'Parameters for Model A v2'!$B$34 -> 36.86006594 | BU26: =AL25*H25*'Parameters for Model A v2'!$B$37+AN25*(1-I24)*'Parameters for Model A v2'!$B$38 -> 62.89498061 | BV26: =AO26*'Parameters for Model A v2'!$B$40+AP26*'Parameters for Model A v2'!$B$41+AQ26*'Parameters for Model A v2'!$B$42+AR26*'Parameters for Model A v2'!$B$43+AS26*'Parameters for Model A v2'!$B$44+AT26*'Parameters for Model A v2'!$B$45+AU26*'Parameters for Model A v2'!$B$46+AV26*'Parameters for Model A v2'!$B$47+AW26*'Parameters for Model A v2'!$B$48+AX26*'Parameters for Model A v2'!$B$49+AY26*'Parameters for Model A v2'!$B$50+AZ26*'Parameters for Model A v2'!$B$51+BA26*'Parameters for Model A v2'!$B$52+BB26*'Parameters for Model A v2'!$B$53+BC26*'Parameters for Model A v2'!$B$54+BD26*'Parameters for Model A v2'!$B$55+BE26*'Parameters for Model A v2'!$B$56+BF26*'Parameters for Model A v2'!$B$57+BF25*(1-$J$24)*'Parameters for Model A v2'!$B$57 -> 75.60203106 | BW26: ='Parameters for Model A v2'!$B$60*(BI26-BI25*(1-L22))+BI25*(1-L22)*'Parameters for Model A v2'!$B$61 -> 55.42827389 | BX26: =BJ25*(1-M21)*'Parameters for Model A v2'!$B$63+BI25*(L22-E22)*'Parameters for Model A v2'!$B$64 -> 18.81541364 | BY26: ='SCT in Model A'!IJ26 -> 115.868501 | BZ26: ='SCT in Model A'!IJ92 -> 361.0880349 | CA26: ='SCT in Model A'!IJ159 -> 177.1470771 | CB26: 903.7043782 | CD26: 0.6157131967 | CE26: 0.01110509184 | CF26: 0.05931582599 | CG26: 0.006018305331 | CH26: 0.001150653774 | CI26: ='SCT in Model A'!NB26 -> 0.021064358 | CJ26: ='SCT in Model A'!NB92 -> 0.06034183672 | CK26: ='SCT in Model A'!NB159 -> 0.01926656234 | CL26: 0.7939758307
A27: 21 | B27: 45 | C27: =1-EXP(-VLOOKUP(B27,'lifetable pDead'!$A$3:$D$85,gender+1,FALSE)) -> 0.001951904942 | D27: ='Parameters for Model A v2'!$B$10 -> 0.2903225806 | E27: ='Parameters for Model A v2'!$B$11 -> 0.4285714286 | G27: 0.01442804592 | H27: 0.01247614098 | I27: 0.7096774194 | J27: 0.04479942762 | K27: 0.04590898407 | L27: 0.5714285714 | M27: ='Parameters for Model A v2'!$B$15 -> 0.2 | N27: =IF('Parameters for Model A v2'!$B$66>0.0022,O26*0.0022,O26*'Parameters for Model A v2'!$B$66) -> 0.001537607835 | O27: 0.9671916983 | P27: =IF(Q27*'Parameters for Model A v2'!$B$67>BG28,BG28*0.05,Q27*'Parameters for Model A v2'!$B$67) -> 0.004785719322 | Q27: 0.9040743454 | S27: 21 | T27: 0 | U27: 0 | V27: 0 | W27: 0 | X27: 0 | Y27: 0 | Z27: 0 | AA27: 0 | AB27: 0 | AC27: 0 | AD27: 0 | AE27: 0 | AF27: 0 | AG27: 0 | AH27: 0 | AI27: 0 | AJ27: 0 | AK27: 0 | AL27: 0.6083474907 | AM27: 0.6068098829 | AN27: 0.01092499748 | AO27: 0.004656973998 | AP27: 0.004181301896 | AQ27: 0.003861110676 | AR27: 0.003615436136 | AS27: 0.003417347914 | AT27: 0.003252952083 | AU27: 0.003114045047 | AV27: 0.002995380069 | AW27: 0.002893440766 | AX27: 0.002805825827 | AY27: 0.002730923668 | AZ27: 0.002667745688 | BA27: 0.002615858754 | BB27: 0.002575375643 | BC27: 0.002546908564 | BD27: 0.002531113853 | BE27: 0.00252636451 | BF27: =BF26*(1-$J$24)+BE26*(1-$J$23) -> 0.007000833581 | BG27: 0.05998893867 | BH27: 0.05515214776 | BI27: 0.006052098666 | BJ27: 0.003928167967 | BK27: 0.00117845039 | BL27: 0.001537607835 | BM27: 0.004836790914 | BN27: 0.002749717577 | BO27: 0.3107583065 | BP27: 1 | BS27: 21 | BT27: =AM26*'Parameters for Model A v2'!$B$34 -> 36.3270786 | BU27: =AL26*H26*'Parameters for Model A v2'!$B$37+AN26*(1-I25)*'Parameters for Model A v2'!$B$38 -> 61.95595616 | BV27: =AO27*'Parameters for Model A v2'!$B$40+AP27*'Parameters for Model A v2'!$B$41+AQ27*'Parameters for Model A v2'!$B$42+AR27*'Parameters for Model A v2'!$B$43+AS27*'Parameters for Model A v2'!$B$44+AT27*'Parameters for Model A v2'!$B$45+AU27*'Parameters for Model A v2'!$B$46+AV27*'Parameters for Model A v2'!$B$47+AW27*'Parameters for Model A v2'!$B$48+AX27*'Parameters for Model A v2'!$B$49+AY27*'Parameters for Model A v2'!$B$50+AZ27*'Parameters for Model A v2'!$B$51+BA27*'Parameters for Model A v2'!$B$52+BB27*'Parameters for Model A v2'!$B$53+BC27*'Parameters for Model A v2'!$B$54+BD27*'Parameters for Model A v2'!$B$55+BE27*'Parameters for Model A v2'!$B$56+BF27*'Parameters for Model A v2'!$B$57+BF26*(1-$J$24)*'Parameters for Model A v2'!$B$57 -> 74.18965123 | BW27: ='Parameters for Model A v2'!$B$60*(BI27-BI26*(1-L23))+BI26*(1-L23)*'Parameters for Model A v2'!$B$61 -> 55.71385753 | BX27: =BJ26*(1-M22)*'Parameters for Model A v2'!$B$63+BI26*(L23-E23)*'Parameters for Model A v2'!$B$64 -> 19.35794831 | BY27: ='SCT in Model A'!IJ27 -> 116.4715613 | BZ27: ='SCT in Model A'!IJ93 -> 362.0832146 | CA27: ='SCT in Model A'!IJ160 -> 183.9592238 | CB27: 910.0584915 | CD27: 0.6068098829 | CE27: 0.01092499748 | CF27: 0.05998893867 | CG27: 0.006052098666 | CH27: 0.00117845039 | CI27: ='SCT in Model A'!NB27 -> 0.02181889412 | CJ27: ='SCT in Model A'!NB93 -> 0.06287956484 | CK27: ='SCT in Model A'!NB160 -> 0.02116155583 | CL27: 0.7908143829
A28: 22 | B28: 45 | C28: =1-EXP(-VLOOKUP(B28,'lifetable pDead'!$A$3:$D$85,gender+1,FALSE)) -> 0.001951904942 | D28: ='Parameters for Model A v2'!$B$10 -> 0.2903225806 | E28: ='Parameters for Model A v2'!$B$11 -> 0.4285714286 | G28: 0.01442804592 | H28: 0.01247614098 | I28: 0.7096774194 | J28: 0.04479942762 | K28: 0.04590898407 | L28: 0.5714285714 | M28: ='Parameters for Model A v2'!$B$15 -> 0.2 | N28: =IF('Parameters for Model A v2'!$B$66>0.0022,O27*0.0022,O27*'Parameters for Model A v2'!$B$66) -> 0.001535167279 | O28: 0.965656531 | P28: =IF(Q28*'Parameters for Model A v2'!$B$67>BG29,BG29*0.05,Q28*'Parameters for Model A v2'!$B$67) -> 0.004760386108 | Q28: 0.899288626 | S28: 22 | T28: 0 | U28: 0 | V28: 0 | W28: 0 | X28: 0 | Y28: 0 | Z28: 0 | AA28: 0 | AB28: 0 | AC28: 0 | AD28: 0 | AE28: 0 | AF28: 0 | AG28: 0 | AH28: 0 | AI28: 0 | AJ28: 0 | AK28: 0 | AL28: 0.5995702252 | AM28: 0.5980350579 | AN28: 0.01076160252 | AO28: 0.004581450555 | AP28: 0.004095732244 | AQ28: 0.0037696644 | AR28: 0.003527944369 | AS28: 0.003332704432 | AT28: 0.00317032118 | AU28: 0.003032732144 | AV28: 0.002914758527 | AW28: 0.002812900623 | AX28: 0.002724728782 | AY28: 0.002648554264 | AZ28: 0.00258324989 | BA28: 0.00252816292 | BB28: 0.00248309278 | BC28: 0.002448308168 | BD28: 0.002424520128 | BE28: 0.002412459751 | BF28: =BF27*(1-$J$24)+BE27*(1-$J$23) -> 0.00909786333 | BG28: 0.06058914849 | BH28: 0.05577796114 | BI28: 0.006078798551 | BJ28: 0.004007119898 | BK28: 0.001202135969 | BL28: 0.001535167279 | BM28: 0.004811187352 | BN28: 0.002804983928 | BO28: 0.3189931054 | BP28: 1 | BS28: 22 | BT28: =AM27*'Parameters for Model A v2'!$B$34 -> 35.80178309 | BU28: =AL27*H27*'Parameters for Model A v2'!$B$37+AN27*(1-I26)*'Parameters for Model A v2'!$B$38 -> 61.05288649 | BV28: =AO28*'Parameters for Model A v2'!$B$40+AP28*'Parameters for Model A v2'!$B$41+AQ28*'Parameters for Model A v2'!$B$42+AR28*'Parameters for Model A v2'!$B$43+AS28*'Parameters for Model A v2'!$B$44+AT28*'Parameters for Model A v2'!$B$45+AU28*'Parameters for Model A v2'!$B$46+AV28*'Parameters for Model A v2'!$B$47+AW28*'Parameters for Model A v2'!$B$48+AX28*'Parameters for Model A v2'!$B$49+AY28*'Parameters for Model A v2'!$B$50+AZ28*'Parameters for Model A v2'!$B$51+BA28*'Parameters for Model A v2'!$B$52+BB28*'Parameters for Model A v2'!$B$53+BC28*'Parameters for Model A v2'!$B$54+BD28*'Parameters for Model A v2'!$B$55+BE28*'Parameters for Model A v2'!$B$56+BF28*'Parameters for Model A v2'!$B$57+BF27*(1-$J$24)*'Parameters for Model A v2'!$B$57 -> 72.99781725 | BW28: ='Parameters for Model A v2'!$B$60*(BI28-BI27*(1-L24))+BI27*(1-L24)*'Parameters for Model A v2'!$B$61 -> 55.94149702 | BX28: =BJ27*(1-M23)*'Parameters for Model A v2'!$B$63+BI27*(L24-E24)*'Parameters for Model A v2'!$B$64 -> 19.82331913 | BY28: ='SCT in Model A'!IJ28 -> 117.0503141 | BZ28: ='SCT in Model A'!IJ94 -> 362.9719131 | CA28: ='SCT in Model A'!IJ161 -> 190.0897642 | CB28: 915.7292945 | CD28: 0.5980350579 | CE28: 0.01076160252 | CF28: 0.06058914849 | CG28: 0.006078798551 | CH28: 0.001202135969 | CI28: ='SCT in Model A'!NB28 -> 0.02255157435 | CJ28: ='SCT in Model A'!NB94 -> 0.06532303089 | CK28: ='SCT in Model A'!NB161 -> 0.02305060151 | CL28: 0.7875919502
A29: 23 | B29: =Age_1+ROUNDDOWN(A29/12,0) -> 45 | C29: =1-EXP(-VLOOKUP(B29,'lifetable pDead'!$A$3:$D$85,gender+1,FALSE)) -> 0.001951904942 | D29: ='Parameters for Model A v2'!$B$10 -> 0.2903225806 | E29: ='Parameters for Model A v2'!$B$11 -> 0.4285714286 | G29: 0.01442804592 | H29: 0.01247614098 | I29: 0.7096774194 | J29: 0.04479942762 | K29: 0.04590898407 | L29: 0.5714285714 | M29: ='Parameters for Model A v2'!$B$15 -> 0.2 | N29: =IF('Parameters for Model A v2'!$B$66>0.0022,O28*0.0022,O28*'Parameters for Model A v2'!$B$66) -> 0.001532730597 | O29: 0.9641238004 | P29: =IF(Q29*'Parameters for Model A v2'!$B$67>BG30,BG30*0.05,Q29*'Parameters for Model A v2'!$B$67) -> 0.004735186994 | Q29: 0.8945282399 | S29: 23 | T29: 0 | U29: 0 | V29: 0 | W29: 0 | X29: 0 | Y29: 0 | Z29: 0 | AA29: 0 | AB29: 0 | AC29: 0 | AD29: 0 | AE29: 0 | AF29: 0 | AG29: 0 | AH29: 0 | AI29: 0 | AJ29: 0 | AK29: 0 | AL29: 0.5909195984 | AM29: 0.5893868678 | AN29: 0.01060465887 | AO29: 0.004512930089 | AP29: 0.004029310615 | AQ29: 0.003692518842 | AR29: 0.003444388781 | AS29: 0.003252054633 | AT29: 0.003091796245 | AU29: 0.002955695229 | AV29: 0.002838649327 | AW29: 0.002737190569 | AX29: 0.002648884808 | AY29: 0.002572002853 | AZ29: 0.002505334584 | BA29: 0.002448088142 | BB29: 0.002399847884 | BC29: 0.002360578486 | BD29: 0.002330657848 | BE29: 0.00231086295 | BF29: 0.01099225915 | BG29: 0.06112305104 | BH29: 0.05633733171 | BI29: 0.006101145792 | BJ29: 0.004074095711 | BK29: 0.001222228713 | BL29: 0.001532730597 | BM29: 0.004785719322 | BN29: 0.002851866998 | BO29: 0.3271774502 | BP29: 1 | BS29: 23 | BT29: =AM28*'Parameters for Model A v2'!$B$34 -> 35.28406842 | BU29: =AL28*H28*'Parameters for Model A v2'!$B$37+AN28*(1-I27)*'Parameters for Model A v2'!$B$38 -> 60.16935146 | BV29: =AO29*'Parameters for Model A v2'!$B$40+AP29*'Parameters for Model A v2'!$B$41+AQ29*'Parameters for Model A v2'!$B$42+AR29*'Parameters for Model A v2'!$B$43+AS29*'Parameters for Model A v2'!$B$44+AT29*'Parameters for Model A v2'!$B$45+AU29*'Parameters for Model A v2'!$B$46+AV29*'Parameters for Model A v2'!$B$47+AW29*'Parameters for Model A v2'!$B$48+AX29*'Parameters for Model A v2'!$B$49+AY29*'Parameters for Model A v2'!$B$50+AZ29*'Parameters for Model A v2'!$B$51+BA29*'Parameters for Model A v2'!$B$52+BB29*'Parameters for Model A v2'!$B$53+BC29*'Parameters for Model A v2'!$B$54+BD29*'Parameters for Model A v2'!$B$55+BE29*'Parameters for Model A v2'!$B$56+BF29*'Parameters for Model A v2'!$B$57+BF28*(1-$J$24)*'Parameters for Model A v2'!$B$57 -> 71.96264786 | BW29: ='Parameters for Model A v2'!$B$60*(BI29-BI28*(1-L25))+BI28*(1-L25)*'Parameters for Model A v2'!$B$61 -> 56.1359975 | BX29: =BJ28*(1-M24)*'Parameters for Model A v2'!$B$63+BI28*(L25-E25)*'Parameters for Model A v2'!$B$64 -> 20.21982048 | BY29: ='SCT in Model A'!IJ29 -> 117.6066803 | BZ29: ='SCT in Model A'!IJ95 -> 363.7622106 | CA29: ='SCT in Model A'!IJ162 -> 195.5988163 | CB29: 920.7395929 | CD29: 0.5893868678 | CE29: 0.01060465887 | CF29: 0.06112305104 | CG29: 0.006101145792 | CH29: 0.001222228713 | CI29: ='SCT in Model A'!NB29 -> 0.02326333302 | CJ29: ='SCT in Model A'!NB95 -> 0.06767730281 | CK29: ='SCT in Model A'!NB162 -> 0.02492585171 | CL29: 0.7843044398
A30: 24 | B30: =Age_1+ROUNDDOWN(A30/13,0) -> 45 | C30: =1-EXP(-VLOOKUP(B30,'lifetable pDead'!$A$3:$D$85,gender+1,FALSE)) -> 0.001951904942 | D30: ='Parameters for Model A v2'!$B$10 -> 0.2903225806 | E30: ='Parameters for Model A v2'!$B$11 -> 0.4285714286 | G30: 0.01442804592 | H30: 0.01247614098 | I30: 0.7096774194 | J30: 0.04479942762 | K30: 0.04590898407 | L30: 0.5714285714 | M30: ='Parameters for Model A v2'!$B$15 -> 0.2 | N30: =IF('Parameters for Model A v2'!$B$66>0.0022,O29*0.0022,O29*'Parameters for Model A v2'!$B$66) -> 0.001530297783 | O30: 0.9625935027 | P30: =IF(Q30*'Parameters for Model A v2'!$B$67>BG31,BG31*0.05,Q30*'Parameters for Model A v2'!$B$67) -> 0.004710121273 | Q30: 0.8897930529 | S30: 24 | T30: 0 | U30: 0 | V30: 0 | W30: 0 | X30: 0 | Y30: 0 | Z30: 0 | AA30: 0 | AB30: 0 | AC30: 0 | AD30: 0 | AE30: 0 | AF30: 0 | AG30: 0 | AH30: 0 | AI30: 0 | AJ30: 0 | AK30: 0 | AL30: 0.5823937833 | AM30: 0.5808634855 | AN30: 0.01045116815 | AO30: 0.004447115011 | AP30: 0.003969047989 | AQ30: 0.003632636237 | AR30: 0.003373899934 | AS30: 0.003175033198 | AT30: 0.003016976305 | AU30: 0.002882486313 | AV30: 0.002766542468 | AW30: 0.002665717964 | AX30: 0.002577589288 | AY30: 0.002500410069 | AZ30: 0.002432922665 | BA30: 0.002374249549 | BB30: 0.002323837242 | BC30: 0.002281440842 | BD30: 0.002247143904 | BE30: 0.002221400766 | BF30: 0.01270484321 | BG30: 0.06159329296 | BH30: 0.05683290685 | BI30: 0.006120290783 | BJ30: 0.004130868825 | BK30: 0.001239260647 | BL30: 0.001530297783 | BM30: 0.004760386108 | BN30: 0.002891608177 | BO30: 0.335310596 | BP30: 1 | BS30: 24 | BT30: =AM29*'Parameters for Model A v2'!$B$34 -> 34.7738252 | BU30: =AL29*H29*'Parameters for Model A v2'!$B$37+AN29*(1-I28)*'Parameters for Model A v2'!$B$38 -> 59.30045269 | BV30: =AO30*'Parameters for Model A v2'!$B$40+AP30*'Parameters for Model A v2'!$B$41+AQ30*'Parameters for Model A v2'!$B$42+AR30*'Parameters for Model A v2'!$B$43+AS30*'Parameters for Model A v2'!$B$44+AT30*'Parameters for Model A v2'!$B$45+AU30*'Parameters for Model A v2'!$B$46+AV30*'Parameters for Model A v2'!$B$47+AW30*'Parameters for Model A v2'!$B$48+AX30*'Parameters for Model A v2'!$B$49+AY30*'Parameters for Model A v2'!$B$50+AZ30*'Parameters for Model A v2'!$B$51+BA30*'Parameters for Model A v2'!$B$52+BB30*'Parameters for Model A v2'!$B$53+BC30*'Parameters for Model A v2'!$B$54+BD30*'Parameters for Model A v2'!$B$55+BE30*'Parameters for Model A v2'!$B$56+BF30*'Parameters for Model A v2'!$B$57+BF29*(1-$J$24)*'Parameters for Model A v2'!$B$57 -> 71.03128368 | BW30: ='Parameters for Model A v2'!$B$60*(BI30-BI29*(1-L26))+BI29*(1-L26)*'Parameters for Model A v2'!$B$61 -> 56.30394704 | BX30: =BJ29*(1-M25)*'Parameters for Model A v2'!$B$63+BI29*(L26-E26)*'Parameters for Model A v2'!$B$64 -> 20.55617091 | BY30: ='SCT in Model A'!IJ30 -> 118.1420911 | BZ30: ='SCT in Model A'!IJ96 -> 364.4612098 | CA30: ='SCT in Model A'!IJ163 -> 200.5518516 | CB30: 925.120832 | CD30: 0.5808634855 | CE30: 0.01045116815 | CF30: 0.06159329296 | CG30: 0.006120290783 | CH30: 0.001239260647 | CI30: ='SCT in Model A'!NB30 -> 0.02395494984 | CJ30: ='SCT in Model A'!NB96 -> 0.06994695879 | CK30: ='SCT in Model A'!NB163 -> 0.0267809661 | CL30: 0.7809503728
A31: 25 | B31: 45 | C31: =1-EXP(-VLOOKUP(B31,'lifetable pDead'!$A$3:$D$85,gender+1,FALSE)) -> 0.001951904942 | D31: ='Parameters for Model A v2'!$B$10 -> 0.2903225806 | E31: ='Parameters for Model A v2'!$B$11 -> 0.4285714286 | G31: 0.01442804592 | H31: 0.01247614098 | I31: 0.7096774194 | J31: 0.04479942762 | K31: 0.04590898407 | L31: 0.5714285714 | M31: ='Parameters for Model A v2'!$B$15 -> 0.2 | N31: =IF('Parameters for Model A v2'!$B$66>0.0022,O30*0.0022,O30*'Parameters for Model A v2'!$B$66) -> 0.00152786883 | O31: 0.9610656338 | P31: =IF(Q31*'Parameters for Model A v2'!$B$67>BG32,BG32*0.05,Q31*'Parameters for Model A v2'!$B$67) -> 0.004685188236 | Q31: 0.8850829317 | S31: 25 | T31: 0 | U31: 0 | V31: 0 | W31: 0 | X31: 0 | Y31: 0 | Z31: 0 | AA31: 0 | AB31: 0 | AC31: 0 | AD31: 0 | AE31: 0 | AF31: 0 | AG31: 0 | AH31: 0 | AI31: 0 | AJ31: 0 | AK31: 0 | AL31: 0.5739909791 | AM31: 0.5724631102 | AN31: 0.01030023706 | AO31: 0.004382747934 | AP31: 0.003911164708 | AQ31: 0.003578306298 | AR31: 0.00331918446 | AS31: 0.003110056669 | AT31: 0.002945522448 | AU31: 0.002812731569 | AV31: 0.002698018633 | AW31: 0.002598003877 | AX31: 0.002510284139 | AY31: 0.002433110792 | AZ31: 0.002365201237 | BA31: 0.002305626393 | BB31: 0.002253746272 | BC31: 0.002209180519 | BD31: 0.002171809119 | BE31: 0.002141801807 | BF31: 0.01425533946 | BG31: 0.06200183633 | BH31: 0.05726664934 | BI31: 0.006136480409 | BJ31: 0.004179022315 | BK31: 0.001253706694 | BL31: 0.00152786883 | BM31: 0.004735186994 | BN31: 0.00292531562 | BO31: 0.3433914448 | BP31: 1 | BS31: 25 | BT31: =AM30*'Parameters for Model A v2'!$B$34 -> 34.27094565 | BU31: =AL30*H30*'Parameters for Model A v2'!$B$37+AN30*(1-I29)*'Parameters for Model A v2'!$B$38 -> 58.44463873 | BV31: =AO31*'Parameters for Model A v2'!$B$40+AP31*'Parameters for Model A v2'!$B$41+AQ31*'Parameters for Model A v2'!$B$42+AR31*'Parameters for Model A v2'!$B$43+AS31*'Parameters for Model A v2'!$B$44+AT31*'Parameters for Model A v2'!$B$45+AU31*'Parameters for Model A v2'!$B$46+AV31*'Parameters for Model A v2'!$B$47+AW31*'Parameters for Model A v2'!$B$48+AX31*'Parameters for Model A v2'!$B$49+AY31*'Parameters for Model A v2'!$B$50+AZ31*'Parameters for Model A v2'!$B$51+BA31*'Parameters for Model A v2'!$B$52+BB31*'Parameters for Model A v2'!$B$53+BC31*'Parameters for Model A v2'!$B$54+BD31*'Parameters for Model A v2'!$B$55+BE31*'Parameters for Model A v2'!$B$56+BF31*'Parameters for Model A v2'!$B$57+BF30*(1-$J$24)*'Parameters for Model A v2'!$B$57 -> 70.17447649 | BW31: ='Parameters for Model A v2'!$B$60*(BI31-BI30*(1-L27))+BI30*(1-L27)*'Parameters for Model A v2'!$B$61 -> 56.44535046 | BX31: =BJ30*(1-M26)*'Parameters for Model A v2'!$B$63+BI30*(L27-E27)*'Parameters for Model A v2'!$B$64 -> 20.8412878 | BY31: ='SCT in Model A'!IJ31 -> 118.6576498 | BZ31: ='SCT in Model A'!IJ97 -> 365.0786351 | CA31: ='SCT in Model A'!IJ164 -> 205.0182101 | CB31: =SUM(BT31:CA31)/((1+discount)^2) -> 928.9311941 | CD31: 0.5724631102 | CE31: 0.01030023706 | CF31: 0.06200183633 | CG31: 0.006136480409 | CH31: 0.001253706694 | CI31: ='SCT in Model A'!NB31 -> 0.02462709801 | CJ31: ='SCT in Model A'!NB97 -> 0.07213570439 | CK31: ='SCT in Model A'!NB164 -> 0.02861105237 | CL31: =SUM(CD31:CK31)/((1+discount)^2) -> 0.7775292255
A32: 26 | B32: 46 | C32: =1-EXP(-VLOOKUP(B32,'lifetable pDead'!$A$3:$D$85,gender+1,FALSE)) -> 0.002083726747 | D32: ='Parameters for Model A v2'!$B$10 -> 0.2903225806 | E32: ='Parameters for Model A v2'!$B$11 -> 0.4285714286 | G32: 0.01455986773 | H32: 0.01247614098 | I32: 0.7096774194 | J32: 0.04479942762 | K32: 0.04590898407 | L32: 0.5714285714 | M32: ='Parameters for Model A v2'!$B$15 -> 0.2 | N32: =IF('Parameters for Model A v2'!$B$66>0.0022,O31*0.0022,O31*'Parameters for Model A v2'!$B$66) -> 0.001525443733 | O32: 0.9595401901 | P32: =IF(Q32*'Parameters for Model A v2'!$B$67>BG33,BG33*0.05,Q32*'Parameters for Model A v2'!$B$67) -> 0.004660387183 | Q32: 0.8803977434 | S32: 26 | T32: 0 | U32: 0 | V32: 0 | W32: 0 | X32: 0 | Y32: 0 | Z32: 0 | AA32: 0 | AB32: 0 | AC32: 0 | AD32: 0 | AE32: 0 | AF32: 0 | AG32: 0 | AH32: 0 | AI32: 0 | AJ32: 0 | AK32: 0 | AL32: 0.5657094109 | AM32: 0.5641839671 | AN32: 0.01015158378 | AO32: 0.004319454249 | AP32: 0.003854554919 | AQ32: 0.003526121464 | AR32: 0.003269542527 | AS32: 0.003059620014 | AT32: 0.002885242819 | AU32: 0.002746115031 | AV32: 0.002632727916 | AW32: 0.002533654534 | AX32: 0.002446518353 | AY32: 0.002369578216 | AZ32: 0.002301541145 | BA32: 0.00224144831 | BB32: 0.002188606034 | BC32: 0.002142547795 | BD32: 0.002103021173 | BE32: 0.002069998582 | BF32: 0.01566042084 | BG32: 0.06235071392 | BH32: 0.05764059265 | BI32: 0.006149618815 | BJ32: 0.00421985791 | BK32: 0.001265957373 | BL32: 0.001525443733 | BM32: 0.004710121273 | BN32: 0.002953900537 | BO32: 0.3514188147 | BP32: 1 | BS32: 26 | BT32: =AM31*'Parameters for Model A v2'!$B$34 -> 33.7753235 | BU32: =AL31*H31*'Parameters for Model A v2'!$B$37+AN31*(1-I30)*'Parameters for Model A v2'!$B$38 -> 57.60133168 | BV32: =AO32*'Parameters for Model A v2'!$B$40+AP32*'Parameters for Model A v2'!$B$41+AQ32*'Parameters for Model A v2'!$B$42+AR32*'Parameters for Model A v2'!$B$43+AS32*'Parameters for Model A v2'!$B$44+AT32*'Parameters for Model A v2'!$B$45+AU32*'Parameters for Model A v2'!$B$46+AV32*'Parameters for Model A v2'!$B$47+AW32*'Parameters for Model A v2'!$B$48+AX32*'Parameters for Model A v2'!$B$49+AY32*'Parameters for Model A v2'!$B$50+AZ32*'Parameters for Model A v2'!$B$51+BA32*'Parameters for Model A v2'!$B$52+BB32*'Parameters for Model A v2'!$B$53+BC32*'Parameters for Model A v2'!$B$54+BD32*'Parameters for Model A v2'!$B$55+BE32*'Parameters for Model A v2'!$B$56+BF32*'Parameters for Model A v2'!$B$57+BF31*(1-$J$24)*'Parameters for Model A v2'!$B$57 -> 69.34705597 | BW32: ='Parameters for Model A v2'!$B$60*(BI32-BI31*(1-L28))+BI31*(1-L28)*'Parameters for Model A v2'!$B$61 -> 56.55846772 | BX32: =BJ31*(1-M27)*'Parameters for Model A v2'!$B$63+BI31*(L28-E28)*'Parameters for Model A v2'!$B$64 -> 21.0831156 | BY32: ='SCT in Model A'!IJ32 -> 119.1542382 | BZ32: ='SCT in Model A'!IJ98 -> 365.6211952 | CA32: ='SCT in Model A'!IJ165 -> 209.0618291 | CB32: 932.2025569 | CD32: 0.5641839671 | CE32: 0.01015158378 | CF32: 0.06235071392 | CG32: 0.006149618815 | CH32: 0.001265957373 | CI32: ='SCT in Model A'!NB32 -> 0.02528037632 | CJ32: ='SCT in Model A'!NB98 -> 0.07424696826 | CK32: ='SCT in Model A'!NB165 -> 0.03041244946 | CL32: 0.7740416351
A33: 27 | B33: 46 | C33: =1-EXP(-VLOOKUP(B33,'lifetable pDead'!$A$3:$D$85,gender+1,FALSE)) -> 0.002083726747 | D33: ='Parameters for Model A v2'!$B$10 -> 0.2903225806 | E33: ='Parameters for Model A v2'!$B$11 -> 0.4285714286 | G33: 0.01455986773 | H33: 0.01247614098 | I33: 0.7096774194 | J33: 0.04479942762 | K33: 0.04590898407 | L33: 0.5714285714 | M33: ='Parameters for Model A v2'!$B$15 -> 0.2 | N33: =IF('Parameters for Model A v2'!$B$66>0.0022,O32*0.0022,O32*'Parameters for Model A v2'!$B$66) -> 0.001523022484 | O33: 0.9580171676 | P33: =IF(Q33*'Parameters for Model A v2'!$B$67>BG34,BG34*0.05,Q33*'Parameters for Model A v2'!$B$67) -> 0.004635717415 | Q33: 0.8757373563 | S33: 27 | T33: 0 | U33: 0 | V33: 0 | W33: 0 | X33: 0 | Y33: 0 | Z33: 0 | AA33: 0 | AB33: 0 | AC33: 0 | AD33: 0 | AE33: 0 | AF33: 0 | AG33: 0 | AH33: 0 | AI33: 0 | AJ33: 0 | AK33: 0 | AL33: 0.5574727567 | AM33: 0.5559497342 | AN33: 0.01000510436 | AO33: 0.004257115779 | AP33: 0.003798889161 | AQ33: 0.003475084751 | AR33: 0.003221860601 | AS33: 0.003013860143 | AT33: 0.002838452033 | AU33: 0.002689916242 | AV33: 0.002570374571 | AW33: 0.002472341347 | AX33: 0.00238592112 | AY33: 0.002309386618 | AZ33: 0.002241444072 | BA33: 0.002181119065 | BB33: 0.002127685262 | BC33: 0.002080621537 | BD33: 0.002039590399 | BE33: 0.002004435292 | BF33: 0.01693404057 | BG33: 0.06264213856 | BH33: 0.05795695033 | BI33: 0.006159540322 | BJ33: 0.004254403302 | BK33: 0.00127632099 | BL33: 0.001523022484 | BM33: 0.004685188236 | BN33: 0.002978082311 | BO33: 0.3594660568 | BP33: 1 | BS33: 27 | BT33: =AM32*'Parameters for Model A v2'!$B$34 -> 33.28685406 | BU33: =AL32*H32*'Parameters for Model A v2'!$B$37+AN32*(1-I31)*'Parameters for Model A v2'!$B$38 -> 56.77023812 | BV33: =AO33*'Parameters for Model A v2'!$B$40+AP33*'Parameters for Model A v2'!$B$41+AQ33*'Parameters for Model A v2'!$B$42+AR33*'Parameters for Model A v2'!$B$43+AS33*'Parameters for Model A v2'!$B$44+AT33*'Parameters for Model A v2'!$B$45+AU33*'Parameters for Model A v2'!$B$46+AV33*'Parameters for Model A v2'!$B$47+AW33*'Parameters for Model A v2'!$B$48+AX33*'Parameters for Model A v2'!$B$49+AY33*'Parameters for Model A v2'!$B$50+AZ33*'Parameters for Model A v2'!$B$51+BA33*'Parameters for Model A v2'!$B$52+BB33*'Parameters for Model A v2'!$B$53+BC33*'Parameters for Model A v2'!$B$54+BD33*'Parameters for Model A v2'!$B$55+BE33*'Parameters for Model A v2'!$B$56+BF33*'Parameters for Model A v2'!$B$57+BF32*(1-$J$24)*'Parameters for Model A v2'!$B$57 -> 68.52861161 | BW33: ='Parameters for Model A v2'!$B$60*(BI33-BI32*(1-L29))+BI32*(1-L29)*'Parameters for Model A v2'!$B$61 -> 56.64160091 | BX33: =BJ32*(1-M28)*'Parameters for Model A v2'!$B$63+BI32*(L29-E29)*'Parameters for Model A v2'!$B$64 -> 21.2881808 | BY33: ='SCT in Model A'!IJ33 -> 119.6325876 | BZ33: ='SCT in Model A'!IJ99 -> 366.0939418 | CA33: ='SCT in Model A'!IJ166 -> 212.7369811 | CB33: 934.978996 | CD33: 0.5559497342 | CE33: 0.01000510436 | CF33: 0.06264213856 | CG33: 0.006159540322 | CH33: 0.00127632099 | CI33: ='SCT in Model A'!NB33 -> 0.0259153304 | CJ33: ='SCT in Model A'!NB99 -> 0.07628365011 | CK33: ='SCT in Model A'!NB166 -> 0.03218246053 | CL33: 0.7704142795
A34: 28 | B34: 46 | C34: =1-EXP(-VLOOKUP(B34,'lifetable pDead'!$A$3:$D$85,gender+1,FALSE)) -> 0.002083726747 | D34: ='Parameters for Model A v2'!$B$10 -> 0.2903225806 | E34: ='Parameters for Model A v2'!$B$11 -> 0.4285714286 | G34: 0.01455986773 | H34: 0.01247614098 | I34: 0.7096774194 | J34: 0.04479942762 | K34: 0.04590898407 | L34: 0.5714285714 | M34: ='Parameters for Model A v2'!$B$15 -> 0.2 | N34: =IF('Parameters for Model A v2'!$B$66>0.0022,O33*0.0022,O33*'Parameters for Model A v2'!$B$66) -> 0.001520605079 | O34: 0.9564965625 | P34: =IF(Q34*'Parameters for Model A v2'!$B$67>BG35,BG35*0.05,Q34*'Parameters for Model A v2'!$B$67) -> 0.004611178235 | Q34: 0.8711016388 | S34: 28 | T34: 0 | U34: 0 | V34: 0 | W34: 0 | X34: 0 | Y34: 0 | Z34: 0 | AA34: 0 | AB34: 0 | AC34: 0 | AD34: 0 | AE34: 0 | AF34: 0 | AG34: 0 | AH34: 0 | AI34: 0 | AJ34: 0 | AK34: 0 | AL34: 0.5493560271 | AM34: 0.547835422 | AN34: 0.009859816424 | AO34: 0.004195688927 | AP34: 0.003744063499 | AQ34: 0.003424899132 | AR34: 0.003175227728 | AS34: 0.002969907005 | AT34: 0.002795999964 | AU34: 0.002646293121 | AV34: 0.002517772281 | AW34: 0.002413786587 | AX34: 0.002328183008 | AY34: 0.002252185967 | AZ34: 0.002184507314 | BA34: 0.002124166413 | BB34: 0.002070417983 | BC34: 0.002022706559 | BD34: 0.001980639928 | BE34: 0.00194397804 | BF34: 0.01808804222 | BG34: 0.06287846568 | BH34: 0.05821807849 | BI34: 0.006166112777 | BJ34: 0.004283456973 | BK34: 0.001285037092 | BL34: 0.001520605079 | BM34: 0.004660387183 | BN34: 0.002998419881 | BO34: 0.3674561211 | BP34: 1 | BS34: 28 | BT34: =AM33*'Parameters for Model A v2'!$B$34 -> 32.80103432 | BU34: =AL33*H33*'Parameters for Model A v2'!$B$37+AN33*(1-I32)*'Parameters for Model A v2'!$B$38 -> 55.94428281 | BV34: =AO34*'Parameters for Model A v2'!$B$40+AP34*'Parameters for Model A v2'!$B$41+AQ34*'Parameters for Model A v2'!$B$42+AR34*'Parameters for Model A v2'!$B$43+AS34*'Parameters for Model A v2'!$B$44+AT34*'Parameters for Model A v2'!$B$45+AU34*'Parameters for Model A v2'!$B$46+AV34*'Parameters for Model A v2'!$B$47+AW34*'Parameters for Model A v2'!$B$48+AX34*'Parameters for Model A v2'!$B$49+AY34*'Parameters for Model A v2'!$B$50+AZ34*'Parameters for Model A v2'!$B$51+BA34*'Parameters for Model A v2'!$B$52+BB34*'Parameters for Model A v2'!$B$53+BC34*'Parameters for Model A v2'!$B$54+BD34*'Parameters for Model A v2'!$B$55+BE34*'Parameters for Model A v2'!$B$56+BF34*'Parameters for Model A v2'!$B$57+BF33*(1-$J$24)*'Parameters for Model A v2'!$B$57 -> 67.71378822 | BW34: ='Parameters for Model A v2'!$B$60*(BI34-BI33*(1-L30))+BI33*(1-L30)*'Parameters for Model A v2'!$B$61 -> 56.69361935 | BX34: =BJ33*(1-M29)*'Parameters for Model A v2'!$B$63+BI33*(L30-E30)*'Parameters for Model A v2'!$B$64 -> 21.46163411 | BY34: ='SCT in Model A'!IJ34 -> 120.0933258 | BZ34: ='SCT in Model A'!IJ100 -> 366.5008128 | CA34: ='SCT in Model A'!IJ167 -> 216.08787 | CB34: 937.2963674 | CD34: 0.547835422 | CE34: 0.009859816424 | CF34: 0.06287846568 | CG34: 0.006166112777 | CH34: 0.001285037092 | CI34: ='SCT in Model A'!NB34 -> 0.02653246698 | CJ34: ='SCT in Model A'!NB100 -> 0.07824828334 | CK34: ='SCT in Model A'!NB167 -> 0.03391910582 | CL34: 0.7667247101
A35: 29 | B35: 46 | C35: =1-EXP(-VLOOKUP(B35,'lifetable pDead'!$A$3:$D$85,gender+1,FALSE)) -> 0.002083726747 | D35: ='Parameters for Model A v2'!$B$10 -> 0.2903225806 | E35: ='Parameters for Model A v2'!$B$11 -> 0.4285714286 | G35: 0.01455986773 | H35: 0.01247614098 | I35: 0.7096774194 | J35: 0.04479942762 | K35: 0.04590898407 | L35: 0.5714285714 | M35: ='Parameters for Model A v2'!$B$15 -> 0.2 | N35: =IF('Parameters for Model A v2'!$B$66>0.0022,O34*0.0022,O34*'Parameters for Model A v2'!$B$66) -> 0.001518191511 | O35: 0.954978371 | P35: =IF(Q35*'Parameters for Model A v2'!$B$67>BG36,BG36*0.05,Q35*'Parameters for Model A v2'!$B$67) -> 0.004586768954 | Q35: 0.8664904606 | S35: 29 | T35: 0 | U35: 0 | V35: 0 | W35: 0 | X35: 0 | Y35: 0 | Z35: 0 | AA35: 0 | AB35: 0 | AC35: 0 | AD35: 0 | AE35: 0 | AF35: 0 | AG35: 0 | AH35: 0 | AI35: 0 | AJ35: 0 | AK35: 0 | AL35: 0.541357476 | AM35: 0.5398392845 | AN35: 0.009716370591 | AO35: 0.004134761726 | AP35: 0.003690039591 | AQ35: 0.003375470903 | AR35: 0.00312937251 | AS35: 0.002926920881 | AT35: 0.002755224027 | AU35: 0.002606714993 | AV35: 0.002476940867 | AW35: 0.002364388844 | AX35: 0.002273042484 | AY35: 0.00219768418 | AZ35: 0.002130399769 | BA35: 0.002070208721 | BB35: 0.002016355921 | BC35: 0.001968264813 | BD35: 0.001925507981 | BE35: 0.001887791062 | BF35: 0.0191326568 | BG35: 0.06306174607 | BH35: 0.05842602866 | BI35: 0.006169264351 | BJ35: 0.004307638832 | BK35: 0.00129229165 | BL35: 0.001518191511 | BM35: 0.004635717415 | BN35: 0.003015347183 | BO35: 0.3753875042 | BP35: 1 | BS35: 29 | BT35: =AM34*'Parameters for Model A v2'!$B$34 -> 32.3222899 | BU35: =AL34*H34*'Parameters for Model A v2'!$B$37+AN34*(1-I33)*'Parameters for Model A v2'!$B$38 -> 55.12991909 | BV35: =AO35*'Parameters for Model A v2'!$B$40+AP35*'Parameters for Model A v2'!$B$41+AQ35*'Parameters for Model A v2'!$B$42+AR35*'Parameters for Model A v2'!$B$43+AS35*'Parameters for Model A v2'!$B$44+AT35*'Parameters for Model A v2'!$B$45+AU35*'Parameters for Model A v2'!$B$46+AV35*'Parameters for Model A v2'!$B$47+AW35*'Parameters for Model A v2'!$B$48+AX35*'Parameters for Model A v2'!$B$49+AY35*'Parameters for Model A v2'!$B$50+AZ35*'Parameters for Model A v2'!$B$51+BA35*'Parameters for Model A v2'!$B$52+BB35*'Parameters for Model A v2'!$B$53+BC35*'Parameters for Model A v2'!$B$54+BD35*'Parameters for Model A v2'!$B$55+BE35*'Parameters for Model A v2'!$B$56+BF35*'Parameters for Model A v2'!$B$57+BF34*(1-$J$24)*'Parameters for Model A v2'!$B$57 -> 66.89907482 | BW35: ='Parameters for Model A v2'!$B$60*(BI35-BI34*(1-L31))+BI34*(1-L31)*'Parameters for Model A v2'!$B$61 -> 56.71401401 | BX35: =BJ34*(1-M30)*'Parameters for Model A v2'!$B$63+BI34*(L31-E31)*'Parameters for Model A v2'!$B$64 -> 21.60747741 | BY35: ='SCT in Model A'!IJ35 -> 120.5370086 | BZ35: ='SCT in Model A'!IJ101 -> 366.8449925 | CA35: ='SCT in Model A'!IJ168 -> 219.1498579 | CB35: 939.2046342 | CD35: 0.5398392845 | CE35: 0.009716370591 | CF35: 0.06306174607 | CG35: 0.006169264351 | CH35: 0.00129229165 | CI35: ='SCT in Model A'!NB35 -> 0.02713226341 | CJ35: ='SCT in Model A'!NB101 -> 0.08014314319 | CK35: ='SCT in Model A'!NB168 -> 0.03562092125 | CL35: 0.762975285
A36: 30 | B36: 46 | C36: =1-EXP(-VLOOKUP(B36,'lifetable pDead'!$A$3:$D$85,gender+1,FALSE)) -> 0.002083726747 | D36: ='Parameters for Model A v2'!$B$10 -> 0.2903225806 | E36: ='Parameters for Model A v2'!$B$11 -> 0.4285714286 | G36: 0.01455986773 | H36: 0.01247614098 | I36: 0.7096774194 | J36: 0.04479942762 | K36: 0.04590898407 | L36: 0.5714285714 | M36: ='Parameters for Model A v2'!$B$15 -> 0.2 | N36: =IF('Parameters for Model A v2'!$B$66>0.0022,O35*0.0022,O35*'Parameters for Model A v2'!$B$66) -> 0.001515781774 | O36: 0.9534625892 | P36: =IF(Q36*'Parameters for Model A v2'!$B$67>BG37,BG37*0.05,Q36*'Parameters for Model A v2'!$B$67) -> 0.004562488884 | Q36: 0.8619036916 | S36: 30 | T36: 0 | U36: 0 | V36: 0 | W36: 0 | X36: 0 | Y36: 0 | Z36: 0 | AA36: 0 | AB36: 0 | AC36: 0 | AD36: 0 | AE36: 0 | AF36: 0 | AG36: 0 | AH36: 0 | AI36: 0 | AJ36: 0 | AK36: 0 | AL36: 0.5334753827 | AM36: 0.531959601 | AN36: 0.009574933976 | AO36: 0.004074607022 | AP36: 0.003636455117 | AQ36: 0.003326765498 | AR36: 0.003084209328 | AS36: 0.0028846516 | AT36: 0.002715345202 | AU36: 0.002568699525 | AV36: 0.002439895583 | AW36: 0.002326044892 | AX36: 0.002226525046 | AY36: 0.002145634382 | AZ36: 0.002078845148 | BA36: 0.002018932211 | BB36: 0.001965136811 | BC36: 0.00191687014 | BD36: 0.001873682363 | BE36: 0.001835243602 | BF36: 0.02007685949 | BG36: 0.06319440296 | BH36: 0.05858322473 | BI36: 0.006168947898 | BJ36: 0.004327434545 | BK36: 0.001298230363 | BL36: 0.001515781774 | BM36: 0.004611178235 | BN36: 0.003029204181 | BO36: 0.3832588979 | BP36: 1 | BS36: 30 | BT36: =AM35*'Parameters for Model A v2'!$B$34 -> 31.85051778 | BU36: =AL35*H35*'Parameters for Model A v2'!$B$37+AN35*(1-I34)*'Parameters for Model A v2'!$B$38 -> 54.32728633 | BV36: =AO36*'Parameters for Model A v2'!$B$40+AP36*'Parameters for Model A v2'!$B$41+AQ36*'Parameters for Model A v2'!$B$42+AR36*'Parameters for Model A v2'!$B$43+AS36*'Parameters for Model A v2'!$B$44+AT36*'Parameters for Model A v2'!$B$45+AU36*'Parameters for Model A v2'!$B$46+AV36*'Parameters for Model A v2'!$B$47+AW36*'Parameters for Model A v2'!$B$48+AX36*'Parameters for Model A v2'!$B$49+AY36*'Parameters for Model A v2'!$B$50+AZ36*'Parameters for Model A v2'!$B$51+BA36*'Parameters for Model A v2'!$B$52+BB36*'Parameters for Model A v2'!$B$53+BC36*'Parameters for Model A v2'!$B$54+BD36*'Parameters for Model A v2'!$B$55+BE36*'Parameters for Model A v2'!$B$56+BF36*'Parameters for Model A v2'!$B$57+BF35*(1-$J$24)*'Parameters for Model A v2'!$B$57 -> 66.08474319 | BW36: ='Parameters for Model A v2'!$B$60*(BI36-BI35*(1-L32))+BI35*(1-L32)*'Parameters for Model A v2'!$B$61 -> 56.7024134 | BX36: =BJ35*(1-M31)*'Parameters for Model A v2'!$B$63+BI35*(L32-E32)*'Parameters for Model A v2'!$B$64 -> 21.72881821 | BY36: ='SCT in Model A'!IJ36 -> 120.9641405 | BZ36: ='SCT in Model A'!IJ102 -> 367.1291512 | CA36: ='SCT in Model A'!IJ169 -> 221.9511358 | CB36: 940.7382065 | CD36: 0.531959601 | CE36: 0.009574933976 | CF36: 0.06319440296 | CG36: 0.006168947898 | CH36: 0.001298230363 | CI36: ='SCT in Model A'!NB36 -> 0.02771517406 | CJ36: ='SCT in Model A'!NB102 -> 0.08197031884 | CK36: ='SCT in Model A'!NB169 -> 0.03728680571 | CL36: 0.7591684148
A37: 31 | B37: 46 | C37: =1-EXP(-VLOOKUP(B37,'lifetable pDead'!$A$3:$D$85,gender+1,FALSE)) -> 0.002083726747 | D37: ='Parameters for Model A v2'!$B$10 -> 0.2903225806 | E37: ='Parameters for Model A v2'!$B$11 -> 0.4285714286 | G37: 0.01455986773 | H37: 0.01247614098 | I37: 0.7096774194 | J37: 0.04479942762 | K37: 0.04590898407 | L37: 0.5714285714 | M37: ='Parameters for Model A v2'!$B$15 -> 0.2 | N37: =IF('Parameters for Model A v2'!$B$66>0.0022,O36*0.0022,O36*'Parameters for Model A v2'!$B$66) -> 0.001513375861 | O37: 0.9519492134 | P37: =IF(Q37*'Parameters for Model A v2'!$B$67>BG38,BG38*0.05,Q37*'Parameters for Model A v2'!$B$67) -> 0.00453833734 | Q37: 0.8573412028 | S37: 31 | T37: 0 | U37: 0 | V37: 0 | W37: 0 | X37: 0 | Y37: 0 | Z37: 0 | AA37: 0 | AB37: 0 | AC37: 0 | AD37: 0 | AE37: 0 | AF37: 0 | AG37: 0 | AH37: 0 | AI37: 0 | AJ37: 0 | AK37: 0 | AL37: 0.5257080517 | AM37: 0.5241946759 | AN37: 0.009435533626 | AO37: 0.004015294893 | AP37: 0.003583550042 | AQ37: 0.003278456266 | AR37: 0.0030397066 | AS37: 0.002843020237 | AT37: 0.002676131402 | AU37: 0.002531520437 | AV37: 0.002404312953 | AW37: 0.002291256417 | AX37: 0.00219041687 | AY37: 0.002101724329 | AZ37: 0.002029609925 | BA37: 0.00197007505 | BB37: 0.001916462803 | BC37: 0.00186817815 | BD37: 0.001824757396 | BE37: 0.001785847477 | BF37: 0.02092862153 | BG37: 0.06327894278 | BH37: 0.05869217382 | BI37: 0.006165181581 | BJ37: 0.004343225907 | BK37: 0.001302967772 | BL37: 0.001513375861 | BM37: 0.004586768954 | BN37: 0.003040258135 | BO37: 0.3910690644 | BP37: 1 | BS37: 31 | BT37: =AM36*'Parameters for Model A v2'!$B$34 -> 31.38561646 | BU37: =AL36*H36*'Parameters for Model A v2'!$B$37+AN36*(1-I35)*'Parameters for Model A v2'!$B$38 -> 53.5363032 | BV37: =AO37*'Parameters for Model A v2'!$B$40+AP37*'Parameters for Model A v2'!$B$41+AQ37*'Parameters for Model A v2'!$B$42+AR37*'Parameters for Model A v2'!$B$43+AS37*'Parameters for Model A v2'!$B$44+AT37*'Parameters for Model A v2'!$B$45+AU37*'Parameters for Model A v2'!$B$46+AV37*'Parameters for Model A v2'!$B$47+AW37*'Parameters for Model A v2'!$B$48+AX37*'Parameters for Model A v2'!$B$49+AY37*'Parameters for Model A v2'!$B$50+AZ37*'Parameters for Model A v2'!$B$51+BA37*'Parameters for Model A v2'!$B$52+BB37*'Parameters for Model A v2'!$B$53+BC37*'Parameters for Model A v2'!$B$54+BD37*'Parameters for Model A v2'!$B$55+BE37*'Parameters for Model A v2'!$B$56+BF37*'Parameters for Model A v2'!$B$57+BF36*(1-$J$24)*'Parameters for Model A v2'!$B$57 -> 65.27239508 | BW37: ='Parameters for Model A v2'!$B$60*(BI37-BI36*(1-L33))+BI36*(1-L33)*'Parameters for Model A v2'!$B$61 -> 56.65914815 | BX37: =BJ36*(1-M32)*'Parameters for Model A v2'!$B$63+BI36*(L33-E33)*'Parameters for Model A v2'!$B$64 -> 21.82809124 | BY37: ='SCT in Model A'!IJ37 -> 121.3751887 | BZ37: ='SCT in Model A'!IJ103 -> 367.355604 | CA37: ='SCT in Model A'!IJ170 -> 224.5141797 | CB37: 941.9265266 | CD37: 0.5241946759 | CE37: 0.009435533626 | CF37: 0.06327894278 | CG37: 0.006165181581 | CH37: 0.001302967772 | CI37: ='SCT in Model A'!NB37 -> 0.02828163466 | CJ37: ='SCT in Model A'!NB103 -> 0.08373176154 | CK37: ='SCT in Model A'!NB170 -> 0.03891591053 | CL37: 0.7553066084
A38: 32 | B38: 46 | C38: =1-EXP(-VLOOKUP(B38,'lifetable pDead'!$A$3:$D$85,gender+1,FALSE)) -> 0.002083726747 | D38: ='Parameters for Model A v2'!$B$10 -> 0.2903225806 | E38: ='Parameters for Model A v2'!$B$11 -> 0.4285714286 | G38: 0.01455986773 | H38: 0.01247614098 | I38: 0.7096774194 | J38: 0.04479942762 | K38: 0.04590898407 | L38: 0.5714285714 | M38: ='Parameters for Model A v2'!$B$15 -> 0.2 | N38: =IF('Parameters for Model A v2'!$B$66>0.0022,O37*0.0022,O37*'Parameters for Model A v2'!$B$66) -> 0.001510973767 | O38: 0.9504382396 | P38: =IF(Q38*'Parameters for Model A v2'!$B$67>BG39,BG39*0.05,Q38*'Parameters for Model A v2'!$B$67) -> 0.004514313642 | Q38: 0.8528028654 | S38: 32 | T38: 0 | U38: 0 | V38: 0 | W38: 0 | X38: 0 | Y38: 0 | Z38: 0 | AA38: 0 | AB38: 0 | AC38: 0 | AD38: 0 | AE38: 0 | AF38: 0 | AG38: 0 | AH38: 0 | AI38: 0 | AJ38: 0 | AK38: 0 | AL38: 0.518053812 | AM38: 0.5165428383 | AN38: 0.00929815624 | AO38: 0.003956836682 | AP38: 0.003531385997 | AQ38: 0.003230759547 | AR38: 0.002995565859 | AS38: 0.002801997678 | AT38: 0.002637509407 | AU38: 0.002494961351 | AV38: 0.002369513179 | AW38: 0.002257841492 | AX38: 0.002157656856 | AY38: 0.002067640081 | AZ38: 0.001988074293 | BA38: 0.00192341593 | BB38: 0.00187008535 | BC38: 0.001821905688 | BD38: 0.001778405237 | BE38: 0.001739216024 | BF38: 0.02169509122 | BG38: 0.06331786187 | BH38: 0.05875537299 | BI38: 0.00615803312 | BJ38: 0.004355320951 | BK38: 0.001306596285 | BL38: 0.001510973767 | BM38: 0.004562488884 | BN38: 0.003048724666 | BO38: 0.3988168158 | BP38: 1 | BS38: 32 | BT38: =AM37*'Parameters for Model A v2'!$B$34 -> 30.92748588 | BU38: =AL37*H37*'Parameters for Model A v2'!$B$37+AN37*(1-I36)*'Parameters for Model A v2'!$B$38 -> 52.75682605 | BV38: =AO38*'Parameters for Model A v2'!$B$40+AP38*'Parameters for Model A v2'!$B$41+AQ38*'Parameters for Model A v2'!$B$42+AR38*'Parameters for Model A v2'!$B$43+AS38*'Parameters for Model A v2'!$B$44+AT38*'Parameters for Model A v2'!$B$45+AU38*'Parameters for Model A v2'!$B$46+AV38*'Parameters for Model A v2'!$B$47+AW38*'Parameters for Model A v2'!$B$48+AX38*'Parameters for Model A v2'!$B$49+AY38*'Parameters for Model A v2'!$B$50+AZ38*'Parameters for Model A v2'!$B$51+BA38*'Parameters for Model A v2'!$B$52+BB38*'Parameters for Model A v2'!$B$53+BC38*'Parameters for Model A v2'!$B$54+BD38*'Parameters for Model A v2'!$B$55+BE38*'Parameters for Model A v2'!$B$56+BF38*'Parameters for Model A v2'!$B$57+BF37*(1-$J$24)*'Parameters for Model A v2'!$B$57 -> 64.46245525 | BW38: ='Parameters for Model A v2'!$B$60*(BI38-BI37*(1-L34))+BI37*(1-L34)*'Parameters for Model A v2'!$B$61 -> 56.58496492 | BX38: =BJ37*(1-M33)*'Parameters for Model A v2'!$B$63+BI37*(L34-E34)*'Parameters for Model A v2'!$B$64 -> 21.90721168 | BY38: ='SCT in Model A'!IJ38 -> 121.7705924 | BZ38: ='SCT in Model A'!IJ104 -> 367.5264167 | CA38: ='SCT in Model A'!IJ171 -> 226.8568653 | CB38: 942.7928182 | CD38: 0.5165428383 | CE38: 0.00929815624 | CF38: 0.06331786187 | CG38: 0.00615803312 | CH38: 0.001306596285 | CI38: ='SCT in Model A'!NB38 -> 0.02883206525 | CJ38: ='SCT in Model A'!NB104 -> 0.08542931691 | CK38: ='SCT in Model A'!NB171 -> 0.04050755906 | CL38: 0.751392427
A39: 33 | B39: 46 | C39: =1-EXP(-VLOOKUP(B39,'lifetable pDead'!$A$3:$D$85,gender+1,FALSE)) -> 0.002083726747 | D39: ='Parameters for Model A v2'!$B$10 -> 0.2903225806 | E39: ='Parameters for Model A v2'!$B$11 -> 0.4285714286 | G39: 0.01455986773 | H39: 0.01247614098 | I39: 0.7096774194 | J39: 0.04479942762 | K39: 0.04590898407 | L39: 0.5714285714 | M39: ='Parameters for Model A v2'!$B$15 -> 0.2 | N39: =IF('Parameters for Model A v2'!$B$66>0.0022,O38*0.0022,O38*'Parameters for Model A v2'!$B$66) -> 0.001508575486 | O39: 0.9489296641 | P39: =IF(Q39*'Parameters for Model A v2'!$B$67>BG40,BG40*0.05,Q39*'Parameters for Model A v2'!$B$67) -> 0.004490417114 | Q39: 0.8482885518 | S39: 33 | T39: 0 | U39: 0 | V39: 0 | W39: 0 | X39: 0 | Y39: 0 | Z39: 0 | AA39: 0 | AB39: 0 | AC39: 0 | AD39: 0 | AE39: 0 | AF39: 0 | AG39: 0 | AH39: 0 | AI39: 0 | AJ39: 0 | AK39: 0 | AL39: 0.5105110171 | AM39: 0.5090024416 | AN39: 0.00916277711 | AO39: 0.00389922681 | AP39: 0.003479972959 | AQ39: 0.003183730907 | AR39: 0.00295198478 | AS39: 0.0027613088 | AT39: 0.002599452209 | AU39: 0.002458954008 | AV39: 0.00233529373 | AW39: 0.00222516173 | AX39: 0.002126190303 | AY39: 0.002036716324 | AZ39: 0.001955833139 | BA39: 0.001884053541 | BB39: 0.001825794379 | BC39: 0.001777816471 | BD39: 0.001734356339 | BE39: 0.001695036772 | BF39: 0.02238272766 | BG39: 0.06331361086 | BH39: 0.05877527352 | BI39: 0.006147602388 | BJ39: 0.004363975778 | BK39: 0.001309192733 | BL39: =N39 -> 0.001508575486 | BM39: 0.00453833734 | BN39: 0.003054783045 | BO39: 0.4065010168 | BP39: 1 | BS39: 33 | BT39: =AM38*'Parameters for Model A v2'!$B$34 -> 30.47602746 | BU39: =AL38*H38*'Parameters for Model A v2'!$B$37+AN38*(1-I37)*'Parameters for Model A v2'!$B$38 -> 51.9886949 | BV39: =AO39*'Parameters for Model A v2'!$B$40+AP39*'Parameters for Model A v2'!$B$41+AQ39*'Parameters for Model A v2'!$B$42+AR39*'Parameters for Model A v2'!$B$43+AS39*'Parameters for Model A v2'!$B$44+AT39*'Parameters for Model A v2'!$B$45+AU39*'Parameters for Model A v2'!$B$46+AV39*'Parameters for Model A v2'!$B$47+AW39*'Parameters for Model A v2'!$B$48+AX39*'Parameters for Model A v2'!$B$49+AY39*'Parameters for Model A v2'!$B$50+AZ39*'Parameters for Model A v2'!$B$51+BA39*'Parameters for Model A v2'!$B$52+BB39*'Parameters for Model A v2'!$B$53+BC39*'Parameters for Model A v2'!$B$54+BD39*'Parameters for Model A v2'!$B$55+BE39*'Parameters for Model A v2'!$B$56+BF39*'Parameters for Model A v2'!$B$57+BF38*(1-$J$24)*'Parameters for Model A v2'!$B$57 -> 63.65610277 | BW39: ='Parameters for Model A v2'!$B$60*(BI39-BI38*(1-L35))+BI38*(1-L35)*'Parameters for Model A v2'!$B$61 -> 56.48086229 | BX39: =BJ38*(1-M34)*'Parameters for Model A v2'!$B$63+BI38*(L35-E35)*'Parameters for Model A v2'!$B$64 -> 21.96772574 | BY39: ='SCT in Model A'!IJ39 -> 122.1507688 | BZ39: ='SCT in Model A'!IJ105 -> 367.6434762 | CA39: ='SCT in Model A'!IJ172 -> 228.9936667 | CB39: 943.3573249 | CD39: 0.5090024416 | CE39: 0.00916277711 | CF39: 0.06331361086 | CG39: 0.006147602388 | CH39: 0.001309192733 | CI39: ='SCT in Model A'!NB39 -> 0.02936687219 | CJ39: ='SCT in Model A'!NB105 -> 0.08706474671 | CK39: ='SCT in Model A'!NB172 -> 0.04206119383 | CL39: 0.7474284374
A40: 34 | B40: 46 | C40: =1-EXP(-VLOOKUP(B40,'lifetable pDead'!$A$3:$D$85,gender+1,FALSE)) -> 0.002083726747 | D40: ='Parameters for Model A v2'!$B$10 -> 0.2903225806 | E40: ='Parameters for Model A v2'!$B$11 -> 0.4285714286 | G40: 0.01455986773 | H40: 0.01247614098 | I40: 0.7096774194 | J40: 0.04479942762 | K40: 0.04590898407 | L40: 0.5714285714 | M40: ='Parameters for Model A v2'!$B$15 -> 0.2 | N40: =IF('Parameters for Model A v2'!$B$66>0.0022,O39*0.0022,O39*'Parameters for Model A v2'!$B$66) -> 0.001506181012 | O40: 0.9474234831 | P40: =IF(Q40*'Parameters for Model A v2'!$B$67>BG41,BG41*0.05,Q40*'Parameters for Model A v2'!$B$67) -> 0.004466647082 | Q40: 0.8437981347 | S40: 34 | T40: 0 | U40: 0 | V40: 0 | W40: 0 | X40: 0 | Y40: 0 | Z40: 0 | AA40: 0 | AB40: 0 | AC40: 0 | AD40: 0 | AE40: 0 | AF40: 0 | AG40: 0 | AH40: 0 | AI40: 0 | AJ40: 0 | AK40: 0 | AL40: 0.5030780442 | AM40: 0.5015718632 | AN40: 0.009029368517 | AO40: =AN39*($I$6-$D$6) -> 0.003842454917 | AP40: 0.003429306022 | AQ40: 0.003137379339 | AR40: 0.002909014133 | AS40: 0.002721135816 | AT40: 0.002561704571 | AU40: 0.002423473224 | AV40: 0.002301590713 | AW40: 0.00219302694 | AX40: 0.002095416047 | AY40: 0.002007013528 | AZ40: 0.001926581575 | BA40: 0.001853499321 | BB40: 0.001788429799 | BC40: 0.00173571079 | BD40: 0.001692385773 | BE40: 0.001653052808 | BF40: 0.02299740243 | BG40: 0.06326857775 | BH40: 0.05875426411 | BI40: 0.006134009401 | BJ40: 0.004369409535 | BK40: 0.001310822861 | BL40: 0.001506181012 | BM40: 0.004514313642 | BN40: 0.003058586675 | BO40: 0.4141205906 | BP40: 1 | BS40: 34 | BT40: =AM39*'Parameters for Model A v2'!$B$34 -> 30.03114405 | BU40: =AL39*H39*'Parameters for Model A v2'!$B$37+AN39*(1-I38)*'Parameters for Model A v2'!$B$38 -> 51.23174675 | BV40: =AO40*'Parameters for Model A v2'!$B$40+AP40*'Parameters for Model A v2'!$B$41+AQ40*'Parameters for Model A v2'!$B$42+AR40*'Parameters for Model A v2'!$B$43+AS40*'Parameters for Model A v2'!$B$44+AT40*'Parameters for Model A v2'!$B$45+AU40*'Parameters for Model A v2'!$B$46+AV40*'Parameters for Model A v2'!$B$47+AW40*'Parameters for Model A v2'!$B$48+AX40*'Parameters for Model A v2'!$B$49+AY40*'Parameters for Model A v2'!$B$50+AZ40*'Parameters for Model A v2'!$B$51+BA40*'Parameters for Model A v2'!$B$52+BB40*'Parameters for Model A v2'!$B$53+BC40*'Parameters for Model A v2'!$B$54+BD40*'Parameters for Model A v2'!$B$55+BE40*'Parameters for Model A v2'!$B$56+BF40*'Parameters for Model A v2'!$B$57+BF39*(1-$J$24)*'Parameters for Model A v2'!$B$57 -> 62.85415109 | BW40: ='Parameters for Model A v2'!$B$60*(BI40-BI39*(1-L36))+BI39*(1-L36)*'Parameters for Model A v2'!$B$61 -> 56.34799393 | BX40: =BJ39*(1-M35)*'Parameters for Model A v2'!$B$63+BI39*(L36-E36)*'Parameters for Model A v2'!$B$64 -> 22.01091983 | BY40: ='SCT in Model A'!IJ40 -> 122.5161177 | BZ40: ='SCT in Model A'!IJ106 -> 367.7085374 | CA40: ='SCT in Model A'!IJ173 -> 230.9365845 | CB40: 943.6371952 | CD40: 0.5015718632 | CE40: 0.009029368517 | CF40: 0.06326857775 | CG40: =1*BI40 -> 0.006134009401 | CH40: 0.001310822861 | CI40: ='SCT in Model A'!NB40 -> 0.02988644965 | CJ40: ='SCT in Model A'!NB106 -> 0.08863974356 | CK40: ='SCT in Model A'!NB173 -> 0.04357634358 | CL40: 0.7434171785
A41: 35 | B41: 46 | C41: =1-EXP(-VLOOKUP(B41,'lifetable pDead'!$A$3:$D$85,gender+1,FALSE)) -> 0.002083726747 | D41: ='Parameters for Model A v2'!$B$10 -> 0.2903225806 | E41: ='Parameters for Model A v2'!$B$11 -> 0.4285714286 | G41: 0.01455986773 | H41: 0.01247614098 | I41: 0.7096774194 | J41: 0.04479942762 | K41: 0.04590898407 | L41: 0.5714285714 | M41: ='Parameters for Model A v2'!$B$15 -> 0.2 | N41: =IF('Parameters for Model A v2'!$B$66>0.0022,O40*0.0022,O40*'Parameters for Model A v2'!$B$66) -> 0.001503790338 | O41: 0.9459196928 | P41: =IF(Q41*'Parameters for Model A v2'!$B$67>BG42,BG42*0.05,Q41*'Parameters for Model A v2'!$B$67) -> 0.004443002877 | Q41: 0.8393314876 | S41: 35 | T41: 0 | U41: 0 | V41: 0 | W41: 0 | X41: 0 | Y41: 0 | Z41: 0 | AA41: 0 | AB41: 0 | AC41: 0 | AD41: 0 | AE41: 0 | AF41: 0 | AG41: 0 | AH41: 0 | AI41: 0 | AJ41: 0 | AK41: 0 | AL41: 0.4957532944 | AM41: 0.4942495041 | AN41: 0.008897902173 | AO41: 0.003786509378 | AP41: 0.003379376073 | AQ41: 0.003091700421 | AR41: 0.002866662135 | AS41: 0.002681525528 | AT41: 0.002524435536 | AU41: 0.002388281044 | AV41: 0.002268380559 | AW41: 0.002161377121 | AX41: 0.002065154986 | AY41: 0.001977964224 | AZ41: 0.001898484947 | BA41: 0.001825778267 | BB41: 0.001759426336 | BC41: 0.001700189756 | BD41: 0.001652303426 | BE41: 0.001613049747 | BF41: 0.02354447893 | BG41: 0.06318507841 | BH41: 0.0586946613 | BI41: 0.006117386592 | BJ41: 0.004371814685 | BK41: 0.001311544406 | BL41: 0.001503790338 | BM41: 0.004490417114 | BN41: 0.00306027028 | BO41: 0.4216745237 | BP41: 1 | BS41: 35 | BT41: =AM40*'Parameters for Model A v2'!$B$34 -> 29.59273993 | BU41: =AL40*H40*'Parameters for Model A v2'!$B$37+AN40*(1-I39)*'Parameters for Model A v2'!$B$38 -> 50.4858194 | BV41: =AO41*'Parameters for Model A v2'!$B$40+AP41*'Parameters for Model A v2'!$B$41+AQ41*'Parameters for Model A v2'!$B$42+AR41*'Parameters for Model A v2'!$B$43+AS41*'Parameters for Model A v2'!$B$44+AT41*'Parameters for Model A v2'!$B$45+AU41*'Parameters for Model A v2'!$B$46+AV41*'Parameters for Model A v2'!$B$47+AW41*'Parameters for Model A v2'!$B$48+AX41*'Parameters for Model A v2'!$B$49+AY41*'Parameters for Model A v2'!$B$50+AZ41*'Parameters for Model A v2'!$B$51+BA41*'Parameters for Model A v2'!$B$52+BB41*'Parameters for Model A v2'!$B$53+BC41*'Parameters for Model A v2'!$B$54+BD41*'Parameters for Model A v2'!$B$55+BE41*'Parameters for Model A v2'!$B$56+BF41*'Parameters for Model A v2'!$B$57+BF40*(1-$J$24)*'Parameters for Model A v2'!$B$57 -> 62.05707825 | BW41: ='Parameters for Model A v2'!$B$60*(BI41-BI40*(1-L37))+BI40*(1-L37)*'Parameters for Model A v2'!$B$61 -> 56.18760821 | BX41: =BJ40*(1-M36)*'Parameters for Model A v2'!$B$63+BI40*(L37-E37)*'Parameters for Model A v2'!$B$64 -> 22.03789546 | BY41: ='SCT in Model A'!IJ41 -> 122.8670242 | BZ41: ='SCT in Model A'!IJ107 -> 367.7232549 | CA41: ='SCT in Model A'!IJ174 -> 232.6958196 | CB41: 943.64724 | CD41: 0.4942495041 | CE41: 0.008897902173 | CF41: 0.06318507841 | CG41: 0.006117386592 | CH41: 0.001311544406 | CI41: ='SCT in Model A'!NB41 -> 0.03039118059 | CJ41: ='SCT in Model A'!NB107 -> 0.0901559411 | CK41: ='SCT in Model A'!NB174 -> 0.04505260341 | CL41: 0.7393611407
A42: 36 | B42: 46 | C42: =1-EXP(-VLOOKUP(B42,'lifetable pDead'!$A$3:$D$85,gender+1,FALSE)) -> 0.002083726747 | D42: ='Parameters for Model A v2'!$B$10 -> 0.2903225806 | E42: ='Parameters for Model A v2'!$B$11 -> 0.4285714286 | G42: 0.01455986773 | H42: 0.01247614098 | I42: 0.7096774194 | J42: 0.04479942762 | K42: 0.04590898407 | L42: 0.5714285714 | M42: ='Parameters for Model A v2'!$B$15 -> 0.2 | N42: =IF('Parameters for Model A v2'!$B$66>0.0022,O41*0.0022,O41*'Parameters for Model A v2'!$B$66) -> 0.001501403459 | O42: 0.9444182893 | P42: =IF(Q42*'Parameters for Model A v2'!$B$67>BG43,BG43*0.05,Q42*'Parameters for Model A v2'!$B$67) -> 0.004419483833 | Q42: 0.8348884847 | S42: 36 | T42: 0 | U42: 0 | V42: 0 | W42: 0 | X42: 0 | Y42: 0 | Z42: 0 | AA42: 0 | AB42: 0 | AC42: 0 | AD42: 0 | AE42: 0 | AF42: 0 | AG42: 0 | AH42: 0 | AI42: 0 | AJ42: 0 | AK42: 0 | AL42: 0.488535192 | AM42: 0.4870337885 | AN42: 0.008768349914 | AO42: 0.003731378331 | AP42: 0.003330172889 | AQ42: 0.003046685936 | AR42: 0.002824924744 | AS42: 0.00264248551 | AT42: 0.002487688521 | AU42: 0.002353535066 | AV42: 0.002235440539 | AW42: 0.00213019014 | AX42: 0.002035350618 | AY42: 0.00194939935 | AZ42: 0.001871006474 | BA42: 0.001799151721 | BB42: 0.001733112244 | BC42: 0.001672617305 | BD42: 0.00161848931 | BE42: 0.00157484639 | BF42: 0.0240288757 | BG42: 0.06306535078 | BH42: 0.0585987037 | BI42: =AO41*$K$7+AP41*$K$8+AQ41*$K$9+AR41*$K$10+AS41*$K$11+AT41*$K$12+AU41*$K$13+AV41*$K$14+AW41*$K$15+AX41*$K$16+AY41*$K$17+AZ41*$K$18+BA41*$K$19+BB41*$K$20+BC41*$K$21+BD41*$K$22+BE41*$K$23+BF41*$K$24+BI41*(1-L38) -> 0.006097873737 | BJ42: 0.004371364118 | BK42: 0.001311409236 | BL42: 0.001501403459 | BM42: 0.004466647082 | BN42: 0.003059954883 | BO42: 0.4291618694 | BP42: 1 | BS42: 36 | BT42: =AM41*'Parameters for Model A v2'!$B$34 -> 29.16072074 | BU42: =AL41*H41*'Parameters for Model A v2'!$B$37+AN41*(1-I40)*'Parameters for Model A v2'!$B$38 -> 49.75075258 | BV42: =AO42*'Parameters for Model A v2'!$B$40+AP42*'Parameters for Model A v2'!$B$41+AQ42*'Parameters for Model A v2'!$B$42+AR42*'Parameters for Model A v2'!$B$43+AS42*'Parameters for Model A v2'!$B$44+AT42*'Parameters for Model A v2'!$B$45+AU42*'Parameters for Model A v2'!$B$46+AV42*'Parameters for Model A v2'!$B$47+AW42*'Parameters for Model A v2'!$B$48+AX42*'Parameters for Model A v2'!$B$49+AY42*'Parameters for Model A v2'!$B$50+AZ42*'Parameters for Model A v2'!$B$51+BA42*'Parameters for Model A v2'!$B$52+BB42*'Parameters for Model A v2'!$B$53+BC42*'Parameters for Model A v2'!$B$54+BD42*'Parameters for Model A v2'!$B$55+BE42*'Parameters for Model A v2'!$B$56+BF42*'Parameters for Model A v2'!$B$57+BF41*(1-$J$24)*'Parameters for Model A v2'!$B$57 -> 61.265241 | BW42: ='Parameters for Model A v2'!$B$60*(BI42-BI41*(1-L38))+BI41*(1-L38)*'Parameters for Model A v2'!$B$61 -> 56.00100835 | BX42: =BJ41*(1-M37)*'Parameters for Model A v2'!$B$63+BI41*(L38-E38)*'Parameters for Model A v2'!$B$64 -> 22.04962057 | BY42: ='SCT in Model A'!IJ42 -> 123.2038606 | BZ42: ='SCT in Model A'!IJ108 -> 367.6892043 | CA42: ='SCT in Model A'!IJ175 -> 234.2802545 | CB42: 943.4006626 | CD42: 0.4870337885 | CE42: 0.008768349914 | CF42: 0.06306535078 | CG42: 0.006097873737 | CH42: 0.001311409236 | CI42: ='SCT in Model A'!NB42 -> 0.03088143754 | CJ42: ='SCT in Model A'!NB108 -> 0.09161492101 | CK42: ='SCT in Model A'!NB175 -> 0.04648962355 | CL42: 0.7352627543
A43: 37 | B43: =Age_1+ROUNDDOWN(A43/12,0) -> 47 | C43: =1-EXP(-VLOOKUP(B43,'lifetable pDead'!$A$3:$D$85,gender+1,FALSE)) -> 0.002320257153 | D43: ='Parameters for Model A v2'!$B$10 -> 0.2903225806 | E43: ='Parameters for Model A v2'!$B$11 -> 0.4285714286 | G43: 0.01479639813 | H43: 0.01247614098 | I43: 0.7096774194 | J43: 0.04479942762 | K43: 0.04590898407 | L43: 0.5714285714 | M43: ='Parameters for Model A v2'!$B$15 -> 0.2 | N43: =IF('Parameters for Model A v2'!$B$66>0.0022,O42*0.0022,O42*'Parameters for Model A v2'!$B$66) -> 0.001499020368 | O43: 0.942919269 | P43: =IF(Q43*'Parameters for Model A v2'!$B$67>BG44,BG44*0.05,Q43*'Parameters for Model A v2'!$B$67) -> 0.004396089287 | Q43: 0.8304690009 | S43: 37 | T43: 0 | U43: 0 | V43: 0 | W43: 0 | X43: 0 | Y43: 0 | Z43: 0 | AA43: 0 | AB43: 0 | AC43: 0 | AD43: 0 | AE43: 0 | AF43: 0 | AG43: 0 | AH43: 0 | AI43: 0 | AJ43: 0 | AK43: 0 | AL43: 0.4814221842 | AM43: 0.4799231639 | AN43: 0.008640683905 | AO43: 0.003677049964 | AP43: 0.003281686037 | AQ43: 0.003002326668 | AR43: 0.002783794455 | AS43: 0.002604012037 | AT43: 0.002451470553 | AU43: 0.002319275769 | AV43: 0.002202918166 | AW43: 0.002099256836 | AX43: 0.0020059821 | AY43: 0.00192126557 | AZ43: 0.001843986236 | BA43: 0.001773110988 | BB43: 0.001707837109 | BC43: 0.001647601535 | BD43: 0.001592241819 | BE43: 0.001542617419 | BF43: 0.02445511803 | BG43: 0.06291155129 | BH43: 0.05846854841 | BI43: 0.0060756145 | BJ43: =BJ42*(1-M38)+BI42*(L39-E39) -> 0.004368216114 | BK43: 0.001310464834 | BL43: 0.001499020368 | BM43: 0.004443002877 | BN43: 0.00305775128 | BO43: 0.43658175 | BP43: 1 | BS43: 37 | BT43: =AM42*'Parameters for Model A v2'!$B$35 -> 10.22770956 | BU43: =AL42*H42*'Parameters for Model A v2'!$B$37+AN42*(1-I41)*'Parameters for Model A v2'!$B$38 -> 49.02638821 | BV43: =AO43*'Parameters for Model A v2'!$B$40+AP43*'Parameters for Model A v2'!$B$41+AQ43*'Parameters for Model A v2'!$B$42+AR43*'Parameters for Model A v2'!$B$43+AS43*'Parameters for Model A v2'!$B$44+AT43*'Parameters for Model A v2'!$B$45+AU43*'Parameters for Model A v2'!$B$46+AV43*'Parameters for Model A v2'!$B$47+AW43*'Parameters for Model A v2'!$B$48+AX43*'Parameters for Model A v2'!$B$49+AY43*'Parameters for Model A v2'!$B$50+AZ43*'Parameters for Model A v2'!$B$51+BA43*'Parameters for Model A v2'!$B$52+BB43*'Parameters for Model A v2'!$B$53+BC43*'Parameters for Model A v2'!$B$54+BD43*'Parameters for Model A v2'!$B$55+BE43*'Parameters for Model A v2'!$B$56+BF43*'Parameters for Model A v2'!$B$57+BF42*(1-$J$24)*'Parameters for Model A v2'!$B$57 -> 60.47893941 | BW43: ='Parameters for Model A v2'!$B$60*(BI43-BI42*(1-L39))+BI42*(1-L39)*'Parameters for Model A v2'!$B$61 -> 55.78952459 | BX43: =BJ42*(1-M38)*'Parameters for Model A v2'!$B$63+BI42*(L39-E39)*'Parameters for Model A v2'!$B$64 -> 22.04696505 | BY43: ='SCT in Model A'!IJ43 -> 123.5269879 | BZ43: ='SCT in Model A'!IJ109 -> 367.6078963 | CA43: ='SCT in Model A'!IJ176 -> 235.697793 | CB43: =SUM(BT43:CA43)/((1+discount)^3) -> 924.402204 | CD43: 0.4799231639 | CE43: 0.008640683905 | CF43: 0.06291155129 | CG43: 0.0060756145 | CH43: 0.001310464834 | CI43: ='SCT in Model A'!NB43 -> 0.0313575832 | CJ43: ='SCT in Model A'!NB109 -> 0.093018218 | CK43: ='SCT in Model A'!NB176 -> 0.04788710374 | CL43: =SUM(CD43:CK43)/((1+discount)^3) -> 0.7311243833
A44: 38 | B44: 47 | C44: =1-EXP(-VLOOKUP(B44,'lifetable pDead'!$A$3:$D$85,gender+1,FALSE)) -> 0.002320257153 | D44: ='Parameters for Model A v2'!$B$10 -> 0.2903225806 | E44: ='Parameters for Model A v2'!$B$11 -> 0.4285714286 | G44: 0.01479639813 | H44: 0.01247614098 | I44: 0.7096774194 | J44: 0.04479942762 | K44: 0.04590898407 | L44: 0.5714285714 | M44: ='Parameters for Model A v2'!$B$15 -> 0.2 | N44: =IF('Parameters for Model A v2'!$B$66>0.0022,O43*0.0022,O43*'Parameters for Model A v2'!$B$66) -> 0.00149664106 | O44: 0.9414226279 | P44: =IF(Q44*'Parameters for Model A v2'!$B$67>BG45,BG45*0.05,Q44*'Parameters for Model A v2'!$B$67) -> 0.004372818579 | Q44: 0.8260729116 | S44: 38 | T44: 0 | U44: 0 | V44: 0 | W44: 0 | X44: 0 | Y44: 0 | Z44: 0 | AA44: 0 | AB44: 0 | AC44: 0 | AD44: 0 | AE44: 0 | AF44: 0 | AG44: 0 | AH44: 0 | AI44: 0 | AJ44: 0 | AK44: 0 | AL44: 0.4742988699 | AM44: 0.4728022289 | AN44: 0.008514876691 | AO44: 0.003623512605 | AP44: 0.00323390513 | AQ44: 0.002958613211 | AR44: 0.002743262846 | AS44: 0.002566098188 | AT44: 0.002415778177 | AU44: 0.002285509703 | AV44: 0.002170851327 | AW44: 0.002068715735 | AX44: 0.001976852468 | AY44: 0.00189354321 | AZ44: 0.001817373781 | BA44: 0.001747504512 | BB44: 0.001683118053 | BC44: 0.001623573459 | BD44: 0.001568428149 | BE44: 0.001517600363 | BF44: 0.02483151198 | BG44: 0.0627257529 | BH44: 0.05830626907 | BI44: 0.006050753976 | BJ44: 0.00436251782 | BK44: 0.001308755346 | BL44: 0.00149664106 | BM44: 0.004419483833 | BN44: 0.003053762474 | BO44: 0.4440472287 | BP44: 1 | BS44: 38 | BT44: =AM43*'Parameters for Model A v2'!$B$35 -> 10.07838644 | BU44: =AL43*H43*'Parameters for Model A v2'!$B$37+AN43*(1-I42)*'Parameters for Model A v2'!$B$38 -> 48.31257049 | BV44: =AO44*'Parameters for Model A v2'!$B$40+AP44*'Parameters for Model A v2'!$B$41+AQ44*'Parameters for Model A v2'!$B$42+AR44*'Parameters for Model A v2'!$B$43+AS44*'Parameters for Model A v2'!$B$44+AT44*'Parameters for Model A v2'!$B$45+AU44*'Parameters for Model A v2'!$B$46+AV44*'Parameters for Model A v2'!$B$47+AW44*'Parameters for Model A v2'!$B$48+AX44*'Parameters for Model A v2'!$B$49+AY44*'Parameters for Model A v2'!$B$50+AZ44*'Parameters for Model A v2'!$B$51+BA44*'Parameters for Model A v2'!$B$52+BB44*'Parameters for Model A v2'!$B$53+BC44*'Parameters for Model A v2'!$B$54+BD44*'Parameters for Model A v2'!$B$55+BE44*'Parameters for Model A v2'!$B$56+BF44*'Parameters for Model A v2'!$B$57+BF43*(1-$J$24)*'Parameters for Model A v2'!$B$57 -> 59.69843764 | BW44: ='Parameters for Model A v2'!$B$60*(BI44-BI43*(1-L40))+BI43*(1-L40)*'Parameters for Model A v2'!$B$61 -> 55.55449418 | BX44: =BJ43*(1-M39)*'Parameters for Model A v2'!$B$63+BI43*(L40-E40)*'Parameters for Model A v2'!$B$64 -> 22.03072564 | BY44: ='SCT in Model A'!IJ44 -> 123.8367566 | BZ44: ='SCT in Model A'!IJ110 -> 367.4807867 | CA44: ='SCT in Model A'!IJ177 -> 236.9556097 | CB44: 923.9477675 | CD44: 0.4728022289 | CE44: 0.008514876691 | CF44: 0.0627257529 | CG44: 0.006050753976 | CH44: 0.001308755346 | CI44: ='SCT in Model A'!NB44 -> 0.03181997083 | CJ44: ='SCT in Model A'!NB110 -> 0.09436732341 | CK44: ='SCT in Model A'!NB177 -> 0.04924479083 | CL44: 0.7268344528
A45: 39 | B45: 47 | C45: =1-EXP(-VLOOKUP(B45,'lifetable pDead'!$A$3:$D$85,gender+1,FALSE)) -> 0.002320257153 | D45: ='Parameters for Model A v2'!$B$10 -> 0.2903225806 | E45: ='Parameters for Model A v2'!$B$11 -> 0.4285714286 | G45: 0.01479639813 | H45: 0.01247614098 | I45: 0.7096774194 | J45: 0.04479942762 | K45: 0.04590898407 | L45: 0.5714285714 | M45: ='Parameters for Model A v2'!$B$15 -> 0.2 | N45: =IF('Parameters for Model A v2'!$B$66>0.0022,O44*0.0022,O44*'Parameters for Model A v2'!$B$66) -> 0.001494265529 | O45: 0.9399283624 | P45: =IF(Q45*'Parameters for Model A v2'!$B$67>BG46,BG46*0.05,Q45*'Parameters for Model A v2'!$B$67) -> 0.004349671056 | Q45: 0.821700093 | S45: 39 | T45: 0 | U45: 0 | V45: 0 | W45: 0 | X45: 0 | Y45: 0 | Z45: 0 | AA45: 0 | AB45: 0 | AC45: 0 | AD45: 0 | AE45: 0 | AF45: 0 | AG45: 0 | AH45: 0 | AI45: 0 | AJ45: 0 | AK45: 0 | AL45: 0.467280955 | AM45: 0.4657866895 | AN45: 0.008389480543 | AO45: 0.003570754742 | AP45: 0.003186819901 | AQ45: 0.002915536201 | AR45: 0.002703321322 | AS45: 0.002528736203 | AT45: 0.002380604972 | AU45: 0.002252233646 | AV45: 0.002139246155 | AW45: 0.002038602418 | AX45: 0.001948092171 | AY45: 0.001866046347 | AZ45: 0.001791150499 | BA45: 0.001722284484 | BB45: 0.001658811215 | BC45: 0.001600074027 | BD45: 0.001545554712 | BE45: 0.001494903035 | BF45: 0.02516717237 | BG45: 0.06250994442 | BH45: 0.05811385514 | BI45: 0.006023436901 | BJ45: 0.004354407681 | BK45: 0.001306322304 | BL45: 0.001494265529 | BM45: 0.004396089287 | BN45: 0.003048085377 | BO45: 0.4514417755 | BP45: 1 | BS45: 39 | BT45: =AM44*'Parameters for Model A v2'!$B$35 -> 9.928846806 | BU45: =AL44*H44*'Parameters for Model A v2'!$B$37+AN44*(1-I43)*'Parameters for Model A v2'!$B$38 -> 47.5986613 | BV45: =AO45*'Parameters for Model A v2'!$B$40+AP45*'Parameters for Model A v2'!$B$41+AQ45*'Parameters for Model A v2'!$B$42+AR45*'Parameters for Model A v2'!$B$43+AS45*'Parameters for Model A v2'!$B$44+AT45*'Parameters for Model A v2'!$B$45+AU45*'Parameters for Model A v2'!$B$46+AV45*'Parameters for Model A v2'!$B$47+AW45*'Parameters for Model A v2'!$B$48+AX45*'Parameters for Model A v2'!$B$49+AY45*'Parameters for Model A v2'!$B$50+AZ45*'Parameters for Model A v2'!$B$51+BA45*'Parameters for Model A v2'!$B$52+BB45*'Parameters for Model A v2'!$B$53+BC45*'Parameters for Model A v2'!$B$54+BD45*'Parameters for Model A v2'!$B$55+BE45*'Parameters for Model A v2'!$B$56+BF45*'Parameters for Model A v2'!$B$57+BF44*(1-$J$24)*'Parameters for Model A v2'!$B$57 -> 58.92424016 | BW45: ='Parameters for Model A v2'!$B$60*(BI45-BI44*(1-L41))+BI44*(1-L41)*'Parameters for Model A v2'!$B$61 -> 55.29724661 | BX45: =BJ44*(1-M40)*'Parameters for Model A v2'!$B$63+BI44*(L41-E41)*'Parameters for Model A v2'!$B$64 -> 22.00164324 | BY45: ='SCT in Model A'!IJ45 -> 124.1335079 | BZ45: ='SCT in Model A'!IJ111 -> 367.3092832 | CA45: ='SCT in Model A'!IJ178 -> 238.0603298 | CB45: 923.2537591 | CD45: 0.4657866895 | CE45: 0.008389480543 | CF45: 0.06250994442 | CG45: 0.006023436901 | CH45: 0.001306322304 | CI45: ='SCT in Model A'!NB45 -> 0.0322689447 | CJ45: ='SCT in Model A'!NB111 -> 0.09566368794 | CK45: ='SCT in Model A'!NB178 -> 0.05056247839 | CL45: 0.7225109847
A46: 40 | B46: 47 | C46: =1-EXP(-VLOOKUP(B46,'lifetable pDead'!$A$3:$D$85,gender+1,FALSE)) -> 0.002320257153 | D46: ='Parameters for Model A v2'!$B$10 -> 0.2903225806 | E46: ='Parameters for Model A v2'!$B$11 -> 0.4285714286 | G46: 0.01479639813 | H46: 0.01247614098 | I46: 0.7096774194 | J46: 0.04479942762 | K46: 0.04590898407 | L46: 0.5714285714 | M46: ='Parameters for Model A v2'!$B$15 -> 0.2 | N46: =IF('Parameters for Model A v2'!$B$66>0.0022,O45*0.0022,O45*'Parameters for Model A v2'!$B$66) -> 0.001491893768 | O46: 0.9384364686 | P46: =IF(Q46*'Parameters for Model A v2'!$B$67>BG47,BG47*0.05,Q46*'Parameters for Model A v2'!$B$67) -> 0.004326646063 | Q46: 0.817350422 | S46: 40 | T46: 0 | U46: 0 | V46: 0 | W46: 0 | X46: 0 | Y46: 0 | Z46: 0 | AA46: 0 | AB46: 0 | AC46: 0 | AD46: 0 | AE46: 0 | AF46: 0 | AG46: 0 | AH46: 0 | AI46: 0 | AJ46: 0 | AK46: 0 | AL46: 0.46036688 | AM46: 0.4588749862 | AN46: 0.008265518714 | AO46: 0.00351816926 | AP46: 0.003140420225 | AQ46: 0.002873086381 | AR46: 0.002663961327 | AS46: 0.002491918157 | AT46: 0.002345943739 | AU46: 0.002219441615 | AV46: 0.002108099634 | AW46: 0.002008922642 | AX46: 0.001919734714 | AY46: 0.001838898116 | AZ46: 0.001765140518 | BA46: 0.001697433266 | BB46: 0.001634871211 | BC46: 0.001576966474 | BD46: 0.001523184515 | BE46: 0.001473101865 | BF46: 0.02546613752 | BG46: 0.06226543118 | BH46: 0.0578926126 | BI46: 0.005993808683 | BJ46: 0.004344017131 | BK46: 0.001303205139 | BL46: 0.001491893768 | BM46: 0.004372818579 | BN46: 0.003040811991 | BO46: 0.4587643443 | BP46: 1 | BS46: 40 | BT46: =AM45*'Parameters for Model A v2'!$B$35 -> 9.781520479 | BU46: =AL45*H45*'Parameters for Model A v2'!$B$37+AN45*(1-I44)*'Parameters for Model A v2'!$B$38 -> 46.89464629 | BV46: =AO46*'Parameters for Model A v2'!$B$40+AP46*'Parameters for Model A v2'!$B$41+AQ46*'Parameters for Model A v2'!$B$42+AR46*'Parameters for Model A v2'!$B$43+AS46*'Parameters for Model A v2'!$B$44+AT46*'Parameters for Model A v2'!$B$45+AU46*'Parameters for Model A v2'!$B$46+AV46*'Parameters for Model A v2'!$B$47+AW46*'Parameters for Model A v2'!$B$48+AX46*'Parameters for Model A v2'!$B$49+AY46*'Parameters for Model A v2'!$B$50+AZ46*'Parameters for Model A v2'!$B$51+BA46*'Parameters for Model A v2'!$B$52+BB46*'Parameters for Model A v2'!$B$53+BC46*'Parameters for Model A v2'!$B$54+BD46*'Parameters for Model A v2'!$B$55+BE46*'Parameters for Model A v2'!$B$56+BF46*'Parameters for Model A v2'!$B$57+BF45*(1-$J$24)*'Parameters for Model A v2'!$B$57 -> 58.15316503 | BW46: ='Parameters for Model A v2'!$B$60*(BI46-BI45*(1-L42))+BI45*(1-L42)*'Parameters for Model A v2'!$B$61 -> 55.01912012 | BX46: =BJ45*(1-M41)*'Parameters for Model A v2'!$B$63+BI45*(L42-E42)*'Parameters for Model A v2'!$B$64 -> 21.96041512 | BY46: ='SCT in Model A'!IJ46 -> 124.4175737 | BZ46: ='SCT in Model A'!IJ112 -> 367.0947503 | CA46: ='SCT in Model A'!IJ179 -> 239.0181571 | CB46: 922.3393481 | CD46: 0.4588749862 | CE46: 0.008265518714 | CF46: 0.06226543118 | CG46: 0.005993808683 | CH46: 0.001303205139 | CI46: ='SCT in Model A'!NB46 -> 0.03270484034 | CJ46: ='SCT in Model A'!NB112 -> 0.0969087237 | CK46: ='SCT in Model A'!NB179 -> 0.05184000729 | CL46: 0.7181565212
A47: 41 | B47: 47 | C47: =1-EXP(-VLOOKUP(B47,'lifetable pDead'!$A$3:$D$85,gender+1,FALSE)) -> 0.002320257153 | D47: ='Parameters for Model A v2'!$B$10 -> 0.2903225806 | E47: ='Parameters for Model A v2'!$B$11 -> 0.4285714286 | G47: 0.01479639813 | H47: 0.01247614098 | I47: 0.7096774194 | J47: 0.04479942762 | K47: 0.04590898407 | L47: 0.5714285714 | M47: ='Parameters for Model A v2'!$B$15 -> 0.2 | N47: =IF('Parameters for Model A v2'!$B$66>0.0022,O46*0.0022,O46*'Parameters for Model A v2'!$B$66) -> 0.001489525771 | O47: 0.9369469428 | P47: =IF(Q47*'Parameters for Model A v2'!$B$67>BG48,BG48*0.05,Q47*'Parameters for Model A v2'!$B$67) -> 0.004303742954 | Q47: 0.8130237759 | S47: 41 | T47: 0 | U47: 0 | V47: 0 | W47: 0 | X47: 0 | Y47: 0 | Z47: 0 | AA47: 0 | AB47: 0 | AC47: 0 | AD47: 0 | AE47: 0 | AF47: 0 | AG47: 0 | AH47: 0 | AI47: 0 | AJ47: 0 | AK47: 0 | AL47: 0.4535551083 | AM47: 0.4520655825 | AN47: 0.008143268821 | AO47: 0.003466185267 | AP47: 0.003094172157 | AQ47: 0.002831254624 | AR47: 0.002625174404 | AS47: 0.002455636163 | AT47: 0.002311787126 | AU47: 0.002187126894 | AV47: 0.002077406163 | AW47: 0.001979673577 | AX47: 0.00189178552 | AY47: 0.001812130145 | AZ47: 0.001739460319 | BA47: 0.001672784189 | BB47: 0.001611281298 | BC47: 0.001554207655 | BD47: 0.001501187366 | BE47: 0.001451780342 | BF47: 0.02573090648 | BG47: 0.06199393969 | BH47: 0.05764426863 | BI47: 0.005961964636 | BJ47: 0.004331472088 | BK47: 0.001299441626 | BL47: 0.001489525771 | BM47: 0.004349671056 | BN47: 0.003032030461 | BO47: 0.4660142465 | BP47: 1 | BS47: 41 | BT47: =AM46*'Parameters for Model A v2'!$B$35 -> 9.63637471 | BU47: =AL46*H46*'Parameters for Model A v2'!$B$37+AN46*(1-I45)*'Parameters for Model A v2'!$B$38 -> 46.2008539 | BV47: =AO47*'Parameters for Model A v2'!$B$40+AP47*'Parameters for Model A v2'!$B$41+AQ47*'Parameters for Model A v2'!$B$42+AR47*'Parameters for Model A v2'!$B$43+AS47*'Parameters for Model A v2'!$B$44+AT47*'Parameters for Model A v2'!$B$45+AU47*'Parameters for Model A v2'!$B$46+AV47*'Parameters for Model A v2'!$B$47+AW47*'Parameters for Model A v2'!$B$48+AX47*'Parameters for Model A v2'!$B$49+AY47*'Parameters for Model A v2'!$B$50+AZ47*'Parameters for Model A v2'!$B$51+BA47*'Parameters for Model A v2'!$B$52+BB47*'Parameters for Model A v2'!$B$53+BC47*'Parameters for Model A v2'!$B$54+BD47*'Parameters for Model A v2'!$B$55+BE47*'Parameters for Model A v2'!$B$56+BF47*'Parameters for Model A v2'!$B$57+BF46*(1-$J$24)*'Parameters for Model A v2'!$B$57 -> 57.38566725 | BW47: ='Parameters for Model A v2'!$B$60*(BI47-BI46*(1-L43))+BI46*(1-L43)*'Parameters for Model A v2'!$B$61 -> 54.72086524 | BX47: =BJ46*(1-M42)*'Parameters for Model A v2'!$B$63+BI46*(L43-E43)*'Parameters for Model A v2'!$B$64 -> 21.9077034 | BY47: ='SCT in Model A'!IJ47 -> 124.6892772 | BZ47: ='SCT in Model A'!IJ113 -> 366.8385124 | CA47: ='SCT in Model A'!IJ180 -> 239.8349664 | CB47: 921.2142206 | CD47: 0.4520655825 | CE47: 0.008143268821 | CF47: 0.06199393969 | CG47: 0.005961964636 | CH47: 0.001299441626 | CI47: ='SCT in Model A'!NB47 -> 0.03312798488 | CJ47: ='SCT in Model A'!NB113 -> 0.09810380591 | CK47: ='SCT in Model A'!NB180 -> 0.05307726654 | CL47: 0.7137732546
A48: 42 | B48: 47 | C48: =1-EXP(-VLOOKUP(B48,'lifetable pDead'!$A$3:$D$85,gender+1,FALSE)) -> 0.002320257153 | D48: ='Parameters for Model A v2'!$B$10 -> 0.2903225806 | E48: ='Parameters for Model A v2'!$B$11 -> 0.4285714286 | G48: 0.01479639813 | H48: 0.01247614098 | I48: 0.7096774194 | J48: 0.04479942762 | K48: 0.04590898407 | L48: 0.5714285714 | M48: ='Parameters for Model A v2'!$B$15 -> 0.2 | N48: =IF('Parameters for Model A v2'!$B$66>0.0022,O47*0.0022,O47*'Parameters for Model A v2'!$B$66) -> 0.001487161533 | O48: 0.9354597813 | P48: =IF(Q48*'Parameters for Model A v2'!$B$67>BG49,BG49*0.05,Q48*'Parameters for Model A v2'!$B$67) -> 0.004280961082 | Q48: 0.8087200329 | S48: 42 | T48: 0 | U48: 0 | V48: 0 | W48: 0 | X48: 0 | Y48: 0 | Z48: 0 | AA48: 0 | AB48: 0 | AC48: 0 | AD48: 0 | AE48: 0 | AF48: 0 | AG48: 0 | AH48: 0 | AI48: 0 | AJ48: 0 | AK48: 0 | AL48: 0.4468441263 | AM48: 0.4453569648 | AN48: 0.008022792293 | AO48: 0.003414919183 | AP48: 0.003048453088 | AQ48: 0.002789559549 | AR48: 0.002586952213 | AS48: 0.002419882427 | AT48: 0.002278127816 | AU48: 0.002155282632 | AV48: 0.002047159456 | AW48: 0.00195084996 | AX48: 0.001864241921 | AY48: 0.001785747553 | AZ48: 0.001714139817 | BA48: 0.001648447638 | BB48: 0.001587883267 | BC48: 0.001531781654 | BD48: 0.001479522192 | BE48: 0.00143081438 | BF48: 0.02596346889 | BG48: 0.06169723363 | BH48: 0.05737058757 | BI48: 0.00592802502 | BJ48: 0.004316886904 | BK48: 0.001295066071 | BL48: 0.001487161533 | BM48: 0.004326646063 | BN48: 0.003021820833 | BO48: 0.4731909358 | BP48: 1 | BS48: 42 | BT48: =AM47*'Parameters for Model A v2'!$B$35 -> 9.493377233 | BU48: =AL47*H47*'Parameters for Model A v2'!$B$37+AN47*(1-I46)*'Parameters for Model A v2'!$B$38 -> 45.51727074 | BV48: =AO48*'Parameters for Model A v2'!$B$40+AP48*'Parameters for Model A v2'!$B$41+AQ48*'Parameters for Model A v2'!$B$42+AR48*'Parameters for Model A v2'!$B$43+AS48*'Parameters for Model A v2'!$B$44+AT48*'Parameters for Model A v2'!$B$45+AU48*'Parameters for Model A v2'!$B$46+AV48*'Parameters for Model A v2'!$B$47+AW48*'Parameters for Model A v2'!$B$48+AX48*'Parameters for Model A v2'!$B$49+AY48*'Parameters for Model A v2'!$B$50+AZ48*'Parameters for Model A v2'!$B$51+BA48*'Parameters for Model A v2'!$B$52+BB48*'Parameters for Model A v2'!$B$53+BC48*'Parameters for Model A v2'!$B$54+BD48*'Parameters for Model A v2'!$B$55+BE48*'Parameters for Model A v2'!$B$56+BF48*'Parameters for Model A v2'!$B$57+BF47*(1-$J$24)*'Parameters for Model A v2'!$B$57 -> 56.62368052 | BW48: ='Parameters for Model A v2'!$B$60*(BI48-BI47*(1-L44))+BI47*(1-L44)*'Parameters for Model A v2'!$B$61 -> 54.40364989 | BX48: =BJ47*(1-M43)*'Parameters for Model A v2'!$B$63+BI47*(L44-E44)*'Parameters for Model A v2'!$B$64 -> 21.84414153 | BY48: ='SCT in Model A'!IJ48 -> 124.9489335 | BZ48: ='SCT in Model A'!IJ114 -> 366.541857 | CA48: ='SCT in Model A'!IJ181 -> 240.5163823 | CB48: 919.8892928 | CD48: 0.4453569648 | CE48: 0.008022792293 | CF48: 0.06169723363 | CG48: 0.00592802502 | CH48: 0.001295066071 | CI48: ='SCT in Model A'!NB48 -> 0.03353869724 | CJ48: ='SCT in Model A'!NB114 -> 0.09925027427 | CK48: ='SCT in Model A'!NB181 -> 0.05427419441 | CL48: 0.7093632477
A49: 43 | B49: 47 | C49: =1-EXP(-VLOOKUP(B49,'lifetable pDead'!$A$3:$D$85,gender+1,FALSE)) -> 0.002320257153 | D49: ='Parameters for Model A v2'!$B$10 -> 0.2903225806 | E49: ='Parameters for Model A v2'!$B$11 -> 0.4285714286 | G49: 0.01479639813 | H49: 0.01247614098 | I49: 0.7096774194 | J49: 0.04479942762 | K49: 0.04590898407 | L49: 0.5714285714 | M49: ='Parameters for Model A v2'!$B$15 -> 0.2 | N49: =IF('Parameters for Model A v2'!$B$66>0.0022,O48*0.0022,O48*'Parameters for Model A v2'!$B$66) -> 0.001484801048 | O49: 0.9339749802 | P49: =IF(Q49*'Parameters for Model A v2'!$B$67>BG50,BG50*0.05,Q49*'Parameters for Model A v2'!$B$67) -> 0.004258299806 | Q49: 0.8044390719 | S49: 43 | T49: 0 | U49: 0 | V49: 0 | W49: 0 | X49: 0 | Y49: 0 | Z49: 0 | AA49: 0 | AB49: 0 | AC49: 0 | AD49: 0 | AE49: 0 | AF49: 0 | AG49: 0 | AH49: 0 | AI49: 0 | AJ49: 0 | AK49: 0 | AL49: 0.4402324428 | AM49: 0.4387476417 | AN49: 0.007904088079 | AO49: 0.003364396768 | AP49: 0.003003365408 | AQ49: 0.002748341394 | AR49: 0.002548854909 | AS49: 0.00238464926 | AT49: 0.002244958578 | AU49: 0.002123902007 | AV49: 0.0020173531 | AW49: 0.001922445892 | AX49: 0.001837098965 | AY49: 0.001759747822 | AZ49: 0.001689183855 | BA49: 0.001624451965 | BB49: 0.0015647819 | BC49: 0.001509538067 | BD49: 0.001458173844 | BE49: 0.001410164832 | BF49: 0.02616560686 | BG49: 0.06137701543 | BH49: 0.05707327247 | BI49: 0.005892126189 | BJ49: 0.00430037024 | BK49: 0.001290111072 | BL49: 0.001484801048 | BM49: 0.004303742954 | BN49: 0.003010259168 | BO49: 0.4802939573 | BP49: 1 | BS49: 43 | BT49: =AM48*'Parameters for Model A v2'!$B$35 -> 9.352496261 | BU49: =AL48*H48*'Parameters for Model A v2'!$B$37+AN48*(1-I47)*'Parameters for Model A v2'!$B$38 -> 44.84378578 | BV49: =AO49*'Parameters for Model A v2'!$B$40+AP49*'Parameters for Model A v2'!$B$41+AQ49*'Parameters for Model A v2'!$B$42+AR49*'Parameters for Model A v2'!$B$43+AS49*'Parameters for Model A v2'!$B$44+AT49*'Parameters for Model A v2'!$B$45+AU49*'Parameters for Model A v2'!$B$46+AV49*'Parameters for Model A v2'!$B$47+AW49*'Parameters for Model A v2'!$B$48+AX49*'Parameters for Model A v2'!$B$49+AY49*'Parameters for Model A v2'!$B$50+AZ49*'Parameters for Model A v2'!$B$51+BA49*'Parameters for Model A v2'!$B$52+BB49*'Parameters for Model A v2'!$B$53+BC49*'Parameters for Model A v2'!$B$54+BD49*'Parameters for Model A v2'!$B$55+BE49*'Parameters for Model A v2'!$B$56+BF49*'Parameters for Model A v2'!$B$57+BF48*(1-$J$24)*'Parameters for Model A v2'!$B$57 -> 55.8672371 | BW49: ='Parameters for Model A v2'!$B$60*(BI49-BI48*(1-L45))+BI48*(1-L45)*'Parameters for Model A v2'!$B$61 -> 54.06876774 | BX49: =BJ48*(1-M44)*'Parameters for Model A v2'!$B$63+BI48*(L45-E45)*'Parameters for Model A v2'!$B$64 -> 21.77030542 | BY49: ='SCT in Model A'!IJ49 -> 125.1968497 | BZ49: ='SCT in Model A'!IJ115 -> 366.2060362 | CA49: ='SCT in Model A'!IJ182 -> 241.067563 | CB49: 918.3730412 | CD49: 0.4387476417 | CE49: 0.007904088079 | CF49: 0.06137701543 | CG49: 0.005892126189 | CH49: 0.001290111072 | CI49: ='SCT in Model A'!NB49 -> 0.03393728839 | CJ49: ='SCT in Model A'!NB115 -> 0.1003494342 | CK49: ='SCT in Model A'!NB182 -> 0.05543077435 | CL49: 0.7049284794
A50: 44 | B50: 47 | C50: =1-EXP(-VLOOKUP(B50,'lifetable pDead'!$A$3:$D$85,gender+1,FALSE)) -> 0.002320257153 | D50: ='Parameters for Model A v2'!$B$10 -> 0.2903225806 | E50: ='Parameters for Model A v2'!$B$11 -> 0.4285714286 | G50: 0.01479639813 | H50: 0.01247614098 | I50: 0.7096774194 | J50: 0.04479942762 | K50: 0.04590898407 | L50: 0.5714285714 | M50: ='Parameters for Model A v2'!$B$15 -> 0.2 | N50: =IF('Parameters for Model A v2'!$B$66>0.0022,O49*0.0022,O49*'Parameters for Model A v2'!$B$66) -> 0.00148244431 | O50: 0.9324925359 | P50: =IF(Q50*'Parameters for Model A v2'!$B$67>BG51,BG51*0.05,Q50*'Parameters for Model A v2'!$B$67) -> 0.004235758488 | Q50: 0.800180772 | S50: 44 | T50: 0 | U50: 0 | V50: 0 | W50: 0 | X50: 0 | Y50: 0 | Z50: 0 | AA50: 0 | AB50: 0 | AC50: 0 | AD50: 0 | AE50: 0 | AF50: 0 | AG50: 0 | AH50: 0 | AI50: 0 | AJ50: 0 | AK50: 0 | AL50: 0.4337185883 | AM50: 0.4322361439 | AN50: 0.007787137269 | AO50: 0.003314617582 | AP50: 0.002958931772 | AQ50: 0.00270769247 | AR50: 0.002511193374 | AS50: 0.002349531214 | AT50: 0.002212272278 | AU50: 0.002092978276 | AV50: 0.00198798071 | AW50: 0.001894455348 | AX50: 0.001810351093 | AY50: 0.001734126277 | AZ50: 0.001664590051 | BA50: 0.001600801758 | BB50: 0.001542004109 | BC50: 0.001487576508 | BD50: 0.001436999145 | BE50: 0.001389817256 | BF50: 0.02633898532 | BG50: 0.06103490454 | BH50: 0.05675394346 | BI50: 0.00585440789 | BJ50: 0.004282028505 | BK50: 0.001284608552 | BL50: 0.00148244431 | BM50: 0.004280961082 | BN50: 0.002997419954 | BO50: 0.4873229335 | BP50: 1 | BS50: 44 | BT50: =AM49*'Parameters for Model A v2'!$B$35 -> 9.213700476 | BU50: =AL49*H49*'Parameters for Model A v2'!$B$37+AN49*(1-I48)*'Parameters for Model A v2'!$B$38 -> 44.18026122 | BV50: =AO50*'Parameters for Model A v2'!$B$40+AP50*'Parameters for Model A v2'!$B$41+AQ50*'Parameters for Model A v2'!$B$42+AR50*'Parameters for Model A v2'!$B$43+AS50*'Parameters for Model A v2'!$B$44+AT50*'Parameters for Model A v2'!$B$45+AU50*'Parameters for Model A v2'!$B$46+AV50*'Parameters for Model A v2'!$B$47+AW50*'Parameters for Model A v2'!$B$48+AX50*'Parameters for Model A v2'!$B$49+AY50*'Parameters for Model A v2'!$B$50+AZ50*'Parameters for Model A v2'!$B$51+BA50*'Parameters for Model A v2'!$B$52+BB50*'Parameters for Model A v2'!$B$53+BC50*'Parameters for Model A v2'!$B$54+BD50*'Parameters for Model A v2'!$B$55+BE50*'Parameters for Model A v2'!$B$56+BF50*'Parameters for Model A v2'!$B$57+BF49*(1-$J$24)*'Parameters for Model A v2'!$B$57 -> 55.1175387 | BW50: ='Parameters for Model A v2'!$B$60*(BI50-BI49*(1-L46))+BI49*(1-L46)*'Parameters for Model A v2'!$B$61 -> 53.7175118 | BX50: =BJ49*(1-M45)*'Parameters for Model A v2'!$B$63+BI49*(L46-E46)*'Parameters for Model A v2'!$B$64 -> 21.68674282 | BY50: ='SCT in Model A'!IJ50 -> 125.433325 | BZ50: ='SCT in Model A'!IJ116 -> 365.8322683 | CA50: ='SCT in Model A'!IJ183 -> 241.4934221 | CB50: 916.6747704 | CD50: 0.4322361439 | CE50: 0.007787137269 | CF50: 0.06103490454 | CG50: 0.00585440789 | CH50: 0.001284608552 | CI50: ='SCT in Model A'!NB50 -> 0.03432406157 | CJ50: ='SCT in Model A'!NB116 -> 0.1014025577 | CK50: ='SCT in Model A'!NB183 -> 0.05654703457 | CL50: 0.700470856
A51: 45 | B51: 47 | C51: =1-EXP(-VLOOKUP(B51,'lifetable pDead'!$A$3:$D$85,gender+1,FALSE)) -> 0.002320257153 | D51: ='Parameters for Model A v2'!$B$10 -> 0.2903225806 | E51: ='Parameters for Model A v2'!$B$11 -> 0.4285714286 | G51: 0.01479639813 | H51: 0.01247614098 | I51: 0.7096774194 | J51: 0.04479942762 | K51: 0.04590898407 | L51: 0.5714285714 | M51: ='Parameters for Model A v2'!$B$15 -> 0.2 | N51: =IF('Parameters for Model A v2'!$B$66>0.0022,O50*0.0022,O50*'Parameters for Model A v2'!$B$66) -> 0.001480091312 | O51: 0.9310124446 | P51: =IF(Q51*'Parameters for Model A v2'!$B$67>BG52,BG52*0.05,Q51*'Parameters for Model A v2'!$B$67) -> 0.004213336492 | Q51: 0.7959450136 | S51: 45 | T51: 0 | U51: 0 | V51: 0 | W51: 0 | X51: 0 | Y51: 0 | Z51: 0 | AA51: 0 | AB51: 0 | AC51: 0 | AD51: 0 | AE51: 0 | AF51: 0 | AG51: 0 | AH51: 0 | AI51: 0 | AJ51: 0 | AK51: 0 | AL51: 0.4273011153 | AM51: 0.425821024 | AN51: 0.007671916041 | AO51: 0.003265573693 | AP51: 0.002915151795 | AQ51: 0.002667633202 | AR51: 0.002474051951 | AS51: 0.002314814858 | AT51: 0.002179692779 | AU51: 0.002062504789 | AV51: 0.001959035975 | AW51: 0.001866872333 | AX51: 0.001783992634 | AY51: 0.001708877672 | AZ51: 0.001640353982 | BA51: 0.00157749476 | BB51: 0.001519554251 | BC51: 0.00146592256 | BD51: 0.00141609292 | BE51: 0.001369635189 | BF51: 0.02648518082 | BG51: 0.06067243616 | BH51: 0.05641413636 | BI51: 0.005815006369 | BJ51: 0.004261966788 | BK51: 0.001278590036 | BL51: 0.001480091312 | BM51: 0.004258299806 | BN51: 0.002983376752 | BO51: 0.4942775593 | BP51: 1 | BS51: 45 | BT51: =AM50*'Parameters for Model A v2'!$B$35 -> 9.076959023 | BU51: =AL50*H50*'Parameters for Model A v2'!$B$37+AN50*(1-I49)*'Parameters for Model A v2'!$B$38 -> 43.52655305 | BV51: =AO51*'Parameters for Model A v2'!$B$40+AP51*'Parameters for Model A v2'!$B$41+AQ51*'Parameters for Model A v2'!$B$42+AR51*'Parameters for Model A v2'!$B$43+AS51*'Parameters for Model A v2'!$B$44+AT51*'Parameters for Model A v2'!$B$45+AU51*'Parameters for Model A v2'!$B$46+AV51*'Parameters for Model A v2'!$B$47+AW51*'Parameters for Model A v2'!$B$48+AX51*'Parameters for Model A v2'!$B$49+AY51*'Parameters for Model A v2'!$B$50+AZ51*'Parameters for Model A v2'!$B$51+BA51*'Parameters for Model A v2'!$B$52+BB51*'Parameters for Model A v2'!$B$53+BC51*'Parameters for Model A v2'!$B$54+BD51*'Parameters for Model A v2'!$B$55+BE51*'Parameters for Model A v2'!$B$56+BF51*'Parameters for Model A v2'!$B$57+BF50*(1-$J$24)*'Parameters for Model A v2'!$B$57 -> 54.37527418 | BW51: ='Parameters for Model A v2'!$B$60*(BI51-BI50*(1-L47))+BI50*(1-L47)*'Parameters for Model A v2'!$B$61 -> 53.35112564 | BX51: =BJ50*(1-M46)*'Parameters for Model A v2'!$B$63+BI50*(L47-E47)*'Parameters for Model A v2'!$B$64 -> 21.5939902 | BY51: ='SCT in Model A'!IJ51 -> 125.6586512 | BZ51: ='SCT in Model A'!IJ117 -> 365.4217394 | CA51: ='SCT in Model A'!IJ184 -> 241.7987712 | CB51: 914.8030639 | CD51: 0.425821024 | CE51: 0.007671916041 | CF51: 0.06067243616 | CG51: 0.005815006369 | CH51: 0.001278590036 | CI51: ='SCT in Model A'!NB51 -> 0.03469931249 | CJ51: ='SCT in Model A'!NB117 -> 0.1024108847 | CK51: ='SCT in Model A'!NB184 -> 0.05762304923 | CL51: 0.6959922191
A52: 46 | B52: 47 | C52: =1-EXP(-VLOOKUP(B52,'lifetable pDead'!$A$3:$D$85,gender+1,FALSE)) -> 0.002320257153 | D52: ='Parameters for Model A v2'!$B$10 -> 0.2903225806 | E52: ='Parameters for Model A v2'!$B$11 -> 0.4285714286 | G52: 0.01479639813 | H52: 0.01247614098 | I52: 0.7096774194 | J52: 0.04479942762 | K52: 0.04590898407 | L52: 0.5714285714 | M52: ='Parameters for Model A v2'!$B$15 -> 0.2 | N52: =IF('Parameters for Model A v2'!$B$66>0.0022,O51*0.0022,O51*'Parameters for Model A v2'!$B$66) -> 0.001477742049 | O52: 0.9295347026 | P52: =IF(Q52*'Parameters for Model A v2'!$B$67>BG53,BG53*0.05,Q52*'Parameters for Model A v2'!$B$67) -> 0.004191033187 | Q52: 0.7917316771 | S52: 46 | T52: 0 | U52: 0 | V52: 0 | W52: 0 | X52: 0 | Y52: 0 | Z52: 0 | AA52: 0 | AB52: 0 | AC52: 0 | AD52: 0 | AE52: 0 | AF52: 0 | AG52: 0 | AH52: 0 | AI52: 0 | AJ52: 0 | AK52: 0 | AL52: 0.4209785979 | AM52: 0.4195008559 | AN52: 0.00755839942 | AO52: 0.003217255114 | AP52: 0.002872018499 | AQ52: 0.002628163241 | AR52: 0.002437449305 | AS52: 0.002280577942 | AT52: 0.002147485933 | AU52: 0.002032130872 | AV52: 0.001930512671 | AW52: 0.00183969092 | AX52: 0.001758017941 | AY52: 0.001683996651 | AZ52: 0.001616470687 | BA52: 0.00155452678 | BB52: 0.001497430182 | BC52: 0.001444580364 | BD52: 0.001395479525 | BE52: 0.001349709011 | BF52: 0.02660556907 | BG52: 0.06029106471 | BH52: 0.05605530622 | BI52: 0.005774051589 | BJ52: 0.004240288626 | BK52: 0.001272086588 | BL52: 0.001477742049 | BM52: 0.004235758488 | BN52: 0.002968202038 | BO52: 0.5011575977 | BP52: 1 | BS52: 46 | BT52: =AM51*'Parameters for Model A v2'!$B$35 -> 8.942241505 | BU52: =AL51*H51*'Parameters for Model A v2'!$B$37+AN51*(1-I50)*'Parameters for Model A v2'!$B$38 -> 42.882517 | BV52: =AO52*'Parameters for Model A v2'!$B$40+AP52*'Parameters for Model A v2'!$B$41+AQ52*'Parameters for Model A v2'!$B$42+AR52*'Parameters for Model A v2'!$B$43+AS52*'Parameters for Model A v2'!$B$44+AT52*'Parameters for Model A v2'!$B$45+AU52*'Parameters for Model A v2'!$B$46+AV52*'Parameters for Model A v2'!$B$47+AW52*'Parameters for Model A v2'!$B$48+AX52*'Parameters for Model A v2'!$B$49+AY52*'Parameters for Model A v2'!$B$50+AZ52*'Parameters for Model A v2'!$B$51+BA52*'Parameters for Model A v2'!$B$52+BB52*'Parameters for Model A v2'!$B$53+BC52*'Parameters for Model A v2'!$B$54+BD52*'Parameters for Model A v2'!$B$55+BE52*'Parameters for Model A v2'!$B$56+BF52*'Parameters for Model A v2'!$B$57+BF51*(1-$J$24)*'Parameters for Model A v2'!$B$57 -> 53.64066888 | BW52: ='Parameters for Model A v2'!$B$60*(BI52-BI51*(1-L48))+BI51*(1-L48)*'Parameters for Model A v2'!$B$61 -> 52.9707881 | BX52: =BJ51*(1-M47)*'Parameters for Model A v2'!$B$63+BI51*(L48-E48)*'Parameters for Model A v2'!$B$64 -> 21.49257739 | BY52: ='SCT in Model A'!IJ52 -> 125.8731128 | BZ52: ='SCT in Model A'!IJ118 -> 364.9756043 | CA52: ='SCT in Model A'!IJ185 -> 241.9883748 | CB52: 912.7658848 | CD52: 0.4195008559 | CE52: 0.00755839942 | CF52: 0.06029106471 | CG52: 0.005774051589 | CH52: 0.001272086588 | CI52: ='SCT in Model A'!NB52 -> 0.03506332951 | CJ52: ='SCT in Model A'!NB118 -> 0.1033756237 | CK52: ='SCT in Model A'!NB185 -> 0.05865893959 | CL52: 0.691494351
A53: 47 | B53: 47 | C53: =1-EXP(-VLOOKUP(B53,'lifetable pDead'!$A$3:$D$85,gender+1,FALSE)) -> 0.002320257153 | D53: ='Parameters for Model A v2'!$B$10 -> 0.2903225806 | E53: ='Parameters for Model A v2'!$B$11 -> 0.4285714286 | G53: 0.01479639813 | H53: 0.01247614098 | I53: 0.7096774194 | J53: 0.04479942762 | K53: 0.04590898407 | L53: 0.5714285714 | M53: ='Parameters for Model A v2'!$B$15 -> 0.2 | N53: =IF('Parameters for Model A v2'!$B$66>0.0022,O52*0.0022,O52*'Parameters for Model A v2'!$B$66) -> 0.001475396514 | O53: 0.9280593061 | P53: =IF(Q53*'Parameters for Model A v2'!$B$67>BG54,BG54*0.05,Q53*'Parameters for Model A v2'!$B$67) -> 0.004168847945 | Q53: 0.7875406439 | S53: 47 | T53: 0 | U53: 0 | V53: 0 | W53: 0 | X53: 0 | Y53: 0 | Z53: 0 | AA53: 0 | AB53: 0 | AC53: 0 | AD53: 0 | AE53: 0 | AF53: 0 | AG53: 0 | AH53: 0 | AI53: 0 | AJ53: 0 | AK53: 0 | AL53: 0.414749631 | AM53: 0.4132742345 | AN53: 0.007446562363 | AO53: 0.00316965137 | AP53: 0.002829523101 | AQ53: 0.002589276298 | AR53: 0.002401385115 | AS53: 0.00224683767 | AT53: 0.00211572387 | AU53: 0.002002104382 | AV53: 0.001902082564 | AW53: 0.001812905264 | AX53: 0.001732421434 | AY53: 0.001659477887 | AZ53: 0.001592935099 | BA53: 0.001531893115 | BB53: 0.001475627925 | BC53: 0.001423547883 | BD53: 0.001375162901 | BE53: 0.001330061934 | BF53: 0.02670155038 | BG53: 0.05989216819 | BH53: 0.0556788317 | BI53: 0.005731666466 | BJ53: 0.004217095414 | BK53: 0.001265128624 | BL53: 0.001475396514 | BM53: 0.004213336492 | BN53: 0.00295196679 | BO53: 0.5079628766 | BP53: 1 | BS53: 47 | BT53: =AM52*'Parameters for Model A v2'!$B$35 -> 8.809517973 | BU53: =AL52*H52*'Parameters for Model A v2'!$B$37+AN52*(1-I51)*'Parameters for Model A v2'!$B$38 -> 42.24801026 | BV53: =AO53*'Parameters for Model A v2'!$B$40+AP53*'Parameters for Model A v2'!$B$41+AQ53*'Parameters for Model A v2'!$B$42+AR53*'Parameters for Model A v2'!$B$43+AS53*'Parameters for Model A v2'!$B$44+AT53*'Parameters for Model A v2'!$B$45+AU53*'Parameters for Model A v2'!$B$46+AV53*'Parameters for Model A v2'!$B$47+AW53*'Parameters for Model A v2'!$B$48+AX53*'Parameters for Model A v2'!$B$49+AY53*'Parameters for Model A v2'!$B$50+AZ53*'Parameters for Model A v2'!$B$51+BA53*'Parameters for Model A v2'!$B$52+BB53*'Parameters for Model A v2'!$B$53+BC53*'Parameters for Model A v2'!$B$54+BD53*'Parameters for Model A v2'!$B$55+BE53*'Parameters for Model A v2'!$B$56+BF53*'Parameters for Model A v2'!$B$57+BF52*(1-$J$24)*'Parameters for Model A v2'!$B$57 -> 52.91380026 | BW53: ='Parameters for Model A v2'!$B$60*(BI53-BI52*(1-L49))+BI52*(1-L49)*'Parameters for Model A v2'!$B$61 -> 52.57761131 | BX53: =BJ52*(1-M48)*'Parameters for Model A v2'!$B$63+BI52*(L49-E49)*'Parameters for Model A v2'!$B$64 -> 21.38302628 | BY53: ='SCT in Model A'!IJ53 -> 126.0769873 | BZ53: ='SCT in Model A'!IJ119 -> 364.4949875 | CA53: ='SCT in Model A'!IJ186 -> 242.0669538 | CB53: 910.5708946 | CD53: 0.4132742345 | CE53: 0.007446562363 | CF53: 0.05989216819 | CG53: 0.005731666466 | CH53: 0.001265128624 | CI53: ='SCT in Model A'!NB53 -> 0.03541639383 | CJ53: ='SCT in Model A'!NB119 -> 0.1042979525 | CK53: ='SCT in Model A'!NB186 -> 0.0596548744 | CL53: 0.6869789808
A54: 48 | B54: =Age_1+ROUNDDOWN(A54/13,0) -> 47 | C54: =1-EXP(-VLOOKUP(B54,'lifetable pDead'!$A$3:$D$85,gender+1,FALSE)) -> 0.002320257153 | D54: ='Parameters for Model A v2'!$B$10 -> 0.2903225806 | E54: ='Parameters for Model A v2'!$B$11 -> 0.4285714286 | G54: 0.01479639813 | H54: 0.01247614098 | I54: 0.7096774194 | J54: 0.04479942762 | K54: 0.04590898407 | L54: 0.5714285714 | M54: ='Parameters for Model A v2'!$B$15 -> 0.2 | N54: =IF('Parameters for Model A v2'!$B$66>0.0022,O53*0.0022,O53*'Parameters for Model A v2'!$B$66) -> 0.001473054703 | O54: 0.9265862514 | P54: =IF(Q54*'Parameters for Model A v2'!$B$67>BG55,BG55*0.05,Q54*'Parameters for Model A v2'!$B$67) -> 0.00414678014 | Q54: 0.7833717959 | S54: 48 | T54: 0 | U54: 0 | V54: 0 | W54: 0 | X54: 0 | Y54: 0 | Z54: 0 | AA54: 0 | AB54: 0 | AC54: 0 | AD54: 0 | AE54: 0 | AF54: 0 | AG54: 0 | AH54: 0 | AI54: 0 | AJ54: 0 | AK54: 0 | AL54: 0.4086128303 | AM54: 0.4071397756 | AN54: 0.00733638007 | AO54: 0.003122751959 | AP54: 0.002787656389 | AQ54: 0.002550964453 | AR54: 0.002365853637 | AS54: 0.002213593745 | AT54: 0.00208442255 | AU54: 0.001972492562 | AV54: 0.00187397765 | AW54: 0.001786207128 | AX54: 0.001707197607 | AY54: 0.001635316109 | AZ54: 0.001569742178 | BA54: 0.001509588965 | BB54: 0.001454143015 | BC54: 0.001402821336 | BD54: 0.001355141109 | BE54: 0.001310697717 | BF54: 0.0267744845 | BG54: 0.05947705261 | BH54: 0.05528601943 | BI54: 0.005687966863 | BJ54: 0.004192485826 | BK54: 0.001257745748 | BL54: 0.001473054703 | BM54: 0.004191033187 | BN54: 0.002934740078 | BO54: 0.5146932843 | BP54: 1 | BS54: 48 | BT54: =AM53*'Parameters for Model A v2'!$B$35 -> 8.678758924 | BU54: =AL53*H53*'Parameters for Model A v2'!$B$37+AN53*(1-I52)*'Parameters for Model A v2'!$B$38 -> 41.62289189 | BV54: =AO54*'Parameters for Model A v2'!$B$40+AP54*'Parameters for Model A v2'!$B$41+AQ54*'Parameters for Model A v2'!$B$42+AR54*'Parameters for Model A v2'!$B$43+AS54*'Parameters for Model A v2'!$B$44+AT54*'Parameters for Model A v2'!$B$45+AU54*'Parameters for Model A v2'!$B$46+AV54*'Parameters for Model A v2'!$B$47+AW54*'Parameters for Model A v2'!$B$48+AX54*'Parameters for Model A v2'!$B$49+AY54*'Parameters for Model A v2'!$B$50+AZ54*'Parameters for Model A v2'!$B$51+BA54*'Parameters for Model A v2'!$B$52+BB54*'Parameters for Model A v2'!$B$53+BC54*'Parameters for Model A v2'!$B$54+BD54*'Parameters for Model A v2'!$B$55+BE54*'Parameters for Model A v2'!$B$56+BF54*'Parameters for Model A v2'!$B$57+BF53*(1-$J$24)*'Parameters for Model A v2'!$B$57 -> 52.19470654 | BW54: ='Parameters for Model A v2'!$B$60*(BI54-BI53*(1-L50))+BI53*(1-L50)*'Parameters for Model A v2'!$B$61 -> 52.17264259 | BX54: =BJ53*(1-M49)*'Parameters for Model A v2'!$B$63+BI53*(L50-E50)*'Parameters for Model A v2'!$B$64 -> 21.26584787 | BY54: ='SCT in Model A'!IJ54 -> 126.2705451 | BZ54: ='SCT in Model A'!IJ120 -> 363.9809841 | CA54: ='SCT in Model A'!IJ187 -> 242.0391646 | CB54: 908.2255416 | CD54: 0.4071397756 | CE54: 0.00733638007 | CF54: 0.05947705261 | CG54: 0.005687966863 | CH54: 0.001257745748 | CI54: ='SCT in Model A'!NB54 -> 0.03575877968 | CJ54: ='SCT in Model A'!NB120 -> 0.1051790192 | CK54: ='SCT in Model A'!NB187 -> 0.06061106941 | CL54: 0.6824477892
A55: 49 | B55: =Age_1+ROUNDDOWN(A55/12,0) -> 48 | C55: =1-EXP(-VLOOKUP(B55,'lifetable pDead'!$A$3:$D$85,gender+1,FALSE)) -> 0.002538347435 | D55: ='Parameters for Model A v2'!$B$10 -> 0.2903225806 | E55: ='Parameters for Model A v2'!$B$11 -> 0.4285714286 | G55: 0.01501448842 | H55: 0.01247614098 | I55: 0.7096774194 | J55: 0.04479942762 | K55: 0.04590898407 | L55: 0.5714285714 | M55: ='Parameters for Model A v2'!$B$15 -> 0.2 | N55: =IF('Parameters for Model A v2'!$B$66>0.0022,O54*0.0022,O54*'Parameters for Model A v2'!$B$66) -> 0.001470716609 | O55: 0.9251155347 | P55: =IF(Q55*'Parameters for Model A v2'!$B$67>BG56,BG56*0.05,Q55*'Parameters for Model A v2'!$B$67) -> 0.004124829151 | Q55: 0.7792250158 | S55: 49 | T55: 0 | U55: 0 | V55: 0 | W55: 0 | X55: 0 | Y55: 0 | Z55: 0 | AA55: 0 | AB55: 0 | AC55: 0 | AD55: 0 | AE55: 0 | AF55: 0 | AG55: 0 | AH55: 0 | AI55: 0 | AJ55: 0 | AK55: 0 | AL55: 0.4025668322 | AM55: 0.4010961156 | AN55: 0.007227828072 | AO55: 0.003076546481 | AP55: 0.002746409126 | AQ55: 0.002513219402 | AR55: 0.002330847633 | AS55: 0.002180840874 | AT55: 0.002053581699 | AU55: 0.001943310294 | AV55: 0.001846260869 | AW55: 0.001759814373 | AX55: 0.001682056197 | AY55: 0.001611506123 | AZ55: 0.001546886941 | BA55: 0.001487609553 | BB55: 0.001432970895 | BC55: 0.001382396478 | BD55: 0.00133541055 | BE55: 0.001291614512 | BF55: 0.02682567383 | BG55: 0.05904695583 | BH55: 0.05487810789 | BI55: 0.005643061987 | BJ55: 0.004166555356 | BK55: 0.001249966607 | BL55: 0.001470716609 | BM55: 0.004168847945 | BN55: 0.002916588749 | BO55: 0.5213487666 | BP55: 1 | BS55: 49 | BT55: =AM54*'Parameters for Model A v2'!$B$35 -> 8.549935288 | BU55: =AL54*H54*'Parameters for Model A v2'!$B$37+AN54*(1-I53)*'Parameters for Model A v2'!$B$38 -> 41.00702302 | BV55: =AO55*'Parameters for Model A v2'!$B$40+AP55*'Parameters for Model A v2'!$B$41+AQ55*'Parameters for Model A v2'!$B$42+AR55*'Parameters for Model A v2'!$B$43+AS55*'Parameters for Model A v2'!$B$44+AT55*'Parameters for Model A v2'!$B$45+AU55*'Parameters for Model A v2'!$B$46+AV55*'Parameters for Model A v2'!$B$47+AW55*'Parameters for Model A v2'!$B$48+AX55*'Parameters for Model A v2'!$B$49+AY55*'Parameters for Model A v2'!$B$50+AZ55*'Parameters for Model A v2'!$B$51+BA55*'Parameters for Model A v2'!$B$52+BB55*'Parameters for Model A v2'!$B$53+BC55*'Parameters for Model A v2'!$B$54+BD55*'Parameters for Model A v2'!$B$55+BE55*'Parameters for Model A v2'!$B$56+BF55*'Parameters for Model A v2'!$B$57+BF54*(1-$J$24)*'Parameters for Model A v2'!$B$57 -> 51.48340984 | BW55: ='Parameters for Model A v2'!$B$60*(BI55-BI54*(1-L51))+BI54*(1-L51)*'Parameters for Model A v2'!$B$61 -> 51.75686903 | BX55: =BJ54*(1-M50)*'Parameters for Model A v2'!$B$63+BI54*(L51-E51)*'Parameters for Model A v2'!$B$64 -> 21.14153939 | BY55: ='SCT in Model A'!IJ55 -> 126.4540501 | BZ55: ='SCT in Model A'!IJ121 -> 363.4346606 | CA55: ='SCT in Model A'!IJ188 -> 241.9095834 | CB55: =SUM(BT55:CA55)/((1+discount)^4) -> 905.7370707 | CD55: 0.4010961156 | CE55: 0.007227828072 | CF55: 0.05904695583 | CG55: 0.005643061987 | CH55: 0.001249966607 | CI55: ='SCT in Model A'!NB55 -> 0.03609075451 | CJ55: ='SCT in Model A'!NB121 -> 0.1060199429 | CK55: ='SCT in Model A'!NB188 -> 0.061527786 | CL55: =SUM(CD55:CK55)/((1+discount)^4) -> 0.6779024115
A56: 50 | B56: 48 | C56: =1-EXP(-VLOOKUP(B56,'lifetable pDead'!$A$3:$D$85,gender+1,FALSE)) -> 0.002538347435 | D56: ='Parameters for Model A v2'!$B$10 -> 0.2903225806 | E56: ='Parameters for Model A v2'!$B$11 -> 0.4285714286 | G56: 0.01501448842 | H56: 0.01247614098 | I56: 0.7096774194 | J56: 0.04479942762 | K56: 0.04590898407 | L56: 0.5714285714 | M56: ='Parameters for Model A v2'!$B$15 -> 0.2 | N56: =IF('Parameters for Model A v2'!$B$66>0.0022,O55*0.0022,O55*'Parameters for Model A v2'!$B$66) -> 0.001468382226 | O56: 0.9236471525 | P56: =IF(Q56*'Parameters for Model A v2'!$B$67>BG57,BG57*0.05,Q56*'Parameters for Model A v2'!$B$67) -> 0.00410299436 | Q56: 0.7751001866 | S56: 50 | T56: 0 | U56: 0 | V56: 0 | W56: 0 | X56: 0 | Y56: 0 | Z56: 0 | AA56: 0 | AB56: 0 | AC56: 0 | AD56: 0 | AE56: 0 | AF56: 0 | AG56: 0 | AH56: 0 | AI56: 0 | AJ56: 0 | AK56: 0 | AL56: 0.3965224972 | AM56: 0.3950541149 | AN56: 0.007120882251 | AO56: 0.003031024675 | AP56: 0.002705772167 | AQ56: 0.002476032817 | AR56: 0.002296359514 | AS56: 0.002148572383 | AT56: 0.002023196405 | AU56: 0.001914557322 | AV56: 0.00181894615 | AW56: 0.001733786107 | AX56: 0.001657202362 | AY56: 0.001587773934 | AZ56: 0.001524364472 | BA56: 0.001465950155 | BB56: 0.001412107032 | BC56: 0.001362268979 | BD56: 0.001315967183 | BE56: 0.001272808886 | BF56: 0.02685636067 | BG56: 0.05860305122 | BH56: 0.05445627108 | BI56: 0.005597054834 | BJ56: 0.004139395997 | BK56: 0.001241818799 | BL56: 0.001468382226 | BM56: 0.00414678014 | BN56: 0.002897577198 | BO56: 0.5280171185 | BP56: 1 | BS56: 50 | BT56: =AM55*'Parameters for Model A v2'!$B$35 -> 8.423018427 | BU56: =AL55*H55*'Parameters for Model A v2'!$B$37+AN55*(1-I54)*'Parameters for Model A v2'!$B$38 -> 40.40026678 | BV56: =AO56*'Parameters for Model A v2'!$B$40+AP56*'Parameters for Model A v2'!$B$41+AQ56*'Parameters for Model A v2'!$B$42+AR56*'Parameters for Model A v2'!$B$43+AS56*'Parameters for Model A v2'!$B$44+AT56*'Parameters for Model A v2'!$B$45+AU56*'Parameters for Model A v2'!$B$46+AV56*'Parameters for Model A v2'!$B$47+AW56*'Parameters for Model A v2'!$B$48+AX56*'Parameters for Model A v2'!$B$49+AY56*'Parameters for Model A v2'!$B$50+AZ56*'Parameters for Model A v2'!$B$51+BA56*'Parameters for Model A v2'!$B$52+BB56*'Parameters for Model A v2'!$B$53+BC56*'Parameters for Model A v2'!$B$54+BD56*'Parameters for Model A v2'!$B$55+BE56*'Parameters for Model A v2'!$B$56+BF56*'Parameters for Model A v2'!$B$57+BF55*(1-$J$24)*'Parameters for Model A v2'!$B$57 -> 50.77992326 | BW56: ='Parameters for Model A v2'!$B$60*(BI56-BI55*(1-L52))+BI55*(1-L52)*'Parameters for Model A v2'!$B$61 -> 51.33122181 | BX56: =BJ55*(1-M51)*'Parameters for Model A v2'!$B$63+BI55*(L52-E52)*'Parameters for Model A v2'!$B$64 -> 21.01058196 | BY56: ='SCT in Model A'!IJ56 -> 126.6277595 | BZ56: ='SCT in Model A'!IJ122 -> 362.8570559 | CA56: ='SCT in Model A'!IJ189 -> 241.6826898 | CB56: 903.1125174 | CD56: 0.3950541149 | CE56: 0.007120882251 | CF56: 0.05860305122 | CG56: 0.005597054834 | CH56: 0.001241818799 | CI56: ='SCT in Model A'!NB56 -> 0.03641257912 | CJ56: ='SCT in Model A'!NB122 -> 0.1068218145 | CK56: ='SCT in Model A'!NB189 -> 0.06240532927 | CL56: 0.6732566449
A57: 51 | B57: 48 | C57: =1-EXP(-VLOOKUP(B57,'lifetable pDead'!$A$3:$D$85,gender+1,FALSE)) -> 0.002538347435 | D57: ='Parameters for Model A v2'!$B$10 -> 0.2903225806 | E57: ='Parameters for Model A v2'!$B$11 -> 0.4285714286 | G57: 0.01501448842 | H57: 0.01247614098 | I57: 0.7096774194 | J57: 0.04479942762 | K57: 0.04590898407 | L57: 0.5714285714 | M57: ='Parameters for Model A v2'!$B$15 -> 0.2 | N57: =IF('Parameters for Model A v2'!$B$66>0.0022,O56*0.0022,O56*'Parameters for Model A v2'!$B$66) -> 0.001466051548 | O57: 0.922181101 | P57: =IF(Q57*'Parameters for Model A v2'!$B$67>BG58,BG58*0.05,Q57*'Parameters for Model A v2'!$B$67) -> 0.004081275151 | Q57: 0.7709971923 | S57: 51 | T57: 0 | U57: 0 | V57: 0 | W57: 0 | X57: 0 | Y57: 0 | Z57: 0 | AA57: 0 | AB57: 0 | AC57: 0 | AD57: 0 | AE57: 0 | AF57: 0 | AG57: 0 | AH57: 0 | AI57: 0 | AJ57: 0 | AK57: 0 | AL57: 0.3905689147 | AM57: 0.3891028632 | AN57: 0.007014423488 | AO57: 0.002986176428 | AP57: 0.002665736485 | AQ57: 0.002439396453 | AR57: 0.002262381674 | AS57: 0.00211678128 | AT57: 0.001993260477 | AU57: 0.001886229066 | AV57: 0.001792033255 | AW57: 0.001708135409 | AX57: 0.001632691764 | AY57: 0.001564313202 | AZ57: 0.001501915593 | BA57: 0.001444606115 | BB57: 0.001391546941 | BC57: 0.001342434526 | BD57: 0.001296806884 | BE57: 0.001254276989 | BF57: 0.02686772838 | BG57: 0.05814645092 | BH57: 0.05402162177 | BI57: 0.00555004262 | BJ57: 0.00411109606 | BK57: 0.001233328818 | BL57: 0.001466051548 | BM57: 0.004124829151 | BN57: 0.002877767242 | BO57: 0.5346090722 | BP57: 1 | BS57: 51 | BT57: =AM56*'Parameters for Model A v2'!$B$35 -> 8.296136414 | BU57: =AL56*H56*'Parameters for Model A v2'!$B$37+AN56*(1-I55)*'Parameters for Model A v2'!$B$38 -> 39.79440463 | BV57: =AO57*'Parameters for Model A v2'!$B$40+AP57*'Parameters for Model A v2'!$B$41+AQ57*'Parameters for Model A v2'!$B$42+AR57*'Parameters for Model A v2'!$B$43+AS57*'Parameters for Model A v2'!$B$44+AT57*'Parameters for Model A v2'!$B$45+AU57*'Parameters for Model A v2'!$B$46+AV57*'Parameters for Model A v2'!$B$47+AW57*'Parameters for Model A v2'!$B$48+AX57*'Parameters for Model A v2'!$B$49+AY57*'Parameters for Model A v2'!$B$50+AZ57*'Parameters for Model A v2'!$B$51+BA57*'Parameters for Model A v2'!$B$52+BB57*'Parameters for Model A v2'!$B$53+BC57*'Parameters for Model A v2'!$B$54+BD57*'Parameters for Model A v2'!$B$55+BE57*'Parameters for Model A v2'!$B$56+BF57*'Parameters for Model A v2'!$B$57+BF56*(1-$J$24)*'Parameters for Model A v2'!$B$57 -> 50.08425314 | BW57: ='Parameters for Model A v2'!$B$60*(BI57-BI56*(1-L53))+BI56*(1-L53)*'Parameters for Model A v2'!$B$61 -> 50.89658 | BX57: =BJ56*(1-M52)*'Parameters for Model A v2'!$B$63+BI56*(L53-E53)*'Parameters for Model A v2'!$B$64 -> 20.87343906 | BY57: ='SCT in Model A'!IJ57 -> 126.7919241 | BZ57: ='SCT in Model A'!IJ123 -> 362.2491816 | CA57: ='SCT in Model A'!IJ190 -> 241.3628531 | CB57: 900.348772 | CD57: 0.3891028632 | CE57: 0.007014423488 | CF57: 0.05814645092 | CG57: 0.00555004262 | CH57: 0.001233328818 | CI57: ='SCT in Model A'!NB57 -> 0.03672450786 | CJ57: ='SCT in Model A'!NB123 -> 0.1075856974 | CK57: ='SCT in Model A'!NB190 -> 0.06324404563 | CL57: 0.6686013599
A58: 52 | B58: 48 | C58: =1-EXP(-VLOOKUP(B58,'lifetable pDead'!$A$3:$D$85,gender+1,FALSE)) -> 0.002538347435 | D58: ='Parameters for Model A v2'!$B$10 -> 0.2903225806 | E58: ='Parameters for Model A v2'!$B$11 -> 0.4285714286 | G58: 0.01501448842 | H58: 0.01247614098 | I58: 0.7096774194 | J58: 0.04479942762 | K58: 0.04590898407 | L58: 0.5714285714 | M58: ='Parameters for Model A v2'!$B$15 -> 0.2 | N58: =IF('Parameters for Model A v2'!$B$66>0.0022,O57*0.0022,O57*'Parameters for Model A v2'!$B$66) -> 0.001463724569 | O58: 0.9207173764 | P58: =IF(Q58*'Parameters for Model A v2'!$B$67>BG59,BG59*0.05,Q58*'Parameters for Model A v2'!$B$67) -> 0.004059670913 | Q58: 0.7669159171 | S58: 52 | T58: 0 | U58: 0 | V58: 0 | W58: 0 | X58: 0 | Y58: 0 | Z58: 0 | AA58: 0 | AB58: 0 | AC58: 0 | AD58: 0 | AE58: 0 | AF58: 0 | AG58: 0 | AH58: 0 | AI58: 0 | AJ58: 0 | AK58: 0 | AL58: 0.3847047223 | AM58: 0.3832409977 | AN58: 0.006909238372 | AO58: 0.002941532431 | AP58: 0.002626293187 | AQ58: 0.002403302172 | AR58: 0.002228906576 | AS58: 0.00208546055 | AT58: 0.001963767429 | AU58: 0.001858319756 | AV58: 0.001765517895 | AW58: 0.001682862055 | AX58: 0.001608536718 | AY58: 0.001541176466 | AZ58: 0.001479723492 | BA58: 0.001423331815 | BB58: 0.001371286202 | BC58: 0.001322888857 | BD58: 0.00127792555 | BE58: 0.001236014891 | BF58: 0.02686090365 | BG58: 0.05767774969 | BH58: 0.05357475533 | BI58: 0.005502117151 | BJ58: 0.004081740079 | BK58: 0.001224522024 | BL58: 0.001463724569 | BM58: 0.00410299436 | BN58: 0.002857218055 | BO58: 0.5411244324 | BP58: 1 | BS58: 52 | BT58: =AM57*'Parameters for Model A v2'!$B$35 -> 8.171160127 | BU58: =AL57*H57*'Parameters for Model A v2'!$B$37+AN57*(1-I56)*'Parameters for Model A v2'!$B$38 -> 39.19712313 | BV58: =AO58*'Parameters for Model A v2'!$B$40+AP58*'Parameters for Model A v2'!$B$41+AQ58*'Parameters for Model A v2'!$B$42+AR58*'Parameters for Model A v2'!$B$43+AS58*'Parameters for Model A v2'!$B$44+AT58*'Parameters for Model A v2'!$B$45+AU58*'Parameters for Model A v2'!$B$46+AV58*'Parameters for Model A v2'!$B$47+AW58*'Parameters for Model A v2'!$B$48+AX58*'Parameters for Model A v2'!$B$49+AY58*'Parameters for Model A v2'!$B$50+AZ58*'Parameters for Model A v2'!$B$51+BA58*'Parameters for Model A v2'!$B$52+BB58*'Parameters for Model A v2'!$B$53+BC58*'Parameters for Model A v2'!$B$54+BD58*'Parameters for Model A v2'!$B$55+BE58*'Parameters for Model A v2'!$B$56+BF58*'Parameters for Model A v2'!$B$57+BF57*(1-$J$24)*'Parameters for Model A v2'!$B$57 -> 49.39352037 | BW58: ='Parameters for Model A v2'!$B$60*(BI58-BI57*(1-L54))+BI57*(1-L54)*'Parameters for Model A v2'!$B$61 -> 50.4537739 | BX58: =BJ57*(1-M53)*'Parameters for Model A v2'!$B$63+BI57*(L54-E54)*'Parameters for Model A v2'!$B$64 -> 20.73055554 | BY58: ='SCT in Model A'!IJ58 -> 126.9467885 | BZ58: ='SCT in Model A'!IJ124 -> 361.6120232 | CA58: ='SCT in Model A'!IJ191 -> 240.9543224 | CB58: 897.4592671 | CD58: 0.3832409977 | CE58: 0.006909238372 | CF58: 0.05767774969 | CG58: 0.005502117151 | CH58: 0.001224522024 | CI58: ='SCT in Model A'!NB58 -> 0.03702678877 | CJ58: ='SCT in Model A'!NB124 -> 0.108312628 | CK58: ='SCT in Model A'!NB191 -> 0.06404432016 | CL58: 0.6639383618
A59: 53 | B59: 48 | C59: =1-EXP(-VLOOKUP(B59,'lifetable pDead'!$A$3:$D$85,gender+1,FALSE)) -> 0.002538347435 | D59: ='Parameters for Model A v2'!$B$10 -> 0.2903225806 | E59: ='Parameters for Model A v2'!$B$11 -> 0.4285714286 | G59: 0.01501448842 | H59: 0.01247614098 | I59: 0.7096774194 | J59: 0.04479942762 | K59: 0.04590898407 | L59: 0.5714285714 | M59: ='Parameters for Model A v2'!$B$15 -> 0.2 | N59: =IF('Parameters for Model A v2'!$B$66>0.0022,O58*0.0022,O58*'Parameters for Model A v2'!$B$66) -> 0.001461401284 | O59: 0.9192559751 | P59: =IF(Q59*'Parameters for Model A v2'!$B$67>BG60,BG60*0.05,Q59*'Parameters for Model A v2'!$B$67) -> 0.004038181037 | Q59: 0.7628562462 | S59: 53 | T59: 0 | U59: 0 | V59: 0 | W59: 0 | X59: 0 | Y59: 0 | Z59: 0 | AA59: 0 | AB59: 0 | AC59: 0 | AD59: 0 | AE59: 0 | AF59: 0 | AG59: 0 | AH59: 0 | AI59: 0 | AJ59: 0 | AK59: 0 | AL59: 0.3789285777 | AM59: 0.3774671764 | AN59: 0.006805538265 | AO59: 0.002897422543 | AP59: 0.002587029524 | AQ59: 0.002367741957 | AR59: 0.002195926788 | AS59: 0.002054603248 | AT59: 0.001934710752 | AU59: 0.001830823342 | AV59: 0.001739394669 | AW59: 0.001657962019 | AX59: 0.001584737013 | AY59: 0.001518375353 | AZ59: 0.001457837867 | BA59: 0.001402300857 | BB59: 0.001351091663 | BC59: 0.001303627771 | BD59: 0.001259319124 | BE59: 0.001218018681 | BF59: 0.02683695892 | BG59: 0.05719788209 | BH59: 0.05311660694 | BI59: 0.005453325816 | BJ59: 0.004051408799 | BK59: 0.00121542264 | BL59: 0.001461401284 | BM59: 0.004081275151 | BN59: 0.002835986159 | BO59: 0.5475632674 | BP59: 1 | BS59: 53 | BT59: =AM58*'Parameters for Model A v2'!$B$35 -> 8.048060952 | BU59: =AL58*H58*'Parameters for Model A v2'!$B$37+AN58*(1-I57)*'Parameters for Model A v2'!$B$38 -> 38.60865967 | BV59: =AO59*'Parameters for Model A v2'!$B$40+AP59*'Parameters for Model A v2'!$B$41+AQ59*'Parameters for Model A v2'!$B$42+AR59*'Parameters for Model A v2'!$B$43+AS59*'Parameters for Model A v2'!$B$44+AT59*'Parameters for Model A v2'!$B$45+AU59*'Parameters for Model A v2'!$B$46+AV59*'Parameters for Model A v2'!$B$47+AW59*'Parameters for Model A v2'!$B$48+AX59*'Parameters for Model A v2'!$B$49+AY59*'Parameters for Model A v2'!$B$50+AZ59*'Parameters for Model A v2'!$B$51+BA59*'Parameters for Model A v2'!$B$52+BB59*'Parameters for Model A v2'!$B$53+BC59*'Parameters for Model A v2'!$B$54+BD59*'Parameters for Model A v2'!$B$55+BE59*'Parameters for Model A v2'!$B$56+BF59*'Parameters for Model A v2'!$B$57+BF58*(1-$J$24)*'Parameters for Model A v2'!$B$57 -> 48.7079032 | BW59: ='Parameters for Model A v2'!$B$60*(BI59-BI58*(1-L55))+BI58*(1-L55)*'Parameters for Model A v2'!$B$61 -> 50.00312779 | BX59: =BJ58*(1-M54)*'Parameters for Model A v2'!$B$63+BI58*(L55-E55)*'Parameters for Model A v2'!$B$64 -> 20.58235722 | BY59: ='SCT in Model A'!IJ59 -> 127.0925913 | BZ59: ='SCT in Model A'!IJ125 -> 360.9465402 | CA59: ='SCT in Model A'!IJ192 -> 240.4612198 | CB59: 894.4504601 | CD59: 0.3774671764 | CE59: 0.006805538265 | CF59: 0.05719788209 | CG59: 0.005453325816 | CH59: 0.00121542264 | CI59: ='SCT in Model A'!NB59 -> 0.03731966374 | CJ59: ='SCT in Model A'!NB125 -> 0.1090036165 | CK59: ='SCT in Model A'!NB192 -> 0.0648065738 | CL59: 0.6592691993
A60: 54 | B60: 48 | C60: =1-EXP(-VLOOKUP(B60,'lifetable pDead'!$A$3:$D$85,gender+1,FALSE)) -> 0.002538347435 | D60: ='Parameters for Model A v2'!$B$10 -> 0.2903225806 | E60: ='Parameters for Model A v2'!$B$11 -> 0.4285714286 | G60: 0.01501448842 | H60: 0.01247614098 | I60: 0.7096774194 | J60: 0.04479942762 | K60: 0.04590898407 | L60: 0.5714285714 | M60: ='Parameters for Model A v2'!$B$15 -> 0.2 | N60: =IF('Parameters for Model A v2'!$B$66>0.0022,O59*0.0022,O59*'Parameters for Model A v2'!$B$66) -> 0.001459081687 | O60: 0.9177968934 | P60: =IF(Q60*'Parameters for Model A v2'!$B$67>BG61,BG61*0.05,Q60*'Parameters for Model A v2'!$B$67) -> 0.004016804918 | Q60: 0.7588180652 | S60: 54 | T60: 0 | U60: 0 | V60: 0 | W60: 0 | X60: 0 | Y60: 0 | Z60: 0 | AA60: 0 | AB60: 0 | AC60: 0 | AD60: 0 | AE60: 0 | AF60: 0 | AG60: 0 | AH60: 0 | AI60: 0 | AJ60: 0 | AK60: 0 | AL60: 0.3732391589 | AM60: 0.3717800772 | AN60: 0.006703367789 | AO60: 0.002853935402 | AP60: 0.002548235601 | AQ60: 0.002332343691 | AR60: 0.002163434981 | AS60: 0.002024202521 | AT60: 0.001906084003 | AU60: 0.001803733758 | AV60: 0.001713657917 | AW60: 0.001633430228 | AX60: 0.001561288859 | AY60: 0.001495909665 | AZ60: 0.001436269717 | BA60: 0.00138156034 | BB60: 0.001331128116 | BC60: 0.001284429618 | BD60: 0.001240983605 | BE60: 0.00120028449 | BF60: 0.02679691487 | BG60: 0.05670782738 | BH60: 0.05264815647 | BI60: 0.005403732371 | BJ60: 0.004020173584 | BK60: 0.001206052075 | BL60: 0.001459081687 | BM60: 0.004059670913 | BN60: 0.002814121509 | BO60: 0.5539257399 | BP60: 1 | BS60: 54 | BT60: =AM59*'Parameters for Model A v2'!$B$35 -> 7.926810704 | BU60: =AL59*H59*'Parameters for Model A v2'!$B$37+AN59*(1-I58)*'Parameters for Model A v2'!$B$38 -> 38.02898819 | BV60: =AO60*'Parameters for Model A v2'!$B$40+AP60*'Parameters for Model A v2'!$B$41+AQ60*'Parameters for Model A v2'!$B$42+AR60*'Parameters for Model A v2'!$B$43+AS60*'Parameters for Model A v2'!$B$44+AT60*'Parameters for Model A v2'!$B$45+AU60*'Parameters for Model A v2'!$B$46+AV60*'Parameters for Model A v2'!$B$47+AW60*'Parameters for Model A v2'!$B$48+AX60*'Parameters for Model A v2'!$B$49+AY60*'Parameters for Model A v2'!$B$50+AZ60*'Parameters for Model A v2'!$B$51+BA60*'Parameters for Model A v2'!$B$52+BB60*'Parameters for Model A v2'!$B$53+BC60*'Parameters for Model A v2'!$B$54+BD60*'Parameters for Model A v2'!$B$55+BE60*'Parameters for Model A v2'!$B$56+BF60*'Parameters for Model A v2'!$B$57+BF59*(1-$J$24)*'Parameters for Model A v2'!$B$57 -> 48.02879485 | BW60: ='Parameters for Model A v2'!$B$60*(BI60-BI59*(1-L56))+BI59*(1-L56)*'Parameters for Model A v2'!$B$61 -> 49.54526869 | BX60: =BJ59*(1-M55)*'Parameters for Model A v2'!$B$63+BI59*(L56-E56)*'Parameters for Model A v2'!$B$64 -> 20.42925002 | BY60: ='SCT in Model A'!IJ60 -> 127.2295652 | BZ60: ='SCT in Model A'!IJ126 -> 360.2536673 | CA60: ='SCT in Model A'!IJ193 -> 239.8875366 | CB60: 891.3298815 | CD60: 0.3717800772 | CE60: 0.006703367789 | CF60: 0.05670782738 | CG60: 0.005403732371 | CH60: 0.001206052075 | CI60: ='SCT in Model A'!NB60 -> 0.03760336867 | CJ60: ='SCT in Model A'!NB126 -> 0.1096596479 | CK60: ='SCT in Model A'!NB193 -> 0.06553126051 | CL60: 0.6545953339
